Workbook

Sheet Covers
B5: Official Statistics Release
B6: Policy area: | C6: Children's homes inspections and outcomes
B7: Theme: | C7: Education, children’s services and skills
B8: Published on: | C8: 2012-12-18
B9: Coverage: | C9: England
B10: Period covered: | C10: 1 July 2012 - 30 September 2012
B11: Status: | C11: PROVISIONAL
B12: Issued by: | C12: Office for Standards in Education, Children's Services and Skills (Ofsted) Aviation House 125 Kingsway London WC2B 6SE
B16: Responsible director: | C16: John Goldup
B17: Statistician: | C17: Adam King
B18: Public enquiries: | C18: enquiries@ofsted.gov.uk
B19: Press enquiries: | C19: pressenquiries@ofsted.gov.uk
B20: Link to official statistics release web page: | C20: www.ofsted.gov.uk/resources/official-statistics-children%E2%80%99s-social-care-inspections-and-outcomes
B21: Publication medium: | C21: Ofsted website
B22: Publication frequency: | C22: Quarterly
B23: Next publication date: | C23: 2013-03-27
B26: © Crown copyright
B28: You may use and re-use this information (not including logos) free of charge in any format or medium, under the terms of the Open Government Licence.
B29: To view this licence, visit:
B30: http://www.nationalarchives.gov.uk/doc/open-government-licence/
B31: Or write to the Information Policy Team, The National Archives, Kew, London, TW9 4DU
B32: Or email:
B33: psi@nationalarchives.gsi.gov.uk

Sheet Contents
B1: Contents
B3: LINKS TO EACH TABLE
B6: Table 1: Number of children's homes inspections carried out between 1 July 2012 - 30 September 2012, by inspection type (provisional)
B7: Table 2: Overall effectiveness of children's homes at full inspections between 1 July 2012 - 30 September 2012 (provisional)
B8: Table 3a: Full inspection outcomes of children's homes (excluding secure children's homes and residential special schools caring for pupils for more than 295 days a year) inspected between 1 July 2012 - 30 September 2012 (provisional)
B9: Table 3b: Full inspection outcomes of secure children's homes inspected between 1 July 2012 - 30 September 2012 (provisional)
B10: Table 3c: Full inspection outcomes of residential special schools caring for pupils for more than 295 days per year inspected between 1 July 2012 - 30 September 2012 (provisional)
B11: Table 3d: Interim inspection outcomes of all children's homes inspected between 1 July 2012 - 30 September 2012 (provisional)
B12: Table 4: Overall effectiveness of children's homes inspected between 1 July 2012 - 30 September 2012 by region - local authority (provisional)
B13: Chart 1: Overall effectiveness of children's homes inspected between 1 April 2007 and 30 June 2012, by financial year (provisional)
B14: Chart 2: Overall effectiveness of children's homes inspected between 1 April 2007 and 30 June 2012, by quarter (provisional)
B15: Chart 3: Overall effectiveness of local authority run children's homes inspected between 1 April 2011 and 30 June 2012, by quarter (provisional)
B16: Chart 4: Overall effectiveness of private and voluntary run children's homes inspected between 1 April 2011 and 30 June 2012, by quarter (provisional)
B17: Map 1: Children's homes receiving a good or better overall effectiveness grade at full inspection, by former Government Office Region, since 1 April 2012 (provisional)
B18: Map 2: Children's homes receiving a satisfactory or lower overall effectiveness grade at full inspection, by former Government Office Region, since 1 April 2012 (provisional)
B19: Map 3: Local authority run children's homes receiving a good or better overall effectiveness grade at full inspection, by former Government Office Region, since 1 April 2012 (provisional)
B20: Map 4: Private and voluntary run children's homes receiving a good or better overall effectiveness grade at full inspection, by former Government Office Region, since 1 April 2012 (provisional)
B21: Map 5: Local authority run children's homes receiving an adequate or lower overall effectiveness grade at full inspection, by former Government Office Region, since 1 April 2012 (provisional)
B22: Map 6: Private and voluntary run children's homes receiving an adequate or lower overall effectiveness grade at full inspection, by former Government Office Region, since 1 April 2012 (provisional)

Sheet Ranges (hidden)
A1: 1 April 2011 - 30 June 2011 | B1: 1 July 2012 - 30 September 2012 | C1: 1 October - 31 December 2011 | D1: 1 January 2012 - 31 March 2012 | E1: OE:SC | F1: ="January 2012" -> January 2012 | G1: Month | H1: children's homes | I1: 1 April 2012 - 30 June 2012
A2: ="April 2011" -> April 2011 | B2: ="July 2012" -> July 2012 | C2: ="October 2011" -> October 2011 | D2: ="January 2012" -> January 2012 | E2: OE:EY | F2: ="February 2012" -> February 2012 | G2: Month | I2: ="April 2012" -> April 2012
A3: ="May 2011" -> May 2011 | B3: ="August 2012" -> August 2012 | C3: ="November 2011" -> November 2011 | D3: ="February 2012" -> February 2012 | E3: OE:SF | F3: ="March 2012" -> March 2012 | G3: Month | I3: ="May 2012" -> May 2012
A4: ="June 2011" -> June 2011 | B4: ="September 2012" -> September 2012 | C4: ="December 2011" -> December 2011 | D4: ="March 2012" -> March 2012 | E4: LM:EPCI | F4: ="April 2012" -> April 2012 | G4: Month | I4: ="June 2012" -> June 2012
F5: ="May 2012" -> May 2012 | G5: ="May 2011" -> May 2011 | H5: Month
A6: All | F6: ="June 2012" -> June 2012 | G6: ="June 2011" -> June 2011 | H6: Month
A7: 2011 January | F7: ="July 2012" -> July 2012 | G7: ="July 2011" -> July 2011 | H7: Month
A8: 2011 February | F8: ="August 2012" -> August 2012 | G8: ="August 2011" -> August 2011 | H8: Month
A9: 2011 March | F9: ="September 2012" -> September 2012 | G9: ="September 2011" -> September 2011 | H9: Month
F10: ="October 2012" -> October 2012 | G10: ="October 2011" -> October 2011 | H10: Month
F11: ="November 2012" -> November 2012 | G11: ="November 2011" -> November 2011 | H11: Month
C12: provision_table2 (now used for table 3) | F12: ="December 2012" -> December 2012 | G12: ="December 2011" -> December 2011 | H12: Month
A13: Children's home | B13: All | C13: Children's home
A14: Secure children's home | C14: Secure children's home
A15: Local authority fostering service | B15: Health Authority | C15: Local authority fostering service | G15: Children's home
A16: Independent fostering agency | B16: Local Authority | C16: Independent fostering agency | G16: Secure children's home
A17: Local authority private fostering service | B17: Private | C17: Local authority adoption service | G17: Residential special school (ch)
A18: Local authority adoption service | B18: Voluntary | C18: Voluntary adoption agency | G18: Local authority fostering service
A19: Voluntary adoption agency | C19: Residential family centre | G19: Independent fostering service
A20: Adoption support agency | C20: Residential special school | G20: Local authority adoption agency
A21: Residential family centre | C21: Boarding school | G21: Voluntary adoption agency
A22: Residential special school | C22: Further education college with residential accommodation | G22: Residential family centre
A23: Boarding school | G23: Residential special school
A24: Further education college with residential accommodation | G24: Boarding school
G25: Further education college with residential accommodation
G26: Adoption support agency
G27: Secure training centre
A29: All | B29: Amended LA's | C29: Periods
A30: Barking & Dagenham | B30: Barking & Dagenham | C30: =D1 -> 1 January 2012 - 31 March 2012 | D30: 4 | G30: Children's home
A31: Barnet | B31: Bath & North East Somerset | C31: =D2 -> January 2012 | D31: 1 | G31: Residential special school (>295 days/year)
A32: Barnsley | B32: Bedford Borough | C32: =D3 -> February 2012 | D32: 2 | G32: Secure children's home
A33: Bath & North East Somerset | B33: Brighton & Hove | C33: =D4 -> March 2012 | D33: 3
A34: Bedford Borough | B34: Derby city City | C34: 1 April 2012 - 30 June 2012 | D34: 4
A35: Bexley | B35: Hammersmith & Fulham | C35: ="April 2012" -> April 2012 | D35: 1 | G35: All
A36: Birmingham | B36: Isles of Scilly | C36: ="May 2012" -> May 2012 | D36: 2 | G36: Local authority
A37: Blackburn with Darwen | B37: Isle of Wight | C37: ="June 2012" -> June 2012 | D37: 3 | G37: Private/ voluntary
A38: Blackpool | B38: Leicester City | C38: =B1 -> 1 July 2012 - 30 September 2012 | D38: 4
A39: Bolton | B39: Nottingham city | C39: =B2 -> July 2012 | D39: 1
A40: Bournemouth | B40: Redcar & Cleveland | C40: =B3 -> August 2012 | D40: 2
A41: Bracknell Forest | B41: Southend | C41: =B4 -> September 2012 | D41: 3
A42: Bradford | B42: St. Helens | C42: =C1 -> 1 October - 31 December 2011 | D42: 4
A43: Brent | B43: Telford & Wrekin | C43: =C2 -> October 2011 | D43: 1
A44: Brighton & Hove | C44: =C3 -> November 2011 | D44: 2
A45: Bristol | C45: =C4 -> December 2011 | D45: 3
A46: Bromley
A47: Buckinghamshire
A48: Bury
A49: Calderdale
A50: Cambridgeshire
A51: Camden
A52: Central Bedfordshire
A53: Cheshire East
A54: Cheshire West and Chester
A55: City of London
A56: Cornwall
A57: Coventry
A58: Croydon
A59: Cumbria
A60: Darlington
A61: Derby City
A62: Derbyshire
A63: Devon
A64: Doncaster
A65: Dorset
A66: Dudley
A67: Durham
A68: Ealing
A69: East Riding of Yorkshire
A70: East Sussex
A71: Enfield
A72: Essex
A73: Gateshead
A74: Gloucestershire
A75: Greenwich
A76: Hackney
A77: Halton
A78: Hammersmith & Fulham
A79: Hampshire
A80: Haringey
A81: Harrow
A82: Hartlepool
A83: Havering
A84: Herefordshire
A85: Hertfordshire
A86: Hillingdon
A87: Hounslow
A88: Isle of Wight
A89: Isles of Scilly
A90: Islington
A91: Kensington and Chelsea
A92: Kent
A93: Kingston upon Hull
A94: Kingston upon Thames
A95: Kirklees
A96: Knowsley
A97: Lambeth
A98: Lancashire
A99: Leeds
A100: Leicester City
A101: Leicestershire
A102: Lewisham
A103: Lincolnshire
A104: Liverpool
A105: Luton
A106: Manchester
A107: Medway
A108: Merton
A109: Middlesbrough
A110: Milton Keynes
A111: Newcastle upon Tyne
A112: Newham
A113: Norfolk
A114: North East Lincolnshire
A115: North Lincolnshire
A116: North Somerset
A117: North Tyneside
A118: North Yorkshire
A119: Northamptonshire
A120: Northumberland
A121: Nottingham city
A122: Nottinghamshire
A123: Oldham
A124: Oxfordshire
A125: Peterborough
A126: Plymouth
A127: Poole
A128: Portsmouth
A129: Reading
A130: Redbridge
A131: Redcar & Cleveland
A132: Richmond upon Thames
A133: Rochdale
A134: Rotherham
A135: Rutland
A136: Salford
A137: Sandwell
A138: Sefton
A139: Sheffield
A140: Shropshire
A141: Slough
A142: Solihull
A143: Somerset
A144: South Gloucestershire
A145: South Tyneside
A146: Southampton
A147: Southend
A148: Southwark
A149: St. Helens
A150: Staffordshire
A151: Stockport
A152: Stockton-on-Tees
A153: Stoke-on-Trent
A154: Suffolk
A155: Sunderland
A156: Surrey
A157: Sutton
A158: Swindon
A159: Tameside
A160: Telford & Wrekin
A161: Thurrock
A162: Torbay
A163: Tower Hamlets
A164: Trafford
A165: Wakefield
A166: Walsall
A167: Waltham Forest
A168: Wandsworth
A169: Warrington
A170: Warwickshire
A171: West Berkshire
A172: West Sussex
A173: Westminster
A174: Wigan
A175: Wiltshire
A176: Windsor and Maidenhead
A177: Wirral
A178: Wokingham
A179: Wolverhampton
A180: Worcestershire
A181: York
A182: Local authority not recorded

Sheet Table1_Data (hidden)
A1: Lookup | B1: Local Authority | C1: Sector | D1: Event Type Group | E1: Corporate Inspected Provision Type Group Name | F1: Month | G1: Count
A2: AllAllFull inspectionChildren's Home1 | B2: All | C2: All | D2: Full inspection | E2: Children's Home | F2: 1 | G2: 264
A3: AllAllFull inspectionChildren's Home2 | B3: All | C3: All | D3: Full inspection | E3: Children's Home | F3: 2 | G3: 273
A4: AllAllFull inspectionChildren's Home3 | B4: All | C4: All | D4: Full inspection | E4: Children's Home | F4: 3 | G4: 124
A5: AllAllFull inspectionChildren's Home4 | B5: All | C5: All | D5: Full inspection | E5: Children's Home | F5: 4 | G5: 661
A6: AllAllFull inspectionResidential special school (>295 days/year)1 | B6: All | C6: All | D6: Full inspection | E6: Residential special school (>295 days/year) | F6: 1 | G6: 9
A7: AllAllFull inspectionResidential special school (>295 days/year)2 | B7: All | C7: All | D7: Full inspection | E7: Residential special school (>295 days/year) | F7: 2 | G7: 5
A8: AllAllFull inspectionResidential special school (>295 days/year)3 | B8: All | C8: All | D8: Full inspection | E8: Residential special school (>295 days/year) | F8: 3 | G8: 4
A9: AllAllFull inspectionResidential special school (>295 days/year)4 | B9: All | C9: All | D9: Full inspection | E9: Residential special school (>295 days/year) | F9: 4 | G9: 18
A10: AllAllFull inspectionSecure Children's Home1 | B10: All | C10: All | D10: Full inspection | E10: Secure Children's Home | F10: 1 | G10: 4
A11: AllAllFull inspectionSecure Children's Home2 | B11: All | C11: All | D11: Full inspection | E11: Secure Children's Home | F11: 2 | G11: 1
A12: AllAllFull inspectionSecure Children's Home3 | B12: All | C12: All | D12: Full inspection | E12: Secure Children's Home | F12: 3 | G12: 1
A13: AllAllFull inspectionSecure Children's Home4 | B13: All | C13: All | D13: Full inspection | E13: Secure Children's Home | F13: 4 | G13: 6
A14: AllAllInterim inspectionChildren's Home1 | B14: All | C14: All | D14: Interim inspection | E14: Children's Home | F14: 1 | G14: 32
A15: AllAllInterim inspectionChildren's Home2 | B15: All | C15: All | D15: Interim inspection | E15: Children's Home | F15: 2 | G15: 20
A16: AllAllInterim inspectionChildren's Home3 | B16: All | C16: All | D16: Interim inspection | E16: Children's Home | F16: 3 | G16: 55
A17: AllAllInterim inspectionChildren's Home4 | B17: All | C17: All | D17: Interim inspection | E17: Children's Home | F17: 4 | G17: 107
A18: AllAllInterim inspectionResidential special school (>295 days/year)1 | B18: All | C18: All | D18: Interim inspection | E18: Residential special school (>295 days/year) | F18: 1 | G18: 2
A19: AllAllInterim inspectionResidential special school (>295 days/year)3 | B19: All | C19: All | D19: Interim inspection | E19: Residential special school (>295 days/year) | F19: 3 | G19: 1
A20: AllAllInterim inspectionResidential special school (>295 days/year)4 | B20: All | C20: All | D20: Interim inspection | E20: Residential special school (>295 days/year) | F20: 4 | G20: 3
A21: AllLocal AuthorityFull inspectionChildren's Home1 | B21: All | C21: Local Authority | D21: Full inspection | E21: Children's Home | F21: 1 | G21: 80
A22: AllLocal AuthorityFull inspectionChildren's Home2 | B22: All | C22: Local Authority | D22: Full inspection | E22: Children's Home | F22: 2 | G22: 100
A23: AllLocal AuthorityFull inspectionChildren's Home3 | B23: All | C23: Local Authority | D23: Full inspection | E23: Children's Home | F23: 3 | G23: 38
A24: AllLocal AuthorityFull inspectionChildren's Home4 | B24: All | C24: Local Authority | D24: Full inspection | E24: Children's Home | F24: 4 | G24: 218
A25: AllLocal AuthorityFull inspectionSecure Children's Home1 | B25: All | C25: Local Authority | D25: Full inspection | E25: Secure Children's Home | F25: 1 | G25: 4
A26: AllLocal AuthorityFull inspectionSecure Children's Home2 | B26: All | C26: Local Authority | D26: Full inspection | E26: Secure Children's Home | F26: 2 | G26: 1
A27: AllLocal AuthorityFull inspectionSecure Children's Home3 | B27: All | C27: Local Authority | D27: Full inspection | E27: Secure Children's Home | F27: 3 | G27: 1
A28: AllLocal AuthorityFull inspectionSecure Children's Home4 | B28: All | C28: Local Authority | D28: Full inspection | E28: Secure Children's Home | F28: 4 | G28: 6
A29: AllLocal AuthorityInterim inspectionChildren's Home1 | B29: All | C29: Local Authority | D29: Interim inspection | E29: Children's Home | F29: 1 | G29: 4
A30: AllLocal AuthorityInterim inspectionChildren's Home2 | B30: All | C30: Local Authority | D30: Interim inspection | E30: Children's Home | F30: 2 | G30: 2
A31: AllLocal AuthorityInterim inspectionChildren's Home3 | B31: All | C31: Local Authority | D31: Interim inspection | E31: Children's Home | F31: 3 | G31: 15
A32: AllLocal AuthorityInterim inspectionChildren's Home4 | B32: All | C32: Local Authority | D32: Interim inspection | E32: Children's Home | F32: 4 | G32: 21
A33: AllPrivate/ VoluntaryFull inspectionChildren's Home1 | B33: All | C33: Private/ Voluntary | D33: Full inspection | E33: Children's Home | F33: 1 | G33: 184
A34: AllPrivate/ VoluntaryFull inspectionChildren's Home2 | B34: All | C34: Private/ Voluntary | D34: Full inspection | E34: Children's Home | F34: 2 | G34: 173
A35: AllPrivate/ VoluntaryFull inspectionChildren's Home3 | B35: All | C35: Private/ Voluntary | D35: Full inspection | E35: Children's Home | F35: 3 | G35: 86
A36: AllPrivate/ VoluntaryFull inspectionChildren's Home4 | B36: All | C36: Private/ Voluntary | D36: Full inspection | E36: Children's Home | F36: 4 | G36: 443
A37: AllPrivate/ VoluntaryFull inspectionResidential special school (>295 days/year)1 | B37: All | C37: Private/ Voluntary | D37: Full inspection | E37: Residential special school (>295 days/year) | F37: 1 | G37: 9
A38: AllPrivate/ VoluntaryFull inspectionResidential special school (>295 days/year)2 | B38: All | C38: Private/ Voluntary | D38: Full inspection | E38: Residential special school (>295 days/year) | F38: 2 | G38: 5
A39: AllPrivate/ VoluntaryFull inspectionResidential special school (>295 days/year)3 | B39: All | C39: Private/ Voluntary | D39: Full inspection | E39: Residential special school (>295 days/year) | F39: 3 | G39: 4
A40: AllPrivate/ VoluntaryFull inspectionResidential special school (>295 days/year)4 | B40: All | C40: Private/ Voluntary | D40: Full inspection | E40: Residential special school (>295 days/year) | F40: 4 | G40: 18
A41: AllPrivate/ VoluntaryInterim inspectionChildren's Home1 | B41: All | C41: Private/ Voluntary | D41: Interim inspection | E41: Children's Home | F41: 1 | G41: 28
A42: AllPrivate/ VoluntaryInterim inspectionChildren's Home2 | B42: All | C42: Private/ Voluntary | D42: Interim inspection | E42: Children's Home | F42: 2 | G42: 18
A43: AllPrivate/ VoluntaryInterim inspectionChildren's Home3 | B43: All | C43: Private/ Voluntary | D43: Interim inspection | E43: Children's Home | F43: 3 | G43: 40
A44: AllPrivate/ VoluntaryInterim inspectionChildren's Home4 | B44: All | C44: Private/ Voluntary | D44: Interim inspection | E44: Children's Home | F44: 4 | G44: 86
A45: AllPrivate/ VoluntaryInterim inspectionResidential special school (>295 days/year)1 | B45: All | C45: Private/ Voluntary | D45: Interim inspection | E45: Residential special school (>295 days/year) | F45: 1 | G45: 2
A46: AllPrivate/ VoluntaryInterim inspectionResidential special school (>295 days/year)3 | B46: All | C46: Private/ Voluntary | D46: Interim inspection | E46: Residential special school (>295 days/year) | F46: 3 | G46: 1
A47: AllPrivate/ VoluntaryInterim inspectionResidential special school (>295 days/year)4 | B47: All | C47: Private/ Voluntary | D47: Interim inspection | E47: Residential special school (>295 days/year) | F47: 4 | G47: 3
A48: Barking & DagenhamAllFull inspectionChildren's Home2 | B48: Barking & Dagenham | C48: All | D48: Full inspection | E48: Children's Home | F48: 2 | G48: 1
A49: Barking & DagenhamAllFull inspectionChildren's Home4 | B49: Barking & Dagenham | C49: All | D49: Full inspection | E49: Children's Home | F49: 4 | G49: 1
A50: Barking & DagenhamAllInterim inspectionChildren's Home3 | B50: Barking & Dagenham | C50: All | D50: Interim inspection | E50: Children's Home | F50: 3 | G50: 1
A51: Barking & DagenhamAllInterim inspectionChildren's Home4 | B51: Barking & Dagenham | C51: All | D51: Interim inspection | E51: Children's Home | F51: 4 | G51: 1
A52: Barking & DagenhamPrivate/ VoluntaryFull inspectionChildren's Home2 | B52: Barking & Dagenham | C52: Private/ Voluntary | D52: Full inspection | E52: Children's Home | F52: 2 | G52: 1
A53: Barking & DagenhamPrivate/ VoluntaryFull inspectionChildren's Home4 | B53: Barking & Dagenham | C53: Private/ Voluntary | D53: Full inspection | E53: Children's Home | F53: 4 | G53: 1
A54: Barking & DagenhamPrivate/ VoluntaryInterim inspectionChildren's Home3 | B54: Barking & Dagenham | C54: Private/ Voluntary | D54: Interim inspection | E54: Children's Home | F54: 3 | G54: 1
A55: Barking & DagenhamPrivate/ VoluntaryInterim inspectionChildren's Home4 | B55: Barking & Dagenham | C55: Private/ Voluntary | D55: Interim inspection | E55: Children's Home | F55: 4 | G55: 1
A56: BarnetAllFull inspectionChildren's Home2 | B56: Barnet | C56: All | D56: Full inspection | E56: Children's Home | F56: 2 | G56: 2
A57: BarnetAllFull inspectionChildren's Home4 | B57: Barnet | C57: All | D57: Full inspection | E57: Children's Home | F57: 4 | G57: 2
A58: BarnetLocal AuthorityFull inspectionChildren's Home2 | B58: Barnet | C58: Local Authority | D58: Full inspection | E58: Children's Home | F58: 2 | G58: 2
A59: BarnetLocal AuthorityFull inspectionChildren's Home4 | B59: Barnet | C59: Local Authority | D59: Full inspection | E59: Children's Home | F59: 4 | G59: 2
A60: BarnsleyAllFull inspectionChildren's Home1 | B60: Barnsley | C60: All | D60: Full inspection | E60: Children's Home | F60: 1 | G60: 4
A61: BarnsleyAllFull inspectionChildren's Home2 | B61: Barnsley | C61: All | D61: Full inspection | E61: Children's Home | F61: 2 | G61: 1
A62: BarnsleyAllFull inspectionChildren's Home3 | B62: Barnsley | C62: All | D62: Full inspection | E62: Children's Home | F62: 3 | G62: 1
A63: BarnsleyAllFull inspectionChildren's Home4 | B63: Barnsley | C63: All | D63: Full inspection | E63: Children's Home | F63: 4 | G63: 6
A64: BarnsleyLocal AuthorityFull inspectionChildren's Home3 | B64: Barnsley | C64: Local Authority | D64: Full inspection | E64: Children's Home | F64: 3 | G64: 1
A65: BarnsleyLocal AuthorityFull inspectionChildren's Home4 | B65: Barnsley | C65: Local Authority | D65: Full inspection | E65: Children's Home | F65: 4 | G65: 1
A66: BarnsleyPrivate/ VoluntaryFull inspectionChildren's Home1 | B66: Barnsley | C66: Private/ Voluntary | D66: Full inspection | E66: Children's Home | F66: 1 | G66: 4
A67: BarnsleyPrivate/ VoluntaryFull inspectionChildren's Home2 | B67: Barnsley | C67: Private/ Voluntary | D67: Full inspection | E67: Children's Home | F67: 2 | G67: 1
A68: BarnsleyPrivate/ VoluntaryFull inspectionChildren's Home4 | B68: Barnsley | C68: Private/ Voluntary | D68: Full inspection | E68: Children's Home | F68: 4 | G68: 5
A69: Bath & North East SomersetAllFull inspectionChildren's Home1 | B69: Bath & North East Somerset | C69: All | D69: Full inspection | E69: Children's Home | F69: 1 | G69: 1
A70: Bath & North East SomersetAllFull inspectionChildren's Home4 | B70: Bath & North East Somerset | C70: All | D70: Full inspection | E70: Children's Home | F70: 4 | G70: 1
A71: Bath & North East SomersetPrivate/ VoluntaryFull inspectionChildren's Home1 | B71: Bath & North East Somerset | C71: Private/ Voluntary | D71: Full inspection | E71: Children's Home | F71: 1 | G71: 1
A72: Bath & North East SomersetPrivate/ VoluntaryFull inspectionChildren's Home4 | B72: Bath & North East Somerset | C72: Private/ Voluntary | D72: Full inspection | E72: Children's Home | F72: 4 | G72: 1
A73: Bedford boroughAllFull inspectionChildren's Home1 | B73: Bedford borough | C73: All | D73: Full inspection | E73: Children's Home | F73: 1 | G73: 5
A74: Bedford boroughAllFull inspectionChildren's Home2 | B74: Bedford borough | C74: All | D74: Full inspection | E74: Children's Home | F74: 2 | G74: 1
A75: Bedford boroughAllFull inspectionChildren's Home3 | B75: Bedford borough | C75: All | D75: Full inspection | E75: Children's Home | F75: 3 | G75: 1
A76: Bedford boroughAllFull inspectionChildren's Home4 | B76: Bedford borough | C76: All | D76: Full inspection | E76: Children's Home | F76: 4 | G76: 7
A77: Bedford boroughLocal AuthorityFull inspectionChildren's Home1 | B77: Bedford borough | C77: Local Authority | D77: Full inspection | E77: Children's Home | F77: 1 | G77: 1
A78: Bedford boroughLocal AuthorityFull inspectionChildren's Home2 | B78: Bedford borough | C78: Local Authority | D78: Full inspection | E78: Children's Home | F78: 2 | G78: 1
A79: Bedford boroughLocal AuthorityFull inspectionChildren's Home4 | B79: Bedford borough | C79: Local Authority | D79: Full inspection | E79: Children's Home | F79: 4 | G79: 2
A80: Bedford boroughPrivate/ VoluntaryFull inspectionChildren's Home1 | B80: Bedford borough | C80: Private/ Voluntary | D80: Full inspection | E80: Children's Home | F80: 1 | G80: 4
A81: Bedford boroughPrivate/ VoluntaryFull inspectionChildren's Home3 | B81: Bedford borough | C81: Private/ Voluntary | D81: Full inspection | E81: Children's Home | F81: 3 | G81: 1
A82: Bedford boroughPrivate/ VoluntaryFull inspectionChildren's Home4 | B82: Bedford borough | C82: Private/ Voluntary | D82: Full inspection | E82: Children's Home | F82: 4 | G82: 5
A83: BexleyAllInterim inspectionChildren's Home3 | B83: Bexley | C83: All | D83: Interim inspection | E83: Children's Home | F83: 3 | G83: 1
A84: BexleyAllInterim inspectionChildren's Home4 | B84: Bexley | C84: All | D84: Interim inspection | E84: Children's Home | F84: 4 | G84: 1
A85: BexleyPrivate/ VoluntaryInterim inspectionChildren's Home3 | B85: Bexley | C85: Private/ Voluntary | D85: Interim inspection | E85: Children's Home | F85: 3 | G85: 1
A86: BexleyPrivate/ VoluntaryInterim inspectionChildren's Home4 | B86: Bexley | C86: Private/ Voluntary | D86: Interim inspection | E86: Children's Home | F86: 4 | G86: 1
A87: BirminghamAllFull inspectionChildren's Home1 | B87: Birmingham | C87: All | D87: Full inspection | E87: Children's Home | F87: 1 | G87: 10
A88: BirminghamAllFull inspectionChildren's Home2 | B88: Birmingham | C88: All | D88: Full inspection | E88: Children's Home | F88: 2 | G88: 7
A89: BirminghamAllFull inspectionChildren's Home3 | B89: Birmingham | C89: All | D89: Full inspection | E89: Children's Home | F89: 3 | G89: 4
A90: BirminghamAllFull inspectionChildren's Home4 | B90: Birmingham | C90: All | D90: Full inspection | E90: Children's Home | F90: 4 | G90: 21
A91: BirminghamAllInterim inspectionChildren's Home1 | B91: Birmingham | C91: All | D91: Interim inspection | E91: Children's Home | F91: 1 | G91: 3
A92: BirminghamAllInterim inspectionChildren's Home3 | B92: Birmingham | C92: All | D92: Interim inspection | E92: Children's Home | F92: 3 | G92: 3
A93: BirminghamAllInterim inspectionChildren's Home4 | B93: Birmingham | C93: All | D93: Interim inspection | E93: Children's Home | F93: 4 | G93: 6
A94: BirminghamLocal AuthorityFull inspectionChildren's Home1 | B94: Birmingham | C94: Local Authority | D94: Full inspection | E94: Children's Home | F94: 1 | G94: 4
A95: BirminghamLocal AuthorityFull inspectionChildren's Home2 | B95: Birmingham | C95: Local Authority | D95: Full inspection | E95: Children's Home | F95: 2 | G95: 4
A96: BirminghamLocal AuthorityFull inspectionChildren's Home3 | B96: Birmingham | C96: Local Authority | D96: Full inspection | E96: Children's Home | F96: 3 | G96: 2
A97: BirminghamLocal AuthorityFull inspectionChildren's Home4 | B97: Birmingham | C97: Local Authority | D97: Full inspection | E97: Children's Home | F97: 4 | G97: 10
A98: BirminghamLocal AuthorityInterim inspectionChildren's Home1 | B98: Birmingham | C98: Local Authority | D98: Interim inspection | E98: Children's Home | F98: 1 | G98: 1
A99: BirminghamLocal AuthorityInterim inspectionChildren's Home3 | B99: Birmingham | C99: Local Authority | D99: Interim inspection | E99: Children's Home | F99: 3 | G99: 3
A100: BirminghamLocal AuthorityInterim inspectionChildren's Home4 | B100: Birmingham | C100: Local Authority | D100: Interim inspection | E100: Children's Home | F100: 4 | G100: 4
A101: BirminghamPrivate/ VoluntaryFull inspectionChildren's Home1 | B101: Birmingham | C101: Private/ Voluntary | D101: Full inspection | E101: Children's Home | F101: 1 | G101: 6
A102: BirminghamPrivate/ VoluntaryFull inspectionChildren's Home2 | B102: Birmingham | C102: Private/ Voluntary | D102: Full inspection | E102: Children's Home | F102: 2 | G102: 3
A103: BirminghamPrivate/ VoluntaryFull inspectionChildren's Home3 | B103: Birmingham | C103: Private/ Voluntary | D103: Full inspection | E103: Children's Home | F103: 3 | G103: 2
A104: BirminghamPrivate/ VoluntaryFull inspectionChildren's Home4 | B104: Birmingham | C104: Private/ Voluntary | D104: Full inspection | E104: Children's Home | F104: 4 | G104: 11
A105: BirminghamPrivate/ VoluntaryInterim inspectionChildren's Home1 | B105: Birmingham | C105: Private/ Voluntary | D105: Interim inspection | E105: Children's Home | F105: 1 | G105: 2
A106: BirminghamPrivate/ VoluntaryInterim inspectionChildren's Home4 | B106: Birmingham | C106: Private/ Voluntary | D106: Interim inspection | E106: Children's Home | F106: 4 | G106: 2
A107: Blackburn with DarwenAllFull inspectionChildren's Home2 | B107: Blackburn with Darwen | C107: All | D107: Full inspection | E107: Children's Home | F107: 2 | G107: 3
A108: Blackburn with DarwenAllFull inspectionChildren's Home3 | B108: Blackburn with Darwen | C108: All | D108: Full inspection | E108: Children's Home | F108: 3 | G108: 1
A109: Blackburn with DarwenAllFull inspectionChildren's Home4 | B109: Blackburn with Darwen | C109: All | D109: Full inspection | E109: Children's Home | F109: 4 | G109: 4
A110: Blackburn with DarwenLocal AuthorityFull inspectionChildren's Home2 | B110: Blackburn with Darwen | C110: Local Authority | D110: Full inspection | E110: Children's Home | F110: 2 | G110: 2
A111: Blackburn with DarwenLocal AuthorityFull inspectionChildren's Home3 | B111: Blackburn with Darwen | C111: Local Authority | D111: Full inspection | E111: Children's Home | F111: 3 | G111: 1
A112: Blackburn with DarwenLocal AuthorityFull inspectionChildren's Home4 | B112: Blackburn with Darwen | C112: Local Authority | D112: Full inspection | E112: Children's Home | F112: 4 | G112: 3
A113: Blackburn with DarwenPrivate/ VoluntaryFull inspectionChildren's Home2 | B113: Blackburn with Darwen | C113: Private/ Voluntary | D113: Full inspection | E113: Children's Home | F113: 2 | G113: 1
A114: Blackburn with DarwenPrivate/ VoluntaryFull inspectionChildren's Home4 | B114: Blackburn with Darwen | C114: Private/ Voluntary | D114: Full inspection | E114: Children's Home | F114: 4 | G114: 1
A115: BlackpoolAllFull inspectionChildren's Home2 | B115: Blackpool | C115: All | D115: Full inspection | E115: Children's Home | F115: 2 | G115: 2
A116: BlackpoolAllFull inspectionChildren's Home4 | B116: Blackpool | C116: All | D116: Full inspection | E116: Children's Home | F116: 4 | G116: 2
A117: BlackpoolAllInterim inspectionChildren's Home1 | B117: Blackpool | C117: All | D117: Interim inspection | E117: Children's Home | F117: 1 | G117: 1
A118: BlackpoolAllInterim inspectionChildren's Home2 | B118: Blackpool | C118: All | D118: Interim inspection | E118: Children's Home | F118: 2 | G118: 1
A119: BlackpoolAllInterim inspectionChildren's Home4 | B119: Blackpool | C119: All | D119: Interim inspection | E119: Children's Home | F119: 4 | G119: 2
A120: BlackpoolPrivate/ VoluntaryFull inspectionChildren's Home2 | B120: Blackpool | C120: Private/ Voluntary | D120: Full inspection | E120: Children's Home | F120: 2 | G120: 2
A121: BlackpoolPrivate/ VoluntaryFull inspectionChildren's Home4 | B121: Blackpool | C121: Private/ Voluntary | D121: Full inspection | E121: Children's Home | F121: 4 | G121: 2
A122: BlackpoolPrivate/ VoluntaryInterim inspectionChildren's Home1 | B122: Blackpool | C122: Private/ Voluntary | D122: Interim inspection | E122: Children's Home | F122: 1 | G122: 1
A123: BlackpoolPrivate/ VoluntaryInterim inspectionChildren's Home2 | B123: Blackpool | C123: Private/ Voluntary | D123: Interim inspection | E123: Children's Home | F123: 2 | G123: 1
A124: BlackpoolPrivate/ VoluntaryInterim inspectionChildren's Home4 | B124: Blackpool | C124: Private/ Voluntary | D124: Interim inspection | E124: Children's Home | F124: 4 | G124: 2
A125: BoltonAllFull inspectionChildren's Home1 | B125: Bolton | C125: All | D125: Full inspection | E125: Children's Home | F125: 1 | G125: 1
A126: BoltonAllFull inspectionChildren's Home2 | B126: Bolton | C126: All | D126: Full inspection | E126: Children's Home | F126: 2 | G126: 2
A127: BoltonAllFull inspectionChildren's Home3 | B127: Bolton | C127: All | D127: Full inspection | E127: Children's Home | F127: 3 | G127: 1
A128: BoltonAllFull inspectionChildren's Home4 | B128: Bolton | C128: All | D128: Full inspection | E128: Children's Home | F128: 4 | G128: 4
A129: BoltonLocal AuthorityFull inspectionChildren's Home1 | B129: Bolton | C129: Local Authority | D129: Full inspection | E129: Children's Home | F129: 1 | G129: 1
A130: BoltonLocal AuthorityFull inspectionChildren's Home2 | B130: Bolton | C130: Local Authority | D130: Full inspection | E130: Children's Home | F130: 2 | G130: 2
A131: BoltonLocal AuthorityFull inspectionChildren's Home4 | B131: Bolton | C131: Local Authority | D131: Full inspection | E131: Children's Home | F131: 4 | G131: 3
A132: BoltonPrivate/ VoluntaryFull inspectionChildren's Home3 | B132: Bolton | C132: Private/ Voluntary | D132: Full inspection | E132: Children's Home | F132: 3 | G132: 1
A133: BoltonPrivate/ VoluntaryFull inspectionChildren's Home4 | B133: Bolton | C133: Private/ Voluntary | D133: Full inspection | E133: Children's Home | F133: 4 | G133: 1
A134: BournemouthAllFull inspectionChildren's Home1 | B134: Bournemouth | C134: All | D134: Full inspection | E134: Children's Home | F134: 1 | G134: 1
A135: BournemouthAllFull inspectionChildren's Home2 | B135: Bournemouth | C135: All | D135: Full inspection | E135: Children's Home | F135: 2 | G135: 2
A136: BournemouthAllFull inspectionChildren's Home3 | B136: Bournemouth | C136: All | D136: Full inspection | E136: Children's Home | F136: 3 | G136: 2
A137: BournemouthAllFull inspectionChildren's Home4 | B137: Bournemouth | C137: All | D137: Full inspection | E137: Children's Home | F137: 4 | G137: 5
A138: BournemouthLocal AuthorityFull inspectionChildren's Home1 | B138: Bournemouth | C138: Local Authority | D138: Full inspection | E138: Children's Home | F138: 1 | G138: 1
A139: BournemouthLocal AuthorityFull inspectionChildren's Home4 | B139: Bournemouth | C139: Local Authority | D139: Full inspection | E139: Children's Home | F139: 4 | G139: 1
A140: BournemouthPrivate/ VoluntaryFull inspectionChildren's Home2 | B140: Bournemouth | C140: Private/ Voluntary | D140: Full inspection | E140: Children's Home | F140: 2 | G140: 2
A141: BournemouthPrivate/ VoluntaryFull inspectionChildren's Home3 | B141: Bournemouth | C141: Private/ Voluntary | D141: Full inspection | E141: Children's Home | F141: 3 | G141: 2
A142: BournemouthPrivate/ VoluntaryFull inspectionChildren's Home4 | B142: Bournemouth | C142: Private/ Voluntary | D142: Full inspection | E142: Children's Home | F142: 4 | G142: 4
A143: Bracknell ForestAllFull inspectionChildren's Home1 | B143: Bracknell Forest | C143: All | D143: Full inspection | E143: Children's Home | F143: 1 | G143: 1
A144: Bracknell ForestAllFull inspectionChildren's Home2 | B144: Bracknell Forest | C144: All | D144: Full inspection | E144: Children's Home | F144: 2 | G144: 3
A145: Bracknell ForestAllFull inspectionChildren's Home4 | B145: Bracknell Forest | C145: All | D145: Full inspection | E145: Children's Home | F145: 4 | G145: 4
A146: Bracknell ForestLocal AuthorityFull inspectionChildren's Home2 | B146: Bracknell Forest | C146: Local Authority | D146: Full inspection | E146: Children's Home | F146: 2 | G146: 1
A147: Bracknell ForestLocal AuthorityFull inspectionChildren's Home4 | B147: Bracknell Forest | C147: Local Authority | D147: Full inspection | E147: Children's Home | F147: 4 | G147: 1
A148: Bracknell ForestPrivate/ VoluntaryFull inspectionChildren's Home1 | B148: Bracknell Forest | C148: Private/ Voluntary | D148: Full inspection | E148: Children's Home | F148: 1 | G148: 1
A149: Bracknell ForestPrivate/ VoluntaryFull inspectionChildren's Home2 | B149: Bracknell Forest | C149: Private/ Voluntary | D149: Full inspection | E149: Children's Home | F149: 2 | G149: 2
A150: Bracknell ForestPrivate/ VoluntaryFull inspectionChildren's Home4 | B150: Bracknell Forest | C150: Private/ Voluntary | D150: Full inspection | E150: Children's Home | F150: 4 | G150: 3
A151: BradfordAllFull inspectionChildren's Home1 | B151: Bradford | C151: All | D151: Full inspection | E151: Children's Home | F151: 1 | G151: 2
A152: BradfordAllFull inspectionChildren's Home2 | B152: Bradford | C152: All | D152: Full inspection | E152: Children's Home | F152: 2 | G152: 1
A153: BradfordAllFull inspectionChildren's Home4 | B153: Bradford | C153: All | D153: Full inspection | E153: Children's Home | F153: 4 | G153: 3
A154: BradfordAllInterim inspectionChildren's Home1 | B154: Bradford | C154: All | D154: Interim inspection | E154: Children's Home | F154: 1 | G154: 1
A155: BradfordAllInterim inspectionChildren's Home4 | B155: Bradford | C155: All | D155: Interim inspection | E155: Children's Home | F155: 4 | G155: 1
A156: BradfordLocal AuthorityFull inspectionChildren's Home1 | B156: Bradford | C156: Local Authority | D156: Full inspection | E156: Children's Home | F156: 1 | G156: 2
A157: BradfordLocal AuthorityFull inspectionChildren's Home2 | B157: Bradford | C157: Local Authority | D157: Full inspection | E157: Children's Home | F157: 2 | G157: 1
A158: BradfordLocal AuthorityFull inspectionChildren's Home4 | B158: Bradford | C158: Local Authority | D158: Full inspection | E158: Children's Home | F158: 4 | G158: 3
A159: BradfordLocal AuthorityInterim inspectionChildren's Home1 | B159: Bradford | C159: Local Authority | D159: Interim inspection | E159: Children's Home | F159: 1 | G159: 1
A160: BradfordLocal AuthorityInterim inspectionChildren's Home4 | B160: Bradford | C160: Local Authority | D160: Interim inspection | E160: Children's Home | F160: 4 | G160: 1
A161: Brighton & HoveAllFull inspectionChildren's Home2 | B161: Brighton & Hove | C161: All | D161: Full inspection | E161: Children's Home | F161: 2 | G161: 2
A162: Brighton & HoveAllFull inspectionChildren's Home4 | B162: Brighton & Hove | C162: All | D162: Full inspection | E162: Children's Home | F162: 4 | G162: 2
A163: Brighton & HovePrivate/ VoluntaryFull inspectionChildren's Home2 | B163: Brighton & Hove | C163: Private/ Voluntary | D163: Full inspection | E163: Children's Home | F163: 2 | G163: 2
A164: Brighton & HovePrivate/ VoluntaryFull inspectionChildren's Home4 | B164: Brighton & Hove | C164: Private/ Voluntary | D164: Full inspection | E164: Children's Home | F164: 4 | G164: 2
A165: BristolAllFull inspectionChildren's Home1 | B165: Bristol | C165: All | D165: Full inspection | E165: Children's Home | F165: 1 | G165: 2
A166: BristolAllFull inspectionChildren's Home2 | B166: Bristol | C166: All | D166: Full inspection | E166: Children's Home | F166: 2 | G166: 3
A167: BristolAllFull inspectionChildren's Home4 | B167: Bristol | C167: All | D167: Full inspection | E167: Children's Home | F167: 4 | G167: 5
A168: BristolLocal AuthorityFull inspectionChildren's Home1 | B168: Bristol | C168: Local Authority | D168: Full inspection | E168: Children's Home | F168: 1 | G168: 1
A169: BristolLocal AuthorityFull inspectionChildren's Home2 | B169: Bristol | C169: Local Authority | D169: Full inspection | E169: Children's Home | F169: 2 | G169: 3
A170: BristolLocal AuthorityFull inspectionChildren's Home4 | B170: Bristol | C170: Local Authority | D170: Full inspection | E170: Children's Home | F170: 4 | G170: 4
A171: BristolPrivate/ VoluntaryFull inspectionChildren's Home1 | B171: Bristol | C171: Private/ Voluntary | D171: Full inspection | E171: Children's Home | F171: 1 | G171: 1
A172: BristolPrivate/ VoluntaryFull inspectionChildren's Home4 | B172: Bristol | C172: Private/ Voluntary | D172: Full inspection | E172: Children's Home | F172: 4 | G172: 1
A173: BromleyAllFull inspectionChildren's Home2 | B173: Bromley | C173: All | D173: Full inspection | E173: Children's Home | F173: 2 | G173: 1
A174: BromleyAllFull inspectionChildren's Home4 | B174: Bromley | C174: All | D174: Full inspection | E174: Children's Home | F174: 4 | G174: 1
A175: BromleyPrivate/ VoluntaryFull inspectionChildren's Home2 | B175: Bromley | C175: Private/ Voluntary | D175: Full inspection | E175: Children's Home | F175: 2 | G175: 1
A176: BromleyPrivate/ VoluntaryFull inspectionChildren's Home4 | B176: Bromley | C176: Private/ Voluntary | D176: Full inspection | E176: Children's Home | F176: 4 | G176: 1
A177: BuckinghamshireAllFull inspectionChildren's Home1 | B177: Buckinghamshire | C177: All | D177: Full inspection | E177: Children's Home | F177: 1 | G177: 1
A178: BuckinghamshireAllFull inspectionChildren's Home2 | B178: Buckinghamshire | C178: All | D178: Full inspection | E178: Children's Home | F178: 2 | G178: 1
A179: BuckinghamshireAllFull inspectionChildren's Home4 | B179: Buckinghamshire | C179: All | D179: Full inspection | E179: Children's Home | F179: 4 | G179: 2
A180: BuckinghamshirePrivate/ VoluntaryFull inspectionChildren's Home1 | B180: Buckinghamshire | C180: Private/ Voluntary | D180: Full inspection | E180: Children's Home | F180: 1 | G180: 1
A181: BuckinghamshirePrivate/ VoluntaryFull inspectionChildren's Home2 | B181: Buckinghamshire | C181: Private/ Voluntary | D181: Full inspection | E181: Children's Home | F181: 2 | G181: 1
A182: BuckinghamshirePrivate/ VoluntaryFull inspectionChildren's Home4 | B182: Buckinghamshire | C182: Private/ Voluntary | D182: Full inspection | E182: Children's Home | F182: 4 | G182: 2
A183: BuryAllFull inspectionChildren's Home2 | B183: Bury | C183: All | D183: Full inspection | E183: Children's Home | F183: 2 | G183: 1
A184: BuryAllFull inspectionChildren's Home3 | B184: Bury | C184: All | D184: Full inspection | E184: Children's Home | F184: 3 | G184: 1
A185: BuryAllFull inspectionChildren's Home4 | B185: Bury | C185: All | D185: Full inspection | E185: Children's Home | F185: 4 | G185: 2
A186: BuryPrivate/ VoluntaryFull inspectionChildren's Home2 | B186: Bury | C186: Private/ Voluntary | D186: Full inspection | E186: Children's Home | F186: 2 | G186: 1
A187: BuryPrivate/ VoluntaryFull inspectionChildren's Home3 | B187: Bury | C187: Private/ Voluntary | D187: Full inspection | E187: Children's Home | F187: 3 | G187: 1
A188: BuryPrivate/ VoluntaryFull inspectionChildren's Home4 | B188: Bury | C188: Private/ Voluntary | D188: Full inspection | E188: Children's Home | F188: 4 | G188: 2
A189: CalderdaleAllFull inspectionChildren's Home1 | B189: Calderdale | C189: All | D189: Full inspection | E189: Children's Home | F189: 1 | G189: 2
A190: CalderdaleAllFull inspectionChildren's Home2 | B190: Calderdale | C190: All | D190: Full inspection | E190: Children's Home | F190: 2 | G190: 4
A191: CalderdaleAllFull inspectionChildren's Home4 | B191: Calderdale | C191: All | D191: Full inspection | E191: Children's Home | F191: 4 | G191: 6
A192: CalderdaleAllInterim inspectionChildren's Home3 | B192: Calderdale | C192: All | D192: Interim inspection | E192: Children's Home | F192: 3 | G192: 1
A193: CalderdaleAllInterim inspectionChildren's Home4 | B193: Calderdale | C193: All | D193: Interim inspection | E193: Children's Home | F193: 4 | G193: 1
A194: CalderdaleLocal AuthorityFull inspectionChildren's Home2 | B194: Calderdale | C194: Local Authority | D194: Full inspection | E194: Children's Home | F194: 2 | G194: 2
A195: CalderdaleLocal AuthorityFull inspectionChildren's Home4 | B195: Calderdale | C195: Local Authority | D195: Full inspection | E195: Children's Home | F195: 4 | G195: 2
A196: CalderdaleLocal AuthorityInterim inspectionChildren's Home3 | B196: Calderdale | C196: Local Authority | D196: Interim inspection | E196: Children's Home | F196: 3 | G196: 1
A197: CalderdaleLocal AuthorityInterim inspectionChildren's Home4 | B197: Calderdale | C197: Local Authority | D197: Interim inspection | E197: Children's Home | F197: 4 | G197: 1
A198: CalderdalePrivate/ VoluntaryFull inspectionChildren's Home1 | B198: Calderdale | C198: Private/ Voluntary | D198: Full inspection | E198: Children's Home | F198: 1 | G198: 2
A199: CalderdalePrivate/ VoluntaryFull inspectionChildren's Home2 | B199: Calderdale | C199: Private/ Voluntary | D199: Full inspection | E199: Children's Home | F199: 2 | G199: 2
A200: CalderdalePrivate/ VoluntaryFull inspectionChildren's Home4 | B200: Calderdale | C200: Private/ Voluntary | D200: Full inspection | E200: Children's Home | F200: 4 | G200: 4
... 1188 more rows

Sheet Table2_Data (hidden)
A1: Table 2: Overall care outcome for children's social care providers between 01/04/2011 and 30/06/2011 (Provisional)
A2: Lookup | B2: Local Authority | C2: Sector | D2: Corporate Inspected Provision Type Group Name | E2: Month | F2: Outstanding | G2: Good | H2: Adequate | I2: Inadequate
A3: AllAllChildren's Home1 | B3: All | C3: All | D3: Children's Home | E3: 1 | F3: 37 | G3: 153 | H3: 58 | I3: 16
A4: AllAllChildren's Home2 | B4: All | C4: All | D4: Children's Home | E4: 2 | F4: 54 | G4: 154 | H4: 57 | I4: 8
A5: AllAllChildren's Home3 | B5: All | C5: All | D5: Children's Home | E5: 3 | F5: 24 | G5: 74 | H5: 20 | I5: 6
A6: AllAllChildren's Home4 | B6: All | C6: All | D6: Children's Home | E6: 4 | F6: 115 | G6: 381 | H6: 135 | I6: 30
A7: AllAllResidential special school (>295 days/year)1 | B7: All | C7: All | D7: Residential special school (>295 days/year) | E7: 1 | F7: 2 | G7: 6 | H7: 0 | I7: 1
A8: AllAllResidential special school (>295 days/year)2 | B8: All | C8: All | D8: Residential special school (>295 days/year) | E8: 2 | F8: 1 | G8: 4 | H8: 0 | I8: 0
A9: AllAllResidential special school (>295 days/year)3 | B9: All | C9: All | D9: Residential special school (>295 days/year) | E9: 3 | F9: 0 | G9: 4 | H9: 0 | I9: 0
A10: AllAllResidential special school (>295 days/year)4 | B10: All | C10: All | D10: Residential special school (>295 days/year) | E10: 4 | F10: 3 | G10: 14 | H10: 0 | I10: 1
A11: AllAllSecure Children's Home1 | B11: All | C11: All | D11: Secure Children's Home | E11: 1 | F11: 1 | G11: 3 | H11: 0 | I11: 0
A12: AllAllSecure Children's Home2 | B12: All | C12: All | D12: Secure Children's Home | E12: 2 | F12: 0 | G12: 0 | H12: 1 | I12: 0
A13: AllAllSecure Children's Home3 | B13: All | C13: All | D13: Secure Children's Home | E13: 3 | F13: 0 | G13: 1 | H13: 0 | I13: 0
A14: AllAllSecure Children's Home4 | B14: All | C14: All | D14: Secure Children's Home | E14: 4 | F14: 1 | G14: 4 | H14: 1 | I14: 0
A15: AllLocal AuthorityChildren's Home1 | B15: All | C15: Local Authority | D15: Children's Home | E15: 1 | F15: 11 | G15: 43 | H15: 22 | I15: 4
A16: AllLocal AuthorityChildren's Home2 | B16: All | C16: Local Authority | D16: Children's Home | E16: 2 | F16: 24 | G16: 56 | H16: 18 | I16: 2
A17: AllLocal AuthorityChildren's Home3 | B17: All | C17: Local Authority | D17: Children's Home | E17: 3 | F17: 5 | G17: 27 | H17: 3 | I17: 3
A18: AllLocal AuthorityChildren's Home4 | B18: All | C18: Local Authority | D18: Children's Home | E18: 4 | F18: 40 | G18: 126 | H18: 43 | I18: 9
A19: AllLocal AuthoritySecure Children's Home1 | B19: All | C19: Local Authority | D19: Secure Children's Home | E19: 1 | F19: 1 | G19: 3 | H19: 0 | I19: 0
A20: AllLocal AuthoritySecure Children's Home2 | B20: All | C20: Local Authority | D20: Secure Children's Home | E20: 2 | F20: 0 | G20: 0 | H20: 1 | I20: 0
A21: AllLocal AuthoritySecure Children's Home3 | B21: All | C21: Local Authority | D21: Secure Children's Home | E21: 3 | F21: 0 | G21: 1 | H21: 0 | I21: 0
A22: AllLocal AuthoritySecure Children's Home4 | B22: All | C22: Local Authority | D22: Secure Children's Home | E22: 4 | F22: 1 | G22: 4 | H22: 1 | I22: 0
A23: AllPrivate/ VoluntaryChildren's Home1 | B23: All | C23: Private/ Voluntary | D23: Children's Home | E23: 1 | F23: 26 | G23: 110 | H23: 36 | I23: 12
A24: AllPrivate/ VoluntaryChildren's Home2 | B24: All | C24: Private/ Voluntary | D24: Children's Home | E24: 2 | F24: 30 | G24: 98 | H24: 39 | I24: 6
A25: AllPrivate/ VoluntaryChildren's Home3 | B25: All | C25: Private/ Voluntary | D25: Children's Home | E25: 3 | F25: 19 | G25: 47 | H25: 17 | I25: 3
A26: AllPrivate/ VoluntaryChildren's Home4 | B26: All | C26: Private/ Voluntary | D26: Children's Home | E26: 4 | F26: 75 | G26: 255 | H26: 92 | I26: 21
A27: AllPrivate/ VoluntaryResidential special school (>295 days/year)1 | B27: All | C27: Private/ Voluntary | D27: Residential special school (>295 days/year) | E27: 1 | F27: 2 | G27: 6 | H27: 0 | I27: 1
A28: AllPrivate/ VoluntaryResidential special school (>295 days/year)2 | B28: All | C28: Private/ Voluntary | D28: Residential special school (>295 days/year) | E28: 2 | F28: 1 | G28: 4 | H28: 0 | I28: 0
A29: AllPrivate/ VoluntaryResidential special school (>295 days/year)3 | B29: All | C29: Private/ Voluntary | D29: Residential special school (>295 days/year) | E29: 3 | F29: 0 | G29: 4 | H29: 0 | I29: 0
A30: AllPrivate/ VoluntaryResidential special school (>295 days/year)4 | B30: All | C30: Private/ Voluntary | D30: Residential special school (>295 days/year) | E30: 4 | F30: 3 | G30: 14 | H30: 0 | I30: 1
A31: Barking & DagenhamAllChildren's Home2 | B31: Barking & Dagenham | C31: All | D31: Children's Home | E31: 2 | F31: 0 | G31: 1 | H31: 0 | I31: 0
A32: Barking & DagenhamAllChildren's Home4 | B32: Barking & Dagenham | C32: All | D32: Children's Home | E32: 4 | F32: 0 | G32: 1 | H32: 0 | I32: 0
A33: Barking & DagenhamPrivate/ VoluntaryChildren's Home2 | B33: Barking & Dagenham | C33: Private/ Voluntary | D33: Children's Home | E33: 2 | F33: 0 | G33: 1 | H33: 0 | I33: 0
A34: Barking & DagenhamPrivate/ VoluntaryChildren's Home4 | B34: Barking & Dagenham | C34: Private/ Voluntary | D34: Children's Home | E34: 4 | F34: 0 | G34: 1 | H34: 0 | I34: 0
A35: BarnetAllChildren's Home2 | B35: Barnet | C35: All | D35: Children's Home | E35: 2 | F35: 0 | G35: 2 | H35: 0 | I35: 0
A36: BarnetAllChildren's Home4 | B36: Barnet | C36: All | D36: Children's Home | E36: 4 | F36: 0 | G36: 2 | H36: 0 | I36: 0
A37: BarnetLocal AuthorityChildren's Home2 | B37: Barnet | C37: Local Authority | D37: Children's Home | E37: 2 | F37: 0 | G37: 2 | H37: 0 | I37: 0
A38: BarnetLocal AuthorityChildren's Home4 | B38: Barnet | C38: Local Authority | D38: Children's Home | E38: 4 | F38: 0 | G38: 2 | H38: 0 | I38: 0
A39: BarnsleyAllChildren's Home1 | B39: Barnsley | C39: All | D39: Children's Home | E39: 1 | F39: 2 | G39: 2 | H39: 0 | I39: 0
A40: BarnsleyAllChildren's Home2 | B40: Barnsley | C40: All | D40: Children's Home | E40: 2 | F40: 0 | G40: 1 | H40: 0 | I40: 0
A41: BarnsleyAllChildren's Home3 | B41: Barnsley | C41: All | D41: Children's Home | E41: 3 | F41: 0 | G41: 1 | H41: 0 | I41: 0
A42: BarnsleyAllChildren's Home4 | B42: Barnsley | C42: All | D42: Children's Home | E42: 4 | F42: 2 | G42: 4 | H42: 0 | I42: 0
A43: BarnsleyLocal AuthorityChildren's Home3 | B43: Barnsley | C43: Local Authority | D43: Children's Home | E43: 3 | F43: 0 | G43: 1 | H43: 0 | I43: 0
A44: BarnsleyLocal AuthorityChildren's Home4 | B44: Barnsley | C44: Local Authority | D44: Children's Home | E44: 4 | F44: 0 | G44: 1 | H44: 0 | I44: 0
A45: BarnsleyPrivate/ VoluntaryChildren's Home1 | B45: Barnsley | C45: Private/ Voluntary | D45: Children's Home | E45: 1 | F45: 2 | G45: 2 | H45: 0 | I45: 0
A46: BarnsleyPrivate/ VoluntaryChildren's Home2 | B46: Barnsley | C46: Private/ Voluntary | D46: Children's Home | E46: 2 | F46: 0 | G46: 1 | H46: 0 | I46: 0
A47: BarnsleyPrivate/ VoluntaryChildren's Home4 | B47: Barnsley | C47: Private/ Voluntary | D47: Children's Home | E47: 4 | F47: 2 | G47: 3 | H47: 0 | I47: 0
A48: Bath & North East SomersetAllChildren's Home1 | B48: Bath & North East Somerset | C48: All | D48: Children's Home | E48: 1 | F48: 0 | G48: 0 | H48: 0 | I48: 1
A49: Bath & North East SomersetAllChildren's Home4 | B49: Bath & North East Somerset | C49: All | D49: Children's Home | E49: 4 | F49: 0 | G49: 0 | H49: 0 | I49: 1
A50: Bath & North East SomersetPrivate/ VoluntaryChildren's Home1 | B50: Bath & North East Somerset | C50: Private/ Voluntary | D50: Children's Home | E50: 1 | F50: 0 | G50: 0 | H50: 0 | I50: 1
A51: Bath & North East SomersetPrivate/ VoluntaryChildren's Home4 | B51: Bath & North East Somerset | C51: Private/ Voluntary | D51: Children's Home | E51: 4 | F51: 0 | G51: 0 | H51: 0 | I51: 1
A52: Bedford boroughAllChildren's Home1 | B52: Bedford borough | C52: All | D52: Children's Home | E52: 1 | F52: 0 | G52: 3 | H52: 2 | I52: 0
A53: Bedford boroughAllChildren's Home2 | B53: Bedford borough | C53: All | D53: Children's Home | E53: 2 | F53: 0 | G53: 1 | H53: 0 | I53: 0
A54: Bedford boroughAllChildren's Home3 | B54: Bedford borough | C54: All | D54: Children's Home | E54: 3 | F54: 1 | G54: 0 | H54: 0 | I54: 0
A55: Bedford boroughAllChildren's Home4 | B55: Bedford borough | C55: All | D55: Children's Home | E55: 4 | F55: 1 | G55: 4 | H55: 2 | I55: 0
A56: Bedford boroughLocal AuthorityChildren's Home1 | B56: Bedford borough | C56: Local Authority | D56: Children's Home | E56: 1 | F56: 0 | G56: 1 | H56: 0 | I56: 0
A57: Bedford boroughLocal AuthorityChildren's Home2 | B57: Bedford borough | C57: Local Authority | D57: Children's Home | E57: 2 | F57: 0 | G57: 1 | H57: 0 | I57: 0
A58: Bedford boroughLocal AuthorityChildren's Home4 | B58: Bedford borough | C58: Local Authority | D58: Children's Home | E58: 4 | F58: 0 | G58: 2 | H58: 0 | I58: 0
A59: Bedford boroughPrivate/ VoluntaryChildren's Home1 | B59: Bedford borough | C59: Private/ Voluntary | D59: Children's Home | E59: 1 | F59: 0 | G59: 2 | H59: 2 | I59: 0
A60: Bedford boroughPrivate/ VoluntaryChildren's Home3 | B60: Bedford borough | C60: Private/ Voluntary | D60: Children's Home | E60: 3 | F60: 1 | G60: 0 | H60: 0 | I60: 0
A61: Bedford boroughPrivate/ VoluntaryChildren's Home4 | B61: Bedford borough | C61: Private/ Voluntary | D61: Children's Home | E61: 4 | F61: 1 | G61: 2 | H61: 2 | I61: 0
A62: BirminghamAllChildren's Home1 | B62: Birmingham | C62: All | D62: Children's Home | E62: 1 | F62: 2 | G62: 3 | H62: 3 | I62: 2
A63: BirminghamAllChildren's Home2 | B63: Birmingham | C63: All | D63: Children's Home | E63: 2 | F63: 3 | G63: 2 | H63: 2 | I63: 0
A64: BirminghamAllChildren's Home3 | B64: Birmingham | C64: All | D64: Children's Home | E64: 3 | F64: 0 | G64: 3 | H64: 1 | I64: 0
A65: BirminghamAllChildren's Home4 | B65: Birmingham | C65: All | D65: Children's Home | E65: 4 | F65: 5 | G65: 8 | H65: 6 | I65: 2
A66: BirminghamLocal AuthorityChildren's Home1 | B66: Birmingham | C66: Local Authority | D66: Children's Home | E66: 1 | F66: 0 | G66: 2 | H66: 1 | I66: 1
A67: BirminghamLocal AuthorityChildren's Home2 | B67: Birmingham | C67: Local Authority | D67: Children's Home | E67: 2 | F67: 1 | G67: 1 | H67: 2 | I67: 0
A68: BirminghamLocal AuthorityChildren's Home3 | B68: Birmingham | C68: Local Authority | D68: Children's Home | E68: 3 | F68: 0 | G68: 2 | H68: 0 | I68: 0
A69: BirminghamLocal AuthorityChildren's Home4 | B69: Birmingham | C69: Local Authority | D69: Children's Home | E69: 4 | F69: 1 | G69: 5 | H69: 3 | I69: 1
A70: BirminghamPrivate/ VoluntaryChildren's Home1 | B70: Birmingham | C70: Private/ Voluntary | D70: Children's Home | E70: 1 | F70: 2 | G70: 1 | H70: 2 | I70: 1
A71: BirminghamPrivate/ VoluntaryChildren's Home2 | B71: Birmingham | C71: Private/ Voluntary | D71: Children's Home | E71: 2 | F71: 2 | G71: 1 | H71: 0 | I71: 0
A72: BirminghamPrivate/ VoluntaryChildren's Home3 | B72: Birmingham | C72: Private/ Voluntary | D72: Children's Home | E72: 3 | F72: 0 | G72: 1 | H72: 1 | I72: 0
A73: BirminghamPrivate/ VoluntaryChildren's Home4 | B73: Birmingham | C73: Private/ Voluntary | D73: Children's Home | E73: 4 | F73: 4 | G73: 3 | H73: 3 | I73: 1
A74: Blackburn with DarwenAllChildren's Home2 | B74: Blackburn with Darwen | C74: All | D74: Children's Home | E74: 2 | F74: 1 | G74: 1 | H74: 1 | I74: 0
A75: Blackburn with DarwenAllChildren's Home3 | B75: Blackburn with Darwen | C75: All | D75: Children's Home | E75: 3 | F75: 0 | G75: 1 | H75: 0 | I75: 0
A76: Blackburn with DarwenAllChildren's Home4 | B76: Blackburn with Darwen | C76: All | D76: Children's Home | E76: 4 | F76: 1 | G76: 2 | H76: 1 | I76: 0
A77: Blackburn with DarwenLocal AuthorityChildren's Home2 | B77: Blackburn with Darwen | C77: Local Authority | D77: Children's Home | E77: 2 | F77: 0 | G77: 1 | H77: 1 | I77: 0
A78: Blackburn with DarwenLocal AuthorityChildren's Home3 | B78: Blackburn with Darwen | C78: Local Authority | D78: Children's Home | E78: 3 | F78: 0 | G78: 1 | H78: 0 | I78: 0
A79: Blackburn with DarwenLocal AuthorityChildren's Home4 | B79: Blackburn with Darwen | C79: Local Authority | D79: Children's Home | E79: 4 | F79: 0 | G79: 2 | H79: 1 | I79: 0
A80: Blackburn with DarwenPrivate/ VoluntaryChildren's Home2 | B80: Blackburn with Darwen | C80: Private/ Voluntary | D80: Children's Home | E80: 2 | F80: 1 | G80: 0 | H80: 0 | I80: 0
A81: Blackburn with DarwenPrivate/ VoluntaryChildren's Home4 | B81: Blackburn with Darwen | C81: Private/ Voluntary | D81: Children's Home | E81: 4 | F81: 1 | G81: 0 | H81: 0 | I81: 0
A82: BlackpoolAllChildren's Home2 | B82: Blackpool | C82: All | D82: Children's Home | E82: 2 | F82: 0 | G82: 1 | H82: 1 | I82: 0
A83: BlackpoolAllChildren's Home4 | B83: Blackpool | C83: All | D83: Children's Home | E83: 4 | F83: 0 | G83: 1 | H83: 1 | I83: 0
A84: BlackpoolPrivate/ VoluntaryChildren's Home2 | B84: Blackpool | C84: Private/ Voluntary | D84: Children's Home | E84: 2 | F84: 0 | G84: 1 | H84: 1 | I84: 0
A85: BlackpoolPrivate/ VoluntaryChildren's Home4 | B85: Blackpool | C85: Private/ Voluntary | D85: Children's Home | E85: 4 | F85: 0 | G85: 1 | H85: 1 | I85: 0
A86: BoltonAllChildren's Home1 | B86: Bolton | C86: All | D86: Children's Home | E86: 1 | F86: 1 | G86: 0 | H86: 0 | I86: 0
A87: BoltonAllChildren's Home2 | B87: Bolton | C87: All | D87: Children's Home | E87: 2 | F87: 1 | G87: 0 | H87: 1 | I87: 0
A88: BoltonAllChildren's Home3 | B88: Bolton | C88: All | D88: Children's Home | E88: 3 | F88: 0 | G88: 1 | H88: 0 | I88: 0
A89: BoltonAllChildren's Home4 | B89: Bolton | C89: All | D89: Children's Home | E89: 4 | F89: 2 | G89: 1 | H89: 1 | I89: 0
A90: BoltonLocal AuthorityChildren's Home1 | B90: Bolton | C90: Local Authority | D90: Children's Home | E90: 1 | F90: 1 | G90: 0 | H90: 0 | I90: 0
A91: BoltonLocal AuthorityChildren's Home2 | B91: Bolton | C91: Local Authority | D91: Children's Home | E91: 2 | F91: 1 | G91: 0 | H91: 1 | I91: 0
A92: BoltonLocal AuthorityChildren's Home4 | B92: Bolton | C92: Local Authority | D92: Children's Home | E92: 4 | F92: 2 | G92: 0 | H92: 1 | I92: 0
A93: BoltonPrivate/ VoluntaryChildren's Home3 | B93: Bolton | C93: Private/ Voluntary | D93: Children's Home | E93: 3 | F93: 0 | G93: 1 | H93: 0 | I93: 0
A94: BoltonPrivate/ VoluntaryChildren's Home4 | B94: Bolton | C94: Private/ Voluntary | D94: Children's Home | E94: 4 | F94: 0 | G94: 1 | H94: 0 | I94: 0
A95: BournemouthAllChildren's Home1 | B95: Bournemouth | C95: All | D95: Children's Home | E95: 1 | F95: 0 | G95: 0 | H95: 1 | I95: 0
A96: BournemouthAllChildren's Home2 | B96: Bournemouth | C96: All | D96: Children's Home | E96: 2 | F96: 0 | G96: 1 | H96: 1 | I96: 0
A97: BournemouthAllChildren's Home3 | B97: Bournemouth | C97: All | D97: Children's Home | E97: 3 | F97: 0 | G97: 1 | H97: 1 | I97: 0
A98: BournemouthAllChildren's Home4 | B98: Bournemouth | C98: All | D98: Children's Home | E98: 4 | F98: 0 | G98: 2 | H98: 3 | I98: 0
A99: BournemouthLocal AuthorityChildren's Home1 | B99: Bournemouth | C99: Local Authority | D99: Children's Home | E99: 1 | F99: 0 | G99: 0 | H99: 1 | I99: 0
A100: BournemouthLocal AuthorityChildren's Home4 | B100: Bournemouth | C100: Local Authority | D100: Children's Home | E100: 4 | F100: 0 | G100: 0 | H100: 1 | I100: 0
A101: BournemouthPrivate/ VoluntaryChildren's Home2 | B101: Bournemouth | C101: Private/ Voluntary | D101: Children's Home | E101: 2 | F101: 0 | G101: 1 | H101: 1 | I101: 0
A102: BournemouthPrivate/ VoluntaryChildren's Home3 | B102: Bournemouth | C102: Private/ Voluntary | D102: Children's Home | E102: 3 | F102: 0 | G102: 1 | H102: 1 | I102: 0
A103: BournemouthPrivate/ VoluntaryChildren's Home4 | B103: Bournemouth | C103: Private/ Voluntary | D103: Children's Home | E103: 4 | F103: 0 | G103: 2 | H103: 2 | I103: 0
A104: Bracknell ForestAllChildren's Home1 | B104: Bracknell Forest | C104: All | D104: Children's Home | E104: 1 | F104: 0 | G104: 0 | H104: 1 | I104: 0
A105: Bracknell ForestAllChildren's Home2 | B105: Bracknell Forest | C105: All | D105: Children's Home | E105: 2 | F105: 1 | G105: 0 | H105: 2 | I105: 0
A106: Bracknell ForestAllChildren's Home4 | B106: Bracknell Forest | C106: All | D106: Children's Home | E106: 4 | F106: 1 | G106: 0 | H106: 3 | I106: 0
A107: Bracknell ForestLocal AuthorityChildren's Home2 | B107: Bracknell Forest | C107: Local Authority | D107: Children's Home | E107: 2 | F107: 1 | G107: 0 | H107: 0 | I107: 0
A108: Bracknell ForestLocal AuthorityChildren's Home4 | B108: Bracknell Forest | C108: Local Authority | D108: Children's Home | E108: 4 | F108: 1 | G108: 0 | H108: 0 | I108: 0
A109: Bracknell ForestPrivate/ VoluntaryChildren's Home1 | B109: Bracknell Forest | C109: Private/ Voluntary | D109: Children's Home | E109: 1 | F109: 0 | G109: 0 | H109: 1 | I109: 0
A110: Bracknell ForestPrivate/ VoluntaryChildren's Home2 | B110: Bracknell Forest | C110: Private/ Voluntary | D110: Children's Home | E110: 2 | F110: 0 | G110: 0 | H110: 2 | I110: 0
A111: Bracknell ForestPrivate/ VoluntaryChildren's Home4 | B111: Bracknell Forest | C111: Private/ Voluntary | D111: Children's Home | E111: 4 | F111: 0 | G111: 0 | H111: 3 | I111: 0
A112: BradfordAllChildren's Home1 | B112: Bradford | C112: All | D112: Children's Home | E112: 1 | F112: 0 | G112: 2 | H112: 0 | I112: 0
A113: BradfordAllChildren's Home2 | B113: Bradford | C113: All | D113: Children's Home | E113: 2 | F113: 0 | G113: 1 | H113: 0 | I113: 0
A114: BradfordAllChildren's Home4 | B114: Bradford | C114: All | D114: Children's Home | E114: 4 | F114: 0 | G114: 3 | H114: 0 | I114: 0
A115: BradfordLocal AuthorityChildren's Home1 | B115: Bradford | C115: Local Authority | D115: Children's Home | E115: 1 | F115: 0 | G115: 2 | H115: 0 | I115: 0
A116: BradfordLocal AuthorityChildren's Home2 | B116: Bradford | C116: Local Authority | D116: Children's Home | E116: 2 | F116: 0 | G116: 1 | H116: 0 | I116: 0
A117: BradfordLocal AuthorityChildren's Home4 | B117: Bradford | C117: Local Authority | D117: Children's Home | E117: 4 | F117: 0 | G117: 3 | H117: 0 | I117: 0
A118: Brighton & HoveAllChildren's Home2 | B118: Brighton & Hove | C118: All | D118: Children's Home | E118: 2 | F118: 2 | G118: 0 | H118: 0 | I118: 0
A119: Brighton & HoveAllChildren's Home4 | B119: Brighton & Hove | C119: All | D119: Children's Home | E119: 4 | F119: 2 | G119: 0 | H119: 0 | I119: 0
A120: Brighton & HovePrivate/ VoluntaryChildren's Home2 | B120: Brighton & Hove | C120: Private/ Voluntary | D120: Children's Home | E120: 2 | F120: 2 | G120: 0 | H120: 0 | I120: 0
A121: Brighton & HovePrivate/ VoluntaryChildren's Home4 | B121: Brighton & Hove | C121: Private/ Voluntary | D121: Children's Home | E121: 4 | F121: 2 | G121: 0 | H121: 0 | I121: 0
A122: BristolAllChildren's Home1 | B122: Bristol | C122: All | D122: Children's Home | E122: 1 | F122: 0 | G122: 1 | H122: 1 | I122: 0
A123: BristolAllChildren's Home2 | B123: Bristol | C123: All | D123: Children's Home | E123: 2 | F123: 0 | G123: 2 | H123: 1 | I123: 0
A124: BristolAllChildren's Home4 | B124: Bristol | C124: All | D124: Children's Home | E124: 4 | F124: 0 | G124: 3 | H124: 2 | I124: 0
A125: BristolLocal AuthorityChildren's Home1 | B125: Bristol | C125: Local Authority | D125: Children's Home | E125: 1 | F125: 0 | G125: 0 | H125: 1 | I125: 0
A126: BristolLocal AuthorityChildren's Home2 | B126: Bristol | C126: Local Authority | D126: Children's Home | E126: 2 | F126: 0 | G126: 2 | H126: 1 | I126: 0
A127: BristolLocal AuthorityChildren's Home4 | B127: Bristol | C127: Local Authority | D127: Children's Home | E127: 4 | F127: 0 | G127: 2 | H127: 2 | I127: 0
A128: BristolPrivate/ VoluntaryChildren's Home1 | B128: Bristol | C128: Private/ Voluntary | D128: Children's Home | E128: 1 | F128: 0 | G128: 1 | H128: 0 | I128: 0
A129: BristolPrivate/ VoluntaryChildren's Home4 | B129: Bristol | C129: Private/ Voluntary | D129: Children's Home | E129: 4 | F129: 0 | G129: 1 | H129: 0 | I129: 0
A130: BromleyAllChildren's Home2 | B130: Bromley | C130: All | D130: Children's Home | E130: 2 | F130: 0 | G130: 1 | H130: 0 | I130: 0
A131: BromleyAllChildren's Home4 | B131: Bromley | C131: All | D131: Children's Home | E131: 4 | F131: 0 | G131: 1 | H131: 0 | I131: 0
A132: BromleyPrivate/ VoluntaryChildren's Home2 | B132: Bromley | C132: Private/ Voluntary | D132: Children's Home | E132: 2 | F132: 0 | G132: 1 | H132: 0 | I132: 0
A133: BromleyPrivate/ VoluntaryChildren's Home4 | B133: Bromley | C133: Private/ Voluntary | D133: Children's Home | E133: 4 | F133: 0 | G133: 1 | H133: 0 | I133: 0
A134: BuckinghamshireAllChildren's Home1 | B134: Buckinghamshire | C134: All | D134: Children's Home | E134: 1 | F134: 0 | G134: 1 | H134: 0 | I134: 0
A135: BuckinghamshireAllChildren's Home2 | B135: Buckinghamshire | C135: All | D135: Children's Home | E135: 2 | F135: 0 | G135: 1 | H135: 0 | I135: 0
A136: BuckinghamshireAllChildren's Home4 | B136: Buckinghamshire | C136: All | D136: Children's Home | E136: 4 | F136: 0 | G136: 2 | H136: 0 | I136: 0
A137: BuckinghamshirePrivate/ VoluntaryChildren's Home1 | B137: Buckinghamshire | C137: Private/ Voluntary | D137: Children's Home | E137: 1 | F137: 0 | G137: 1 | H137: 0 | I137: 0
A138: BuckinghamshirePrivate/ VoluntaryChildren's Home2 | B138: Buckinghamshire | C138: Private/ Voluntary | D138: Children's Home | E138: 2 | F138: 0 | G138: 1 | H138: 0 | I138: 0
A139: BuckinghamshirePrivate/ VoluntaryChildren's Home4 | B139: Buckinghamshire | C139: Private/ Voluntary | D139: Children's Home | E139: 4 | F139: 0 | G139: 2 | H139: 0 | I139: 0
A140: BuryAllChildren's Home2 | B140: Bury | C140: All | D140: Children's Home | E140: 2 | F140: 0 | G140: 0 | H140: 1 | I140: 0
A141: BuryAllChildren's Home3 | B141: Bury | C141: All | D141: Children's Home | E141: 3 | F141: 0 | G141: 0 | H141: 1 | I141: 0
A142: BuryAllChildren's Home4 | B142: Bury | C142: All | D142: Children's Home | E142: 4 | F142: 0 | G142: 0 | H142: 2 | I142: 0
A143: BuryPrivate/ VoluntaryChildren's Home2 | B143: Bury | C143: Private/ Voluntary | D143: Children's Home | E143: 2 | F143: 0 | G143: 0 | H143: 1 | I143: 0
A144: BuryPrivate/ VoluntaryChildren's Home3 | B144: Bury | C144: Private/ Voluntary | D144: Children's Home | E144: 3 | F144: 0 | G144: 0 | H144: 1 | I144: 0
A145: BuryPrivate/ VoluntaryChildren's Home4 | B145: Bury | C145: Private/ Voluntary | D145: Children's Home | E145: 4 | F145: 0 | G145: 0 | H145: 2 | I145: 0
A146: CalderdaleAllChildren's Home1 | B146: Calderdale | C146: All | D146: Children's Home | E146: 1 | F146: 0 | G146: 2 | H146: 0 | I146: 0
A147: CalderdaleAllChildren's Home2 | B147: Calderdale | C147: All | D147: Children's Home | E147: 2 | F147: 1 | G147: 2 | H147: 0 | I147: 1
A148: CalderdaleAllChildren's Home4 | B148: Calderdale | C148: All | D148: Children's Home | E148: 4 | F148: 1 | G148: 4 | H148: 0 | I148: 1
A149: CalderdaleLocal AuthorityChildren's Home2 | B149: Calderdale | C149: Local Authority | D149: Children's Home | E149: 2 | F149: 0 | G149: 1 | H149: 0 | I149: 1
A150: CalderdaleLocal AuthorityChildren's Home4 | B150: Calderdale | C150: Local Authority | D150: Children's Home | E150: 4 | F150: 0 | G150: 1 | H150: 0 | I150: 1
A151: CalderdalePrivate/ VoluntaryChildren's Home1 | B151: Calderdale | C151: Private/ Voluntary | D151: Children's Home | E151: 1 | F151: 0 | G151: 2 | H151: 0 | I151: 0
A152: CalderdalePrivate/ VoluntaryChildren's Home2 | B152: Calderdale | C152: Private/ Voluntary | D152: Children's Home | E152: 2 | F152: 1 | G152: 1 | H152: 0 | I152: 0
A153: CalderdalePrivate/ VoluntaryChildren's Home4 | B153: Calderdale | C153: Private/ Voluntary | D153: Children's Home | E153: 4 | F153: 1 | G153: 3 | H153: 0 | I153: 0
A154: CambridgeshireAllChildren's Home1 | B154: Cambridgeshire | C154: All | D154: Children's Home | E154: 1 | F154: 0 | G154: 2 | H154: 1 | I154: 0
A155: CambridgeshireAllChildren's Home2 | B155: Cambridgeshire | C155: All | D155: Children's Home | E155: 2 | F155: 1 | G155: 2 | H155: 0 | I155: 0
A156: CambridgeshireAllChildren's Home3 | B156: Cambridgeshire | C156: All | D156: Children's Home | E156: 3 | F156: 0 | G156: 0 | H156: 1 | I156: 0
A157: CambridgeshireAllChildren's Home4 | B157: Cambridgeshire | C157: All | D157: Children's Home | E157: 4 | F157: 1 | G157: 4 | H157: 2 | I157: 0
A158: CambridgeshireAllResidential special school (>295 days/year)1 | B158: Cambridgeshire | C158: All | D158: Residential special school (>295 days/year) | E158: 1 | F158: 0 | G158: 1 | H158: 0 | I158: 0
A159: CambridgeshireAllResidential special school (>295 days/year)4 | B159: Cambridgeshire | C159: All | D159: Residential special school (>295 days/year) | E159: 4 | F159: 0 | G159: 1 | H159: 0 | I159: 0
A160: CambridgeshireLocal AuthorityChildren's Home1 | B160: Cambridgeshire | C160: Local Authority | D160: Children's Home | E160: 1 | F160: 0 | G160: 0 | H160: 1 | I160: 0
A161: CambridgeshireLocal AuthorityChildren's Home3 | B161: Cambridgeshire | C161: Local Authority | D161: Children's Home | E161: 3 | F161: 0 | G161: 0 | H161: 1 | I161: 0
A162: CambridgeshireLocal AuthorityChildren's Home4 | B162: Cambridgeshire | C162: Local Authority | D162: Children's Home | E162: 4 | F162: 0 | G162: 0 | H162: 2 | I162: 0
A163: CambridgeshirePrivate/ VoluntaryChildren's Home1 | B163: Cambridgeshire | C163: Private/ Voluntary | D163: Children's Home | E163: 1 | F163: 0 | G163: 2 | H163: 0 | I163: 0
A164: CambridgeshirePrivate/ VoluntaryChildren's Home2 | B164: Cambridgeshire | C164: Private/ Voluntary | D164: Children's Home | E164: 2 | F164: 1 | G164: 2 | H164: 0 | I164: 0
A165: CambridgeshirePrivate/ VoluntaryChildren's Home4 | B165: Cambridgeshire | C165: Private/ Voluntary | D165: Children's Home | E165: 4 | F165: 1 | G165: 4 | H165: 0 | I165: 0
A166: CambridgeshirePrivate/ VoluntaryResidential special school (>295 days/year)1 | B166: Cambridgeshire | C166: Private/ Voluntary | D166: Residential special school (>295 days/year) | E166: 1 | F166: 0 | G166: 1 | H166: 0 | I166: 0
A167: CambridgeshirePrivate/ VoluntaryResidential special school (>295 days/year)4 | B167: Cambridgeshire | C167: Private/ Voluntary | D167: Residential special school (>295 days/year) | E167: 4 | F167: 0 | G167: 1 | H167: 0 | I167: 0
A168: CamdenAllChildren's Home1 | B168: Camden | C168: All | D168: Children's Home | E168: 1 | F168: 0 | G168: 1 | H168: 0 | I168: 0
A169: CamdenAllChildren's Home4 | B169: Camden | C169: All | D169: Children's Home | E169: 4 | F169: 0 | G169: 1 | H169: 0 | I169: 0
A170: CamdenPrivate/ VoluntaryChildren's Home1 | B170: Camden | C170: Private/ Voluntary | D170: Children's Home | E170: 1 | F170: 0 | G170: 1 | H170: 0 | I170: 0
A171: CamdenPrivate/ VoluntaryChildren's Home4 | B171: Camden | C171: Private/ Voluntary | D171: Children's Home | E171: 4 | F171: 0 | G171: 1 | H171: 0 | I171: 0
A172: Central BedfordshireAllChildren's Home2 | B172: Central Bedfordshire | C172: All | D172: Children's Home | E172: 2 | F172: 0 | G172: 1 | H172: 0 | I172: 0
A173: Central BedfordshireAllChildren's Home3 | B173: Central Bedfordshire | C173: All | D173: Children's Home | E173: 3 | F173: 1 | G173: 0 | H173: 0 | I173: 0
A174: Central BedfordshireAllChildren's Home4 | B174: Central Bedfordshire | C174: All | D174: Children's Home | E174: 4 | F174: 1 | G174: 1 | H174: 0 | I174: 0
A175: Central BedfordshireLocal AuthorityChildren's Home2 | B175: Central Bedfordshire | C175: Local Authority | D175: Children's Home | E175: 2 | F175: 0 | G175: 1 | H175: 0 | I175: 0
A176: Central BedfordshireLocal AuthorityChildren's Home4 | B176: Central Bedfordshire | C176: Local Authority | D176: Children's Home | E176: 4 | F176: 0 | G176: 1 | H176: 0 | I176: 0
A177: Central BedfordshirePrivate/ VoluntaryChildren's Home3 | B177: Central Bedfordshire | C177: Private/ Voluntary | D177: Children's Home | E177: 3 | F177: 1 | G177: 0 | H177: 0 | I177: 0
A178: Central BedfordshirePrivate/ VoluntaryChildren's Home4 | B178: Central Bedfordshire | C178: Private/ Voluntary | D178: Children's Home | E178: 4 | F178: 1 | G178: 0 | H178: 0 | I178: 0
A179: Cheshire EastAllChildren's Home2 | B179: Cheshire East | C179: All | D179: Children's Home | E179: 2 | F179: 1 | G179: 0 | H179: 0 | I179: 0
A180: Cheshire EastAllChildren's Home3 | B180: Cheshire East | C180: All | D180: Children's Home | E180: 3 | F180: 0 | G180: 1 | H180: 0 | I180: 0
A181: Cheshire EastAllChildren's Home4 | B181: Cheshire East | C181: All | D181: Children's Home | E181: 4 | F181: 1 | G181: 1 | H181: 0 | I181: 0
A182: Cheshire EastLocal AuthorityChildren's Home2 | B182: Cheshire East | C182: Local Authority | D182: Children's Home | E182: 2 | F182: 1 | G182: 0 | H182: 0 | I182: 0
A183: Cheshire EastLocal AuthorityChildren's Home4 | B183: Cheshire East | C183: Local Authority | D183: Children's Home | E183: 4 | F183: 1 | G183: 0 | H183: 0 | I183: 0
A184: Cheshire EastPrivate/ VoluntaryChildren's Home3 | B184: Cheshire East | C184: Private/ Voluntary | D184: Children's Home | E184: 3 | F184: 0 | G184: 1 | H184: 0 | I184: 0
A185: Cheshire EastPrivate/ VoluntaryChildren's Home4 | B185: Cheshire East | C185: Private/ Voluntary | D185: Children's Home | E185: 4 | F185: 0 | G185: 1 | H185: 0 | I185: 0
A186: Cheshire West and ChesterAllChildren's Home3 | B186: Cheshire West and Chester | C186: All | D186: Children's Home | E186: 3 | F186: 0 | G186: 1 | H186: 0 | I186: 0
A187: Cheshire West and ChesterAllChildren's Home4 | B187: Cheshire West and Chester | C187: All | D187: Children's Home | E187: 4 | F187: 0 | G187: 1 | H187: 0 | I187: 0
A188: Cheshire West and ChesterPrivate/ VoluntaryChildren's Home3 | B188: Cheshire West and Chester | C188: Private/ Voluntary | D188: Children's Home | E188: 3 | F188: 0 | G188: 1 | H188: 0 | I188: 0
A189: Cheshire West and ChesterPrivate/ VoluntaryChildren's Home4 | B189: Cheshire West and Chester | C189: Private/ Voluntary | D189: Children's Home | E189: 4 | F189: 0 | G189: 1 | H189: 0 | I189: 0
A190: CornwallAllChildren's Home1 | B190: Cornwall | C190: All | D190: Children's Home | E190: 1 | F190: 0 | G190: 3 | H190: 2 | I190: 0
A191: CornwallAllChildren's Home2 | B191: Cornwall | C191: All | D191: Children's Home | E191: 2 | F191: 0 | G191: 1 | H191: 1 | I191: 0
A192: CornwallAllChildren's Home3 | B192: Cornwall | C192: All | D192: Children's Home | E192: 3 | F192: 0 | G192: 1 | H192: 0 | I192: 1
A193: CornwallAllChildren's Home4 | B193: Cornwall | C193: All | D193: Children's Home | E193: 4 | F193: 0 | G193: 5 | H193: 3 | I193: 1
A194: CornwallLocal AuthorityChildren's Home1 | B194: Cornwall | C194: Local Authority | D194: Children's Home | E194: 1 | F194: 0 | G194: 3 | H194: 2 | I194: 0
A195: CornwallLocal AuthorityChildren's Home2 | B195: Cornwall | C195: Local Authority | D195: Children's Home | E195: 2 | F195: 0 | G195: 1 | H195: 1 | I195: 0
A196: CornwallLocal AuthorityChildren's Home3 | B196: Cornwall | C196: Local Authority | D196: Children's Home | E196: 3 | F196: 0 | G196: 1 | H196: 0 | I196: 1
A197: CornwallLocal AuthorityChildren's Home4 | B197: Cornwall | C197: Local Authority | D197: Children's Home | E197: 4 | F197: 0 | G197: 5 | H197: 3 | I197: 1
A198: CoventryAllChildren's Home1 | B198: Coventry | C198: All | D198: Children's Home | E198: 1 | F198: 0 | G198: 1 | H198: 0 | I198: 0
A199: CoventryAllChildren's Home2 | B199: Coventry | C199: All | D199: Children's Home | E199: 2 | F199: 0 | G199: 3 | H199: 1 | I199: 0
A200: CoventryAllChildren's Home3 | B200: Coventry | C200: All | D200: Children's Home | E200: 3 | F200: 1 | G200: 1 | H200: 0 | I200: 0
... 873 more rows

Sheet Table 1
A1: =B2 -> Table 1: Number of children's homes inspections carried out between 1 July 2012 - 30 September 2012, by inspection type (provisional)¹ ²
B2: =IF(ISERROR(VLOOKUP(D5,Ranges!F1:G12,2,0)), "Table 1: Number of "& Ranges!H1&" inspections carried out between "&D5&", by inspection type (provisional)"&CHAR(185)&" "&CHAR(178),"Table 1: All "& Ranges!H1&" inspections carried out in "&D5&", by inspection type (provisional)"&CHAR(185)&" "&CHAR(178)) -> Table 1: Number of children's homes inspections carried out between 1 July 2012 - 30 September 2012, by inspection type (provisional)¹ ²
B5: Select period: | D5: 1 July 2012 - 30 September 2012
B6: =VLOOKUP(D5,Periods,2,0) -> 4
B7: Select local authority: | D7: All
B10: Provider type | D10: Total number inspected | G10: Full Inspection | J10: Interim Inspection
D11: All | E11: Local authority | F11: Private/ Voluntary | G11: All | H11: Local authority | I11: Private/ Voluntary | J11: All | K11: Local authority | L11: Private/ Voluntary
B13: Children's homes | D13: =G13+J13 -> 795 | E13: 245 | F13: 550 | G13: =SUM(G14:G16) -> 685 | H13: 224 | I13: 461 | J13: 110 | K13: 21 | L13: 89
A14: Children's home | B14: Children's homes | D14: 768 | E14: 239 | F14: 529 | G14: =IF(ISERROR(VLOOKUP($D$7&G$11&$G$10&$A14&$B$6,Table1_data,7,0)),0,VLOOKUP($D$7&G$11&$G$10&$A14&$B$6,Table1_data,7,0)) -> 661 | H14: 218 | I14: 443 | J14: =IF(ISERROR(VLOOKUP($D$7&J$11&$J$10&$A14&$B$6,Table1_data,7,0)),0,VLOOKUP($D$7&J$11&$J$10&$A14&$B$6,Table1_data,7,0)) -> 107 | K14: 21 | L14: 86
A15: Secure children's home | B15: Secure children's homes | D15: 6 | E15: 6 | F15: 0 | G15: 6 | H15: 6 | I15: 0 | J15: 0 | K15: 0 | L15: 0
A16: Residential special school (>295 days/year) | B16: Residential special schools2 | D16: 21 | E16: 0 | F16: 21 | G16: 18 | H16: 0 | I16: 18 | J16: 3 | K16: 0 | L16: 3
L19: Source: Ofsted inspections
B21: 1. The 'all' figures include all homes, of all ownership type, in the local authority area. Local authority run homes data include a small number of homes run by health authorities.
B22: 2. Residential special schools that care for pupils for more than 295 days per year must register as children's homes.

Sheet Table 2
B2: =IF(ISERROR(VLOOKUP(D5,Ranges!F1:G12,2,0)), "Table 2: Overall effectiveness of "& Ranges!H1&" at full inspections between "&D5&" (provisional)"&CHAR(185)&" "&CHAR(178),"Table 2: Overall effectiveness of "& Ranges!H1&" at full inspections in "&D5&" (provisional)"&CHAR(185)&" "&CHAR(178)) -> Table 2: Overall effectiveness of children's homes at full inspections between 1 July 2012 - 30 September 2012 (provisional)¹ ²
B5: Select period: | D5: 1 July 2012 - 30 September 2012
B6: =VLOOKUP(D5,Periods,2,0) -> 4
B7: Select local authority: | D7: All
D8: 6 | E8: 6 | F8: 6 | G8: 7 | H8: 7 | I8: 7 | J8: 8 | K8: 8 | L8: 8 | M8: 9 | N8: 10 | O8: 10
B9: Provider Type | C9: Total number inspected | D9: Overall effectiveness | P9: Outstanding | Q9: Good | R9: Satisfactory | S9: Inadequate | T9: Total
D10: Outstanding | G10: Good | J10: Adequate | M10: Inadequate | Q10: ="Children's Home ("&C14 &")" -> Children's Home (661)
D11: All | E11: Local authority | F11: Private/ Voluntary | G11: All | H11: Local authority | I11: Private/ Voluntary | J11: All | K11: Local authority | L11: Private/ Voluntary | M11: All | N11: Local authority | O11: Private/ Voluntary
B13: ="Children's homes " -> Children's homes | C13: =SUM(D13,G13,J13,M13) -> 685 | D13: =SUM(D14:D16) -> 119 | E13: =SUM(E14:E16) -> 41 | F13: 78 | G13: 399 | H13: 130 | I13: 269 | J13: 136 | K13: 44 | L13: 92 | M13: 31 | N13: 9 | O13: 22
A14: Children's home | B14: ="Children's homes" -> Children's homes | C14: =SUM(D14,G14,J14,M14) -> 661 | D14: =IF(ISERROR(VLOOKUP($D$7&D$11&$A14&$B$6,Table2_data,D$8,0)),0,VLOOKUP($D$7&D$11&$A14&$B$6,Table2_data,D$8,0)) -> 115 | E14: 40 | F14: =IF(ISERROR(VLOOKUP($D$7&F$11&$A14&$B$6,Table2_data,F$8,0)),0,VLOOKUP($D$7&F$11&$A14&$B$6,Table2_data,F$8,0)) -> 75 | G14: 381 | H14: =IF(ISERROR(VLOOKUP($D$7&H$11&$A14&$B$6,Table2_data,H$8,0)),0,VLOOKUP($D$7&H$11&$A14&$B$6,Table2_data,H$8,0)) -> 126 | I14: =IF(ISERROR(VLOOKUP($D$7&I$11&$A14&$B$6,Table2_data,I$8,0)),0,VLOOKUP($D$7&I$11&$A14&$B$6,Table2_data,I$8,0)) -> 255 | J14: 135 | K14: 43 | L14: =IF(ISERROR(VLOOKUP($D$7&L$11&$A14&$B$6,Table2_data,L$8,0)),0,VLOOKUP($D$7&L$11&$A14&$B$6,Table2_data,L$8,0)) -> 92 | M14: =IF(ISERROR(VLOOKUP($D$7&M$11&$A14&$B$6,Table2_data,M$8,0)),0,VLOOKUP($D$7&M$11&$A14&$B$6,Table2_data,M$8,0)) -> 30 | N14: =IF(ISERROR(VLOOKUP($D$7&N$11&$A14&$B$6,Table2_data,M$8,0)),0,VLOOKUP($D$7&N$11&$A14&$B$6,Table2_data,M$8,0)) -> 9 | O14: =IF(ISERROR(VLOOKUP($D$7&O$11&$A14&$B$6,Table2_data,M$8,0)),0,VLOOKUP($D$7&O$11&$A14&$B$6,Table2_data,M$8,0)) -> 21
A15: Secure children's home | B15: ="Secure children's homes" -> Secure children's homes | C15: =SUM(D15,G15,J15,M15) -> 6 | D15: 1 | E15: 1 | F15: 0 | G15: 4 | H15: 4 | I15: 0 | J15: 1 | K15: 1 | L15: =IF(ISERROR(VLOOKUP($D$7&L$11&$A15&$B$6,Table2_data,L$8,0)),0,VLOOKUP($D$7&L$11&$A15&$B$6,Table2_data,L$8,0)) -> 0 | M15: =IF(ISERROR(VLOOKUP($D$7&M$11&$A15&$B$6,Table2_data,M$8,0)),0,VLOOKUP($D$7&M$11&$A15&$B$6,Table2_data,M$8,0)) -> 0 | N15: =IF(ISERROR(VLOOKUP($D$7&N$11&$A15&$B$6,Table2_data,M$8,0)),0,VLOOKUP($D$7&N$11&$A15&$B$6,Table2_data,M$8,0)) -> 0 | O15: =IF(ISERROR(VLOOKUP($D$7&O$11&$A15&$B$6,Table2_data,M$8,0)),0,VLOOKUP($D$7&O$11&$A15&$B$6,Table2_data,M$8,0)) -> 0
A16: Residential special school (>295 days/year) | B16: Residential special schools2 | C16: =SUM(D16,G16,J16,M16) -> 18 | D16: 3 | E16: 0 | F16: 3 | G16: 14 | H16: 0 | I16: 14 | J16: 0 | K16: 0 | L16: 0 | M16: 1 | N16: =IF(ISERROR(VLOOKUP($D$7&N$11&$A16&$B$6,Table2_data,M$8,0)),0,VLOOKUP($D$7&N$11&$A16&$B$6,Table2_data,M$8,0)) -> 0 | O16: =IF(ISERROR(VLOOKUP($D$7&O$11&$A16&$B$6,Table2_data,M$8,0)),0,VLOOKUP($D$7&O$11&$A16&$B$6,Table2_data,M$8,0)) -> 1
O19: Source: Ofsted inspections
B20: 1. The 'all' figures include all homes, of all ownership type, in the local authority area. Local authority run homes data include a small number of homes run by health authorities.
B21: 2. Residential special schools that care for pupils for more than 295 days per year must register as children's homes.

Sheet Table 3a
A1: =B2 -> Table 3a: Full inspection outcomes of children's homes (excluding secure children's homes and residential special schools caring for pupils for more than 295 days a year) inspected between 1 July 2012 - 30 September 2012 (provisional)¹ ² ³
B2: =IF(ISERROR(VLOOKUP(D5,Ranges!F1:G12,2,0)), "Table 3a: Full inspection outcomes of children's homes (excluding secure children's homes and residential special schools caring for pupils for more than 295 days a year) inspected between "&D5 & " (provisional)"&CHAR(185)&" "&CHAR(178)&" "&CHAR(179),"Table 3a: Full inspection outcomes of children's homes (excluding secure children's homes and residential special schools caring for pupils for more than 295 days a year) inspected in "&D5 & " (provisional)"&CHAR(185)&" "&CHAR(178)&" "&CHAR(179)) -> Table 3a: Full inspection outcomes of children's homes (excluding secure children's homes and residential special schools caring for pupils for more than 295 days a year) inspected between 1 July 2012 - 30 September 2012 (provisional)¹ ² ³
B4: Children's Home
B5: Select period: | D5: 1 July 2012 - 30 September 2012
B6: =VLOOKUP(D5,Periods,2,0) -> 4
B7: Select local authority: | D7: All | P7: =IF($D$7="All", "England",$D$7) -> England
G8: All
D9: All sectors
D10: Total number inspected | G10: Outstanding | K10: Good | O10: Adequate | S10: Inadequate
G11: Number | H11: % | K11: Number | L11: % | O11: Number | P11: % | S11: Number | T11: %
G12: 7 | K12: 8 | O12: 9 | S12: 10
B13: Overall effectiveness | D13: =G13+K13+O13+S13 -> 661 | G13: =IF(ISERROR(VLOOKUP($D$7&G8&$B$4&SUBSTITUTE($B$13,"Overall care judgement - ","")&$B$6,Table3_data,G12,0))=TRUE,0,VLOOKUP($D$7&G8&$B$4&SUBSTITUTE($B$13,"Overall care judgement - ","")&$B$6,Table3_data,G12,0)) -> 115 | H13: =IF($D13=0,"",G13/$D13*100) -> 17.397882 | K13: =IF(ISERROR(VLOOKUP($D$7&$G$8&$B$4&SUBSTITUTE($B$13,"Overall care judgement - ","")&$B$6,Table3_data,$K$12,0))=TRUE,0,VLOOKUP($D$7&$G$8&$B$4&SUBSTITUTE($B$13,"Overall care judgement - ","")&$B$6,Table3_data,$K$12,0)) -> 381 | L13: =IF($D13=0,"",K13/$D13*100) -> 57.63993949 | O13: =IF(ISERROR(VLOOKUP($D$7&$G$8&$B$4&SUBSTITUTE($B$13,"Overall care judgement - ","")&$B$6,Table3_data,O12,0))=TRUE,0,VLOOKUP($D$7&$G$8&$B$4&SUBSTITUTE($B$13,"Overall care judgement - ","")&$B$6,Table3_data,O12,0)) -> 135 | P13: =IF($D13=0,"",O13/$D13*100) -> 20.42360061 | S13: =IF(ISERROR(VLOOKUP($D$7&$G$8&$B$4&SUBSTITUTE($B$13,"Overall care judgement - ","")&$B$6,Table3_data,S12,0))=TRUE,0,VLOOKUP($D$7&$G$8&$B$4&SUBSTITUTE($B$13,"Overall care judgement - ","")&$B$6,Table3_data,S12,0)) -> 30 | T13: =IF($D13=0,"",S13/$D13*100) -> 4.538577912
B15: Outcomes for children and young people | D15: =G15+K15+O15+S15 -> 661 | G15: =IF(ISERROR(VLOOKUP($D$7&$G$8&$B$4&SUBSTITUTE(B15,"Overall care judgement - ","")&$B$6,Table3_data,$G$12,0))=TRUE,0,VLOOKUP($D$7&G8&$B$4&SUBSTITUTE(B15,"Overall care judgement - ","")&$B$6,Table3_data,$G$12,0)) -> 170 | H15: =IF($D15=0,"",G15/$D15*100) -> 25.71860817 | K15: =IF(ISERROR(VLOOKUP($D$7&$G$8&$B$4&SUBSTITUTE($B$15,"Overall care judgement - ","")&$B$6,Table3_data,$K$12,0))=TRUE,0,VLOOKUP($D$7&$G$8&$B$4&SUBSTITUTE($B$15,"Overall care judgement - ","")&$B$6,Table3_data,$K$12,0)) -> 367 | L15: =IF($D15=0,"",K15/$D15*100) -> 55.52193646 | O15: =IF(ISERROR(VLOOKUP($D$7&$G$8&$B$4&SUBSTITUTE($B$15,"Overall care judgement - ","")&$B$6,Table3_data,$O$12,0))=TRUE,0,VLOOKUP($D$7&$G$8&$B$4&SUBSTITUTE($B$15,"Overall care judgement - ","")&$B$6,Table3_data,$O$12,0)) -> 108 | P15: =IF($D15=0,"",O15/$D15*100) -> 16.33888048 | S15: =IF(ISERROR(VLOOKUP($D$7&$G$8&$B$4&SUBSTITUTE($B$15,"Overall care judgement - ","")&$B$6,Table3_data,S12,0))=TRUE,0,VLOOKUP($D$7&$G$8&$B$4&SUBSTITUTE($B$15,"Overall care judgement - ","")&$B$6,Table3_data,S12,0)) -> 16 | T15: =IF($D15=0,"",S15/$D15*100) -> 2.420574887
A17: Quality of service | B17: Quality of service | D17: 661 | G17: =IF(ISERROR(VLOOKUP($D$7&$G$8&$B$4&A17&$B$6,Table3_data,$G$12,0))=TRUE,0,VLOOKUP($D$7&G8&$B$4&A17&$B$6,Table3_data,$G$12,0)) -> 226 | H17: 34.19062027 | K17: =IF(ISERROR(VLOOKUP($D$7&$G$8&$B$4&SUBSTITUTE($A$17,"Overall care judgement - ","")&$B$6,Table3_data,$K$12,0))=TRUE,0,VLOOKUP($D$7&$G$8&$B$4&SUBSTITUTE($A$17,"Overall care judgement - ","")&$B$6,Table3_data,$K$12,0)) -> 316 | L17: 47.80635401 | O17: =IF(ISERROR(VLOOKUP($D$7&$G$8&$B$4&SUBSTITUTE($A$17,"Overall care judgement - ","")&$B$6,Table3_data,$O$12,0))=TRUE,0,VLOOKUP($D$7&$G$8&$B$4&SUBSTITUTE($A$17,"Overall care judgement - ","")&$B$6,Table3_data,$O$12,0)) -> 102 | P17: 15.4311649 | S17: =IF(ISERROR(VLOOKUP($D$7&$G$8&$B$4&SUBSTITUTE($A$17,"Overall care judgement - ","")&$B$6,Table3_data,S12,0))=TRUE,0,VLOOKUP($D$7&$G$8&$B$4&SUBSTITUTE($A$17,"Overall care judgement - ","")&$B$6,Table3_data,S12,0)) -> 17 | T17: 2.571860817
A19: The safety of children and young people | B19: Safeguarding children and young people | D19: 661 | G19: =IF(ISERROR(VLOOKUP($D$7&$G$8&$B$4&A19&$B$6,Table3_data,$G$12,0))=TRUE,0,VLOOKUP($D$7&G8&$B$4&A19&$B$6,Table3_data,$G$12,0)) -> 146 | H19: 22.08774584 | K19: =IF(ISERROR(VLOOKUP($D$7&$G$8&$B$4&SUBSTITUTE($A$19,"Overall care judgement - ","")&$B$6,Table3_data,$K$12,0))=TRUE,0,VLOOKUP($D$7&$G$8&$B$4&SUBSTITUTE($A$19,"Overall care judgement - ","")&$B$6,Table3_data,$K$12,0)) -> 349 | L19: 52.79878971 | O19: =IF(ISERROR(VLOOKUP($D$7&$G$8&$B$4&SUBSTITUTE($A$19,"Overall care judgement - ","")&$B$6,Table3_data,$O$12,0))=TRUE,0,VLOOKUP($D$7&$G$8&$B$4&SUBSTITUTE($A$19,"Overall care judgement - ","")&$B$6,Table3_data,$O$12,0)) -> 137 | P19: 20.72617247 | S19: =IF(ISERROR(VLOOKUP($D$7&$G$8&$B$4&SUBSTITUTE($A$19,"Overall care judgement - ","")&$B$6,Table3_data,S12,0))=TRUE,0,VLOOKUP($D$7&$G$8&$B$4&SUBSTITUTE($A$19,"Overall care judgement - ","")&$B$6,Table3_data,S12,0)) -> 29 | T19: 4.387291982
B21: Leadership and management | D21: 661 | G21: =IF(ISERROR(VLOOKUP($D$7&$G$8&$B$4&B21&$B$6,Table3_data,$G$12,0))=TRUE,0,VLOOKUP($D$7&G8&$B$4&B21&$B$6,Table3_data,$G$12,0)) -> 138 | H21: 20.8774584 | K21: =IF(ISERROR(VLOOKUP($D$7&$G$8&$B$4&SUBSTITUTE($B$21,"Overall care judgement - ","")&$B$6,Table3_data,$K$12,0))=TRUE,0,VLOOKUP($D$7&$G$8&$B$4&SUBSTITUTE($B$21,"Overall care judgement - ","")&$B$6,Table3_data,$K$12,0)) -> 318 | L21: 48.10892587 | O21: =IF(ISERROR(VLOOKUP($D$7&$G$8&$B$4&SUBSTITUTE($B$21,"Overall care judgement - ","")&$B$6,Table3_data,$O$12,0))=TRUE,0,VLOOKUP($D$7&$G$8&$B$4&SUBSTITUTE($B$21,"Overall care judgement - ","")&$B$6,Table3_data,$O$12,0)) -> 170 | P21: 25.71860817 | S21: =IF(ISERROR(VLOOKUP($D$7&$G$8&$B$4&SUBSTITUTE($B$21,"Overall care judgement - ","")&$B$6,Table3_data,S12,0))=TRUE,0,VLOOKUP($D$7&$G$8&$B$4&SUBSTITUTE($B$21,"Overall care judgement - ","")&$B$6,Table3_data,S12,0)) -> 35 | T21: 5.295007564
D23: Local authority
G24: 7 | K24: 8 | O24: 9 | S24: 10
B25: Overall effectiveness | D25: =G25+K25+O25+S25 -> 218 | G25: =IF(ISERROR(VLOOKUP($D$7&D23&$B$4&SUBSTITUTE($B$25,"Overall care judgement - ","")&$B$6,Table3_data,$G$24,0))=TRUE,0,VLOOKUP($D$7&D23&$B$4&SUBSTITUTE($B$25,"Overall care judgement - ","")&$B$6,Table3_data,$G$24,0)) -> 40 | H25: =IF($D25=0,"",G25/$D25*100) -> 18.34862385 | K25: =IF(ISERROR(VLOOKUP($D$7&D23&$B$4&SUBSTITUTE($B$25,"Overall care judgement - ","")&$B$6,Table3_data,$K$24,0))=TRUE,0,VLOOKUP($D$7&D23&$B$4&SUBSTITUTE($B$25,"Overall care judgement - ","")&$B$6,Table3_data,$K$24,0)) -> 126 | L25: =IF($D25=0,"",K25/$D25*100) -> 57.79816514 | O25: =IF(ISERROR(VLOOKUP($D$7&D23&$B$4&SUBSTITUTE($B$25,"Overall care judgement - ","")&$B$6,Table3_data,$O$24,0))=TRUE,0,VLOOKUP($D$7&D23&$B$4&SUBSTITUTE($B$25,"Overall care judgement - ","")&$B$6,Table3_data,$O$24,0)) -> 43 | P25: =IF($D25=0,"",O25/$D25*100) -> 19.72477064 | S25: =IF(ISERROR(VLOOKUP($D$7&D23&$B$4&SUBSTITUTE($B$25,"Overall care judgement - ","")&$B$6,Table3_data,$S$24,0))=TRUE,0,VLOOKUP($D$7&D23&$B$4&SUBSTITUTE($B$25,"Overall care judgement - ","")&$B$6,Table3_data,$S$24,0)) -> 9 | T25: =IF($D25=0,"",S25/$D25*100) -> 4.128440367
B27: Outcomes for children and young people | D27: =G27+K27+O27+S27 -> 218 | G27: =IF(ISERROR(VLOOKUP($D$7&$D$23&$B$4&SUBSTITUTE(B27,"Overall care judgement - ","")&$B$6,Table3_data,$G$24,0))=TRUE,0,VLOOKUP($D$7&$D$23&$B$4&SUBSTITUTE(B27,"Overall care judgement - ","")&$B$6,Table3_data,$G$24,0)) -> 55 | H27: =IF($D27=0,"",G27/$D27*100) -> 25.2293578 | K27: =IF(ISERROR(VLOOKUP($D$7&$D$23&$B$4&SUBSTITUTE(B27,"Overall care judgement - ","")&$B$6,Table3_data,$K$24,0))=TRUE,0,VLOOKUP($D$7&$D$23&$B$4&SUBSTITUTE(B27,"Overall care judgement - ","")&$B$6,Table3_data,$K$24,0)) -> 123 | L27: =IF($D27=0,"",K27/$D27*100) -> 56.42201835 | O27: =IF(ISERROR(VLOOKUP($D$7&$D$23&$B$4&SUBSTITUTE(B27,"Overall care judgement - ","")&$B$6,Table3_data,$O$24,0))=TRUE,0,VLOOKUP($D$7&$D$23&$B$4&SUBSTITUTE(B27,"Overall care judgement - ","")&$B$6,Table3_data,$O$24,0)) -> 32 | P27: =IF($D27=0,"",O27/$D27*100) -> 14.67889908 | S27: =IF(ISERROR(VLOOKUP($D$7&$D$23&$B$4&SUBSTITUTE(B27,"Overall care judgement - ","")&$B$6,Table3_data,$S$24,0))=TRUE,0,VLOOKUP($D$7&$D$23&$B$4&SUBSTITUTE(B27,"Overall care judgement - ","")&$B$6,Table3_data,$S$24,0)) -> 8 | T27: =IF($D27=0,"",S27/$D27*100) -> 3.669724771
A29: Quality of service | B29: Quality of service | D29: 218 | G29: =IF(ISERROR(VLOOKUP($D$7&$D$23&$B$4&SUBSTITUTE(A29,"Overall care judgement - ","")&$B$6,Table3_data,$G$24,0))=TRUE,0,VLOOKUP($D$7&$D$23&$B$4&SUBSTITUTE(A29,"Overall care judgement - ","")&$B$6,Table3_data,$G$24,0)) -> 78 | H29: 35.77981651 | K29: =IF(ISERROR(VLOOKUP($D$7&$D$23&$B$4&SUBSTITUTE(A29,"Overall care judgement - ","")&$B$6,Table3_data,$K$24,0))=TRUE,0,VLOOKUP($D$7&$D$23&$B$4&SUBSTITUTE(A29,"Overall care judgement - ","")&$B$6,Table3_data,$K$24,0)) -> 101 | L29: 46.33027523 | O29: =IF(ISERROR(VLOOKUP($D$7&$D$23&$B$4&SUBSTITUTE(A29,"Overall care judgement - ","")&$B$6,Table3_data,$O$24,0))=TRUE,0,VLOOKUP($D$7&$D$23&$B$4&SUBSTITUTE(A29,"Overall care judgement - ","")&$B$6,Table3_data,$O$24,0)) -> 31 | P29: 14.22018349 | S29: =IF(ISERROR(VLOOKUP($D$7&$D$23&$B$4&SUBSTITUTE(A29,"Overall care judgement - ","")&$B$6,Table3_data,$S$24,0))=TRUE,0,VLOOKUP($D$7&$D$23&$B$4&SUBSTITUTE(A29,"Overall care judgement - ","")&$B$6,Table3_data,$S$24,0)) -> 8 | T29: 3.669724771
A31: The safety of children and young people | B31: Safeguarding children and young people | D31: 218 | G31: =IF(ISERROR(VLOOKUP($D$7&$D$23&$B$4&SUBSTITUTE(A31,"Overall care judgement - ","")&$B$6,Table3_data,$G$24,0))=TRUE,0,VLOOKUP($D$7&$D$23&$B$4&SUBSTITUTE(A31,"Overall care judgement - ","")&$B$6,Table3_data,$G$24,0)) -> 51 | H31: 23.39449541 | K31: =IF(ISERROR(VLOOKUP($D$7&$D$23&$B$4&SUBSTITUTE(A31,"Overall care judgement - ","")&$B$6,Table3_data,$K$24,0))=TRUE,0,VLOOKUP($D$7&$D$23&$B$4&SUBSTITUTE(A31,"Overall care judgement - ","")&$B$6,Table3_data,$K$24,0)) -> 117 | L31: 53.66972477 | O31: =IF(ISERROR(VLOOKUP($D$7&$D$23&$B$4&SUBSTITUTE(A31,"Overall care judgement - ","")&$B$6,Table3_data,$O$24,0))=TRUE,0,VLOOKUP($D$7&$D$23&$B$4&SUBSTITUTE(A31,"Overall care judgement - ","")&$B$6,Table3_data,$O$24,0)) -> 41 | P31: 18.80733945 | S31: =IF(ISERROR(VLOOKUP($D$7&$D$23&$B$4&SUBSTITUTE(A31,"Overall care judgement - ","")&$B$6,Table3_data,$S$24,0))=TRUE,0,VLOOKUP($D$7&$D$23&$B$4&SUBSTITUTE(A31,"Overall care judgement - ","")&$B$6,Table3_data,$S$24,0)) -> 9 | T31: 4.128440367
B33: Leadership and management | D33: 218 | G33: =IF(ISERROR(VLOOKUP($D$7&$D$23&$B$4&SUBSTITUTE(B33,"Overall care judgement - ","")&$B$6,Table3_data,$G$24,0))=TRUE,0,VLOOKUP($D$7&$D$23&$B$4&SUBSTITUTE(B33,"Overall care judgement - ","")&$B$6,Table3_data,$G$24,0)) -> 54 | H33: 24.7706422 | K33: =IF(ISERROR(VLOOKUP($D$7&$D$23&$B$4&SUBSTITUTE(B33,"Overall care judgement - ","")&$B$6,Table3_data,$K$24,0))=TRUE,0,VLOOKUP($D$7&$D$23&$B$4&SUBSTITUTE(B33,"Overall care judgement - ","")&$B$6,Table3_data,$K$24,0)) -> 98 | L33: 44.95412844 | O33: =IF(ISERROR(VLOOKUP($D$7&$D$23&$B$4&SUBSTITUTE(B33,"Overall care judgement - ","")&$B$6,Table3_data,$O$24,0))=TRUE,0,VLOOKUP($D$7&$D$23&$B$4&SUBSTITUTE(B33,"Overall care judgement - ","")&$B$6,Table3_data,$O$24,0)) -> 56 | P33: 25.68807339 | S33: =IF(ISERROR(VLOOKUP($D$7&$D$23&$B$4&SUBSTITUTE(B33,"Overall care judgement - ","")&$B$6,Table3_data,$S$24,0))=TRUE,0,VLOOKUP($D$7&$D$23&$B$4&SUBSTITUTE(B33,"Overall care judgement - ","")&$B$6,Table3_data,$S$24,0)) -> 10 | T33: 4.587155963
C35: Private/ voluntary
G36: 7 | K36: 8 | O36: 9 | S36: 10
B37: Overall effectiveness | D37: =G37+K37+O37+S37 -> 443 | G37: =IF(ISERROR(VLOOKUP($D$7&C$35&$B$4&SUBSTITUTE($B$37,"Overall care judgement - ","")&$B$6,Table3_data,$G$36,0))=TRUE,0,VLOOKUP($D$7&$C$35&$B$4&SUBSTITUTE($B$37,"Overall care judgement - ","")&$B$6,Table3_data,$G$36,0)) -> 75 | H37: =IF($D37=0,"",G37/$D37*100) -> 16.93002257 | K37: =IF(ISERROR(VLOOKUP($D$7&C$35&$B$4&SUBSTITUTE($B$37,"Overall care judgement - ","")&$B$6,Table3_data,$K$36,0))=TRUE,0,VLOOKUP($D$7&$C$35&$B$4&SUBSTITUTE($B$37,"Overall care judgement - ","")&$B$6,Table3_data,$K$36,0)) -> 255 | L37: =IF($D37=0,"",K37/$D37*100) -> 57.56207675 | O37: =IF(ISERROR(VLOOKUP($D$7&C$35&$B$4&SUBSTITUTE($B$37,"Overall care judgement - ","")&$B$6,Table3_data,$O$36,0))=TRUE,0,VLOOKUP($D$7&$C$35&$B$4&SUBSTITUTE($B$37,"Overall care judgement - ","")&$B$6,Table3_data,$O$36,0)) -> 92 | P37: =IF($D37=0,"",O37/$D37*100) -> 20.76749436 | S37: =IF(ISERROR(VLOOKUP($D$7&C$35&$B$4&SUBSTITUTE($B$37,"Overall care judgement - ","")&$B$6,Table3_data,$S$36,0))=TRUE,0,VLOOKUP($D$7&$C$35&$B$4&SUBSTITUTE($B$37,"Overall care judgement - ","")&$B$6,Table3_data,$S$36,0)) -> 21 | T37: =IF($D37=0,"",S37/$D37*100) -> 4.740406321
B39: Outcomes for children and young people | D39: =G39+K39+O39+S39 -> 443 | G39: =IF(ISERROR(VLOOKUP($D$7&C$35&$B$4&SUBSTITUTE($B$39,"Overall care judgement - ","")&$B$6,Table3_data,$G$36,0))=TRUE,0,VLOOKUP($D$7&$C$35&$B$4&SUBSTITUTE($B$39,"Overall care judgement - ","")&$B$6,Table3_data,$G$36,0)) -> 115 | H39: =IF($D39=0,"",G39/$D39*100) -> 25.95936795 | K39: =IF(ISERROR(VLOOKUP($D$7&C$35&$B$4&SUBSTITUTE($B$39,"Overall care judgement - ","")&$B$6,Table3_data,$K$36,0))=TRUE,0,VLOOKUP($D$7&$C$35&$B$4&SUBSTITUTE($B$39,"Overall care judgement - ","")&$B$6,Table3_data,$K$36,0)) -> 244 | L39: =IF($D39=0,"",K39/$D39*100) -> 55.07900677 | O39: =IF(ISERROR(VLOOKUP($D$7&C$35&$B$4&SUBSTITUTE($B$39,"Overall care judgement - ","")&$B$6,Table3_data,$O$36,0))=TRUE,0,VLOOKUP($D$7&$C$35&$B$4&SUBSTITUTE($B$39,"Overall care judgement - ","")&$B$6,Table3_data,$O$36,0)) -> 76 | P39: =IF($D39=0,"",O39/$D39*100) -> 17.15575621 | S39: =IF(ISERROR(VLOOKUP($D$7&C$35&$B$4&SUBSTITUTE($B$39,"Overall care judgement - ","")&$B$6,Table3_data,$S$36,0))=TRUE,0,VLOOKUP($D$7&$C$35&$B$4&SUBSTITUTE($B$39,"Overall care judgement - ","")&$B$6,Table3_data,$S$36,0)) -> 8 | T39: =IF($D39=0,"",S39/$D39*100) -> 1.805869074
A41: Quality of service | B41: Quality of service | D41: 443 | G41: =IF(ISERROR(VLOOKUP($D$7&C$35&$B$4&SUBSTITUTE($A$41,"Overall care judgement - ","")&$B$6,Table3_data,$G$36,0))=TRUE,0,VLOOKUP($D$7&$C$35&$B$4&SUBSTITUTE($A$41,"Overall care judgement - ","")&$B$6,Table3_data,$G$36,0)) -> 148 | H41: 33.40857788 | K41: =IF(ISERROR(VLOOKUP($D$7&C$35&$B$4&SUBSTITUTE($A$41,"Overall care judgement - ","")&$B$6,Table3_data,$K$36,0))=TRUE,0,VLOOKUP($D$7&$C$35&$B$4&SUBSTITUTE($A$41,"Overall care judgement - ","")&$B$6,Table3_data,$K$36,0)) -> 215 | L41: 48.53273138 | O41: =IF(ISERROR(VLOOKUP($D$7&C$35&$B$4&SUBSTITUTE($A$41,"Overall care judgement - ","")&$B$6,Table3_data,$O$36,0))=TRUE,0,VLOOKUP($D$7&$C$35&$B$4&SUBSTITUTE($A$41,"Overall care judgement - ","")&$B$6,Table3_data,$O$36,0)) -> 71 | P41: 16.02708804 | S41: =IF(ISERROR(VLOOKUP($D$7&C$35&$B$4&SUBSTITUTE($A$41,"Overall care judgement - ","")&$B$6,Table3_data,$S$36,0))=TRUE,0,VLOOKUP($D$7&$C$35&$B$4&SUBSTITUTE($A$41,"Overall care judgement - ","")&$B$6,Table3_data,$S$36,0)) -> 9 | T41: 2.031602709
A43: The safety of children and young people | B43: Safeguarding children and young people | D43: 443 | G43: =IF(ISERROR(VLOOKUP($D$7&C$35&$B$4&SUBSTITUTE($A$43,"Overall care judgement - ","")&$B$6,Table3_data,$G$36,0))=TRUE,0,VLOOKUP($D$7&$C$35&$B$4&SUBSTITUTE($A$43,"Overall care judgement - ","")&$B$6,Table3_data,$G$36,0)) -> 95 | H43: 21.44469526 | K43: =IF(ISERROR(VLOOKUP($D$7&C$35&$B$4&SUBSTITUTE($A$43,"Overall care judgement - ","")&$B$6,Table3_data,$K$36,0))=TRUE,0,VLOOKUP($D$7&$C$35&$B$4&SUBSTITUTE($A$43,"Overall care judgement - ","")&$B$6,Table3_data,$K$36,0)) -> 232 | L43: 52.37020316 | O43: =IF(ISERROR(VLOOKUP($D$7&C$35&$B$4&SUBSTITUTE($A$43,"Overall care judgement - ","")&$B$6,Table3_data,$O$36,0))=TRUE,0,VLOOKUP($D$7&$C$35&$B$4&SUBSTITUTE($A$43,"Overall care judgement - ","")&$B$6,Table3_data,$O$36,0)) -> 96 | P43: 21.67042889 | S43: =IF(ISERROR(VLOOKUP($D$7&C$35&$B$4&SUBSTITUTE($A$43,"Overall care judgement - ","")&$B$6,Table3_data,$S$36,0))=TRUE,0,VLOOKUP($D$7&$C$35&$B$4&SUBSTITUTE($A$43,"Overall care judgement - ","")&$B$6,Table3_data,$S$36,0)) -> 20 | T43: 4.514672686
B45: Leadership and management | D45: 443 | G45: =IF(ISERROR(VLOOKUP($D$7&C$35&$B$4&SUBSTITUTE($B$45,"Overall care judgement - ","")&$B$6,Table3_data,$G$36,0))=TRUE,0,VLOOKUP($D$7&$C$35&$B$4&SUBSTITUTE($B$45,"Overall care judgement - ","")&$B$6,Table3_data,$G$36,0)) -> 84 | H45: 18.96162528 | K45: =IF(ISERROR(VLOOKUP($D$7&C$35&$B$4&SUBSTITUTE($B$45,"Overall care judgement - ","")&$B$6,Table3_data,$K$36,0))=TRUE,0,VLOOKUP($D$7&$C$35&$B$4&SUBSTITUTE($B$45,"Overall care judgement - ","")&$B$6,Table3_data,$K$36,0)) -> 220 | L45: 49.66139955 | O45: =IF(ISERROR(VLOOKUP($D$7&C$35&$B$4&SUBSTITUTE($B$45,"Overall care judgement - ","")&$B$6,Table3_data,$O$36,0))=TRUE,0,VLOOKUP($D$7&$C$35&$B$4&SUBSTITUTE($B$45,"Overall care judgement - ","")&$B$6,Table3_data,$O$36,0)) -> 114 | P45: 25.73363431 | S45: =IF(ISERROR(VLOOKUP($D$7&C$35&$B$4&SUBSTITUTE($B$45,"Overall care judgement - ","")&$B$6,Table3_data,$S$36,0))=TRUE,0,VLOOKUP($D$7&$C$35&$B$4&SUBSTITUTE($B$45,"Overall care judgement - ","")&$B$6,Table3_data,$S$36,0)) -> 25 | T45: 5.643340858
S47: Source: Ofsted inspections
B49: 1. The 'all' figures include all homes, of all ownership type, in the local authority area. Local authority run homes data include a small number of homes run by health authorities.
B50: 2. Percentages are rounded and may not add to exactly 100.
B51: 3. Residential special schools that care for pupils for more than 295 days per year must register as children's homes and their inspection outcomes data can be found in table 3c.

Sheet Table 3b
A1: =B2 -> Table 3b: Full inspection outcomes of secure children's homes inspected between 1 July 2012 - 30 September 2012 (provisional)¹ ²
B2: =IF(ISERROR(VLOOKUP(D4,Ranges!F1:G12,2,0)), "Table 3b: Full inspection outcomes of secure children's homes inspected between "&D4 & " (provisional)"&CHAR(185)&" "&CHAR(178),"Table 3b: Full inspection outcomes of secure children's homes inspected in "&D4 & " (provisional)"&CHAR(185)&" "&CHAR(178)) -> Table 3b: Full inspection outcomes of secure children's homes inspected between 1 July 2012 - 30 September 2012 (provisional)¹ ²
B3: Secure children's home
B4: Select period: | D4: 1 July 2012 - 30 September 2012
B5: =VLOOKUP(D4,Periods,2,0) -> 4
B6: Select local authority: | D6: All | T6: =IF($D$6="All", "England",$D$6) -> England
G7: all
D8: All sectors
D9: Total number inspected | G9: Outstanding | K9: Good | O9: Adequate | S9: Inadequate
G10: Number | H10: % | K10: Number | L10: % | O10: Number | P10: % | S10: Number | T10: %
G11: 7 | K11: 8 | O11: 9 | S11: 11
B12: Overall effectiveness | D12: =G12+K12+O12+S12 -> 6 | G12: =IF(ISERROR(VLOOKUP($D$6&G7&$B$3&SUBSTITUTE($B$12,"Overall care judgement - ","")&$B$5,Table3_data,$G$11,0))=TRUE,0,VLOOKUP($D$6&G7&$B$3&SUBSTITUTE($B$12,"Overall care judgement - ","")&$B$5,Table3_data,$G$11,0)) -> 1 | H12: =IF($D12=0,"",G12/$D12*100) -> 16.66666667 | K12: =IF(ISERROR(VLOOKUP($D$6&$G$7&$B$3&SUBSTITUTE($B$12,"Overall care judgement - ","")&$B$5,Table3_data,$K$11,0))=TRUE,0,VLOOKUP($D$6&$G$7&$B$3&SUBSTITUTE($B$12,"Overall care judgement - ","")&$B$5,Table3_data,$K$11,0)) -> 4 | L12: =IF($D12=0,"",K12/$D12*100) -> 66.66666667 | O12: =IF(ISERROR(VLOOKUP($D$6&$G$7&$B$3&SUBSTITUTE($B$12,"Overall care judgement - ","")&$B$5,Table3_data,$O$11,0))=TRUE,0,VLOOKUP($D$6&$G$7&$B$3&SUBSTITUTE($B$12,"Overall care judgement - ","")&$B$5,Table3_data,$O$11,0)) -> 1 | P12: =IF($D12=0,"",O12/$D12*100) -> 16.66666667 | S12: =IF(ISERROR(VLOOKUP($D$6&$G$7&$B$3&SUBSTITUTE($B$12,"Overall care judgement - ","")&$B$5,Table3_data,$S$11,0))=TRUE,0,VLOOKUP($D$6&$G$7&$B$3&SUBSTITUTE($B$12,"Overall care judgement - ","")&$B$5,Table3_data,$S$11,0)) -> 0 | T12: =IF($D12=0,"",S12/$D12*100) -> 0
B14: Outcomes for children and young people | D14: =G14+K14+O14+S14 -> 6 | G14: =IF(ISERROR(VLOOKUP($D$6&G7&$B$3&B14&$B$5,Table3_data,$G$11,0))=TRUE,0,VLOOKUP($D$6&G7&$B$3&B14&$B$5,Table3_data,$G$11,0)) -> 2 | H14: =IF($D14=0,"",G14/$D14*100) -> 33.33333333 | K14: =IF(ISERROR(VLOOKUP($D$6&$G$7&$B$3&SUBSTITUTE($B$14,"Overall care judgement - ","")&$B$5,Table3_data,$K$11,0))=TRUE,0,VLOOKUP($D$6&$G$7&$B$3&SUBSTITUTE($B$14,"Overall care judgement - ","")&$B$5,Table3_data,$K$11,0)) -> 4 | L14: =IF($D14=0,"",K14/$D14*100) -> 66.66666667 | O14: =IF(ISERROR(VLOOKUP($D$6&$G$7&$B$3&SUBSTITUTE($B$14,"Overall care judgement - ","")&$B$5,Table3_data,$O$11,0))=TRUE,0,VLOOKUP($D$6&$G$7&$B$3&SUBSTITUTE($B$14,"Overall care judgement - ","")&$B$5,Table3_data,$O$11,0)) -> 0 | P14: =IF($D14=0,"",O14/$D14*100) -> 0 | S14: =IF(ISERROR(VLOOKUP($D$6&$G$7&$B$3&SUBSTITUTE($B$14,"Overall care judgement - ","")&$B$5,Table3_data,$S$11,0))=TRUE,0,VLOOKUP($D$6&$G$7&$B$3&SUBSTITUTE($B$14,"Overall care judgement - ","")&$B$5,Table3_data,$S$11,0)) -> 0 | T14: =IF($D14=0,"",S14/$D14*100) -> 0
A16: Quality of service | B16: Quality of service | D16: 6 | G16: =IF(ISERROR(VLOOKUP($D$6&G7&$B$3&A16&$B$5,Table3_data,$G$11,0))=TRUE,0,VLOOKUP($D$6&G7&$B$3&A16&$B$5,Table3_data,$G$11,0)) -> 3 | H16: 50 | K16: =IF(ISERROR(VLOOKUP($D$6&$G$7&$B$3&SUBSTITUTE($A$16,"Overall care judgement - ","")&$B$5,Table3_data,$K$11,0))=TRUE,0,VLOOKUP($D$6&$G$7&$B$3&SUBSTITUTE($A$16,"Overall care judgement - ","")&$B$5,Table3_data,$K$11,0)) -> 3 | L16: 50 | O16: =IF(ISERROR(VLOOKUP($D$6&$G$7&$B$3&SUBSTITUTE($A$16,"Overall care judgement - ","")&$B$5,Table3_data,$O$11,0))=TRUE,0,VLOOKUP($D$6&$G$7&$B$3&SUBSTITUTE($A$16,"Overall care judgement - ","")&$B$5,Table3_data,$O$11,0)) -> 0 | P16: 0 | S16: =IF(ISERROR(VLOOKUP($D$6&$G$7&$B$3&SUBSTITUTE($A$16,"Overall care judgement - ","")&$B$5,Table3_data,$S$11,0))=TRUE,0,VLOOKUP($D$6&$G$7&$B$3&SUBSTITUTE($A$16,"Overall care judgement - ","")&$B$5,Table3_data,$S$11,0)) -> 0 | T16: 0
A18: The safety of children and young people | B18: Safeguarding children and young people | D18: 6 | G18: =IF(ISERROR(VLOOKUP($D$6&G7&$B$3&A18&$B$5,Table3_data,$G$11,0))=TRUE,0,VLOOKUP($D$6&G7&$B$3&A18&$B$5,Table3_data,$G$11,0)) -> 1 | H18: 16.66666667 | K18: =IF(ISERROR(VLOOKUP($D$6&$G$7&$B$3&SUBSTITUTE($B$12,"Overall care judgement - ","")&$B$5,Table3_data,$K$11,0))=TRUE,0,VLOOKUP($D$6&$G$7&$B$3&SUBSTITUTE($B$12,"Overall care judgement - ","")&$B$5,Table3_data,$K$11,0)) -> 4 | L18: 66.66666667 | O18: =IF(ISERROR(VLOOKUP($D$6&$G$7&$B$3&SUBSTITUTE($A$18,"Overall care judgement - ","")&$B$5,Table3_data,$O$11,0))=TRUE,0,VLOOKUP($D$6&$G$7&$B$3&SUBSTITUTE($A$18,"Overall care judgement - ","")&$B$5,Table3_data,$O$11,0)) -> 1 | P18: 16.66666667 | S18: =IF(ISERROR(VLOOKUP($D$6&$G$7&$B$3&SUBSTITUTE($A$18,"Overall care judgement - ","")&$B$5,Table3_data,$S$11,0))=TRUE,0,VLOOKUP($D$6&$G$7&$B$3&SUBSTITUTE($A$18,"Overall care judgement - ","")&$B$5,Table3_data,$S$11,0)) -> 0 | T18: 0
B20: Leadership and management | D20: 6 | G20: =IF(ISERROR(VLOOKUP($D$6&G7&$B$3&B20&$B$5,Table3_data,$G$11,0))=TRUE,0,VLOOKUP($D$6&G7&$B$3&B20&$B$5,Table3_data,$G$11,0)) -> 1 | H20: 16.66666667 | K20: =IF(ISERROR(VLOOKUP($D$6&$G$7&$B$3&SUBSTITUTE($B$20,"Overall care judgement - ","")&$B$5,Table3_data,$K$11,0))=TRUE,0,VLOOKUP($D$6&$G$7&$B$3&SUBSTITUTE($B$20,"Overall care judgement - ","")&$B$5,Table3_data,$K$11,0)) -> 3 | L20: 50 | O20: =IF(ISERROR(VLOOKUP($D$6&$G$7&$B$3&SUBSTITUTE($B$20,"Overall care judgement - ","")&$B$5,Table3_data,$O$11,0))=TRUE,0,VLOOKUP($D$6&$G$7&$B$3&SUBSTITUTE($B$20,"Overall care judgement - ","")&$B$5,Table3_data,$O$11,0)) -> 2 | P20: 33.33333333 | S20: =IF(ISERROR(VLOOKUP($D$6&$G$7&$B$3&SUBSTITUTE($B$20,"Overall care judgement - ","")&$B$5,Table3_data,$S$11,0))=TRUE,0,VLOOKUP($D$6&$G$7&$B$3&SUBSTITUTE($B$20,"Overall care judgement - ","")&$B$5,Table3_data,$S$11,0)) -> 0 | T20: 0
D22: Local authority
G23: 7 | H23: 7 | K23: 8 | L23: 8 | O23: 9 | P23: 9 | S23: 11 | T23: 10
B24: Overall effectiveness | D24: =G24+K24+O24+S24 -> 6 | G24: =IF(ISERROR(VLOOKUP($D$6&$D$22&$B$3&SUBSTITUTE($B$24,"Overall care judgement - ","")&$B$5,Table3_data,$G$23,0))=TRUE,0,VLOOKUP($D$6&$D$22&$B$3&SUBSTITUTE($B$24,"Overall care judgement - ","")&$B$5,Table3_data,$G$23,0)) -> 1 | H24: =IF($D24=0,"",G24/$D24*100) -> 16.66666667 | K24: =IF(ISERROR(VLOOKUP($D$6&$D$22&$B$3&SUBSTITUTE($B$24,"Overall care judgement - ","")&$B$5,Table3_data,$K$23,0))=TRUE,0,VLOOKUP($D$6&$D$22&$B$3&SUBSTITUTE($B$24,"Overall care judgement - ","")&$B$5,Table3_data,$K$23,0)) -> 4 | L24: =IF($D24=0,"",K24/$D24*100) -> 66.66666667 | O24: =IF(ISERROR(VLOOKUP($D$6&$D$22&$B$3&SUBSTITUTE($B$24,"Overall care judgement - ","")&$B$5,Table3_data,$O$23,0))=TRUE,0,VLOOKUP($D$6&$D$22&$B$3&SUBSTITUTE($B$24,"Overall care judgement - ","")&$B$5,Table3_data,$O$23,0)) -> 1 | P24: =IF($D24=0,"",O24/$D24*100) -> 16.66666667 | S24: =IF(ISERROR(VLOOKUP($D$6&$D$22&$B$3&SUBSTITUTE($B$24,"Overall care judgement - ","")&$B$5,Table3_data,$S$23,0))=TRUE,0,VLOOKUP($D$6&$D$22&$B$3&SUBSTITUTE($B$24,"Overall care judgement - ","")&$B$5,Table3_data,$S$23,0)) -> 0 | T24: =IF($D24=0,"",S24/$D24*100) -> 0
B26: Outcomes for children and young people | D26: =G26+K26+O26+S26 -> 6 | G26: =IF(ISERROR(VLOOKUP($D$6&$D$22&$B$3&SUBSTITUTE($B$26,"Overall care judgement - ","")&$B$5,Table3_data,$G$23,0))=TRUE,0,VLOOKUP($D$6&$D$22&$B$3&SUBSTITUTE($B$26,"Overall care judgement - ","")&$B$5,Table3_data,$G$23,0)) -> 2 | H26: =IF($D26=0,"",G26/$D26*100) -> 33.33333333 | K26: =IF(ISERROR(VLOOKUP($D$6&$D$22&$B$3&SUBSTITUTE($B$26,"Overall care judgement - ","")&$B$5,Table3_data,$K$23,0))=TRUE,0,VLOOKUP($D$6&$D$22&$B$3&SUBSTITUTE($B$26,"Overall care judgement - ","")&$B$5,Table3_data,$K$23,0)) -> 4 | L26: =IF($D26=0,"",K26/$D26*100) -> 66.66666667 | O26: =IF(ISERROR(VLOOKUP($D$6&$D$22&$B$3&SUBSTITUTE($B$26,"Overall care judgement - ","")&$B$5,Table3_data,$O$23,0))=TRUE,0,VLOOKUP($D$6&$D$22&$B$3&SUBSTITUTE($B$26,"Overall care judgement - ","")&$B$5,Table3_data,$O$23,0)) -> 0 | P26: =IF($D26=0,"",O26/$D26*100) -> 0 | S26: =IF(ISERROR(VLOOKUP($D$6&$D$22&$B$3&SUBSTITUTE($B$26,"Overall care judgement - ","")&$B$5,Table3_data,$S$23,0))=TRUE,0,VLOOKUP($D$6&$D$22&$B$3&SUBSTITUTE($B$26,"Overall care judgement - ","")&$B$5,Table3_data,$S$23,0)) -> 0 | T26: =IF($D26=0,"",S26/$D26*100) -> 0
A28: Quality of service | B28: Quality of service | D28: 6 | G28: =IF(ISERROR(VLOOKUP($D$6&$D$22&$B$3&SUBSTITUTE($A$28,"Overall care judgement - ","")&$B$5,Table3_data,$G$23,0))=TRUE,0,VLOOKUP($D$6&$D$22&$B$3&SUBSTITUTE($A$28,"Overall care judgement - ","")&$B$5,Table3_data,$G$23,0)) -> 3 | H28: 50 | K28: =IF(ISERROR(VLOOKUP($D$6&$D$22&$B$3&SUBSTITUTE($A$28,"Overall care judgement - ","")&$B$5,Table3_data,$K$23,0))=TRUE,0,VLOOKUP($D$6&$D$22&$B$3&SUBSTITUTE($A$28,"Overall care judgement - ","")&$B$5,Table3_data,$K$23,0)) -> 3 | L28: 50 | O28: =IF(ISERROR(VLOOKUP($D$6&$D$22&$B$3&SUBSTITUTE($A$28,"Overall care judgement - ","")&$B$5,Table3_data,$O$23,0))=TRUE,0,VLOOKUP($D$6&$D$22&$B$3&SUBSTITUTE($A$28,"Overall care judgement - ","")&$B$5,Table3_data,$O$23,0)) -> 0 | P28: 0 | S28: =IF(ISERROR(VLOOKUP($D$6&$D$22&$B$3&SUBSTITUTE($A$28,"Overall care judgement - ","")&$B$5,Table3_data,$S$23,0))=TRUE,0,VLOOKUP($D$6&$D$22&$B$3&SUBSTITUTE($A$28,"Overall care judgement - ","")&$B$5,Table3_data,$S$23,0)) -> 0 | T28: 0
A30: The safety of children and young people | B30: Safeguarding children and young people | D30: 6 | G30: =IF(ISERROR(VLOOKUP($D$6&$D$22&$B$3&SUBSTITUTE($A$30,"Overall care judgement - ","")&$B$5,Table3_data,$G$23,0))=TRUE,0,VLOOKUP($D$6&$D$22&$B$3&SUBSTITUTE($A$30,"Overall care judgement - ","")&$B$5,Table3_data,$G$23,0)) -> 1 | H30: 16.66666667 | K30: =IF(ISERROR(VLOOKUP($D$6&$D$22&$B$3&SUBSTITUTE($A$30,"Overall care judgement - ","")&$B$5,Table3_data,$K$23,0))=TRUE,0,VLOOKUP($D$6&$D$22&$B$3&SUBSTITUTE($A$30,"Overall care judgement - ","")&$B$5,Table3_data,$K$23,0)) -> 4 | L30: 66.66666667 | O30: =IF(ISERROR(VLOOKUP($D$6&$D$22&$B$3&SUBSTITUTE($A$30,"Overall care judgement - ","")&$B$5,Table3_data,$O$23,0))=TRUE,0,VLOOKUP($D$6&$D$22&$B$3&SUBSTITUTE($A$30,"Overall care judgement - ","")&$B$5,Table3_data,$O$23,0)) -> 1 | P30: 16.66666667 | S30: =IF(ISERROR(VLOOKUP($D$6&$D$22&$B$3&SUBSTITUTE($A$30,"Overall care judgement - ","")&$B$5,Table3_data,$S$23,0))=TRUE,0,VLOOKUP($D$6&$D$22&$B$3&SUBSTITUTE($A$30,"Overall care judgement - ","")&$B$5,Table3_data,$S$23,0)) -> 0 | T30: 0
B32: Leadership and management | D32: 6 | G32: =IF(ISERROR(VLOOKUP($D$6&$D$22&$B$3&SUBSTITUTE($B$32,"Overall care judgement - ","")&$B$5,Table3_data,$G$23,0))=TRUE,0,VLOOKUP($D$6&$D$22&$B$3&SUBSTITUTE($B$32,"Overall care judgement - ","")&$B$5,Table3_data,$G$23,0)) -> 1 | H32: 16.66666667 | K32: =IF(ISERROR(VLOOKUP($D$6&$D$22&$B$3&SUBSTITUTE($B$32,"Overall care judgement - ","")&$B$5,Table3_data,$K$23,0))=TRUE,0,VLOOKUP($D$6&$D$22&$B$3&SUBSTITUTE($B$32,"Overall care judgement - ","")&$B$5,Table3_data,$K$23,0)) -> 3 | L32: 50 | O32: =IF(ISERROR(VLOOKUP($D$6&$D$22&$B$3&SUBSTITUTE($B$32,"Overall care judgement - ","")&$B$5,Table3_data,$O$23,0))=TRUE,0,VLOOKUP($D$6&$D$22&$B$3&SUBSTITUTE($B$32,"Overall care judgement - ","")&$B$5,Table3_data,$O$23,0)) -> 2 | P32: 33.33333333 | S32: =IF(ISERROR(VLOOKUP($D$6&$D$22&$B$3&SUBSTITUTE($B$32,"Overall care judgement - ","")&$B$5,Table3_data,$S$23,0))=TRUE,0,VLOOKUP($D$6&$D$22&$B$3&SUBSTITUTE($B$32,"Overall care judgement - ","")&$B$5,Table3_data,$S$23,0)) -> 0 | T32: 0
L33: =IF($D33<31,"",K33/$D33*100) ->  | P33: =IF($D33<31,"",O33/$D33*100) -> 
D34: Private/ voluntary
H35: 7 | L35: 8 | P35: 9 | S35: 0.11 | T35: 10
B36: Overall effectiveness | D36: =G36+K36+O36+S36 -> 0 | G36: =IF(ISERROR(VLOOKUP($D$6&$D$34&$B$3&SUBSTITUTE($B$36,"Overall care judgement - ","")&$B$5,Table3_data,G35,0))=TRUE,0,VLOOKUP($D$6&$D$22&$B$3&SUBSTITUTE($B$24,"Overall care judgement - ","")&$B$5,Table3_data,G23,0)) -> 0 | H36: =IF($D36=0,"",G36/$D36*100) ->  | J36: =IF(ISERROR(VLOOKUP($D$6&$D$34&$B$3&SUBSTITUTE($B$36,"Overall care judgement - ","")&$B$5,Table3_data,J35,0))=TRUE,0,VLOOKUP($D$6&$D$22&$B$3&SUBSTITUTE($B$24,"Overall care judgement - ","")&$B$5,Table3_data,J23,0)) -> 0 | K36: =IF(ISERROR(VLOOKUP($D$6&$D$34&$B$3&SUBSTITUTE($B$36,"Overall care judgement - ","")&$B$5,Table3_data,K35,0))=TRUE,0,VLOOKUP($D$6&$D$22&$B$3&SUBSTITUTE($B$24,"Overall care judgement - ","")&$B$5,Table3_data,K23,0)) -> 0 | L36: =IF($D36=0,"",K36/$D36*100) ->  | N36: =IF(ISERROR(VLOOKUP($D$6&$D$34&$B$3&SUBSTITUTE($B$36,"Overall care judgement - ","")&$B$5,Table3_data,N35,0))=TRUE,0,VLOOKUP($D$6&$D$22&$B$3&SUBSTITUTE($B$24,"Overall care judgement - ","")&$B$5,Table3_data,N23,0)) -> 0 | O36: =IF(ISERROR(VLOOKUP($D$6&$D$34&$B$3&SUBSTITUTE($B$36,"Overall care judgement - ","")&$B$5,Table3_data,O35,0))=TRUE,0,VLOOKUP($D$6&$D$22&$B$3&SUBSTITUTE($B$24,"Overall care judgement - ","")&$B$5,Table3_data,O23,0)) -> 0 | P36: =IF($D36=0,"",O36/$D36*100) ->  | R36: =IF(ISERROR(VLOOKUP($D$6&$D$34&$B$3&SUBSTITUTE($B$36,"Overall care judgement - ","")&$B$5,Table3_data,R35,0))=TRUE,0,VLOOKUP($D$6&$D$22&$B$3&SUBSTITUTE($B$24,"Overall care judgement - ","")&$B$5,Table3_data,R23,0)) -> 0 | S36: =IF(ISERROR(VLOOKUP($D$6&$D$34&$B$3&SUBSTITUTE($B$36,"Overall care judgement - ","")&$B$5,Table3_data,S35,0))=TRUE,0,VLOOKUP($D$6&$D$22&$B$3&SUBSTITUTE($B$24,"Overall care judgement - ","")&$B$5,Table3_data,S23,0)) -> 0 | T36: =IF($D36=0,"",S36/$D36*100) -> 
B38: Outcomes for children and young people | D38: =G38+K38+O38+S38 -> 0 | G38: =IF(ISERROR(VLOOKUP($D$6&$D$34&$B$3&SUBSTITUTE($B$38,"Overall care judgement - ","")&$B$5,Table3_data,G35,0))=TRUE,0,VLOOKUP($D$6&$D$22&$B$3&SUBSTITUTE($B$24,"Overall care judgement - ","")&$B$5,Table3_data,G25,0)) -> 0 | H38: =IF($D38=0,"",G38/$D38*100) ->  | K38: =IF(ISERROR(VLOOKUP($D$6&$D$34&$B$3&SUBSTITUTE($B$38,"Overall care judgement - ","")&$B$5,Table3_data,K35,0))=TRUE,0,VLOOKUP($D$6&$D$22&$B$3&SUBSTITUTE($B$24,"Overall care judgement - ","")&$B$5,Table3_data,K25,0)) -> 0 | L38: =IF($D38=0,"",K38/$D38*100) ->  | O38: =IF(ISERROR(VLOOKUP($D$6&$D$34&$B$3&SUBSTITUTE($B$38,"Overall care judgement - ","")&$B$5,Table3_data,O35,0))=TRUE,0,VLOOKUP($D$6&$D$22&$B$3&SUBSTITUTE($B$24,"Overall care judgement - ","")&$B$5,Table3_data,O25,0)) -> 0 | P38: =IF($D38=0,"",O38/$D38*100) ->  | S38: =IF(ISERROR(VLOOKUP($D$6&$D$34&$B$3&SUBSTITUTE($B$38,"Overall care judgement - ","")&$B$5,Table3_data,S35,0))=TRUE,0,VLOOKUP($D$6&$D$22&$B$3&SUBSTITUTE($B$24,"Overall care judgement - ","")&$B$5,Table3_data,S25,0)) -> 0 | T38: =IF($D38=0,"",S38/$D38*100) -> 
A40: Quality of service | B40: Quality of service | D40: 0 | G40: =IF(ISERROR(VLOOKUP($D$6&$D$34&$B$3&SUBSTITUTE($B$40,"Overall care judgement - ","")&$B$5,Table3_data,G35,0))=TRUE,0,VLOOKUP($D$6&$D$22&$B$3&SUBSTITUTE($B$24,"Overall care judgement - ","")&$B$5,Table3_data,G27,0)) -> 0 | K40: =IF(ISERROR(VLOOKUP($D$6&$D$34&$B$3&SUBSTITUTE($B$40,"Overall care judgement - ","")&$B$5,Table3_data,K35,0))=TRUE,0,VLOOKUP($D$6&$D$22&$B$3&SUBSTITUTE($B$24,"Overall care judgement - ","")&$B$5,Table3_data,K27,0)) -> 0 | O40: =IF(ISERROR(VLOOKUP($D$6&$D$34&$B$3&SUBSTITUTE($B$40,"Overall care judgement - ","")&$B$5,Table3_data,O35,0))=TRUE,0,VLOOKUP($D$6&$D$22&$B$3&SUBSTITUTE($B$24,"Overall care judgement - ","")&$B$5,Table3_data,O27,0)) -> 0 | S40: =IF(ISERROR(VLOOKUP($D$6&$D$34&$B$3&SUBSTITUTE($B$40,"Overall care judgement - ","")&$B$5,Table3_data,S35,0))=TRUE,0,VLOOKUP($D$6&$D$22&$B$3&SUBSTITUTE($B$24,"Overall care judgement - ","")&$B$5,Table3_data,S27,0)) -> 0
B42: Safeguarding children and young people | D42: 0 | G42: =IF(ISERROR(VLOOKUP($D$6&$D$34&$B$3&SUBSTITUTE($B$42,"Overall care judgement - ","")&$B$5,Table3_data,G35,0))=TRUE,0,VLOOKUP($D$6&$D$22&$B$3&SUBSTITUTE($B$24,"Overall care judgement - ","")&$B$5,Table3_data,G29,0)) -> 0 | K42: =IF(ISERROR(VLOOKUP($D$6&$D$34&$B$3&SUBSTITUTE($B$42,"Overall care judgement - ","")&$B$5,Table3_data,K35,0))=TRUE,0,VLOOKUP($D$6&$D$22&$B$3&SUBSTITUTE($B$24,"Overall care judgement - ","")&$B$5,Table3_data,K29,0)) -> 0 | O42: =IF(ISERROR(VLOOKUP($D$6&$D$34&$B$3&SUBSTITUTE($B$42,"Overall care judgement - ","")&$B$5,Table3_data,O35,0))=TRUE,0,VLOOKUP($D$6&$D$22&$B$3&SUBSTITUTE($B$24,"Overall care judgement - ","")&$B$5,Table3_data,O29,0)) -> 0 | S42: =IF(ISERROR(VLOOKUP($D$6&$D$34&$B$3&SUBSTITUTE($B$42,"Overall care judgement - ","")&$B$5,Table3_data,S35,0))=TRUE,0,VLOOKUP($D$6&$D$22&$B$3&SUBSTITUTE($B$24,"Overall care judgement - ","")&$B$5,Table3_data,S29,0)) -> 0
B44: Leadership and management | D44: 0 | G44: =IF(ISERROR(VLOOKUP($D$6&$D$34&$B$3&SUBSTITUTE($B$44,"Overall care judgement - ","")&$B$5,Table3_data,G35,0))=TRUE,0,VLOOKUP($D$6&$D$22&$B$3&SUBSTITUTE($B$24,"Overall care judgement - ","")&$B$5,Table3_data,G31,0)) -> 0 | K44: =IF(ISERROR(VLOOKUP($D$6&$D$34&$B$3&SUBSTITUTE($B$44,"Overall care judgement - ","")&$B$5,Table3_data,K35,0))=TRUE,0,VLOOKUP($D$6&$D$22&$B$3&SUBSTITUTE($B$24,"Overall care judgement - ","")&$B$5,Table3_data,K31,0)) -> 0 | O44: =IF(ISERROR(VLOOKUP($D$6&$D$34&$B$3&SUBSTITUTE($B$44,"Overall care judgement - ","")&$B$5,Table3_data,O35,0))=TRUE,0,VLOOKUP($D$6&$D$22&$B$3&SUBSTITUTE($B$24,"Overall care judgement - ","")&$B$5,Table3_data,O31,0)) -> 0 | S44: =IF(ISERROR(VLOOKUP($D$6&$D$34&$B$3&SUBSTITUTE($B$44,"Overall care judgement - ","")&$B$5,Table3_data,S35,0))=TRUE,0,VLOOKUP($D$6&$D$22&$B$3&SUBSTITUTE($B$24,"Overall care judgement - ","")&$B$5,Table3_data,S31,0)) -> 0
U46: Source: Ofsted inspections
B48: 1. The 'all' figures include all homes, of all ownership type, in the local authority area. Local authority run homes data include a small number of homes run by health authorities.
B49: 2. Percentages are rounded and may not add to exactly 100.

Sheet Table 3c
B2: =IF(ISERROR(VLOOKUP(D5,Ranges!F1:G12,2,0)),"Table 3c: Full inspection outcomes of residential special schools caring for pupils for more than 295 days per year inspected between "&D5&" (provisional)"&CHAR(185)&" "&CHAR(178)&" "&CHAR(179),"Table 3c: Full inspection outcomes of residential special schools caring for pupils for more than 295 days per year inspected in "&D5&" (provisional)"&CHAR(185)&" "&CHAR(178)&" "&CHAR(179)) -> Table 3c: Full inspection outcomes of residential special schools caring for pupils for more than 295 days per year inspected between 1 July 2012 - 30 September 2012 (provisional)¹ ² ³
B4: Residential special school (>295 days/year)
B5: Select period: | D5: 1 July 2012 - 30 September 2012
B6: =VLOOKUP(D5,Periods,2,0) -> 4
B7: Select local authority: | D7: All | T7: =IF($D$7="All", "England",$D$7) -> England
G8: all
D9: All sectors
D10: Total number inspected | G10: Outstanding | K10: Good | O10: Adequate | S10: Inadequate
G11: Number | H11: % | K11: Number | L11: % | O11: Number | P11: % | S11: Number | T11: %
G12: 7 | K12: 8 | O12: 9 | S12: 10
B13: Overall effectiveness | D13: =G13+K13+O13+S13 -> 18 | G13: =IF(ISERROR(VLOOKUP($D$7&G8&$B$4&SUBSTITUTE($B$13,"Overall care judgement - ","")&$B$6,Table3_data,G12,0))=TRUE,0,VLOOKUP($D$7&G8&$B$4&SUBSTITUTE($B$13,"Overall care judgement - ","")&$B$6,Table3_data,G12,0)) -> 3 | H13: =IF($D13=0,"",G13/$D13*100) -> 16.66666667 | K13: =IF(ISERROR(VLOOKUP($D$7&G8&$B$4&SUBSTITUTE($B$13,"Overall care judgement - ","")&$B$6,Table3_data,K12,0))=TRUE,0,VLOOKUP($D$7&G8&$B$4&SUBSTITUTE($B$13,"Overall care judgement - ","")&$B$6,Table3_data,K12,0)) -> 14 | L13: =IF($D13=0,"",K13/$D13*100) -> 77.77777778 | O13: =IF(ISERROR(VLOOKUP($D$7&G8&$B$4&SUBSTITUTE($B$13,"Overall care judgement - ","")&$B$6,Table3_data,O12,0))=TRUE,0,VLOOKUP($D$7&G8&$B$4&SUBSTITUTE($B$13,"Overall care judgement - ","")&$B$6,Table3_data,O12,0)) -> 0 | P13: =IF($D13=0,"",O13/$D13*100) -> 0 | S13: =IF(ISERROR(VLOOKUP($D$7&G8&$B$4&SUBSTITUTE($B$13,"Overall care judgement - ","")&$B$6,Table3_data,S12,0))=TRUE,0,VLOOKUP($D$7&G8&$B$4&SUBSTITUTE($B$13,"Overall care judgement - ","")&$B$6,Table3_data,S12,0)) -> 1 | T13: =IF($D13=0,"",S13/$D13*100) -> 5.555555556
B15: Outcomes for children and young people | D15: =G15+K15+O15+S15 -> 18 | G15: =IF(ISERROR(VLOOKUP($D$7&G8&$B$4&SUBSTITUTE($B$15,"Overall care judgement - ","")&$B$6,Table3_data,G12,0))=TRUE,0,VLOOKUP($D$7&G8&$B$4&SUBSTITUTE($B$15,"Overall care judgement - ","")&$B$6,Table3_data,G12,0)) -> 6 | H15: =IF($D15=0,"",G15/$D15*100) -> 33.33333333 | K15: =IF(ISERROR(VLOOKUP($D$7&G8&$B$4&SUBSTITUTE($B$15,"Overall care judgement - ","")&$B$6,Table3_data,K12,0))=TRUE,0,VLOOKUP($D$7&G8&$B$4&SUBSTITUTE($B$15,"Overall care judgement - ","")&$B$6,Table3_data,K12,0)) -> 11 | L15: =IF($D15=0,"",K15/$D15*100) -> 61.11111111 | O15: =IF(ISERROR(VLOOKUP($D$7&G8&$B$4&SUBSTITUTE($B$15,"Overall care judgement - ","")&$B$6,Table3_data,O12,0))=TRUE,0,VLOOKUP($D$7&G8&$B$4&SUBSTITUTE($B$15,"Overall care judgement - ","")&$B$6,Table3_data,O12,0)) -> 1 | P15: =IF($D15=0,"",O15/$D15*100) -> 5.555555556 | S15: =IF(ISERROR(VLOOKUP($D$7&G8&$B$4&SUBSTITUTE($B$15,"Overall care judgement - ","")&$B$6,Table3_data,S12,0))=TRUE,0,VLOOKUP($D$7&G8&$B$4&SUBSTITUTE($B$15,"Overall care judgement - ","")&$B$6,Table3_data,S12,0)) -> 0 | T15: =IF($D15=0,"",S15/$D15*100) -> 0
A17: Quality of service | B17: Quality of service | D17: =G17+K17+O17+S17 -> 18 | G17: =IF(ISERROR(VLOOKUP($D$7&$G$8&$B$4&SUBSTITUTE($A$17,"Overall care judgement - ","")&$B$6,Table3_data,G12,0))=TRUE,0,VLOOKUP($D$7&$G$8&$B$4&SUBSTITUTE($A$17,"Overall care judgement - ","")&$B$6,Table3_data,G12,0)) -> 5 | H17: 27.77777778 | K17: =IF(ISERROR(VLOOKUP($D$7&$G$8&$B$4&SUBSTITUTE($A$17,"Overall care judgement - ","")&$B$6,Table3_data,K12,0))=TRUE,0,VLOOKUP($D$7&$G$8&$B$4&SUBSTITUTE($A$17,"Overall care judgement - ","")&$B$6,Table3_data,K12,0)) -> 12 | L17: 66.66666667 | O17: =IF(ISERROR(VLOOKUP($D$7&$G$8&$B$4&SUBSTITUTE($A$17,"Overall care judgement - ","")&$B$6,Table3_data,O12,0))=TRUE,0,VLOOKUP($D$7&$G$8&$B$4&SUBSTITUTE($A$17,"Overall care judgement - ","")&$B$6,Table3_data,O12,0)) -> 0 | P17: 0 | S17: =IF(ISERROR(VLOOKUP($D$7&$G$8&$B$4&SUBSTITUTE($A$17,"Overall care judgement - ","")&$B$6,Table3_data,S12,0))=TRUE,0,VLOOKUP($D$7&$G$8&$B$4&SUBSTITUTE($A$17,"Overall care judgement - ","")&$B$6,Table3_data,S12,0)) -> 1 | T17: 5.555555556
A19: The safety of children and young people | B19: Safeguarding children and young people | D19: =G19+K19+O19+S19 -> 18 | G19: =IF(ISERROR(VLOOKUP($D$7&$G$8&$B$4&SUBSTITUTE($A$19,"Overall care judgement - ","")&$B$6,Table3_data,G12,0))=TRUE,0,VLOOKUP($D$7&$G$8&$B$4&SUBSTITUTE($A$19,"Overall care judgement - ","")&$B$6,Table3_data,G12,0)) -> 4 | H19: 22.22222222 | K19: =IF(ISERROR(VLOOKUP($D$7&$G$8&$B$4&SUBSTITUTE($A$19,"Overall care judgement - ","")&$B$6,Table3_data,K12,0))=TRUE,0,VLOOKUP($D$7&$G$8&$B$4&SUBSTITUTE($A$19,"Overall care judgement - ","")&$B$6,Table3_data,K12,0)) -> 12 | L19: 66.66666667 | O19: =IF(ISERROR(VLOOKUP($D$7&$G$8&$B$4&SUBSTITUTE($A$19,"Overall care judgement - ","")&$B$6,Table3_data,O12,0))=TRUE,0,VLOOKUP($D$7&$G$8&$B$4&SUBSTITUTE($A$19,"Overall care judgement - ","")&$B$6,Table3_data,O12,0)) -> 1 | P19: 5.555555556 | S19: =IF(ISERROR(VLOOKUP($D$7&$G$8&$B$4&SUBSTITUTE($A$19,"Overall care judgement - ","")&$B$6,Table3_data,S12,0))=TRUE,0,VLOOKUP($D$7&$G$8&$B$4&SUBSTITUTE($A$19,"Overall care judgement - ","")&$B$6,Table3_data,S12,0)) -> 1 | T19: 5.555555556
B21: Leadership and management | D21: =G21+K21+O21+S21 -> 18 | G21: =IF(ISERROR(VLOOKUP($D$7&$G$8&$B$4&SUBSTITUTE($B$21,"Overall care judgement - ","")&$B$6,Table3_data,G12,0))=TRUE,0,VLOOKUP($D$7&$G$8&$B$4&SUBSTITUTE($B$21,"Overall care judgement - ","")&$B$6,Table3_data,G12,0)) -> 3 | H21: 16.66666667 | K21: =IF(ISERROR(VLOOKUP($D$7&$G$8&$B$4&SUBSTITUTE($B$21,"Overall care judgement - ","")&$B$6,Table3_data,K12,0))=TRUE,0,VLOOKUP($D$7&$G$8&$B$4&SUBSTITUTE($B$21,"Overall care judgement - ","")&$B$6,Table3_data,K12,0)) -> 9 | L21: 50 | O21: =IF(ISERROR(VLOOKUP($D$7&$G$8&$B$4&SUBSTITUTE($B$21,"Overall care judgement - ","")&$B$6,Table3_data,O12,0))=TRUE,0,VLOOKUP($D$7&$G$8&$B$4&SUBSTITUTE($B$21,"Overall care judgement - ","")&$B$6,Table3_data,O12,0)) -> 5 | P21: 27.77777778 | S21: =IF(ISERROR(VLOOKUP($D$7&$G$8&$B$4&SUBSTITUTE($B$21,"Overall care judgement - ","")&$B$6,Table3_data,S12,0))=TRUE,0,VLOOKUP($D$7&$G$8&$B$4&SUBSTITUTE($B$21,"Overall care judgement - ","")&$B$6,Table3_data,S12,0)) -> 1 | T21: 5.555555556
D23: Local authority
G24: 7 | K24: 8 | O24: 9 | S24: 10
B25: Overall effectiveness | D25: =G25+K25+O25+S25 -> 0 | G25: =IF(ISERROR(VLOOKUP($D$7&D23&$B$4&SUBSTITUTE($B$25,"Overall care judgement - ","")&$B$6,Table3_data,G24,0))=TRUE,0,VLOOKUP($D$7&D23&$B$4&SUBSTITUTE($B$25,"Overall care judgement - ","")&$B$6,Table3_data,G24,0)) -> 0 | H25: =IF($D25=0,"",G25/$D25*100) ->  | K25: =IF(ISERROR(VLOOKUP($D$7&D23&$B$4&SUBSTITUTE($B$25,"Overall care judgement - ","")&$B$6,Table3_data,K24,0))=TRUE,0,VLOOKUP($D$7&D23&$B$4&SUBSTITUTE($B$25,"Overall care judgement - ","")&$B$6,Table3_data,K24,0)) -> 0 | L25: =IF($D25=0,"",K25/$D25*100) ->  | O25: =IF(ISERROR(VLOOKUP($D$7&L23&$B$4&SUBSTITUTE($B$25,"Overall care judgement - ","")&$B$6,Table3_data,O24,0))=TRUE,0,VLOOKUP($D$7&L23&$B$4&SUBSTITUTE($B$25,"Overall care judgement - ","")&$B$6,Table3_data,O24,0)) -> 0 | P25: =IF($D25=0,"",O25/$D25*100) ->  | R25: =IF(ISERROR(VLOOKUP($D$7&O23&$B$4&SUBSTITUTE($B$25,"Overall care judgement - ","")&$B$6,Table3_data,R24,0))=TRUE,0,VLOOKUP($D$7&O23&$B$4&SUBSTITUTE($B$25,"Overall care judgement - ","")&$B$6,Table3_data,R24,0)) -> 0 | S25: =IF(ISERROR(VLOOKUP($D$7&P23&$B$4&SUBSTITUTE($B$25,"Overall care judgement - ","")&$B$6,Table3_data,S24,0))=TRUE,0,VLOOKUP($D$7&P23&$B$4&SUBSTITUTE($B$25,"Overall care judgement - ","")&$B$6,Table3_data,S24,0)) -> 0 | T25: =IF($D25=0,"",S25/$D25*100) -> 
B27: Outcomes for children and young people | D27: =G27+K27+O27+S27 -> 0 | G27: =IF(ISERROR(VLOOKUP($D$7&D23&$B$4&SUBSTITUTE($B$27,"Overall care judgement - ","")&$B$6,Table3_data,G24,0))=TRUE,0,VLOOKUP($D$7&D23&$B$4&SUBSTITUTE($B$27,"Overall care judgement - ","")&$B$6,Table3_data,G24,0)) -> 0 | H27: =IF($D27=0,"",G27/$D27*100) ->  | K27: =IF(ISERROR(VLOOKUP($D$7&D23&$B$4&SUBSTITUTE($B$27,"Overall care judgement - ","")&$B$6,Table3_data,K24,0))=TRUE,0,VLOOKUP($D$7&D23&$B$4&SUBSTITUTE($B$27,"Overall care judgement - ","")&$B$6,Table3_data,K24,0)) -> 0 | L27: =IF($D27=0,"",K27/$D27*100) ->  | O27: =IF(ISERROR(VLOOKUP($D$7&L23&$B$4&SUBSTITUTE($B$27,"Overall care judgement - ","")&$B$6,Table3_data,O24,0))=TRUE,0,VLOOKUP($D$7&L23&$B$4&SUBSTITUTE($B$27,"Overall care judgement - ","")&$B$6,Table3_data,O24,0)) -> 0 | P27: =IF($D27=0,"",O27/$D27*100) ->  | S27: =IF(ISERROR(VLOOKUP($D$7&P23&$B$4&SUBSTITUTE($B$27,"Overall care judgement - ","")&$B$6,Table3_data,S24,0))=TRUE,0,VLOOKUP($D$7&P23&$B$4&SUBSTITUTE($B$27,"Overall care judgement - ","")&$B$6,Table3_data,S24,0)) -> 0 | T27: =IF($D27=0,"",S27/$D27*100) -> 
B29: Quality of service | D29: =G29+K29+O29+S29 -> 0 | G29: =IF(ISERROR(VLOOKUP($D$7&D23&$B$4&SUBSTITUTE($B$29,"Overall care judgement - ","")&$B$6,Table3_data,G24,0))=TRUE,0,VLOOKUP($D$7&D23&$B$4&SUBSTITUTE($B$29,"Overall care judgement - ","")&$B$6,Table3_data,G24,0)) -> 0 | K29: =IF(ISERROR(VLOOKUP($D$7&D23&$B$4&SUBSTITUTE($B$29,"Overall care judgement - ","")&$B$6,Table3_data,K24,0))=TRUE,0,VLOOKUP($D$7&D23&$B$4&SUBSTITUTE($B$29,"Overall care judgement - ","")&$B$6,Table3_data,K24,0)) -> 0 | O29: =IF(ISERROR(VLOOKUP($D$7&L23&$B$4&SUBSTITUTE($B$29,"Overall care judgement - ","")&$B$6,Table3_data,O24,0))=TRUE,0,VLOOKUP($D$7&L23&$B$4&SUBSTITUTE($B$29,"Overall care judgement - ","")&$B$6,Table3_data,O24,0)) -> 0 | S29: =IF(ISERROR(VLOOKUP($D$7&P23&$B$4&SUBSTITUTE($B$29,"Overall care judgement - ","")&$B$6,Table3_data,S24,0))=TRUE,0,VLOOKUP($D$7&P23&$B$4&SUBSTITUTE($B$29,"Overall care judgement - ","")&$B$6,Table3_data,S24,0)) -> 0
A31: The safety of children and young people | B31: Safeguarding children and young people | D31: =G31+K31+O31+S31 -> 0 | G31: =IF(ISERROR(VLOOKUP($D$7&$D$23&$B$4&SUBSTITUTE($A$31,"Overall care judgement - ","")&$B$6,Table3_data,G24,0))=TRUE,0,VLOOKUP($D$7&$D$23&$B$4&SUBSTITUTE($A$31,"Overall care judgement - ","")&$B$6,Table3_data,G24,0)) -> 0 | K31: =IF(ISERROR(VLOOKUP($D$7&$D$23&$B$4&SUBSTITUTE($A$31,"Overall care judgement - ","")&$B$6,Table3_data,K24,0))=TRUE,0,VLOOKUP($D$7&$D$23&$B$4&SUBSTITUTE($A$31,"Overall care judgement - ","")&$B$6,Table3_data,K24,0)) -> 0 | O31: =IF(ISERROR(VLOOKUP($D$7&$D$23&$B$4&SUBSTITUTE($A$31,"Overall care judgement - ","")&$B$6,Table3_data,O24,0))=TRUE,0,VLOOKUP($D$7&$D$23&$B$4&SUBSTITUTE($A$31,"Overall care judgement - ","")&$B$6,Table3_data,O24,0)) -> 0 | S31: =IF(ISERROR(VLOOKUP($D$7&$D$23&$B$4&SUBSTITUTE($A$31,"Overall care judgement - ","")&$B$6,Table3_data,S24,0))=TRUE,0,VLOOKUP($D$7&$D$23&$B$4&SUBSTITUTE($A$31,"Overall care judgement - ","")&$B$6,Table3_data,S24,0)) -> 0
B33: Leadership and management | D33: =G33+K33+O33+S33 -> 0 | G33: =IF(ISERROR(VLOOKUP($D$7&$D$23&$B$4&SUBSTITUTE($B$33,"Overall care judgement - ","")&$B$6,Table3_data,G24,0))=TRUE,0,VLOOKUP($D$7&$D$23&$B$4&SUBSTITUTE($B$33,"Overall care judgement - ","")&$B$6,Table3_data,G24,0)) -> 0 | K33: =IF(ISERROR(VLOOKUP($D$7&$D$23&$B$4&SUBSTITUTE($B$33,"Overall care judgement - ","")&$B$6,Table3_data,K24,0))=TRUE,0,VLOOKUP($D$7&$D$23&$B$4&SUBSTITUTE($B$33,"Overall care judgement - ","")&$B$6,Table3_data,K24,0)) -> 0 | O33: =IF(ISERROR(VLOOKUP($D$7&$D$23&$B$4&SUBSTITUTE($B$33,"Overall care judgement - ","")&$B$6,Table3_data,O24,0))=TRUE,0,VLOOKUP($D$7&$D$23&$B$4&SUBSTITUTE($B$33,"Overall care judgement - ","")&$B$6,Table3_data,O24,0)) -> 0 | S33: =IF(ISERROR(VLOOKUP($D$7&$D$23&$B$4&SUBSTITUTE($B$33,"Overall care judgement - ","")&$B$6,Table3_data,S24,0))=TRUE,0,VLOOKUP($D$7&$D$23&$B$4&SUBSTITUTE($B$33,"Overall care judgement - ","")&$B$6,Table3_data,S24,0)) -> 0
D36: Private/ voluntary
G37: 7 | K37: 8 | O37: 9 | S37: 10
B38: Overall effectiveness | D38: =G38+K38+O38+S38 -> 18 | G38: =IF(ISERROR(VLOOKUP($D$7&$D$36&$B$4&SUBSTITUTE($B$38,"Overall care judgement - ","")&$B$6,Table3_data,G37,0))=TRUE,0,VLOOKUP($D$7&$D$36&$B$4&SUBSTITUTE($B$38,"Overall care judgement - ","")&$B$6,Table3_data,G37,0)) -> 3 | H38: =IF($D38=0,"",G38/$D38*100) -> 16.66666667 | K38: =IF(ISERROR(VLOOKUP($D$7&$D$36&$B$4&SUBSTITUTE($B$38,"Overall care judgement - ","")&$B$6,Table3_data,K37,0))=TRUE,0,VLOOKUP($D$7&$D$36&$B$4&SUBSTITUTE($B$38,"Overall care judgement - ","")&$B$6,Table3_data,K37,0)) -> 14 | L38: =IF($D38=0,"",K38/$D38*100) -> 77.77777778 | O38: =IF(ISERROR(VLOOKUP($D$7&$D$36&$B$4&SUBSTITUTE($B$38,"Overall care judgement - ","")&$B$6,Table3_data,O37,0))=TRUE,0,VLOOKUP($D$7&$D$36&$B$4&SUBSTITUTE($B$38,"Overall care judgement - ","")&$B$6,Table3_data,O37,0)) -> 0 | P38: =IF($D38=0,"",O38/$D38*100) -> 0 | S38: =IF(ISERROR(VLOOKUP($D$7&$D$36&$B$4&SUBSTITUTE($B$38,"Overall care judgement - ","")&$B$6,Table3_data,S37,0))=TRUE,0,VLOOKUP($D$7&$D$36&$B$4&SUBSTITUTE($B$38,"Overall care judgement - ","")&$B$6,Table3_data,S37,0)) -> 1 | T38: =IF($D38=0,"",S38/$D38*100) -> 5.555555556
B40: Outcomes for children and young people | D40: =G40+K40+O40+S40 -> 18 | G40: =IF(ISERROR(VLOOKUP($D$7&$D$36&$B$4&SUBSTITUTE($B$40,"Overall care judgement - ","")&$B$6,Table3_data,G37,0))=TRUE,0,VLOOKUP($D$7&$D$36&$B$4&SUBSTITUTE($B$40,"Overall care judgement - ","")&$B$6,Table3_data,G37,0)) -> 6 | H40: =IF($D40=0,"",G40/$D40*100) -> 33.33333333 | K40: =IF(ISERROR(VLOOKUP($D$7&$D$36&$B$4&SUBSTITUTE($B$40,"Overall care judgement - ","")&$B$6,Table3_data,K37,0))=TRUE,0,VLOOKUP($D$7&$D$36&$B$4&SUBSTITUTE($B$40,"Overall care judgement - ","")&$B$6,Table3_data,K37,0)) -> 11 | L40: =IF($D40=0,"",K40/$D40*100) -> 61.11111111 | O40: =IF(ISERROR(VLOOKUP($D$7&$D$36&$B$4&SUBSTITUTE($B$40,"Overall care judgement - ","")&$B$6,Table3_data,O37,0))=TRUE,0,VLOOKUP($D$7&$D$36&$B$4&SUBSTITUTE($B$40,"Overall care judgement - ","")&$B$6,Table3_data,O37,0)) -> 1 | P40: =IF($D40=0,"",O40/$D40*100) -> 5.555555556 | S40: =IF(ISERROR(VLOOKUP($D$7&$D$36&$B$4&SUBSTITUTE($B$40,"Overall care judgement - ","")&$B$6,Table3_data,S37,0))=TRUE,0,VLOOKUP($D$7&$D$36&$B$4&SUBSTITUTE($B$40,"Overall care judgement - ","")&$B$6,Table3_data,S37,0)) -> 0 | T40: =IF($D40=0,"",S40/$D40*100) -> 0
A42: Quality of service | B42: Quality of service | D42: 18 | G42: =IF(ISERROR(VLOOKUP($D$7&$D$36&$B$4&SUBSTITUTE($A$42,"Overall care judgement - ","")&$B$6,Table3_data,G37,0))=TRUE,0,VLOOKUP($D$7&$D$36&$B$4&SUBSTITUTE($A$42,"Overall care judgement - ","")&$B$6,Table3_data,G37,0)) -> 5 | H42: 27.77777778 | K42: =IF(ISERROR(VLOOKUP($D$7&$D$36&$B$4&SUBSTITUTE($A$42,"Overall care judgement - ","")&$B$6,Table3_data,K37,0))=TRUE,0,VLOOKUP($D$7&$D$36&$B$4&SUBSTITUTE($A$42,"Overall care judgement - ","")&$B$6,Table3_data,K37,0)) -> 12 | L42: 66.66666667 | O42: =IF(ISERROR(VLOOKUP($D$7&$D$36&$B$4&SUBSTITUTE($A$42,"Overall care judgement - ","")&$B$6,Table3_data,O37,0))=TRUE,0,VLOOKUP($D$7&$D$36&$B$4&SUBSTITUTE($A$42,"Overall care judgement - ","")&$B$6,Table3_data,O37,0)) -> 0 | P42: 0 | S42: =IF(ISERROR(VLOOKUP($D$7&$D$36&$B$4&SUBSTITUTE($A$42,"Overall care judgement - ","")&$B$6,Table3_data,S37,0))=TRUE,0,VLOOKUP($D$7&$D$36&$B$4&SUBSTITUTE($A$42,"Overall care judgement - ","")&$B$6,Table3_data,S37,0)) -> 1 | T42: 5.555555556
A44: The safety of children and young people | B44: Safeguarding children and young people | D44: 18 | G44: =IF(ISERROR(VLOOKUP($D$7&$D$36&$B$4&SUBSTITUTE($A$44,"Overall care judgement - ","")&$B$6,Table3_data,G37,0))=TRUE,0,VLOOKUP($D$7&$D$36&$B$4&SUBSTITUTE($A$44,"Overall care judgement - ","")&$B$6,Table3_data,G37,0)) -> 4 | H44: 22.22222222 | K44: =IF(ISERROR(VLOOKUP($D$7&$D$36&$B$4&SUBSTITUTE($A$44,"Overall care judgement - ","")&$B$6,Table3_data,K37,0))=TRUE,0,VLOOKUP($D$7&$D$36&$B$4&SUBSTITUTE($A$44,"Overall care judgement - ","")&$B$6,Table3_data,K37,0)) -> 12 | L44: 66.66666667 | O44: =IF(ISERROR(VLOOKUP($D$7&$D$36&$B$4&SUBSTITUTE($A$44,"Overall care judgement - ","")&$B$6,Table3_data,O37,0))=TRUE,0,VLOOKUP($D$7&$D$36&$B$4&SUBSTITUTE($A$44,"Overall care judgement - ","")&$B$6,Table3_data,O37,0)) -> 1 | P44: 5.555555556 | S44: =IF(ISERROR(VLOOKUP($D$7&$D$36&$B$4&SUBSTITUTE($A$44,"Overall care judgement - ","")&$B$6,Table3_data,S37,0))=TRUE,0,VLOOKUP($D$7&$D$36&$B$4&SUBSTITUTE($A$44,"Overall care judgement - ","")&$B$6,Table3_data,S37,0)) -> 1 | T44: 5.555555556
B46: Leadership and management | D46: 18 | G46: =IF(ISERROR(VLOOKUP($D$7&$D$36&$B$4&SUBSTITUTE($B$46,"Overall care judgement - ","")&$B$6,Table3_data,G37,0))=TRUE,0,VLOOKUP($D$7&$D$36&$B$4&SUBSTITUTE($B$46,"Overall care judgement - ","")&$B$6,Table3_data,G37,0)) -> 3 | H46: 16.66666667 | K46: =IF(ISERROR(VLOOKUP($D$7&$D$36&$B$4&SUBSTITUTE($B$46,"Overall care judgement - ","")&$B$6,Table3_data,K37,0))=TRUE,0,VLOOKUP($D$7&$D$36&$B$4&SUBSTITUTE($B$46,"Overall care judgement - ","")&$B$6,Table3_data,K37,0)) -> 9 | L46: 50 | O46: =IF(ISERROR(VLOOKUP($D$7&$D$36&$B$4&SUBSTITUTE($B$46,"Overall care judgement - ","")&$B$6,Table3_data,O37,0))=TRUE,0,VLOOKUP($D$7&$D$36&$B$4&SUBSTITUTE($B$46,"Overall care judgement - ","")&$B$6,Table3_data,O37,0)) -> 5 | P46: 27.77777778 | S46: =IF(ISERROR(VLOOKUP($D$7&$D$36&$B$4&SUBSTITUTE($B$46,"Overall care judgement - ","")&$B$6,Table3_data,S37,0))=TRUE,0,VLOOKUP($D$7&$D$36&$B$4&SUBSTITUTE($B$46,"Overall care judgement - ","")&$B$6,Table3_data,S37,0)) -> 1 | T46: 5.555555556
T48: Source: Ofsted inspections
B50: 1. The 'all' figures include all homes, of all ownership type, in the local authority area. Local authority run homes data include a small number of homes run by health authorities.
B51: 2. Percentages are rounded and may not add to exactly 100.
B52: 3. Residential special schools that care for pupils for more than 295 days per year must register as children's homes.

Sheet Table 3d
A1: =B2 -> Table 3d: Interim inspection outcomes of children's homes inspected between 1 July 2012 - 30 September 2012 (provisional)¹ ² ³
B2: =IF(ISERROR(VLOOKUP(D5,Ranges!F1:G12,2,0)),"Table 3d: Interim inspection outcomes of children's homes inspected between "&D5&" (provisional)"&CHAR(185)&" "&CHAR(178)&" "&CHAR(179),"Table 3d: Interim inspection outcomes of children's homes inspected in "&D5&" (provisional)"&CHAR(185)&" "&CHAR(178)&" "&CHAR(179)) -> Table 3d: Interim inspection outcomes of children's homes inspected between 1 July 2012 - 30 September 2012 (provisional)¹ ² ³
B5: Select period: | D5: 1 July 2012 - 30 September 2012 | R5: =IF($D$5=Ranges!C1,"4",IF($D$5 = Ranges!C2, "1", IF($D$5 = Ranges!C3, "2", IF($D$5 = Ranges!C4, "3","Error")))) -> Error
B6: =VLOOKUP(D5,Periods,2,0) -> 4
B7: Select local authority: | D7: All | N7: =IF($D$7="All", "England",$D$7) -> England | R7: =IF($D$7="All", "England",$D$7) -> England
D9: All
D10: Total number inspected | F10: Good progress | J10: Satisfactory progress | N10: Inadequate progress | R10: Not judged4
F11: Number | G11: % | J11: Number | K11: % | N11: Number | O11: % | R11: Number | S11: %
B13: Children's home | D13: =SUM(D15,D17,D19) -> 110 | F13: =F15+F17+F19 -> 32 | G13: =IF($D13=0,"",F13/$D13*100) -> 29.09090909 | J13: =J15+J17+J19 -> 41 | K13: =IF($D13=0,"",J13/$D13*100) -> 37.27272727 | N13: =N15+N17+N19 -> 23 | O13: =IF($D13=0,"",N13/$D13*100) -> 20.90909091 | R13: =R15+R17+R19 -> 14 | S13: =IF($D13=0,"",R13/$D13*100) -> 12.72727273
A15: Children's home | B15: Children's home | D15: =F15+J15+N15+R15 -> 107 | F15: =IF(ISERROR(VLOOKUP($D$7&D9&$A15&$B$6,Table3d_data,6,FALSE))=TRUE,0,VLOOKUP($D$7&D9&$A15&$B$6,Table3d_data,6,FALSE)) -> 31 | G15: =IF($D15=0,"",F15/$D15*100) -> 28.97196262 | J15: =IF(ISERROR(VLOOKUP($D$7&D9&$A15&$B$6,Table3d_data,7,FALSE))=TRUE,0,VLOOKUP($D$7&D9&$A15&$B$6,Table3d_data,7,FALSE)) -> 40 | K15: =IF($D15=0,"",J15/$D15*100) -> 37.38317757 | N15: =IF(ISERROR(VLOOKUP($D$7&D9&$A15&$B$6,Table3d_data,8,FALSE))=TRUE,0,VLOOKUP($D$7&D9&$A15&$B$6,Table3d_data,8,FALSE)) -> 22 | O15: =IF($D15=0,"",N15/$D15*100) -> 20.56074766 | R15: =IF(ISERROR(VLOOKUP($D$7&D9&$A15&$B$6,Table3d_data,9,FALSE))=TRUE,0,VLOOKUP($D$7&D9&$A15&$B$6,Table3d_data,9,FALSE)) -> 14 | S15: =IF($D15=0,"",R15/$D15*100) -> 13.08411215
A17: Secure children's home | B17: Secure children's home | D17: =F17+J17+N17+R17 -> 0 | F17: =IF(ISERROR(VLOOKUP($D$7&D9&$A17&$B$6,Table3d_data,6,FALSE))=TRUE,0,VLOOKUP($D$7&D9&$A17&$B$6,Table3d_data,6,FALSE)) -> 0 | G17: =IF($D17=0,"",F17/$D17*100) ->  | J17: =IF(ISERROR(VLOOKUP($D$7&D9&$A17&$B$6,Table3d_data,7,FALSE))=TRUE,0,VLOOKUP($D$7&D9&$A17&$B$6,Table3d_data,7,FALSE)) -> 0 | K17: =IF($D17=0,"",J17/$D17*100) ->  | N17: =IF(ISERROR(VLOOKUP($D$7&$D$9&$A17&$B$6,Table3d_data,8,FALSE))=TRUE,0,VLOOKUP($D$7&$D$9&$A17&$B$6,Table3d_data,8,FALSE)) -> 0 | O17: =IF($D17=0,"",N17/$D17*100) ->  | R17: =IF(ISERROR(VLOOKUP($D$7&D9&$A17&$B$6,Table3d_data,9,FALSE))=TRUE,0,VLOOKUP($D$7&D9&$A17&$B$6,Table3d_data,9,FALSE)) -> 0 | S17: =IF($D17=0,"",R17/$D17*100) -> 
A19: Residential special school (>295 days/year) | B19: Residential special school5 | D19: =F19+J19+N19+R19 -> 3 | F19: =IF(ISERROR(VLOOKUP($D$7&D9&$A19&$B$6,Table3d_data,6,FALSE))=TRUE,0,VLOOKUP($D$7&D9&$A19&$B$6,Table3d_data,6,FALSE)) -> 1 | G19: =IF($D19=0,"",F19/$D19*100) -> 33.33333333 | J19: =IF(ISERROR(VLOOKUP($D$7&D9&$A19&$B$6,Table3d_data,7,FALSE))=TRUE,0,VLOOKUP($D$7&D9&$A19&$B$6,Table3d_data,7,FALSE)) -> 1 | K19: =IF($D19=0,"",J19/$D19*100) -> 33.33333333 | N19: =IF(ISERROR(VLOOKUP($D$7&$D$9&$A19&$B$6,Table3d_data,8,FALSE))=TRUE,0,VLOOKUP($D$7&$D$9&$A19&$B$6,Table3d_data,8,FALSE)) -> 1 | O19: =IF($D19=0,"",N19/$D19*100) -> 33.33333333 | R19: =IF(ISERROR(VLOOKUP($D$7&D9&$A19&$B$6,Table3d_data,9,FALSE))=TRUE,0,VLOOKUP($D$7&D9&$A19&$B$6,Table3d_data,9,FALSE)) -> 0 | S19: =IF($D19=0,"",R19/$D19*100) -> 0
D21: Local authority
B23: Children's home | D23: =D25+D27+D29 -> 21 | F23: =F25+F27+F29 -> 9 | G23: =IF($D23=0,"",F23/$D23*100) -> 42.85714286 | J23: =J25+J27+J29 -> 7 | K23: =IF($D23=0,"",J23/$D23*100) -> 33.33333333 | N23: =N25+N27+N29 -> 4 | O23: =IF($D23=0,"",N23/$D23*100) -> 19.04761905 | R23: =R25+R27+R29 -> 1 | S23: =IF($D23=0,"",R23/$D23*100) -> 4.761904762
A25: Children's home | B25: Children's home | D25: =F25+J25+N25+R25 -> 21 | F25: =IF(ISERROR(VLOOKUP($D$7&$D$21&A25&$B$6,Table3d_data,6,FALSE))=TRUE,0,VLOOKUP($D$7&$D$21&A25&$B$6,Table3d_data,6,FALSE)) -> 9 | G25: =IF($D25=0,"",F25/$D25*100) -> 42.85714286 | J25: =IF(ISERROR(VLOOKUP($D$7&$D$21&A25&$B$6,Table3d_data,7,FALSE))=TRUE,0,VLOOKUP($D$7&$D$21&A25&$B$6,Table3d_data,7,FALSE)) -> 7 | K25: =IF($D25=0,"",J25/$D25*100) -> 33.33333333 | N25: =IF(ISERROR(VLOOKUP($D$7&$D$21&A25&$B$6,Table3d_data,8,FALSE))=TRUE,0,VLOOKUP($D$7&$D$21&A25&$B$6,Table3d_data,8,FALSE)) -> 4 | O25: =IF($D25=0,"",N25/$D25*100) -> 19.04761905 | R25: =IF(ISERROR(VLOOKUP($D$7&$D$21&A25&$B$6,Table3d_data,9,FALSE))=TRUE,0,VLOOKUP($D$7&$D$21&A25&$B$6,Table3d_data,9,FALSE)) -> 1 | S25: =IF($D25=0,"",R25/$D25*100) -> 4.761904762
A27: Secure children's home | B27: Secure children's home | D27: =F27+J27+N27+R27 -> 0 | F27: =IF(ISERROR(VLOOKUP($D$7&$D$21&A27&$B$6,Table3d_data,5,FALSE))=TRUE,0,VLOOKUP($D$7&$D$21&A27&$B$6,Table3d_data,5,FALSE)) -> 0 | G27: =IF($D27=0,"",F27/$D27*100) ->  | J27: =IF(ISERROR(VLOOKUP($D$7&$D$21&A27&$B$6,Table3d_data,7,FALSE))=TRUE,0,VLOOKUP($D$7&$D$21&A27&$B$6,Table3d_data,7,FALSE)) -> 0 | K27: =IF($D27=0,"",J27/$D27*100) ->  | N27: =IF(ISERROR(VLOOKUP($D$7&$A17&$B$6,Table3d_data,8,FALSE))=TRUE,0,VLOOKUP($D$7&$B17&$B$6,Table3d_data,8,FALSE)) -> 0 | O27: =IF($D27=0,"",N27/$D27*100) ->  | R27: =IF(ISERROR(VLOOKUP($D$7&$D$21&A27&$B$6,Table3d_data,9,FALSE))=TRUE,0,VLOOKUP($D$7&$D$21&A27&$B$6,Table3d_data,9,FALSE)) -> 0 | S27: =IF($D27=0,"",R27/$D27*100) -> 
A29: Residential special school (>295 days/year) | B29: Residential special school5 | D29: =F29+J29+N29+R29 -> 0 | F29: =IF(ISERROR(VLOOKUP($D$7&$D$21&A29&$B$6,Table3d_data,5,FALSE))=TRUE,0,VLOOKUP($D$7&$D$21&A29&$B$6,Table3d_data,5,FALSE)) -> 0 | G29: =IF($D29=0,"",F29/$D29*100) ->  | J29: =IF(ISERROR(VLOOKUP($D$7&$D$21&A29&$B$6,Table3d_data,7,FALSE))=TRUE,0,VLOOKUP($D$7&$D$21&A29&$B$6,Table3d_data,7,FALSE)) -> 0 | K29: =IF($D29=0,"",J29/$D29*100) ->  | N29: =IF(ISERROR(VLOOKUP($D$7&$A19&$B$6,Table3d_data,8,FALSE))=TRUE,0,VLOOKUP($D$7&$A19&$B$6,Table3d_data,8,FALSE)) -> 0 | O29: =IF($D29=0,"",N29/$D29*100) ->  | R29: =IF(ISERROR(VLOOKUP($D$7&$D$21&A29&$B$6,Table3d_data,9,FALSE))=TRUE,0,VLOOKUP($D$7&$D$21&A29&$B$6,Table3d_data,9,FALSE)) -> 0 | S29: =IF($D29=0,"",R29/$D29*100) -> 
D31: Private/ voluntary
B33: Children's home | D33: =D35+D37+D39 -> 89 | F33: =F35+F37+F39 -> 23 | G33: =IF($D33=0,"",F33/$D33*100) -> 25.84269663 | J33: =J35+J37+J39 -> 34 | K33: =IF($D33=0,"",J33/$D33*100) -> 38.20224719 | N33: =N35+N37+N39 -> 19 | O33: =IF($D33=0,"",N33/$D33*100) -> 21.34831461 | R33: =R35+R37+R39 -> 13 | S33: =IF($D33=0,"",R33/$D33*100) -> 14.60674157
A35: Children's home | B35: Children's home | D35: =F35+J35+N35+R35 -> 86 | F35: =IF(ISERROR(VLOOKUP($D$7&$D$31&A35&$B$6,Table3d_data,6,FALSE))=TRUE,0,VLOOKUP($D$7&$D$31&A35&$B$6,Table3d_data,6,FALSE)) -> 22 | G35: =IF($D35=0,"",F35/$D35*100) -> 25.58139535 | J35: =IF(ISERROR(VLOOKUP($D$7&$D$31&A35&$B$6,Table3d_data,7,FALSE))=TRUE,0,VLOOKUP($D$7&$D$31&A35&$B$6,Table3d_data,7,FALSE)) -> 33 | K35: =IF($D35=0,"",J35/$D35*100) -> 38.37209302 | N35: =IF(ISERROR(VLOOKUP($D$7&$D$31&A35&$B$6,Table3d_data,8,FALSE))=TRUE,0,VLOOKUP($D$7&$D$31&A35&$B$6,Table3d_data,8,FALSE)) -> 18 | O35: =IF($D35=0,"",N35/$D35*100) -> 20.93023256 | R35: =IF(ISERROR(VLOOKUP($D$7&$D$31&A35&$B$6,Table3d_data,9,FALSE))=TRUE,0,VLOOKUP($D$7&$D$31&A35&$B$6,Table3d_data,9,FALSE)) -> 13 | S35: =IF($D35=0,"",R35/$D35*100) -> 15.11627907
A37: Secure children's home | B37: Secure children's home | D37: =F37+J37+N37+R37 -> 0 | F37: =IF(ISERROR(VLOOKUP($D$7&$D$31&A37&$B$6,Table3d_data,6,FALSE))=TRUE,0,VLOOKUP($D$7&$D$31&A37&$B$6,Table3d_data,6,FALSE)) -> 0 | G37: =IF($D37=0,"",F37/$D37*100) ->  | J37: =IF(ISERROR(VLOOKUP($D$7&$D$31&A37&$B$6,Table3d_data,7,FALSE))=TRUE,0,VLOOKUP($D$7&$D$31&A37&$B$6,Table3d_data,7,FALSE)) -> 0 | K37: =IF($D37=0,"",J37/$D37*100) ->  | N37: =IF(ISERROR(VLOOKUP($D$7&$D$31&A37&$B$6,Table3d_data,8,FALSE))=TRUE,0,VLOOKUP($D$7&$D$31&A37&$B$6,Table3d_data,8,FALSE)) -> 0 | O37: =IF($D37=0,"",N37/$D37*100) ->  | R37: =IF(ISERROR(VLOOKUP($D$7&$D$31&A37&$B$6,Table3d_data,9,FALSE))=TRUE,0,VLOOKUP($D$7&$D$31&A37&$B$6,Table3d_data,9,FALSE)) -> 0 | S37: =IF($D37=0,"",R37/$D37*100) -> 
A39: Residential special school (>295 days/year) | B39: Residential special school5 | D39: =F39+J39+N39+R39 -> 3 | F39: =IF(ISERROR(VLOOKUP($D$7&$D$31&A39&$B$6,Table3d_data,6,FALSE))=TRUE,0,VLOOKUP($D$7&$D$31&A39&$B$6,Table3d_data,6,FALSE)) -> 1 | G39: =IF($D39=0,"",F39/$D39*100) -> 33.33333333 | J39: =IF(ISERROR(VLOOKUP($D$7&$D$31&A39&$B$6,Table3d_data,7,FALSE))=TRUE,0,VLOOKUP($D$7&$D$31&A39&$B$6,Table3d_data,7,FALSE)) -> 1 | K39: =IF($D39=0,"",J39/$D39*100) -> 33.33333333 | N39: =IF(ISERROR(VLOOKUP($D$7&$D$31&A39&$B$6,Table3d_data,8,FALSE))=TRUE,0,VLOOKUP($D$7&$D$31&A39&$B$6,Table3d_data,8,FALSE)) -> 1 | O39: =IF($D39=0,"",N39/$D39*100) -> 33.33333333 | R39: =IF(ISERROR(VLOOKUP($D$7&$D$31&A39&$B$6,Table3d_data,9,FALSE))=TRUE,0,VLOOKUP($D$7&$D$31&A39&$B$6,Table3d_data,9,FALSE)) -> 0 | S39: =IF($D39=0,"",R39/$D39*100) -> 0
R41: Source: Ofsted inspections
B43: 1. The 'all' figures include all homes, of all ownership type, in the local authority area. Local authority run homes data include a small number of homes run by health authorities.
B44: 2. Percentages are rounded and may not add to exactly 100.
B45: 3. At an interim inspection, progress is judged based on requirements and recommendations made following the last full inspection.
B46: 4. Children's homes not accomodating children at the time of the interim inspection received no judgement.
B47: 5. Residential special schools that care for pupils for more than 295 days per year must register as children's homes.

Sheet Table3d_data (hidden)
A1: Lookup | B1: Local Authority | C1: Sector | D1: Corporate Inspected Provision Type Group Name | E1: Month | F1: Good progress | G1: Satisfactory Progress | H1: Inadequate | I1: Not Judged
A2: =CONCATENATE(B2,C2,D2,E2) -> AllAllChildren's Home1 | B2: All | C2: All | D2: Children's Home | E2: 1 | F2: 9 | G2: 8 | H2: 8 | I2: 7
A3: AllAllChildren's Home2 | B3: All | C3: All | D3: Children's Home | E3: 2 | F3: 5 | G3: 11 | H3: 3 | I3: 1
A4: AllAllChildren's Home3 | B4: All | C4: All | D4: Children's Home | E4: 3 | F4: 17 | G4: 21 | H4: 11 | I4: 6
A5: AllAllChildren's Home4 | B5: All | C5: All | D5: Children's Home | E5: 4 | F5: 31 | G5: 40 | H5: 22 | I5: 14
A6: AllAllResidential special school (>295 days/year)1 | B6: All | C6: All | D6: Residential special school (>295 days/year) | E6: 1 | F6: 1 | G6: 1 | H6: 0 | I6: 0
A7: AllAllResidential special school (>295 days/year)3 | B7: All | C7: All | D7: Residential special school (>295 days/year) | E7: 3 | F7: 0 | G7: 0 | H7: 1 | I7: 0
A8: AllAllResidential special school (>295 days/year)4 | B8: All | C8: All | D8: Residential special school (>295 days/year) | E8: 4 | F8: 1 | G8: 1 | H8: 1 | I8: 0
A9: AllLocal AuthorityChildren's Home1 | B9: All | C9: Local Authority | D9: Children's Home | E9: 1 | F9: 2 | G9: 1 | H9: 1 | I9: 0
A10: AllLocal AuthorityChildren's Home2 | B10: All | C10: Local Authority | D10: Children's Home | E10: 2 | F10: 1 | G10: 0 | H10: 0 | I10: 1
A11: AllLocal AuthorityChildren's Home3 | B11: All | C11: Local Authority | D11: Children's Home | E11: 3 | F11: 6 | G11: 6 | H11: 3 | I11: 0
A12: AllLocal AuthorityChildren's Home4 | B12: All | C12: Local Authority | D12: Children's Home | E12: 4 | F12: 9 | G12: 7 | H12: 4 | I12: 1
A13: AllPrivate/ VoluntaryChildren's Home1 | B13: All | C13: Private/ Voluntary | D13: Children's Home | E13: 1 | F13: 7 | G13: 7 | H13: 7 | I13: 7
A14: AllPrivate/ VoluntaryChildren's Home2 | B14: All | C14: Private/ Voluntary | D14: Children's Home | E14: 2 | F14: 4 | G14: 11 | H14: 3 | I14: 0
A15: AllPrivate/ VoluntaryChildren's Home3 | B15: All | C15: Private/ Voluntary | D15: Children's Home | E15: 3 | F15: 11 | G15: 15 | H15: 8 | I15: 6
A16: AllPrivate/ VoluntaryChildren's Home4 | B16: All | C16: Private/ Voluntary | D16: Children's Home | E16: 4 | F16: 22 | G16: 33 | H16: 18 | I16: 13
A17: AllPrivate/ VoluntaryResidential special school (>295 days/year)1 | B17: All | C17: Private/ Voluntary | D17: Residential special school (>295 days/year) | E17: 1 | F17: 1 | G17: 1 | H17: 0 | I17: 0
A18: AllPrivate/ VoluntaryResidential special school (>295 days/year)3 | B18: All | C18: Private/ Voluntary | D18: Residential special school (>295 days/year) | E18: 3 | F18: 0 | G18: 0 | H18: 1 | I18: 0
A19: AllPrivate/ VoluntaryResidential special school (>295 days/year)4 | B19: All | C19: Private/ Voluntary | D19: Residential special school (>295 days/year) | E19: 4 | F19: 1 | G19: 1 | H19: 1 | I19: 0
A20: Barking & DagenhamAllChildren's Home3 | B20: Barking & Dagenham | C20: All | D20: Children's Home | E20: 3 | F20: 1 | G20: 0 | H20: 0 | I20: 0
A21: Barking & DagenhamAllChildren's Home4 | B21: Barking & Dagenham | C21: All | D21: Children's Home | E21: 4 | F21: 1 | G21: 0 | H21: 0 | I21: 0
A22: Barking & DagenhamPrivate/ VoluntaryChildren's Home3 | B22: Barking & Dagenham | C22: Private/ Voluntary | D22: Children's Home | E22: 3 | F22: 1 | G22: 0 | H22: 0 | I22: 0
A23: Barking & DagenhamPrivate/ VoluntaryChildren's Home4 | B23: Barking & Dagenham | C23: Private/ Voluntary | D23: Children's Home | E23: 4 | F23: 1 | G23: 0 | H23: 0 | I23: 0
A24: BexleyAllChildren's Home3 | B24: Bexley | C24: All | D24: Children's Home | E24: 3 | F24: 1 | G24: 0 | H24: 0 | I24: 0
A25: BexleyAllChildren's Home4 | B25: Bexley | C25: All | D25: Children's Home | E25: 4 | F25: 1 | G25: 0 | H25: 0 | I25: 0
A26: BexleyPrivate/ VoluntaryChildren's Home3 | B26: Bexley | C26: Private/ Voluntary | D26: Children's Home | E26: 3 | F26: 1 | G26: 0 | H26: 0 | I26: 0
A27: BexleyPrivate/ VoluntaryChildren's Home4 | B27: Bexley | C27: Private/ Voluntary | D27: Children's Home | E27: 4 | F27: 1 | G27: 0 | H27: 0 | I27: 0
A28: BirminghamAllChildren's Home1 | B28: Birmingham | C28: All | D28: Children's Home | E28: 1 | F28: 0 | G28: 2 | H28: 1 | I28: 0
A29: BirminghamAllChildren's Home3 | B29: Birmingham | C29: All | D29: Children's Home | E29: 3 | F29: 1 | G29: 1 | H29: 1 | I29: 0
A30: BirminghamAllChildren's Home4 | B30: Birmingham | C30: All | D30: Children's Home | E30: 4 | F30: 1 | G30: 3 | H30: 2 | I30: 0
A31: BirminghamLocal AuthorityChildren's Home1 | B31: Birmingham | C31: Local Authority | D31: Children's Home | E31: 1 | F31: 0 | G31: 0 | H31: 1 | I31: 0
A32: BirminghamLocal AuthorityChildren's Home3 | B32: Birmingham | C32: Local Authority | D32: Children's Home | E32: 3 | F32: 1 | G32: 1 | H32: 1 | I32: 0
A33: BirminghamLocal AuthorityChildren's Home4 | B33: Birmingham | C33: Local Authority | D33: Children's Home | E33: 4 | F33: 1 | G33: 1 | H33: 2 | I33: 0
A34: BirminghamPrivate/ VoluntaryChildren's Home1 | B34: Birmingham | C34: Private/ Voluntary | D34: Children's Home | E34: 1 | F34: 0 | G34: 2 | H34: 0 | I34: 0
A35: BirminghamPrivate/ VoluntaryChildren's Home4 | B35: Birmingham | C35: Private/ Voluntary | D35: Children's Home | E35: 4 | F35: 0 | G35: 2 | H35: 0 | I35: 0
A36: BlackpoolAllChildren's Home1 | B36: Blackpool | C36: All | D36: Children's Home | E36: 1 | F36: 0 | G36: 0 | H36: 1 | I36: 0
A37: BlackpoolAllChildren's Home2 | B37: Blackpool | C37: All | D37: Children's Home | E37: 2 | F37: 0 | G37: 1 | H37: 0 | I37: 0
A38: BlackpoolAllChildren's Home4 | B38: Blackpool | C38: All | D38: Children's Home | E38: 4 | F38: 0 | G38: 1 | H38: 1 | I38: 0
A39: BlackpoolPrivate/ VoluntaryChildren's Home1 | B39: Blackpool | C39: Private/ Voluntary | D39: Children's Home | E39: 1 | F39: 0 | G39: 0 | H39: 1 | I39: 0
A40: BlackpoolPrivate/ VoluntaryChildren's Home2 | B40: Blackpool | C40: Private/ Voluntary | D40: Children's Home | E40: 2 | F40: 0 | G40: 1 | H40: 0 | I40: 0
A41: BlackpoolPrivate/ VoluntaryChildren's Home4 | B41: Blackpool | C41: Private/ Voluntary | D41: Children's Home | E41: 4 | F41: 0 | G41: 1 | H41: 1 | I41: 0
A42: BradfordAllChildren's Home1 | B42: Bradford | C42: All | D42: Children's Home | E42: 1 | F42: 1 | G42: 0 | H42: 0 | I42: 0
A43: BradfordAllChildren's Home4 | B43: Bradford | C43: All | D43: Children's Home | E43: 4 | F43: 1 | G43: 0 | H43: 0 | I43: 0
A44: BradfordLocal AuthorityChildren's Home1 | B44: Bradford | C44: Local Authority | D44: Children's Home | E44: 1 | F44: 1 | G44: 0 | H44: 0 | I44: 0
A45: BradfordLocal AuthorityChildren's Home4 | B45: Bradford | C45: Local Authority | D45: Children's Home | E45: 4 | F45: 1 | G45: 0 | H45: 0 | I45: 0
A46: CalderdaleAllChildren's Home3 | B46: Calderdale | C46: All | D46: Children's Home | E46: 3 | F46: 0 | G46: 0 | H46: 1 | I46: 0
A47: CalderdaleAllChildren's Home4 | B47: Calderdale | C47: All | D47: Children's Home | E47: 4 | F47: 0 | G47: 0 | H47: 1 | I47: 0
A48: CalderdaleLocal AuthorityChildren's Home3 | B48: Calderdale | C48: Local Authority | D48: Children's Home | E48: 3 | F48: 0 | G48: 0 | H48: 1 | I48: 0
A49: CalderdaleLocal AuthorityChildren's Home4 | B49: Calderdale | C49: Local Authority | D49: Children's Home | E49: 4 | F49: 0 | G49: 0 | H49: 1 | I49: 0
A50: CambridgeshireAllChildren's Home3 | B50: Cambridgeshire | C50: All | D50: Children's Home | E50: 3 | F50: 1 | G50: 0 | H50: 1 | I50: 0
A51: CambridgeshireAllChildren's Home4 | B51: Cambridgeshire | C51: All | D51: Children's Home | E51: 4 | F51: 1 | G51: 0 | H51: 1 | I51: 0
A52: CambridgeshireLocal AuthorityChildren's Home3 | B52: Cambridgeshire | C52: Local Authority | D52: Children's Home | E52: 3 | F52: 0 | G52: 0 | H52: 1 | I52: 0
A53: CambridgeshireLocal AuthorityChildren's Home4 | B53: Cambridgeshire | C53: Local Authority | D53: Children's Home | E53: 4 | F53: 0 | G53: 0 | H53: 1 | I53: 0
A54: CambridgeshirePrivate/ VoluntaryChildren's Home3 | B54: Cambridgeshire | C54: Private/ Voluntary | D54: Children's Home | E54: 3 | F54: 1 | G54: 0 | H54: 0 | I54: 0
A55: CambridgeshirePrivate/ VoluntaryChildren's Home4 | B55: Cambridgeshire | C55: Private/ Voluntary | D55: Children's Home | E55: 4 | F55: 1 | G55: 0 | H55: 0 | I55: 0
A56: Central BedfordshireAllChildren's Home3 | B56: Central Bedfordshire | C56: All | D56: Children's Home | E56: 3 | F56: 0 | G56: 1 | H56: 0 | I56: 0
A57: Central BedfordshireAllChildren's Home4 | B57: Central Bedfordshire | C57: All | D57: Children's Home | E57: 4 | F57: 0 | G57: 1 | H57: 0 | I57: 0
A58: Central BedfordshirePrivate/ VoluntaryChildren's Home3 | B58: Central Bedfordshire | C58: Private/ Voluntary | D58: Children's Home | E58: 3 | F58: 0 | G58: 1 | H58: 0 | I58: 0
A59: Central BedfordshirePrivate/ VoluntaryChildren's Home4 | B59: Central Bedfordshire | C59: Private/ Voluntary | D59: Children's Home | E59: 4 | F59: 0 | G59: 1 | H59: 0 | I59: 0
A60: CornwallAllChildren's Home1 | B60: Cornwall | C60: All | D60: Children's Home | E60: 1 | F60: 0 | G60: 0 | H60: 0 | I60: 1
A61: CornwallAllChildren's Home3 | B61: Cornwall | C61: All | D61: Children's Home | E61: 3 | F61: 0 | G61: 1 | H61: 0 | I61: 0
A62: CornwallAllChildren's Home4 | B62: Cornwall | C62: All | D62: Children's Home | E62: 4 | F62: 0 | G62: 1 | H62: 0 | I62: 1
A63: CornwallLocal AuthorityChildren's Home3 | B63: Cornwall | C63: Local Authority | D63: Children's Home | E63: 3 | F63: 0 | G63: 1 | H63: 0 | I63: 0
A64: CornwallLocal AuthorityChildren's Home4 | B64: Cornwall | C64: Local Authority | D64: Children's Home | E64: 4 | F64: 0 | G64: 1 | H64: 0 | I64: 0
A65: CornwallPrivate/ VoluntaryChildren's Home1 | B65: Cornwall | C65: Private/ Voluntary | D65: Children's Home | E65: 1 | F65: 0 | G65: 0 | H65: 0 | I65: 1
A66: =CONCATENATE(B66,C66,D66,E66) -> CornwallPrivate/ VoluntaryChildren's Home4 | B66: Cornwall | C66: Private/ Voluntary | D66: Children's Home | E66: 4 | F66: 0 | G66: 0 | H66: 0 | I66: 1
A67: CumbriaAllChildren's Home2 | B67: Cumbria | C67: All | D67: Children's Home | E67: 2 | F67: 0 | G67: 0 | H67: 1 | I67: 0
A68: CumbriaAllChildren's Home4 | B68: Cumbria | C68: All | D68: Children's Home | E68: 4 | F68: 0 | G68: 0 | H68: 1 | I68: 0
A69: CumbriaAllResidential special school (>295 days/year)3 | B69: Cumbria | C69: All | D69: Residential special school (>295 days/year) | E69: 3 | F69: 0 | G69: 0 | H69: 1 | I69: 0
A70: CumbriaAllResidential special school (>295 days/year)4 | B70: Cumbria | C70: All | D70: Residential special school (>295 days/year) | E70: 4 | F70: 0 | G70: 0 | H70: 1 | I70: 0
A71: CumbriaPrivate/ VoluntaryChildren's Home2 | B71: Cumbria | C71: Private/ Voluntary | D71: Children's Home | E71: 2 | F71: 0 | G71: 0 | H71: 1 | I71: 0
A72: CumbriaPrivate/ VoluntaryChildren's Home4 | B72: Cumbria | C72: Private/ Voluntary | D72: Children's Home | E72: 4 | F72: 0 | G72: 0 | H72: 1 | I72: 0
A73: CumbriaPrivate/ VoluntaryResidential special school (>295 days/year)3 | B73: Cumbria | C73: Private/ Voluntary | D73: Residential special school (>295 days/year) | E73: 3 | F73: 0 | G73: 0 | H73: 1 | I73: 0
A74: CumbriaPrivate/ VoluntaryResidential special school (>295 days/year)4 | B74: Cumbria | C74: Private/ Voluntary | D74: Residential special school (>295 days/year) | E74: 4 | F74: 0 | G74: 0 | H74: 1 | I74: 0
A75: Derby cityAllChildren's Home3 | B75: Derby city | C75: All | D75: Children's Home | E75: 3 | F75: 2 | G75: 0 | H75: 1 | I75: 0
A76: Derby cityAllChildren's Home4 | B76: Derby city | C76: All | D76: Children's Home | E76: 4 | F76: 2 | G76: 0 | H76: 1 | I76: 0
A77: Derby cityLocal AuthorityChildren's Home3 | B77: Derby city | C77: Local Authority | D77: Children's Home | E77: 3 | F77: 2 | G77: 0 | H77: 0 | I77: 0
A78: Derby cityLocal AuthorityChildren's Home4 | B78: Derby city | C78: Local Authority | D78: Children's Home | E78: 4 | F78: 2 | G78: 0 | H78: 0 | I78: 0
A79: Derby cityPrivate/ VoluntaryChildren's Home3 | B79: Derby city | C79: Private/ Voluntary | D79: Children's Home | E79: 3 | F79: 0 | G79: 0 | H79: 1 | I79: 0
A80: Derby cityPrivate/ VoluntaryChildren's Home4 | B80: Derby city | C80: Private/ Voluntary | D80: Children's Home | E80: 4 | F80: 0 | G80: 0 | H80: 1 | I80: 0
A81: DerbyshireAllChildren's Home3 | B81: Derbyshire | C81: All | D81: Children's Home | E81: 3 | F81: 1 | G81: 1 | H81: 0 | I81: 0
A82: DerbyshireAllChildren's Home4 | B82: Derbyshire | C82: All | D82: Children's Home | E82: 4 | F82: 1 | G82: 1 | H82: 0 | I82: 0
A83: DerbyshireLocal AuthorityChildren's Home3 | B83: Derbyshire | C83: Local Authority | D83: Children's Home | E83: 3 | F83: 1 | G83: 1 | H83: 0 | I83: 0
A84: DerbyshireLocal AuthorityChildren's Home4 | B84: Derbyshire | C84: Local Authority | D84: Children's Home | E84: 4 | F84: 1 | G84: 1 | H84: 0 | I84: 0
A85: DevonAllChildren's Home3 | B85: Devon | C85: All | D85: Children's Home | E85: 3 | F85: 0 | G85: 1 | H85: 0 | I85: 0
A86: DevonAllChildren's Home4 | B86: Devon | C86: All | D86: Children's Home | E86: 4 | F86: 0 | G86: 1 | H86: 0 | I86: 0
A87: DevonPrivate/ VoluntaryChildren's Home3 | B87: Devon | C87: Private/ Voluntary | D87: Children's Home | E87: 3 | F87: 0 | G87: 1 | H87: 0 | I87: 0
A88: DevonPrivate/ VoluntaryChildren's Home4 | B88: Devon | C88: Private/ Voluntary | D88: Children's Home | E88: 4 | F88: 0 | G88: 1 | H88: 0 | I88: 0
A89: DoncasterAllChildren's Home3 | B89: Doncaster | C89: All | D89: Children's Home | E89: 3 | F89: 1 | G89: 0 | H89: 0 | I89: 0
A90: DoncasterAllChildren's Home4 | B90: Doncaster | C90: All | D90: Children's Home | E90: 4 | F90: 1 | G90: 0 | H90: 0 | I90: 0
A91: DoncasterLocal AuthorityChildren's Home3 | B91: Doncaster | C91: Local Authority | D91: Children's Home | E91: 3 | F91: 1 | G91: 0 | H91: 0 | I91: 0
A92: DoncasterLocal AuthorityChildren's Home4 | B92: Doncaster | C92: Local Authority | D92: Children's Home | E92: 4 | F92: 1 | G92: 0 | H92: 0 | I92: 0
A93: DudleyAllChildren's Home1 | B93: Dudley | C93: All | D93: Children's Home | E93: 1 | F93: 1 | G93: 0 | H93: 0 | I93: 1
A94: DudleyAllChildren's Home4 | B94: Dudley | C94: All | D94: Children's Home | E94: 4 | F94: 1 | G94: 0 | H94: 0 | I94: 1
A95: DudleyLocal AuthorityChildren's Home1 | B95: Dudley | C95: Local Authority | D95: Children's Home | E95: 1 | F95: 1 | G95: 0 | H95: 0 | I95: 0
A96: DudleyLocal AuthorityChildren's Home4 | B96: Dudley | C96: Local Authority | D96: Children's Home | E96: 4 | F96: 1 | G96: 0 | H96: 0 | I96: 0
A97: DudleyPrivate/ VoluntaryChildren's Home1 | B97: Dudley | C97: Private/ Voluntary | D97: Children's Home | E97: 1 | F97: 0 | G97: 0 | H97: 0 | I97: 1
A98: DudleyPrivate/ VoluntaryChildren's Home4 | B98: Dudley | C98: Private/ Voluntary | D98: Children's Home | E98: 4 | F98: 0 | G98: 0 | H98: 0 | I98: 1
A99: DurhamAllChildren's Home3 | B99: Durham | C99: All | D99: Children's Home | E99: 3 | F99: 0 | G99: 1 | H99: 0 | I99: 0
A100: DurhamAllChildren's Home4 | B100: Durham | C100: All | D100: Children's Home | E100: 4 | F100: 0 | G100: 1 | H100: 0 | I100: 0
A101: DurhamLocal AuthorityChildren's Home3 | B101: Durham | C101: Local Authority | D101: Children's Home | E101: 3 | F101: 0 | G101: 1 | H101: 0 | I101: 0
A102: DurhamLocal AuthorityChildren's Home4 | B102: Durham | C102: Local Authority | D102: Children's Home | E102: 4 | F102: 0 | G102: 1 | H102: 0 | I102: 0
A103: East Riding of YorkshireAllChildren's Home3 | B103: East Riding of Yorkshire | C103: All | D103: Children's Home | E103: 3 | F103: 0 | G103: 1 | H103: 0 | I103: 0
A104: East Riding of YorkshireAllChildren's Home4 | B104: East Riding of Yorkshire | C104: All | D104: Children's Home | E104: 4 | F104: 0 | G104: 1 | H104: 0 | I104: 0
A105: East Riding of YorkshirePrivate/ VoluntaryChildren's Home3 | B105: East Riding of Yorkshire | C105: Private/ Voluntary | D105: Children's Home | E105: 3 | F105: 0 | G105: 1 | H105: 0 | I105: 0
A106: East Riding of YorkshirePrivate/ VoluntaryChildren's Home4 | B106: East Riding of Yorkshire | C106: Private/ Voluntary | D106: Children's Home | E106: 4 | F106: 0 | G106: 1 | H106: 0 | I106: 0
A107: East SussexAllChildren's Home1 | B107: East Sussex | C107: All | D107: Children's Home | E107: 1 | F107: 0 | G107: 0 | H107: 0 | I107: 1
A108: East SussexAllChildren's Home4 | B108: East Sussex | C108: All | D108: Children's Home | E108: 4 | F108: 0 | G108: 0 | H108: 0 | I108: 1
A109: East SussexPrivate/ VoluntaryChildren's Home1 | B109: East Sussex | C109: Private/ Voluntary | D109: Children's Home | E109: 1 | F109: 0 | G109: 0 | H109: 0 | I109: 1
A110: East SussexPrivate/ VoluntaryChildren's Home4 | B110: East Sussex | C110: Private/ Voluntary | D110: Children's Home | E110: 4 | F110: 0 | G110: 0 | H110: 0 | I110: 1
A111: EnfieldAllChildren's Home2 | B111: Enfield | C111: All | D111: Children's Home | E111: 2 | F111: 0 | G111: 1 | H111: 0 | I111: 0
A112: EnfieldAllChildren's Home3 | B112: Enfield | C112: All | D112: Children's Home | E112: 3 | F112: 0 | G112: 1 | H112: 0 | I112: 0
A113: EnfieldAllChildren's Home4 | B113: Enfield | C113: All | D113: Children's Home | E113: 4 | F113: 0 | G113: 2 | H113: 0 | I113: 0
A114: EnfieldPrivate/ VoluntaryChildren's Home2 | B114: Enfield | C114: Private/ Voluntary | D114: Children's Home | E114: 2 | F114: 0 | G114: 1 | H114: 0 | I114: 0
A115: EnfieldPrivate/ VoluntaryChildren's Home3 | B115: Enfield | C115: Private/ Voluntary | D115: Children's Home | E115: 3 | F115: 0 | G115: 1 | H115: 0 | I115: 0
A116: EnfieldPrivate/ VoluntaryChildren's Home4 | B116: Enfield | C116: Private/ Voluntary | D116: Children's Home | E116: 4 | F116: 0 | G116: 2 | H116: 0 | I116: 0
A117: EssexAllChildren's Home1 | B117: Essex | C117: All | D117: Children's Home | E117: 1 | F117: 1 | G117: 0 | H117: 0 | I117: 0
A118: EssexAllChildren's Home3 | B118: Essex | C118: All | D118: Children's Home | E118: 3 | F118: 0 | G118: 1 | H118: 0 | I118: 0
A119: EssexAllChildren's Home4 | B119: Essex | C119: All | D119: Children's Home | E119: 4 | F119: 1 | G119: 1 | H119: 0 | I119: 0
A120: EssexPrivate/ VoluntaryChildren's Home1 | B120: Essex | C120: Private/ Voluntary | D120: Children's Home | E120: 1 | F120: 1 | G120: 0 | H120: 0 | I120: 0
A121: EssexPrivate/ VoluntaryChildren's Home3 | B121: Essex | C121: Private/ Voluntary | D121: Children's Home | E121: 3 | F121: 0 | G121: 1 | H121: 0 | I121: 0
A122: EssexPrivate/ VoluntaryChildren's Home4 | B122: Essex | C122: Private/ Voluntary | D122: Children's Home | E122: 4 | F122: 1 | G122: 1 | H122: 0 | I122: 0
A123: GreenwichAllChildren's Home3 | B123: Greenwich | C123: All | D123: Children's Home | E123: 3 | F123: 0 | G123: 0 | H123: 1 | I123: 0
A124: GreenwichAllChildren's Home4 | B124: Greenwich | C124: All | D124: Children's Home | E124: 4 | F124: 0 | G124: 0 | H124: 1 | I124: 0
A125: GreenwichPrivate/ VoluntaryChildren's Home3 | B125: Greenwich | C125: Private/ Voluntary | D125: Children's Home | E125: 3 | F125: 0 | G125: 0 | H125: 1 | I125: 0
A126: GreenwichPrivate/ VoluntaryChildren's Home4 | B126: Greenwich | C126: Private/ Voluntary | D126: Children's Home | E126: 4 | F126: 0 | G126: 0 | H126: 1 | I126: 0
A127: HaltonAllChildren's Home1 | B127: Halton | C127: All | D127: Children's Home | E127: 1 | F127: 0 | G127: 0 | H127: 0 | I127: 1
A128: HaltonAllChildren's Home4 | B128: Halton | C128: All | D128: Children's Home | E128: 4 | F128: 0 | G128: 0 | H128: 0 | I128: 1
A129: HaltonPrivate/ VoluntaryChildren's Home1 | B129: Halton | C129: Private/ Voluntary | D129: Children's Home | E129: 1 | F129: 0 | G129: 0 | H129: 0 | I129: 1
A130: =CONCATENATE(B130,C130,D130,E130) -> HaltonPrivate/ VoluntaryChildren's Home4 | B130: Halton | C130: Private/ Voluntary | D130: Children's Home | E130: 4 | F130: 0 | G130: 0 | H130: 0 | I130: 1
A131: HerefordshireAllChildren's Home3 | B131: Herefordshire | C131: All | D131: Children's Home | E131: 3 | F131: 0 | G131: 1 | H131: 0 | I131: 0
A132: HerefordshireAllChildren's Home4 | B132: Herefordshire | C132: All | D132: Children's Home | E132: 4 | F132: 0 | G132: 1 | H132: 0 | I132: 0
A133: HerefordshirePrivate/ VoluntaryChildren's Home3 | B133: Herefordshire | C133: Private/ Voluntary | D133: Children's Home | E133: 3 | F133: 0 | G133: 1 | H133: 0 | I133: 0
A134: HerefordshirePrivate/ VoluntaryChildren's Home4 | B134: Herefordshire | C134: Private/ Voluntary | D134: Children's Home | E134: 4 | F134: 0 | G134: 1 | H134: 0 | I134: 0
A135: HertfordshireAllChildren's Home1 | B135: Hertfordshire | C135: All | D135: Children's Home | E135: 1 | F135: 0 | G135: 0 | H135: 1 | I135: 0
A136: HertfordshireAllChildren's Home4 | B136: Hertfordshire | C136: All | D136: Children's Home | E136: 4 | F136: 0 | G136: 0 | H136: 1 | I136: 0
A137: HertfordshirePrivate/ VoluntaryChildren's Home1 | B137: Hertfordshire | C137: Private/ Voluntary | D137: Children's Home | E137: 1 | G137: 0 | H137: 1
A138: HertfordshirePrivate/ VoluntaryChildren's Home4 | B138: Hertfordshire | C138: Private/ Voluntary | D138: Children's Home | E138: 4 | G138: 0 | H138: 1
A139: KentAllChildren's Home1 | B139: Kent | C139: All | D139: Children's Home | E139: 1 | F139: 1 | G139: 1 | H139: 0 | I139: 0
A140: KentAllChildren's Home4 | B140: Kent | C140: All | D140: Children's Home | E140: 4 | F140: 1 | G140: 1 | H140: 0 | I140: 0
A141: KentLocal AuthorityChildren's Home1 | B141: Kent | C141: Local Authority | D141: Children's Home | E141: 1 | F141: 0 | G141: 1 | H141: 0 | I141: 0
A142: KentLocal AuthorityChildren's Home4 | B142: Kent | C142: Local Authority | D142: Children's Home | E142: 4 | F142: 0 | G142: 1 | H142: 0 | I142: 0
A143: KentPrivate/ VoluntaryChildren's Home1 | B143: Kent | C143: Private/ Voluntary | D143: Children's Home | E143: 1 | F143: 1 | G143: 0 | H143: 0 | I143: 0
A144: KentPrivate/ VoluntaryChildren's Home4 | B144: Kent | C144: Private/ Voluntary | D144: Children's Home | E144: 4 | F144: 1 | G144: 0 | H144: 0 | I144: 0
A145: Kingston upon HullAllChildren's Home1 | B145: Kingston upon Hull | C145: All | D145: Children's Home | E145: 1 | F145: 0 | G145: 0 | H145: 1 | I145: 0
A146: Kingston upon HullAllChildren's Home3 | B146: Kingston upon Hull | C146: All | D146: Children's Home | E146: 3 | F146: 1 | G146: 0 | H146: 0 | I146: 0
A147: Kingston upon HullAllChildren's Home4 | B147: Kingston upon Hull | C147: All | D147: Children's Home | E147: 4 | F147: 1 | G147: 0 | H147: 1 | I147: 0
A148: Kingston upon HullLocal AuthorityChildren's Home3 | B148: Kingston upon Hull | C148: Local Authority | D148: Children's Home | E148: 3 | F148: 1 | G148: 0 | H148: 0 | I148: 0
A149: Kingston upon HullLocal AuthorityChildren's Home4 | B149: Kingston upon Hull | C149: Local Authority | D149: Children's Home | E149: 4 | F149: 1 | G149: 0 | H149: 0 | I149: 0
A150: Kingston upon HullPrivate/ VoluntaryChildren's Home1 | B150: Kingston upon Hull | C150: Private/ Voluntary | D150: Children's Home | E150: 1 | F150: 0 | G150: 0 | H150: 1 | I150: 0
A151: Kingston upon HullPrivate/ VoluntaryChildren's Home4 | B151: Kingston upon Hull | C151: Private/ Voluntary | D151: Children's Home | E151: 4 | F151: 0 | G151: 0 | H151: 1 | I151: 0
A152: KirkleesAllChildren's Home3 | B152: Kirklees | C152: All | D152: Children's Home | E152: 3 | F152: 0 | G152: 2 | H152: 0 | I152: 0
A153: KirkleesAllChildren's Home4 | B153: Kirklees | C153: All | D153: Children's Home | E153: 4 | F153: 0 | G153: 2 | H153: 0 | I153: 0
A154: KirkleesLocal AuthorityChildren's Home3 | B154: Kirklees | C154: Local Authority | D154: Children's Home | E154: 3 | F154: 0 | G154: 1 | H154: 0 | I154: 0
A155: KirkleesLocal AuthorityChildren's Home4 | B155: Kirklees | C155: Local Authority | D155: Children's Home | E155: 4 | F155: 0 | G155: 1 | H155: 0 | I155: 0
A156: KirkleesPrivate/ VoluntaryChildren's Home3 | B156: Kirklees | C156: Private/ Voluntary | D156: Children's Home | E156: 3 | F156: 0 | G156: 1 | H156: 0 | I156: 0
A157: KirkleesPrivate/ VoluntaryChildren's Home4 | B157: Kirklees | C157: Private/ Voluntary | D157: Children's Home | E157: 4 | F157: 0 | G157: 1 | H157: 0 | I157: 0
A158: KnowsleyAllChildren's Home2 | B158: Knowsley | C158: All | D158: Children's Home | E158: 2 | F158: 0 | G158: 0 | H158: 0 | I158: 1
A159: KnowsleyAllChildren's Home3 | B159: Knowsley | C159: All | D159: Children's Home | E159: 3 | F159: 0 | G159: 0 | H159: 1 | I159: 0
A160: KnowsleyAllChildren's Home4 | B160: Knowsley | C160: All | D160: Children's Home | E160: 4 | F160: 0 | G160: 0 | H160: 1 | I160: 1
A161: KnowsleyLocal AuthorityChildren's Home2 | B161: Knowsley | C161: Local Authority | D161: Children's Home | E161: 2 | F161: 0 | G161: 0 | H161: 0 | I161: 1
A162: KnowsleyLocal AuthorityChildren's Home4 | B162: Knowsley | C162: Local Authority | D162: Children's Home | E162: 4 | F162: 0 | G162: 0 | H162: 0 | I162: 1
A163: KnowsleyPrivate/ VoluntaryChildren's Home3 | B163: Knowsley | C163: Private/ Voluntary | D163: Children's Home | E163: 3 | F163: 0 | G163: 0 | H163: 1 | I163: 0
A164: KnowsleyPrivate/ VoluntaryChildren's Home4 | B164: Knowsley | C164: Private/ Voluntary | D164: Children's Home | E164: 4 | F164: 0 | G164: 0 | H164: 1 | I164: 0
A165: LambethAllChildren's Home2 | B165: Lambeth | C165: All | D165: Children's Home | E165: 2 | F165: 0 | G165: 1 | H165: 0 | I165: 0
A166: LambethAllChildren's Home4 | B166: Lambeth | C166: All | D166: Children's Home | E166: 4 | F166: 0 | G166: 1 | H166: 0 | I166: 0
A167: LambethPrivate/ VoluntaryChildren's Home2 | B167: Lambeth | C167: Private/ Voluntary | D167: Children's Home | E167: 2 | F167: 0 | G167: 1 | H167: 0 | I167: 0
A168: LambethPrivate/ VoluntaryChildren's Home4 | B168: Lambeth | C168: Private/ Voluntary | D168: Children's Home | E168: 4 | F168: 0 | G168: 1 | H168: 0 | I168: 0
A169: LancashireAllChildren's Home1 | B169: Lancashire | C169: All | D169: Children's Home | E169: 1 | F169: 2 | G169: 0 | H169: 1 | I169: 0
A170: LancashireAllChildren's Home2 | B170: Lancashire | C170: All | D170: Children's Home | E170: 2 | F170: 0 | G170: 1 | H170: 0 | I170: 0
A171: LancashireAllChildren's Home3 | B171: Lancashire | C171: All | D171: Children's Home | E171: 3 | F171: 1 | G171: 0 | H171: 1 | I171: 2
A172: LancashireAllChildren's Home4 | B172: Lancashire | C172: All | D172: Children's Home | E172: 4 | F172: 3 | G172: 1 | H172: 2 | I172: 2
A173: LancashirePrivate/ VoluntaryChildren's Home1 | B173: Lancashire | C173: Private/ Voluntary | D173: Children's Home | E173: 1 | F173: 2 | G173: 0 | H173: 1 | I173: 0
A174: LancashirePrivate/ VoluntaryChildren's Home2 | B174: Lancashire | C174: Private/ Voluntary | D174: Children's Home | E174: 2 | F174: 0 | G174: 1 | H174: 0 | I174: 0
A175: LancashirePrivate/ VoluntaryChildren's Home3 | B175: Lancashire | C175: Private/ Voluntary | D175: Children's Home | E175: 3 | F175: 1 | G175: 0 | H175: 1 | I175: 2
A176: LancashirePrivate/ VoluntaryChildren's Home4 | B176: Lancashire | C176: Private/ Voluntary | D176: Children's Home | E176: 4 | F176: 3 | G176: 1 | H176: 2 | I176: 2
A177: LeedsAllChildren's Home2 | B177: Leeds | C177: All | D177: Children's Home | E177: 2 | F177: 0 | G177: 1 | H177: 0 | I177: 0
A178: LeedsAllChildren's Home4 | B178: Leeds | C178: All | D178: Children's Home | E178: 4 | F178: 0 | G178: 1 | H178: 0 | I178: 0
A179: LeedsPrivate/ VoluntaryChildren's Home2 | B179: Leeds | C179: Private/ Voluntary | D179: Children's Home | E179: 2 | F179: 0 | G179: 1 | H179: 0 | I179: 0
A180: LeedsPrivate/ VoluntaryChildren's Home4 | B180: Leeds | C180: Private/ Voluntary | D180: Children's Home | E180: 4 | F180: 0 | G180: 1 | H180: 0 | I180: 0
A181: LeicestershireAllChildren's Home1 | B181: Leicestershire | C181: All | D181: Children's Home | E181: 1 | F181: 0 | G181: 1 | H181: 0 | I181: 0
A182: LeicestershireAllChildren's Home2 | B182: Leicestershire | C182: All | D182: Children's Home | E182: 2 | F182: 1 | G182: 0 | H182: 0 | I182: 0
A183: LeicestershireAllChildren's Home3 | B183: Leicestershire | C183: All | D183: Children's Home | E183: 3 | F183: 1 | G183: 0 | H183: 0 | I183: 0
A184: LeicestershireAllChildren's Home4 | B184: Leicestershire | C184: All | D184: Children's Home | E184: 4 | F184: 2 | G184: 1 | H184: 0 | I184: 0
A185: LeicestershirePrivate/ VoluntaryChildren's Home1 | B185: Leicestershire | C185: Private/ Voluntary | D185: Children's Home | E185: 1 | F185: 0 | G185: 1 | H185: 0 | I185: 0
A186: LeicestershirePrivate/ VoluntaryChildren's Home2 | B186: Leicestershire | C186: Private/ Voluntary | D186: Children's Home | E186: 2 | F186: 1 | G186: 0 | H186: 0 | I186: 0
A187: LeicestershirePrivate/ VoluntaryChildren's Home3 | B187: Leicestershire | C187: Private/ Voluntary | D187: Children's Home | E187: 3 | F187: 1 | G187: 0 | H187: 0 | I187: 0
A188: LeicestershirePrivate/ VoluntaryChildren's Home4 | B188: Leicestershire | C188: Private/ Voluntary | D188: Children's Home | E188: 4 | F188: 2 | G188: 1 | H188: 0 | I188: 0
A189: LiverpoolAllChildren's Home3 | B189: Liverpool | C189: All | D189: Children's Home | E189: 3 | F189: 0 | G189: 0 | H189: 0 | I189: 1
A190: LiverpoolAllChildren's Home4 | B190: Liverpool | C190: All | D190: Children's Home | E190: 4 | F190: 0 | G190: 0 | H190: 0 | I190: 1
A191: LiverpoolPrivate/ VoluntaryChildren's Home3 | B191: Liverpool | C191: Private/ Voluntary | D191: Children's Home | E191: 3 | F191: 0 | G191: 0 | H191: 0 | I191: 1
A192: LiverpoolPrivate/ VoluntaryChildren's Home4 | B192: Liverpool | C192: Private/ Voluntary | D192: Children's Home | E192: 4 | F192: 0 | G192: 0 | H192: 0 | I192: 1
A193: LutonAllChildren's Home1 | B193: Luton | C193: All | D193: Children's Home | E193: 1 | F193: 0 | G193: 1 | H193: 0 | I193: 0
A194: =CONCATENATE(B194,C194,D194,E194) -> LutonAllChildren's Home4 | B194: Luton | C194: All | D194: Children's Home | E194: 4 | F194: 0 | G194: 1 | H194: 0 | I194: 0
A195: LutonPrivate/ VoluntaryChildren's Home1 | B195: Luton | C195: Private/ Voluntary | D195: Children's Home | E195: 1 | F195: 0 | G195: 1 | H195: 0 | I195: 0
A196: LutonPrivate/ VoluntaryChildren's Home4 | B196: Luton | C196: Private/ Voluntary | D196: Children's Home | E196: 4 | F196: 0 | G196: 1 | H196: 0 | I196: 0
A197: ManchesterAllChildren's Home3 | B197: Manchester | C197: All | D197: Children's Home | E197: 3 | F197: 1 | G197: 2 | H197: 0 | I197: 0
A198: ManchesterAllChildren's Home4 | B198: Manchester | C198: All | D198: Children's Home | E198: 4 | F198: 1 | G198: 2 | H198: 0 | I198: 0
A199: ManchesterLocal AuthorityChildren's Home3 | B199: Manchester | C199: Local Authority | D199: Children's Home | E199: 3 | F199: 0 | G199: 1 | H199: 0 | I199: 0
A200: ManchesterLocal AuthorityChildren's Home4 | B200: Manchester | C200: Local Authority | D200: Children's Home | E200: 4 | F200: 0 | G200: 1 | H200: 0 | I200: 0
... 117 more rows

Sheet Table3_Data (hidden)
A1: Lookup | B1: Local Authority | C1: Sector | D1: Corporate Inspected Provision Type Group Name | E1: Question Text | F1: Month | G1: Outstanding | H1: Good | I1: Adequate | J1: Inadequate | K1: Not Judged
A2: AllAllChildren's HomeLeadership and Management1 | B2: All | C2: All | D2: Children's Home | E2: Leadership and Management | F2: 1 | G2: 45 | H2: 131 | I2: 69 | J2: 19 | K2: 0
A3: AllAllChildren's HomeLeadership and Management2 | B3: All | C3: All | D3: Children's Home | E3: Leadership and Management | F3: 2 | G3: 65 | H3: 121 | I3: 78 | J3: 9 | K3: 0
A4: AllAllChildren's HomeLeadership and Management3 | B4: All | C4: All | D4: Children's Home | E4: Leadership and Management | F4: 3 | G4: 28 | H4: 66 | I4: 23 | J4: 7 | K4: 0
A5: AllAllChildren's HomeLeadership and Management4 | B5: All | C5: All | D5: Children's Home | E5: Leadership and Management | F5: 4 | G5: 138 | H5: 318 | I5: 170 | J5: 35 | K5: 0
A6: AllAllChildren's HomeOutcomes for children and young people1 | B6: All | C6: All | D6: Children's Home | E6: Outcomes for children and young people | F6: 1 | G6: 57 | H6: 147 | I6: 50 | J6: 10 | K6: 0
A7: AllAllChildren's HomeOutcomes for children and young people2 | B7: All | C7: All | D7: Children's Home | E7: Outcomes for children and young people | F7: 2 | G7: 75 | H7: 156 | I7: 39 | J7: 3 | K7: 0
A8: AllAllChildren's HomeOutcomes for children and young people3 | B8: All | C8: All | D8: Children's Home | E8: Outcomes for children and young people | F8: 3 | G8: 38 | H8: 64 | I8: 19 | J8: 3 | K8: 0
A9: AllAllChildren's HomeOutcomes for children and young people4 | B9: All | C9: All | D9: Children's Home | E9: Outcomes for children and young people | F9: 4 | G9: 170 | H9: 367 | I9: 108 | J9: 16 | K9: 0
A10: AllAllChildren's HomeOverall effectiveness1 | B10: All | C10: All | D10: Children's Home | E10: Overall effectiveness | F10: 1 | G10: 37 | H10: 153 | I10: 58 | J10: 16 | K10: 0
A11: AllAllChildren's HomeOverall effectiveness2 | B11: All | C11: All | D11: Children's Home | E11: Overall effectiveness | F11: 2 | G11: 54 | H11: 154 | I11: 57 | J11: 8 | K11: 0
A12: AllAllChildren's HomeOverall effectiveness3 | B12: All | C12: All | D12: Children's Home | E12: Overall effectiveness | F12: 3 | G12: 24 | H12: 74 | I12: 20 | J12: 6 | K12: 0
A13: AllAllChildren's HomeOverall effectiveness4 | B13: All | C13: All | D13: Children's Home | E13: Overall effectiveness | F13: 4 | G13: 115 | H13: 381 | I13: 135 | J13: 30 | K13: 0
A14: AllAllChildren's HomeQuality of service1 | B14: All | C14: All | D14: Children's Home | E14: Quality of service | F14: 1 | G14: 83 | H14: 126 | I14: 46 | J14: 9 | K14: 0
A15: AllAllChildren's HomeQuality of service2 | B15: All | C15: All | D15: Children's Home | E15: Quality of service | F15: 2 | G15: 93 | H15: 136 | I15: 39 | J15: 5 | K15: 0
A16: AllAllChildren's HomeQuality of service3 | B16: All | C16: All | D16: Children's Home | E16: Quality of service | F16: 3 | G16: 50 | H16: 54 | I16: 17 | J16: 3 | K16: 0
A17: AllAllChildren's HomeQuality of service4 | B17: All | C17: All | D17: Children's Home | E17: Quality of service | F17: 4 | G17: 226 | H17: 316 | I17: 102 | J17: 17 | K17: 0
A18: AllAllChildren's HomeThe safety of children and young people1 | B18: All | C18: All | D18: Children's Home | E18: The safety of children and young people | F18: 1 | G18: 55 | H18: 141 | I18: 54 | J18: 14 | K18: 0
A19: AllAllChildren's HomeThe safety of children and young people2 | B19: All | C19: All | D19: Children's Home | E19: The safety of children and young people | F19: 2 | G19: 65 | H19: 139 | I19: 60 | J19: 9 | K19: 0
A20: AllAllChildren's HomeThe safety of children and young people3 | B20: All | C20: All | D20: Children's Home | E20: The safety of children and young people | F20: 3 | G20: 26 | H20: 69 | I20: 23 | J20: 6 | K20: 0
A21: AllAllChildren's HomeThe safety of children and young people4 | B21: All | C21: All | D21: Children's Home | E21: The safety of children and young people | F21: 4 | G21: 146 | H21: 349 | I21: 137 | J21: 29 | K21: 0
A22: AllAllResidential special school (>295 days/year)Leadership and Management1 | B22: All | C22: All | D22: Residential special school (>295 days/year) | E22: Leadership and Management | F22: 1 | G22: 2 | H22: 2 | I22: 4 | J22: 1 | K22: 0
A23: AllAllResidential special school (>295 days/year)Leadership and Management2 | B23: All | C23: All | D23: Residential special school (>295 days/year) | E23: Leadership and Management | F23: 2 | G23: 1 | H23: 4 | I23: 0 | J23: 0 | K23: 0
A24: AllAllResidential special school (>295 days/year)Leadership and Management3 | B24: All | C24: All | D24: Residential special school (>295 days/year) | E24: Leadership and Management | F24: 3 | G24: 0 | H24: 3 | I24: 1 | J24: 0 | K24: 0
A25: AllAllResidential special school (>295 days/year)Leadership and Management4 | B25: All | C25: All | D25: Residential special school (>295 days/year) | E25: Leadership and Management | F25: 4 | G25: 3 | H25: 9 | I25: 5 | J25: 1 | K25: 0
A26: AllAllResidential special school (>295 days/year)Outcomes for children and young people1 | B26: All | C26: All | D26: Residential special school (>295 days/year) | E26: Outcomes for children and young people | F26: 1 | G26: 4 | H26: 4 | I26: 1 | J26: 0 | K26: 0
A27: AllAllResidential special school (>295 days/year)Outcomes for children and young people2 | B27: All | C27: All | D27: Residential special school (>295 days/year) | E27: Outcomes for children and young people | F27: 2 | G27: 1 | H27: 4 | I27: 0 | J27: 0 | K27: 0
A28: AllAllResidential special school (>295 days/year)Outcomes for children and young people3 | B28: All | C28: All | D28: Residential special school (>295 days/year) | E28: Outcomes for children and young people | F28: 3 | G28: 1 | H28: 3 | I28: 0 | J28: 0 | K28: 0
A29: AllAllResidential special school (>295 days/year)Outcomes for children and young people4 | B29: All | C29: All | D29: Residential special school (>295 days/year) | E29: Outcomes for children and young people | F29: 4 | G29: 6 | H29: 11 | I29: 1 | J29: 0 | K29: 0
A30: AllAllResidential special school (>295 days/year)Overall effectiveness1 | B30: All | C30: All | D30: Residential special school (>295 days/year) | E30: Overall effectiveness | F30: 1 | G30: 2 | H30: 6 | I30: 0 | J30: 1 | K30: 0
A31: AllAllResidential special school (>295 days/year)Overall effectiveness2 | B31: All | C31: All | D31: Residential special school (>295 days/year) | E31: Overall effectiveness | F31: 2 | G31: 1 | H31: 4 | I31: 0 | J31: 0 | K31: 0
A32: AllAllResidential special school (>295 days/year)Overall effectiveness3 | B32: All | C32: All | D32: Residential special school (>295 days/year) | E32: Overall effectiveness | F32: 3 | G32: 0 | H32: 4 | I32: 0 | J32: 0 | K32: 0
A33: AllAllResidential special school (>295 days/year)Overall effectiveness4 | B33: All | C33: All | D33: Residential special school (>295 days/year) | E33: Overall effectiveness | F33: 4 | G33: 3 | H33: 14 | I33: 0 | J33: 1 | K33: 0
A34: AllAllResidential special school (>295 days/year)Quality of service1 | B34: All | C34: All | D34: Residential special school (>295 days/year) | E34: Quality of service | F34: 1 | G34: 3 | H34: 5 | I34: 0 | J34: 1 | K34: 0
A35: AllAllResidential special school (>295 days/year)Quality of service2 | B35: All | C35: All | D35: Residential special school (>295 days/year) | E35: Quality of service | F35: 2 | G35: 1 | H35: 4 | I35: 0 | J35: 0 | K35: 0
A36: AllAllResidential special school (>295 days/year)Quality of service3 | B36: All | C36: All | D36: Residential special school (>295 days/year) | E36: Quality of service | F36: 3 | G36: 1 | H36: 3 | I36: 0 | J36: 0 | K36: 0
A37: AllAllResidential special school (>295 days/year)Quality of service4 | B37: All | C37: All | D37: Residential special school (>295 days/year) | E37: Quality of service | F37: 4 | G37: 5 | H37: 12 | I37: 0 | J37: 1 | K37: 0
A38: AllAllResidential special school (>295 days/year)The safety of children and young people1 | B38: All | C38: All | D38: Residential special school (>295 days/year) | E38: The safety of children and young people | F38: 1 | G38: 3 | H38: 4 | I38: 1 | J38: 1 | K38: 0
A39: AllAllResidential special school (>295 days/year)The safety of children and young people2 | B39: All | C39: All | D39: Residential special school (>295 days/year) | E39: The safety of children and young people | F39: 2 | G39: 1 | H39: 4 | I39: 0 | J39: 0 | K39: 0
A40: AllAllResidential special school (>295 days/year)The safety of children and young people3 | B40: All | C40: All | D40: Residential special school (>295 days/year) | E40: The safety of children and young people | F40: 3 | G40: 0 | H40: 4 | I40: 0 | J40: 0 | K40: 0
A41: AllAllResidential special school (>295 days/year)The safety of children and young people4 | B41: All | C41: All | D41: Residential special school (>295 days/year) | E41: The safety of children and young people | F41: 4 | G41: 4 | H41: 12 | I41: 1 | J41: 1 | K41: 0
A42: AllAllSecure Children's HomeLeadership and Management1 | B42: All | C42: All | D42: Secure Children's Home | E42: Leadership and Management | F42: 1 | G42: 1 | H42: 2 | I42: 1 | J42: 0 | K42: 0
A43: AllAllSecure Children's HomeLeadership and Management2 | B43: All | C43: All | D43: Secure Children's Home | E43: Leadership and Management | F43: 2 | G43: 0 | H43: 0 | I43: 1 | J43: 0 | K43: 0
A44: AllAllSecure Children's HomeLeadership and Management3 | B44: All | C44: All | D44: Secure Children's Home | E44: Leadership and Management | F44: 3 | G44: 0 | H44: 1 | I44: 0 | J44: 0 | K44: 0
A45: AllAllSecure Children's HomeLeadership and Management4 | B45: All | C45: All | D45: Secure Children's Home | E45: Leadership and Management | F45: 4 | G45: 1 | H45: 3 | I45: 2 | J45: 0 | K45: 0
A46: AllAllSecure Children's HomeOutcomes for children and young people1 | B46: All | C46: All | D46: Secure Children's Home | E46: Outcomes for children and young people | F46: 1 | G46: 1 | H46: 3 | I46: 0 | J46: 0 | K46: 0
A47: AllAllSecure Children's HomeOutcomes for children and young people2 | B47: All | C47: All | D47: Secure Children's Home | E47: Outcomes for children and young people | F47: 2 | G47: 1 | H47: 0 | I47: 0 | J47: 0 | K47: 0
A48: AllAllSecure Children's HomeOutcomes for children and young people3 | B48: All | C48: All | D48: Secure Children's Home | E48: Outcomes for children and young people | F48: 3 | G48: 0 | H48: 1 | I48: 0 | J48: 0 | K48: 0
A49: AllAllSecure Children's HomeOutcomes for children and young people4 | B49: All | C49: All | D49: Secure Children's Home | E49: Outcomes for children and young people | F49: 4 | G49: 2 | H49: 4 | I49: 0 | J49: 0 | K49: 0
A50: AllAllSecure Children's HomeOverall effectiveness1 | B50: All | C50: All | D50: Secure Children's Home | E50: Overall effectiveness | F50: 1 | G50: 1 | H50: 3 | I50: 0 | J50: 0 | K50: 0
A51: AllAllSecure Children's HomeOverall effectiveness2 | B51: All | C51: All | D51: Secure Children's Home | E51: Overall effectiveness | F51: 2 | G51: 0 | H51: 0 | I51: 1 | J51: 0 | K51: 0
A52: AllAllSecure Children's HomeOverall effectiveness3 | B52: All | C52: All | D52: Secure Children's Home | E52: Overall effectiveness | F52: 3 | G52: 0 | H52: 1 | I52: 0 | J52: 0 | K52: 0
A53: AllAllSecure Children's HomeOverall effectiveness4 | B53: All | C53: All | D53: Secure Children's Home | E53: Overall effectiveness | F53: 4 | G53: 1 | H53: 4 | I53: 1 | J53: 0 | K53: 0
A54: AllAllSecure Children's HomeQuality of service1 | B54: All | C54: All | D54: Secure Children's Home | E54: Quality of service | F54: 1 | G54: 2 | H54: 2 | I54: 0 | J54: 0 | K54: 0
A55: AllAllSecure Children's HomeQuality of service2 | B55: All | C55: All | D55: Secure Children's Home | E55: Quality of service | F55: 2 | G55: 1 | H55: 0 | I55: 0 | J55: 0 | K55: 0
A56: AllAllSecure Children's HomeQuality of service3 | B56: All | C56: All | D56: Secure Children's Home | E56: Quality of service | F56: 3 | G56: 0 | H56: 1 | I56: 0 | J56: 0 | K56: 0
A57: AllAllSecure Children's HomeQuality of service4 | B57: All | C57: All | D57: Secure Children's Home | E57: Quality of service | F57: 4 | G57: 3 | H57: 3 | I57: 0 | J57: 0 | K57: 0
A58: AllAllSecure Children's HomeThe safety of children and young people1 | B58: All | C58: All | D58: Secure Children's Home | E58: The safety of children and young people | F58: 1 | G58: 1 | H58: 3 | I58: 0 | J58: 0 | K58: 0
A59: AllAllSecure Children's HomeThe safety of children and young people2 | B59: All | C59: All | D59: Secure Children's Home | E59: The safety of children and young people | F59: 2 | G59: 0 | H59: 0 | I59: 1 | J59: 0 | K59: 0
A60: AllAllSecure Children's HomeThe safety of children and young people3 | B60: All | C60: All | D60: Secure Children's Home | E60: The safety of children and young people | F60: 3 | G60: 0 | H60: 1 | I60: 0 | J60: 0 | K60: 0
A61: AllAllSecure Children's HomeThe safety of children and young people4 | B61: All | C61: All | D61: Secure Children's Home | E61: The safety of children and young people | F61: 4 | G61: 1 | H61: 4 | I61: 1 | J61: 0 | K61: 0
A62: AllLocal AuthorityChildren's HomeLeadership and Management1 | B62: All | C62: Local Authority | D62: Children's Home | E62: Leadership and Management | F62: 1 | G62: 15 | H62: 35 | I62: 25 | J62: 5 | K62: 0
A63: AllLocal AuthorityChildren's HomeLeadership and Management2 | B63: All | C63: Local Authority | D63: Children's Home | E63: Leadership and Management | F63: 2 | G63: 30 | H63: 41 | I63: 27 | J63: 2 | K63: 0
A64: AllLocal AuthorityChildren's HomeLeadership and Management3 | B64: All | C64: Local Authority | D64: Children's Home | E64: Leadership and Management | F64: 3 | G64: 9 | H64: 22 | I64: 4 | J64: 3 | K64: 0
A65: AllLocal AuthorityChildren's HomeLeadership and Management4 | B65: All | C65: Local Authority | D65: Children's Home | E65: Leadership and Management | F65: 4 | G65: 54 | H65: 98 | I65: 56 | J65: 10 | K65: 0
A66: AllLocal AuthorityChildren's HomeOutcomes for children and young people1 | B66: All | C66: Local Authority | D66: Children's Home | E66: Outcomes for children and young people | F66: 1 | G66: 13 | H66: 47 | I66: 15 | J66: 5 | K66: 0
A67: AllLocal AuthorityChildren's HomeOutcomes for children and young people2 | B67: All | C67: Local Authority | D67: Children's Home | E67: Outcomes for children and young people | F67: 2 | G67: 30 | H67: 56 | I67: 13 | J67: 1 | K67: 0
A68: AllLocal AuthorityChildren's HomeOutcomes for children and young people3 | B68: All | C68: Local Authority | D68: Children's Home | E68: Outcomes for children and young people | F68: 3 | G68: 12 | H68: 20 | I68: 4 | J68: 2 | K68: 0
A69: AllLocal AuthorityChildren's HomeOutcomes for children and young people4 | B69: All | C69: Local Authority | D69: Children's Home | E69: Outcomes for children and young people | F69: 4 | G69: 55 | H69: 123 | I69: 32 | J69: 8 | K69: 0
A70: AllLocal AuthorityChildren's HomeOverall effectiveness1 | B70: All | C70: Local Authority | D70: Children's Home | E70: Overall effectiveness | F70: 1 | G70: 11 | H70: 43 | I70: 22 | J70: 4 | K70: 0
A71: AllLocal AuthorityChildren's HomeOverall effectiveness2 | B71: All | C71: Local Authority | D71: Children's Home | E71: Overall effectiveness | F71: 2 | G71: 24 | H71: 56 | I71: 18 | J71: 2 | K71: 0
A72: AllLocal AuthorityChildren's HomeOverall effectiveness3 | B72: All | C72: Local Authority | D72: Children's Home | E72: Overall effectiveness | F72: 3 | G72: 5 | H72: 27 | I72: 3 | J72: 3 | K72: 0
A73: AllLocal AuthorityChildren's HomeOverall effectiveness4 | B73: All | C73: Local Authority | D73: Children's Home | E73: Overall effectiveness | F73: 4 | G73: 40 | H73: 126 | I73: 43 | J73: 9 | K73: 0
A74: AllLocal AuthorityChildren's HomeQuality of service1 | B74: All | C74: Local Authority | D74: Children's Home | E74: Quality of service | F74: 1 | G74: 25 | H74: 36 | I74: 15 | J74: 4 | K74: 0
A75: AllLocal AuthorityChildren's HomeQuality of service2 | B75: All | C75: Local Authority | D75: Children's Home | E75: Quality of service | F75: 2 | G75: 38 | H75: 48 | I75: 12 | J75: 2 | K75: 0
A76: AllLocal AuthorityChildren's HomeQuality of service3 | B76: All | C76: Local Authority | D76: Children's Home | E76: Quality of service | F76: 3 | G76: 15 | H76: 17 | I76: 4 | J76: 2 | K76: 0
A77: AllLocal AuthorityChildren's HomeQuality of service4 | B77: All | C77: Local Authority | D77: Children's Home | E77: Quality of service | F77: 4 | G77: 78 | H77: 101 | I77: 31 | J77: 8 | K77: 0
A78: AllLocal AuthorityChildren's HomeThe safety of children and young people1 | B78: All | C78: Local Authority | D78: Children's Home | E78: The safety of children and young people | F78: 1 | G78: 20 | H78: 39 | I78: 17 | J78: 4 | K78: 0
A79: AllLocal AuthorityChildren's HomeThe safety of children and young people2 | B79: All | C79: Local Authority | D79: Children's Home | E79: The safety of children and young people | F79: 2 | G79: 24 | H79: 55 | I79: 19 | J79: 2 | K79: 0
A80: AllLocal AuthorityChildren's HomeThe safety of children and young people3 | B80: All | C80: Local Authority | D80: Children's Home | E80: The safety of children and young people | F80: 3 | G80: 7 | H80: 23 | I80: 5 | J80: 3 | K80: 0
A81: AllLocal AuthorityChildren's HomeThe safety of children and young people4 | B81: All | C81: Local Authority | D81: Children's Home | E81: The safety of children and young people | F81: 4 | G81: 51 | H81: 117 | I81: 41 | J81: 9 | K81: 0
A82: AllLocal AuthoritySecure Children's HomeLeadership and Management1 | B82: All | C82: Local Authority | D82: Secure Children's Home | E82: Leadership and Management | F82: 1 | G82: 1 | H82: 2 | I82: 1 | J82: 0 | K82: 0
A83: AllLocal AuthoritySecure Children's HomeLeadership and Management2 | B83: All | C83: Local Authority | D83: Secure Children's Home | E83: Leadership and Management | F83: 2 | G83: 0 | H83: 0 | I83: 1 | J83: 0 | K83: 0
A84: AllLocal AuthoritySecure Children's HomeLeadership and Management3 | B84: All | C84: Local Authority | D84: Secure Children's Home | E84: Leadership and Management | F84: 3 | G84: 0 | H84: 1 | I84: 0 | J84: 0 | K84: 0
A85: AllLocal AuthoritySecure Children's HomeLeadership and Management4 | B85: All | C85: Local Authority | D85: Secure Children's Home | E85: Leadership and Management | F85: 4 | G85: 1 | H85: 3 | I85: 2 | J85: 0 | K85: 0
A86: AllLocal AuthoritySecure Children's HomeOutcomes for children and young people1 | B86: All | C86: Local Authority | D86: Secure Children's Home | E86: Outcomes for children and young people | F86: 1 | G86: 1 | H86: 3 | I86: 0 | J86: 0 | K86: 0
A87: AllLocal AuthoritySecure Children's HomeOutcomes for children and young people2 | B87: All | C87: Local Authority | D87: Secure Children's Home | E87: Outcomes for children and young people | F87: 2 | G87: 1 | H87: 0 | I87: 0 | J87: 0 | K87: 0
A88: AllLocal AuthoritySecure Children's HomeOutcomes for children and young people3 | B88: All | C88: Local Authority | D88: Secure Children's Home | E88: Outcomes for children and young people | F88: 3 | G88: 0 | H88: 1 | I88: 0 | J88: 0 | K88: 0
A89: AllLocal AuthoritySecure Children's HomeOutcomes for children and young people4 | B89: All | C89: Local Authority | D89: Secure Children's Home | E89: Outcomes for children and young people | F89: 4 | G89: 2 | H89: 4 | I89: 0 | J89: 0 | K89: 0
A90: AllLocal AuthoritySecure Children's HomeOverall effectiveness1 | B90: All | C90: Local Authority | D90: Secure Children's Home | E90: Overall effectiveness | F90: 1 | G90: 1 | H90: 3 | I90: 0 | J90: 0 | K90: 0
A91: AllLocal AuthoritySecure Children's HomeOverall effectiveness2 | B91: All | C91: Local Authority | D91: Secure Children's Home | E91: Overall effectiveness | F91: 2 | G91: 0 | H91: 0 | I91: 1 | J91: 0 | K91: 0
A92: AllLocal AuthoritySecure Children's HomeOverall effectiveness3 | B92: All | C92: Local Authority | D92: Secure Children's Home | E92: Overall effectiveness | F92: 3 | G92: 0 | H92: 1 | I92: 0 | J92: 0 | K92: 0
A93: AllLocal AuthoritySecure Children's HomeOverall effectiveness4 | B93: All | C93: Local Authority | D93: Secure Children's Home | E93: Overall effectiveness | F93: 4 | G93: 1 | H93: 4 | I93: 1 | J93: 0 | K93: 0
A94: AllLocal AuthoritySecure Children's HomeQuality of service1 | B94: All | C94: Local Authority | D94: Secure Children's Home | E94: Quality of service | F94: 1 | G94: 2 | H94: 2 | I94: 0 | J94: 0 | K94: 0
A95: AllLocal AuthoritySecure Children's HomeQuality of service2 | B95: All | C95: Local Authority | D95: Secure Children's Home | E95: Quality of service | F95: 2 | G95: 1 | H95: 0 | I95: 0 | J95: 0 | K95: 0
A96: AllLocal AuthoritySecure Children's HomeQuality of service3 | B96: All | C96: Local Authority | D96: Secure Children's Home | E96: Quality of service | F96: 3 | G96: 0 | H96: 1 | I96: 0 | J96: 0 | K96: 0
A97: AllLocal AuthoritySecure Children's HomeQuality of service4 | B97: All | C97: Local Authority | D97: Secure Children's Home | E97: Quality of service | F97: 4 | G97: 3 | H97: 3 | I97: 0 | J97: 0 | K97: 0
A98: AllLocal AuthoritySecure Children's HomeThe safety of children and young people1 | B98: All | C98: Local Authority | D98: Secure Children's Home | E98: The safety of children and young people | F98: 1 | G98: 1 | H98: 3 | I98: 0 | J98: 0 | K98: 0
A99: AllLocal AuthoritySecure Children's HomeThe safety of children and young people2 | B99: All | C99: Local Authority | D99: Secure Children's Home | E99: The safety of children and young people | F99: 2 | G99: 0 | H99: 0 | I99: 1 | J99: 0 | K99: 0
A100: AllLocal AuthoritySecure Children's HomeThe safety of children and young people3 | B100: All | C100: Local Authority | D100: Secure Children's Home | E100: The safety of children and young people | F100: 3 | G100: 0 | H100: 1 | I100: 0 | J100: 0 | K100: 0
A101: AllLocal AuthoritySecure Children's HomeThe safety of children and young people4 | B101: All | C101: Local Authority | D101: Secure Children's Home | E101: The safety of children and young people | F101: 4 | G101: 1 | H101: 4 | I101: 1 | J101: 0 | K101: 0
A102: AllPrivate/ voluntaryChildren's HomeLeadership and Management1 | B102: All | C102: Private/ voluntary | D102: Children's Home | E102: Leadership and Management | F102: 1 | G102: 30 | H102: 96 | I102: 44 | J102: 14 | K102: 0
A103: AllPrivate/ voluntaryChildren's HomeLeadership and Management2 | B103: All | C103: Private/ voluntary | D103: Children's Home | E103: Leadership and Management | F103: 2 | G103: 35 | H103: 80 | I103: 51 | J103: 7 | K103: 0
A104: AllPrivate/ voluntaryChildren's HomeLeadership and Management3 | B104: All | C104: Private/ voluntary | D104: Children's Home | E104: Leadership and Management | F104: 3 | G104: 19 | H104: 44 | I104: 19 | J104: 4 | K104: 0
A105: AllPrivate/ voluntaryChildren's HomeLeadership and Management4 | B105: All | C105: Private/ voluntary | D105: Children's Home | E105: Leadership and Management | F105: 4 | G105: 84 | H105: 220 | I105: 114 | J105: 25 | K105: 0
A106: AllPrivate/ voluntaryChildren's HomeOutcomes for children and young people1 | B106: All | C106: Private/ voluntary | D106: Children's Home | E106: Outcomes for children and young people | F106: 1 | G106: 44 | H106: 100 | I106: 35 | J106: 5 | K106: 0
A107: AllPrivate/ voluntaryChildren's HomeOutcomes for children and young people2 | B107: All | C107: Private/ voluntary | D107: Children's Home | E107: Outcomes for children and young people | F107: 2 | G107: 45 | H107: 100 | I107: 26 | J107: 2 | K107: 0
A108: AllPrivate/ voluntaryChildren's HomeOutcomes for children and young people3 | B108: All | C108: Private/ voluntary | D108: Children's Home | E108: Outcomes for children and young people | F108: 3 | G108: 26 | H108: 44 | I108: 15 | J108: 1 | K108: 0
A109: AllPrivate/ voluntaryChildren's HomeOutcomes for children and young people4 | B109: All | C109: Private/ voluntary | D109: Children's Home | E109: Outcomes for children and young people | F109: 4 | G109: 115 | H109: 244 | I109: 76 | J109: 8 | K109: 0
A110: AllPrivate/ voluntaryChildren's HomeOverall effectiveness1 | B110: All | C110: Private/ voluntary | D110: Children's Home | E110: Overall effectiveness | F110: 1 | G110: 26 | H110: 110 | I110: 36 | J110: 12 | K110: 0
A111: AllPrivate/ voluntaryChildren's HomeOverall effectiveness2 | B111: All | C111: Private/ voluntary | D111: Children's Home | E111: Overall effectiveness | F111: 2 | G111: 30 | H111: 98 | I111: 39 | J111: 6 | K111: 0
A112: AllPrivate/ voluntaryChildren's HomeOverall effectiveness3 | B112: All | C112: Private/ voluntary | D112: Children's Home | E112: Overall effectiveness | F112: 3 | G112: 19 | H112: 47 | I112: 17 | J112: 3 | K112: 0
A113: AllPrivate/ voluntaryChildren's HomeOverall effectiveness4 | B113: All | C113: Private/ voluntary | D113: Children's Home | E113: Overall effectiveness | F113: 4 | G113: 75 | H113: 255 | I113: 92 | J113: 21 | K113: 0
A114: AllPrivate/ voluntaryChildren's HomeQuality of service1 | B114: All | C114: Private/ voluntary | D114: Children's Home | E114: Quality of service | F114: 1 | G114: 58 | H114: 90 | I114: 31 | J114: 5 | K114: 0
A115: AllPrivate/ voluntaryChildren's HomeQuality of service2 | B115: All | C115: Private/ voluntary | D115: Children's Home | E115: Quality of service | F115: 2 | G115: 55 | H115: 88 | I115: 27 | J115: 3 | K115: 0
A116: AllPrivate/ voluntaryChildren's HomeQuality of service3 | B116: All | C116: Private/ voluntary | D116: Children's Home | E116: Quality of service | F116: 3 | G116: 35 | H116: 37 | I116: 13 | J116: 1 | K116: 0
A117: AllPrivate/ voluntaryChildren's HomeQuality of service4 | B117: All | C117: Private/ voluntary | D117: Children's Home | E117: Quality of service | F117: 4 | G117: 148 | H117: 215 | I117: 71 | J117: 9 | K117: 0
A118: AllPrivate/ voluntaryChildren's HomeThe safety of children and young people1 | B118: All | C118: Private/ voluntary | D118: Children's Home | E118: The safety of children and young people | F118: 1 | G118: 35 | H118: 102 | I118: 37 | J118: 10 | K118: 0
A119: AllPrivate/ voluntaryChildren's HomeThe safety of children and young people2 | B119: All | C119: Private/ voluntary | D119: Children's Home | E119: The safety of children and young people | F119: 2 | G119: 41 | H119: 84 | I119: 41 | J119: 7 | K119: 0
A120: AllPrivate/ voluntaryChildren's HomeThe safety of children and young people3 | B120: All | C120: Private/ voluntary | D120: Children's Home | E120: The safety of children and young people | F120: 3 | G120: 19 | H120: 46 | I120: 18 | J120: 3 | K120: 0
A121: AllPrivate/ voluntaryChildren's HomeThe safety of children and young people4 | B121: All | C121: Private/ voluntary | D121: Children's Home | E121: The safety of children and young people | F121: 4 | G121: 95 | H121: 232 | I121: 96 | J121: 20 | K121: 0
A122: AllPrivate/ voluntaryResidential special school (>295 days/year)Leadership and Management1 | B122: All | C122: Private/ voluntary | D122: Residential special school (>295 days/year) | E122: Leadership and Management | F122: 1 | G122: 2 | H122: 2 | I122: 4 | J122: 1 | K122: 0
A123: AllPrivate/ voluntaryResidential special school (>295 days/year)Leadership and Management2 | B123: All | C123: Private/ voluntary | D123: Residential special school (>295 days/year) | E123: Leadership and Management | F123: 2 | G123: 1 | H123: 4 | I123: 0 | J123: 0 | K123: 0
A124: AllPrivate/ voluntaryResidential special school (>295 days/year)Leadership and Management3 | B124: All | C124: Private/ voluntary | D124: Residential special school (>295 days/year) | E124: Leadership and Management | F124: 3 | G124: 0 | H124: 3 | I124: 1 | J124: 0 | K124: 0
A125: AllPrivate/ voluntaryResidential special school (>295 days/year)Leadership and Management4 | B125: All | C125: Private/ voluntary | D125: Residential special school (>295 days/year) | E125: Leadership and Management | F125: 4 | G125: 3 | H125: 9 | I125: 5 | J125: 1 | K125: 0
A126: AllPrivate/ voluntaryResidential special school (>295 days/year)Outcomes for children and young people1 | B126: All | C126: Private/ voluntary | D126: Residential special school (>295 days/year) | E126: Outcomes for children and young people | F126: 1 | G126: 4 | H126: 4 | I126: 1 | J126: 0 | K126: 0
A127: AllPrivate/ voluntaryResidential special school (>295 days/year)Outcomes for children and young people2 | B127: All | C127: Private/ voluntary | D127: Residential special school (>295 days/year) | E127: Outcomes for children and young people | F127: 2 | G127: 1 | H127: 4 | I127: 0 | J127: 0 | K127: 0
A128: AllPrivate/ voluntaryResidential special school (>295 days/year)Outcomes for children and young people3 | B128: All | C128: Private/ voluntary | D128: Residential special school (>295 days/year) | E128: Outcomes for children and young people | F128: 3 | G128: 1 | H128: 3 | I128: 0 | J128: 0 | K128: 0
A129: AllPrivate/ voluntaryResidential special school (>295 days/year)Outcomes for children and young people4 | B129: All | C129: Private/ voluntary | D129: Residential special school (>295 days/year) | E129: Outcomes for children and young people | F129: 4 | G129: 6 | H129: 11 | I129: 1 | J129: 0 | K129: 0
A130: AllPrivate/ voluntaryResidential special school (>295 days/year)Overall effectiveness1 | B130: All | C130: Private/ voluntary | D130: Residential special school (>295 days/year) | E130: Overall effectiveness | F130: 1 | G130: 2 | H130: 6 | I130: 0 | J130: 1 | K130: 0
A131: AllPrivate/ voluntaryResidential special school (>295 days/year)Overall effectiveness2 | B131: All | C131: Private/ voluntary | D131: Residential special school (>295 days/year) | E131: Overall effectiveness | F131: 2 | G131: 1 | H131: 4 | I131: 0 | J131: 0 | K131: 0
A132: AllPrivate/ voluntaryResidential special school (>295 days/year)Overall effectiveness3 | B132: All | C132: Private/ voluntary | D132: Residential special school (>295 days/year) | E132: Overall effectiveness | F132: 3 | G132: 0 | H132: 4 | I132: 0 | J132: 0 | K132: 0
A133: AllPrivate/ voluntaryResidential special school (>295 days/year)Overall effectiveness4 | B133: All | C133: Private/ voluntary | D133: Residential special school (>295 days/year) | E133: Overall effectiveness | F133: 4 | G133: 3 | H133: 14 | I133: 0 | J133: 1 | K133: 0
A134: AllPrivate/ voluntaryResidential special school (>295 days/year)Quality of service1 | B134: All | C134: Private/ voluntary | D134: Residential special school (>295 days/year) | E134: Quality of service | F134: 1 | G134: 3 | H134: 5 | I134: 0 | J134: 1 | K134: 0
A135: AllPrivate/ voluntaryResidential special school (>295 days/year)Quality of service2 | B135: All | C135: Private/ voluntary | D135: Residential special school (>295 days/year) | E135: Quality of service | F135: 2 | G135: 1 | H135: 4 | I135: 0 | J135: 0 | K135: 0
A136: AllPrivate/ voluntaryResidential special school (>295 days/year)Quality of service3 | B136: All | C136: Private/ voluntary | D136: Residential special school (>295 days/year) | E136: Quality of service | F136: 3 | G136: 1 | H136: 3 | I136: 0 | J136: 0 | K136: 0
A137: AllPrivate/ voluntaryResidential special school (>295 days/year)Quality of service4 | B137: All | C137: Private/ voluntary | D137: Residential special school (>295 days/year) | E137: Quality of service | F137: 4 | G137: 5 | H137: 12 | I137: 0 | J137: 1 | K137: 0
A138: AllPrivate/ voluntaryResidential special school (>295 days/year)The safety of children and young people1 | B138: All | C138: Private/ voluntary | D138: Residential special school (>295 days/year) | E138: The safety of children and young people | F138: 1 | G138: 3 | H138: 4 | I138: 1 | J138: 1 | K138: 0
A139: AllPrivate/ voluntaryResidential special school (>295 days/year)The safety of children and young people2 | B139: All | C139: Private/ voluntary | D139: Residential special school (>295 days/year) | E139: The safety of children and young people | F139: 2 | G139: 1 | H139: 4 | I139: 0 | J139: 0 | K139: 0
A140: AllPrivate/ voluntaryResidential special school (>295 days/year)The safety of children and young people3 | B140: All | C140: Private/ voluntary | D140: Residential special school (>295 days/year) | E140: The safety of children and young people | F140: 3 | G140: 0 | H140: 4 | I140: 0 | J140: 0 | K140: 0
A141: AllPrivate/ voluntaryResidential special school (>295 days/year)The safety of children and young people4 | B141: All | C141: Private/ voluntary | D141: Residential special school (>295 days/year) | E141: The safety of children and young people | F141: 4 | G141: 4 | H141: 12 | I141: 1 | J141: 1 | K141: 0
A142: Barking & DagenhamAllChildren's HomeLeadership and Management2 | B142: Barking & Dagenham | C142: All | D142: Children's Home | E142: Leadership and Management | F142: 2 | G142: 0 | H142: 0 | I142: 1 | J142: 0 | K142: 0
A143: Barking & DagenhamAllChildren's HomeLeadership and Management4 | B143: Barking & Dagenham | C143: All | D143: Children's Home | E143: Leadership and Management | F143: 4 | G143: 0 | H143: 0 | I143: 1 | J143: 0 | K143: 0
A144: Barking & DagenhamAllChildren's HomeOutcomes for children and young people2 | B144: Barking & Dagenham | C144: All | D144: Children's Home | E144: Outcomes for children and young people | F144: 2 | G144: 0 | H144: 1 | I144: 0 | J144: 0 | K144: 0
A145: Barking & DagenhamAllChildren's HomeOutcomes for children and young people4 | B145: Barking & Dagenham | C145: All | D145: Children's Home | E145: Outcomes for children and young people | F145: 4 | G145: 0 | H145: 1 | I145: 0 | J145: 0 | K145: 0
A146: Barking & DagenhamAllChildren's HomeOverall effectiveness2 | B146: Barking & Dagenham | C146: All | D146: Children's Home | E146: Overall effectiveness | F146: 2 | G146: 0 | H146: 1 | I146: 0 | J146: 0 | K146: 0
A147: Barking & DagenhamAllChildren's HomeOverall effectiveness4 | B147: Barking & Dagenham | C147: All | D147: Children's Home | E147: Overall effectiveness | F147: 4 | G147: 0 | H147: 1 | I147: 0 | J147: 0 | K147: 0
A148: Barking & DagenhamAllChildren's HomeQuality of service2 | B148: Barking & Dagenham | C148: All | D148: Children's Home | E148: Quality of service | F148: 2 | G148: 0 | H148: 1 | I148: 0 | J148: 0 | K148: 0
A149: Barking & DagenhamAllChildren's HomeQuality of service4 | B149: Barking & Dagenham | C149: All | D149: Children's Home | E149: Quality of service | F149: 4 | G149: 0 | H149: 1 | I149: 0 | J149: 0 | K149: 0
A150: Barking & DagenhamAllChildren's HomeThe safety of children and young people2 | B150: Barking & Dagenham | C150: All | D150: Children's Home | E150: The safety of children and young people | F150: 2 | G150: 0 | H150: 1 | I150: 0 | J150: 0 | K150: 0
A151: Barking & DagenhamAllChildren's HomeThe safety of children and young people4 | B151: Barking & Dagenham | C151: All | D151: Children's Home | E151: The safety of children and young people | F151: 4 | G151: 0 | H151: 1 | I151: 0 | J151: 0 | K151: 0
A152: Barking & DagenhamPrivate/ voluntaryChildren's HomeLeadership and Management2 | B152: Barking & Dagenham | C152: Private/ voluntary | D152: Children's Home | E152: Leadership and Management | F152: 2 | G152: 0 | H152: 0 | I152: 1 | J152: 0 | K152: 0
A153: Barking & DagenhamPrivate/ voluntaryChildren's HomeLeadership and Management4 | B153: Barking & Dagenham | C153: Private/ voluntary | D153: Children's Home | E153: Leadership and Management | F153: 4 | G153: 0 | H153: 0 | I153: 1 | J153: 0 | K153: 0
A154: Barking & DagenhamPrivate/ voluntaryChildren's HomeOutcomes for children and young people2 | B154: Barking & Dagenham | C154: Private/ voluntary | D154: Children's Home | E154: Outcomes for children and young people | F154: 2 | G154: 0 | H154: 1 | I154: 0 | J154: 0 | K154: 0
A155: Barking & DagenhamPrivate/ voluntaryChildren's HomeOutcomes for children and young people4 | B155: Barking & Dagenham | C155: Private/ voluntary | D155: Children's Home | E155: Outcomes for children and young people | F155: 4 | G155: 0 | H155: 1 | I155: 0 | J155: 0 | K155: 0
A156: Barking & DagenhamPrivate/ voluntaryChildren's HomeOverall effectiveness2 | B156: Barking & Dagenham | C156: Private/ voluntary | D156: Children's Home | E156: Overall effectiveness | F156: 2 | G156: 0 | H156: 1 | I156: 0 | J156: 0 | K156: 0
A157: Barking & DagenhamPrivate/ voluntaryChildren's HomeOverall effectiveness4 | B157: Barking & Dagenham | C157: Private/ voluntary | D157: Children's Home | E157: Overall effectiveness | F157: 4 | G157: 0 | H157: 1 | I157: 0 | J157: 0 | K157: 0
A158: Barking & DagenhamPrivate/ voluntaryChildren's HomeQuality of service2 | B158: Barking & Dagenham | C158: Private/ voluntary | D158: Children's Home | E158: Quality of service | F158: 2 | G158: 0 | H158: 1 | I158: 0 | J158: 0 | K158: 0
A159: Barking & DagenhamPrivate/ voluntaryChildren's HomeQuality of service4 | B159: Barking & Dagenham | C159: Private/ voluntary | D159: Children's Home | E159: Quality of service | F159: 4 | G159: 0 | H159: 1 | I159: 0 | J159: 0 | K159: 0
A160: Barking & DagenhamPrivate/ voluntaryChildren's HomeThe safety of children and young people2 | B160: Barking & Dagenham | C160: Private/ voluntary | D160: Children's Home | E160: The safety of children and young people | F160: 2 | G160: 0 | H160: 1 | I160: 0 | J160: 0 | K160: 0
A161: Barking & DagenhamPrivate/ voluntaryChildren's HomeThe safety of children and young people4 | B161: Barking & Dagenham | C161: Private/ voluntary | D161: Children's Home | E161: The safety of children and young people | F161: 4 | G161: 0 | H161: 1 | I161: 0 | J161: 0 | K161: 0
A162: BarnetAllChildren's HomeLeadership and Management2 | B162: Barnet | C162: All | D162: Children's Home | E162: Leadership and Management | F162: 2 | G162: 0 | H162: 0 | I162: 2 | J162: 0 | K162: 0
A163: BarnetAllChildren's HomeLeadership and Management4 | B163: Barnet | C163: All | D163: Children's Home | E163: Leadership and Management | F163: 4 | G163: 0 | H163: 0 | I163: 2 | J163: 0 | K163: 0
A164: BarnetAllChildren's HomeOutcomes for children and young people2 | B164: Barnet | C164: All | D164: Children's Home | E164: Outcomes for children and young people | F164: 2 | G164: 0 | H164: 2 | I164: 0 | J164: 0 | K164: 0
A165: BarnetAllChildren's HomeOutcomes for children and young people4 | B165: Barnet | C165: All | D165: Children's Home | E165: Outcomes for children and young people | F165: 4 | G165: 0 | H165: 2 | I165: 0 | J165: 0 | K165: 0
A166: BarnetAllChildren's HomeOverall effectiveness2 | B166: Barnet | C166: All | D166: Children's Home | E166: Overall effectiveness | F166: 2 | G166: 0 | H166: 2 | I166: 0 | J166: 0 | K166: 0
A167: BarnetAllChildren's HomeOverall effectiveness4 | B167: Barnet | C167: All | D167: Children's Home | E167: Overall effectiveness | F167: 4 | G167: 0 | H167: 2 | I167: 0 | J167: 0 | K167: 0
A168: BarnetAllChildren's HomeQuality of service2 | B168: Barnet | C168: All | D168: Children's Home | E168: Quality of service | F168: 2 | G168: 1 | H168: 1 | I168: 0 | J168: 0 | K168: 0
A169: BarnetAllChildren's HomeQuality of service4 | B169: Barnet | C169: All | D169: Children's Home | E169: Quality of service | F169: 4 | G169: 1 | H169: 1 | I169: 0 | J169: 0 | K169: 0
A170: BarnetAllChildren's HomeThe safety of children and young people2 | B170: Barnet | C170: All | D170: Children's Home | E170: The safety of children and young people | F170: 2 | G170: 0 | H170: 2 | I170: 0 | J170: 0 | K170: 0
A171: BarnetAllChildren's HomeThe safety of children and young people4 | B171: Barnet | C171: All | D171: Children's Home | E171: The safety of children and young people | F171: 4 | G171: 0 | H171: 2 | I171: 0 | J171: 0 | K171: 0
A172: BarnetLocal AuthorityChildren's HomeLeadership and Management2 | B172: Barnet | C172: Local Authority | D172: Children's Home | E172: Leadership and Management | F172: 2 | G172: 0 | H172: 0 | I172: 2 | J172: 0 | K172: 0
A173: BarnetLocal AuthorityChildren's HomeLeadership and Management4 | B173: Barnet | C173: Local Authority | D173: Children's Home | E173: Leadership and Management | F173: 4 | G173: 0 | H173: 0 | I173: 2 | J173: 0 | K173: 0
A174: BarnetLocal AuthorityChildren's HomeOutcomes for children and young people2 | B174: Barnet | C174: Local Authority | D174: Children's Home | E174: Outcomes for children and young people | F174: 2 | G174: 0 | H174: 2 | I174: 0 | J174: 0 | K174: 0
A175: BarnetLocal AuthorityChildren's HomeOutcomes for children and young people4 | B175: Barnet | C175: Local Authority | D175: Children's Home | E175: Outcomes for children and young people | F175: 4 | G175: 0 | H175: 2 | I175: 0 | J175: 0 | K175: 0
A176: BarnetLocal AuthorityChildren's HomeOverall effectiveness2 | B176: Barnet | C176: Local Authority | D176: Children's Home | E176: Overall effectiveness | F176: 2 | G176: 0 | H176: 2 | I176: 0 | J176: 0 | K176: 0
A177: BarnetLocal AuthorityChildren's HomeOverall effectiveness4 | B177: Barnet | C177: Local Authority | D177: Children's Home | E177: Overall effectiveness | F177: 4 | G177: 0 | H177: 2 | I177: 0 | J177: 0 | K177: 0
A178: BarnetLocal AuthorityChildren's HomeQuality of service2 | B178: Barnet | C178: Local Authority | D178: Children's Home | E178: Quality of service | F178: 2 | G178: 1 | H178: 1 | I178: 0 | J178: 0 | K178: 0
A179: BarnetLocal AuthorityChildren's HomeQuality of service4 | B179: Barnet | C179: Local Authority | D179: Children's Home | E179: Quality of service | F179: 4 | G179: 1 | H179: 1 | I179: 0 | J179: 0 | K179: 0
A180: BarnetLocal AuthorityChildren's HomeThe safety of children and young people2 | B180: Barnet | C180: Local Authority | D180: Children's Home | E180: The safety of children and young people | F180: 2 | G180: 0 | H180: 2 | I180: 0 | J180: 0 | K180: 0
A181: BarnetLocal AuthorityChildren's HomeThe safety of children and young people4 | B181: Barnet | C181: Local Authority | D181: Children's Home | E181: The safety of children and young people | F181: 4 | G181: 0 | H181: 2 | I181: 0 | J181: 0 | K181: 0
A182: BarnsleyAllChildren's HomeLeadership and Management1 | B182: Barnsley | C182: All | D182: Children's Home | E182: Leadership and Management | F182: 1 | G182: 2 | H182: 2 | I182: 0 | J182: 0 | K182: 0
A183: BarnsleyAllChildren's HomeLeadership and Management2 | B183: Barnsley | C183: All | D183: Children's Home | E183: Leadership and Management | F183: 2 | G183: 0 | H183: 1 | I183: 0 | J183: 0 | K183: 0
A184: BarnsleyAllChildren's HomeLeadership and Management3 | B184: Barnsley | C184: All | D184: Children's Home | E184: Leadership and Management | F184: 3 | G184: 1 | H184: 0 | I184: 0 | J184: 0 | K184: 0
A185: BarnsleyAllChildren's HomeLeadership and Management4 | B185: Barnsley | C185: All | D185: Children's Home | E185: Leadership and Management | F185: 4 | G185: 3 | H185: 3 | I185: 0 | J185: 0 | K185: 0
A186: BarnsleyAllChildren's HomeOutcomes for children and young people1 | B186: Barnsley | C186: All | D186: Children's Home | E186: Outcomes for children and young people | F186: 1 | G186: 0 | H186: 2 | I186: 2 | J186: 0 | K186: 0
A187: BarnsleyAllChildren's HomeOutcomes for children and young people2 | B187: Barnsley | C187: All | D187: Children's Home | E187: Outcomes for children and young people | F187: 2 | G187: 0 | H187: 1 | I187: 0 | J187: 0 | K187: 0
A188: BarnsleyAllChildren's HomeOutcomes for children and young people3 | B188: Barnsley | C188: All | D188: Children's Home | E188: Outcomes for children and young people | F188: 3 | G188: 0 | H188: 1 | I188: 0 | J188: 0 | K188: 0
A189: BarnsleyAllChildren's HomeOutcomes for children and young people4 | B189: Barnsley | C189: All | D189: Children's Home | E189: Outcomes for children and young people | F189: 4 | G189: 0 | H189: 4 | I189: 2 | J189: 0 | K189: 0
A190: BarnsleyAllChildren's HomeOverall effectiveness1 | B190: Barnsley | C190: All | D190: Children's Home | E190: Overall effectiveness | F190: 1 | G190: 2 | H190: 2 | I190: 0 | J190: 0 | K190: 0
A191: BarnsleyAllChildren's HomeOverall effectiveness2 | B191: Barnsley | C191: All | D191: Children's Home | E191: Overall effectiveness | F191: 2 | G191: 0 | H191: 1 | I191: 0 | J191: 0 | K191: 0
A192: BarnsleyAllChildren's HomeOverall effectiveness3 | B192: Barnsley | C192: All | D192: Children's Home | E192: Overall effectiveness | F192: 3 | G192: 0 | H192: 1 | I192: 0 | J192: 0 | K192: 0
A193: BarnsleyAllChildren's HomeOverall effectiveness4 | B193: Barnsley | C193: All | D193: Children's Home | E193: Overall effectiveness | F193: 4 | G193: 2 | H193: 4 | I193: 0 | J193: 0 | K193: 0
A194: BarnsleyAllChildren's HomeQuality of service1 | B194: Barnsley | C194: All | D194: Children's Home | E194: Quality of service | F194: 1 | G194: 2 | H194: 2 | I194: 0 | J194: 0 | K194: 0
A195: BarnsleyAllChildren's HomeQuality of service2 | B195: Barnsley | C195: All | D195: Children's Home | E195: Quality of service | F195: 2 | G195: 0 | H195: 1 | I195: 0 | J195: 0 | K195: 0
A196: BarnsleyAllChildren's HomeQuality of service3 | B196: Barnsley | C196: All | D196: Children's Home | E196: Quality of service | F196: 3 | G196: 1 | H196: 0 | I196: 0 | J196: 0 | K196: 0
A197: BarnsleyAllChildren's HomeQuality of service4 | B197: Barnsley | C197: All | D197: Children's Home | E197: Quality of service | F197: 4 | G197: 3 | H197: 3 | I197: 0 | J197: 0 | K197: 0
A198: BarnsleyAllChildren's HomeThe safety of children and young people1 | B198: Barnsley | C198: All | D198: Children's Home | E198: The safety of children and young people | F198: 1 | G198: 2 | H198: 1 | I198: 1 | J198: 0 | K198: 0
A199: BarnsleyAllChildren's HomeThe safety of children and young people2 | B199: Barnsley | C199: All | D199: Children's Home | E199: The safety of children and young people | F199: 2 | G199: 0 | H199: 1 | I199: 0 | J199: 0 | K199: 0
A200: BarnsleyAllChildren's HomeThe safety of children and young people3 | B200: Barnsley | C200: All | D200: Children's Home | E200: The safety of children and young people | F200: 3 | G200: 0 | H200: 1 | I200: 0 | J200: 0 | K200: 0
... 5156 more rows

Sheet Table 4
A1: =B2 -> Table 4: Overall effectiveness of children’s homes at full inspections between 1 July 2012 - 30 September 2012 by region and local authority (provisional)¹ ²
B2: =IF(ISERROR(VLOOKUP(D5,Ranges!F1:G12,2,0)), "Table 4: Overall effectiveness of children’s homes at full inspections between "&D5 & " by region and local authority (provisional)"&CHAR(185)&" "&CHAR(178),"Table 4: Overall effectiveness of children’s homes at full inspections in "&D5 & ", by region and local authority (provisional)"&CHAR(185)&" "&CHAR(178)) -> Table 4: Overall effectiveness of children’s homes at full inspections between 1 July 2012 - 30 September 2012 by region and local authority (provisional)¹ ²
B5: Select period: | D5: 1 July 2012 - 30 September 2012
B6: =VLOOKUP(D5,Periods,2,0) -> 4
B7: Select provider type: | D7: Children's home
B9: Select sector: | D9: Local authority
D12: Total number inspected | F12: Outstanding | H12: Good | J12: Adequate | L12: Inadequate
F13: 6 | H13: 7 | J13: 8 | L13: 9
A14: England | B14: England | D14: =F14+H14+J14+L14 -> 218 | F14: =F16+F30+F55+F72+F83+F99+F112+F147+F168+F186 -> 40 | H14: =H16+H30+H55+H72+H83+H99+H112+H147+H168+H186 -> 126 | J14: =J16+J30+J55+J72+J83+J99+J112+J147+J168+J186 -> 43 | L14: =L16+L30+L55+L72+L83+L99+L112+L147+L168+L186 -> 9
A16: North East | B16: North East | D16: =F16+H16+J16+L16 -> 28 | F16: =SUM(F17:F28) -> 1 | H16: =SUM(H17:H28) -> 23 | J16: =SUM(J17:J28) -> 4 | L16: =SUM(L17:L28) -> 0
A17: Darlington | B17: Darlington | D17: 2 | F17: =IF(ISERROR(VLOOKUP($A17&$D$9&$D$7&$B$6,Table4_data,F$13,0)),0,VLOOKUP($A17&$D$9&$D$7&$B$6,Table4_data,F$13,0)) -> 1 | H17: =IF(ISERROR(VLOOKUP($A17&$D$9&$D$7&$B$6,Table4_data,H$13,0)),0,VLOOKUP($A17&$D$9&$D$7&$B$6,Table4_data,H$13,0)) -> 1 | J17: =IF(ISERROR(VLOOKUP($A17&$D$9&$D$7&$B$6,Table4_data,J$13,0)),0,VLOOKUP($A17&$D$9&$D$7&$B$6,Table4_data,J$13,0)) -> 0 | L17: =IF(ISERROR(VLOOKUP($A17&$D$9&$D$7&$B$6,Table4_data,L$13,0)),0,VLOOKUP($A17&$D$9&$D$7&$B$6,Table4_data,L$13,0)) -> 0
A18: Durham | B18: Durham | D18: 6 | F18: 0 | H18: 6 | J18: 0 | L18: 0
A19: Gateshead | B19: Gateshead | D19: 3 | F19: 0 | H19: 3 | J19: 0 | L19: 0
A20: Hartlepool | B20: Hartlepool | D20: 1 | F20: 0 | H20: 1 | J20: 0 | L20: 0
A21: Middlesbrough | B21: Middlesbrough | D21: 1 | F21: 0 | H21: 1 | J21: 0 | L21: 0
A22: Newcastle upon Tyne | B22: Newcastle upon Tyne | D22: 4 | F22: 0 | H22: 4 | J22: 0 | L22: 0
A23: North Tyneside | B23: North Tyneside | D23: 3 | F23: 0 | H23: 2 | J23: 1 | L23: 0
A24: Northumberland | B24: Northumberland | D24: 2 | F24: 0 | H24: 2 | J24: 0 | L24: 0
A25: Redcar & Cleveland | B25: Redcar & Cleveland | D25: 1 | F25: =IF(ISERROR(VLOOKUP($A25&$D$9&$D$7&$B$6,Table4_data,F$13,0)),0,VLOOKUP($A25&$D$9&$D$7&$B$6,Table4_data,F$13,0)) -> 0 | H25: 1 | J25: =IF(ISERROR(VLOOKUP($A25&$D$9&$D$7&$B$6,Table4_data,J$13,0)),0,VLOOKUP($A25&$D$9&$D$7&$B$6,Table4_data,J$13,0)) -> 0 | L25: =IF(ISERROR(VLOOKUP($A25&$D$9&$D$7&$B$6,Table4_data,L$13,0)),0,VLOOKUP($A25&$D$9&$D$7&$B$6,Table4_data,L$13,0)) -> 0
A26: South Tyneside | B26: South Tyneside | D26: 2 | F26: 0 | H26: 2 | J26: 0 | L26: 0
A27: Stockton-on-Tees | B27: Stockton-on-Tees | D27: 2 | F27: 0 | H27: 0 | J27: 2 | L27: 0
A28: Sunderland | B28: Sunderland | D28: 1 | F28: 0 | H28: 0 | J28: 1 | L28: 0
A30: North West | B30: North West | D30: 30 | F30: =SUM(F31:F53) -> 11 | H30: =SUM(H31:H53) -> 15 | J30: =SUM(J31:J53) -> 4 | L30: =SUM(L31:L53) -> 0
A31: Blackburn with Darwen | B31: Blackburn with Darwen | D31: 3 | F31: =IF(ISERROR(VLOOKUP($A31&$D$9&$D$7&$B$6,Table4_data,F$13,0)),0,VLOOKUP($A31&$D$9&$D$7&$B$6,Table4_data,F$13,0)) -> 0 | H31: =IF(ISERROR(VLOOKUP($A31&$D$9&$D$7&$B$6,Table4_data,H$13,0)),0,VLOOKUP($A31&$D$9&$D$7&$B$6,Table4_data,H$13,0)) -> 2 | J31: =IF(ISERROR(VLOOKUP($A31&$D$9&$D$7&$B$6,Table4_data,J$13,0)),0,VLOOKUP($A31&$D$9&$D$7&$B$6,Table4_data,J$13,0)) -> 1 | L31: =IF(ISERROR(VLOOKUP($A31&$D$9&$D$7&$B$6,Table4_data,L$13,0)),0,VLOOKUP($A31&$D$9&$D$7&$B$6,Table4_data,L$13,0)) -> 0
A32: Blackpool | B32: Blackpool | D32: 0 | F32: 0 | H32: 0 | J32: 0 | L32: 0
A33: Bolton | B33: Bolton | D33: 3 | F33: 2 | H33: 0 | J33: 1 | L33: 0
A34: Bury | B34: Bury | D34: 0 | F34: 0 | H34: 0 | J34: 0 | L34: 0
A35: Cheshire East | B35: Cheshire East | D35: 1 | F35: 1 | H35: 0 | J35: 0 | L35: 0
A36: Cheshire West and Chester | B36: Cheshire West and Chester | D36: 0 | F36: 0 | H36: 0 | J36: 0 | L36: 0
A37: Cumbria | B37: Cumbria | D37: 1 | F37: 0 | H37: 1 | J37: 0 | L37: 0
A38: Halton | B38: Halton | D38: 1 | F38: 1 | H38: 0 | J38: 0 | L38: 0
A39: Knowsley | B39: Knowsley | D39: 0 | F39: 0 | H39: 0 | J39: 0 | L39: 0
A40: Lancashire | B40: Lancashire | D40: 4 | F40: 3 | H40: 1 | J40: 0 | L40: 0
A41: Liverpool | B41: Liverpool | D41: 0 | F41: 0 | H41: 0 | J41: 0 | L41: 0
A42: Manchester | B42: Manchester | D42: 3 | F42: 1 | H42: 2 | J42: 0 | L42: 0
A43: Oldham | B43: Oldham | D43: 2 | F43: 1 | H43: 1 | J43: 0 | L43: 0
A44: Rochdale | B44: Rochdale | D44: 1 | F44: 0 | H44: 1 | J44: 0 | L44: 0
A45: Salford | B45: Salford | D45: 1 | F45: 0 | H45: 1 | J45: 0 | L45: 0
A46: Sefton | B46: Sefton | D46: 1 | F46: 0 | H46: 1 | J46: 0 | L46: 0
A47: St. Helens | B47: St. Helens | D47: 1 | F47: 0 | H47: 0 | J47: 1 | L47: 0
A48: Stockport | B48: Stockport | D48: 1 | F48: 0 | H48: 1 | J48: 0 | L48: 0
A49: Tameside | B49: Tameside | D49: 0 | F49: 0 | H49: 0 | J49: 0 | L49: 0
A50: Trafford | B50: Trafford | D50: 0 | F50: 0 | H50: 0 | J50: 0 | L50: 0
A51: Warrington | B51: Warrington | D51: 3 | F51: 0 | H51: 3 | J51: 0 | L51: 0
A52: Wigan | B52: Wigan | D52: 4 | F52: 2 | H52: 1 | J52: 1 | L52: 0
A53: Wirral | B53: Wirral | D53: 0 | F53: 0 | H53: 0 | J53: 0 | L53: 0
A55: Yorkshire and the Humber | B55: Yorkshire and The Humber | D55: 33 | F55: =SUM(F56:F70) -> 4 | H55: =SUM(H56:H70) -> 22 | J55: =SUM(J56:J70) -> 5 | L55: =SUM(L56:L70) -> 2
A56: Barnsley | B56: Barnsley | D56: 1 | F56: =IF(ISERROR(VLOOKUP($A56&$D$9&$D$7&$B$6,Table4_data,F$13,0)),0,VLOOKUP($A56&$D$9&$D$7&$B$6,Table4_data,F$13,0)) -> 0 | H56: =IF(ISERROR(VLOOKUP($A56&$D$9&$D$7&$B$6,Table4_data,H$13,0)),0,VLOOKUP($A56&$D$9&$D$7&$B$6,Table4_data,H$13,0)) -> 1 | J56: =IF(ISERROR(VLOOKUP($A56&$D$9&$D$7&$B$6,Table4_data,J$13,0)),0,VLOOKUP($A56&$D$9&$D$7&$B$6,Table4_data,J$13,0)) -> 0 | L56: =IF(ISERROR(VLOOKUP($A56&$D$9&$D$7&$B$6,Table4_data,L$13,0)),0,VLOOKUP($A56&$D$9&$D$7&$B$6,Table4_data,L$13,0)) -> 0
A57: Bradford | B57: Bradford | D57: 3 | F57: 0 | H57: 3 | J57: 0 | L57: 0
A58: Calderdale | B58: Calderdale | D58: 2 | F58: 0 | H58: 1 | J58: 0 | L58: 1
A59: Doncaster | B59: Doncaster | D59: 4 | F59: 0 | H59: 2 | J59: 2 | L59: 0
A60: East Riding of Yorkshire | B60: East Riding of Yorkshire | D60: 0 | F60: 0 | H60: 0 | J60: 0 | L60: 0
A61: Kingston upon Hull | B61: Kingston upon Hull | D61: 3 | F61: 1 | H61: 0 | J61: 1 | L61: 1
A62: Kirklees | B62: Kirklees | D62: 0 | F62: 0 | H62: 0 | J62: 0 | L62: 0
A63: Leeds | B63: Leeds | D63: 5 | F63: 1 | H63: 3 | J63: 1 | L63: 0
A64: North East Lincolnshire | B64: North East Lincolnshire | D64: 5 | F64: 0 | H64: 5 | J64: 0 | L64: 0
A65: North Lincolnshire | B65: North Lincolnshire | D65: 1 | F65: 0 | H65: 1 | J65: 0 | L65: 0
A66: North Yorkshire | B66: North Yorkshire | D66: 6 | F66: 2 | H66: 4 | J66: 0 | L66: 0
A67: Rotherham | B67: Rotherham | D67: 1 | F67: 0 | H67: 0 | J67: 1 | L67: 0
A68: Sheffield | B68: Sheffield | D68: 2 | F68: 0 | H68: 2 | J68: 0 | L68: 0
A69: Wakefield | B69: Wakefield | D69: 0 | F69: 0 | H69: 0 | J69: 0 | L69: 0
A70: York | B70: York | D70: 0 | F70: 0 | H70: 0 | J70: 0 | L70: 0
A72: East Midlands | B72: East Midlands | D72: 20 | F72: =SUM(F73:F81) -> 3 | H72: =SUM(H73:H81) -> 10 | J72: =SUM(J73:J81) -> 5 | L72: =SUM(L73:L81) -> 2
A73: Derby city | B73: Derby City | D73: 3 | F73: =IF(ISERROR(VLOOKUP($A73&$D$9&$D$7&$B$6,Table4_data,F$13,0)),0,VLOOKUP($A73&$D$9&$D$7&$B$6,Table4_data,F$13,0)) -> 0 | H73: =IF(ISERROR(VLOOKUP($A73&$D$9&$D$7&$B$6,Table4_data,H$13,0)),0,VLOOKUP($A73&$D$9&$D$7&$B$6,Table4_data,H$13,0)) -> 1 | J73: =IF(ISERROR(VLOOKUP($A73&$D$9&$D$7&$B$6,Table4_data,J$13,0)),0,VLOOKUP($A73&$D$9&$D$7&$B$6,Table4_data,J$13,0)) -> 2 | L73: =IF(ISERROR(VLOOKUP($A73&$D$9&$D$7&$B$6,Table4_data,L$13,0)),0,VLOOKUP($A73&$D$9&$D$7&$B$6,Table4_data,L$13,0)) -> 0
A74: Derbyshire | B74: Derbyshire | D74: 5 | F74: 0 | H74: 2 | J74: 3 | L74: 0
A75: Leicester | B75: Leicester City | D75: 0 | F75: 0 | H75: 0 | J75: 0 | L75: 0
A76: Leicestershire | B76: Leicestershire | D76: 1 | F76: 1 | H76: 0 | J76: 0 | L76: 0
A77: Lincolnshire | B77: Lincolnshire | D77: 2 | F77: 0 | H77: 2 | J77: 0 | L77: 0
A78: Northamptonshire | B78: Northamptonshire | D78: 3 | F78: 1 | H78: 1 | J78: 0 | L78: 1
A79: Nottingham City | B79: Nottingham City | D79: =F79+H79+J79+L79 -> 4 | F79: 1 | H79: 2 | J79: 0 | L79: 1
A80: Nottinghamshire | B80: Nottinghamshire | D80: 2 | F80: 0 | H80: 2 | J80: 0 | L80: 0
A81: Rutland | B81: Rutland | D81: 0 | F81: 0 | H81: 0 | J81: 0 | L81: 0
A83: West Midlands | B83: West Midlands | D83: 33 | F83: =SUM(F84:F97) -> 12 | H83: =SUM(H84:H97) -> 14 | J83: =SUM(J84:J97) -> 5 | L83: =SUM(L84:L97) -> 2
A84: Birmingham | B84: Birmingham | D84: 10 | F84: =IF(ISERROR(VLOOKUP($A84&$D$9&$D$7&$B$6,Table4_data,F$13,0)),0,VLOOKUP($A84&$D$9&$D$7&$B$6,Table4_data,F$13,0)) -> 1 | H84: =IF(ISERROR(VLOOKUP($A84&$D$9&$D$7&$B$6,Table4_data,H$13,0)),0,VLOOKUP($A84&$D$9&$D$7&$B$6,Table4_data,H$13,0)) -> 5 | J84: =IF(ISERROR(VLOOKUP($A84&$D$9&$D$7&$B$6,Table4_data,J$13,0)),0,VLOOKUP($A84&$D$9&$D$7&$B$6,Table4_data,J$13,0)) -> 3 | L84: =IF(ISERROR(VLOOKUP($A84&$D$9&$D$7&$B$6,Table4_data,L$13,0)),0,VLOOKUP($A84&$D$9&$D$7&$B$6,Table4_data,L$13,0)) -> 1
A85: Coventry | B85: Coventry | D85: 3 | F85: 0 | H85: 3 | J85: 0 | L85: 0
A86: Dudley | B86: Dudley | D86: 2 | F86: 2 | H86: 0 | J86: 0 | L86: 0
A87: Herefordshire | B87: Herefordshire | D87: 0 | F87: 0 | H87: 0 | J87: 0 | L87: 0
A88: Sandwell | B88: Sandwell | D88: 0 | F88: 0 | H88: 0 | J88: 0 | L88: 0
A89: Shropshire | B89: Shropshire | D89: 3 | F89: 0 | H89: 3 | J89: 0 | L89: 0
A90: Solihull | B90: Solihull | D90: 0 | F90: 0 | H90: 0 | J90: 0 | L90: 0
A91: Staffordshire | B91: Staffordshire | D91: 3 | F91: 2 | H91: 0 | J91: 1 | L91: 0
A92: Stoke-on-Trent | B92: Stoke-on-Trent | D92: 3 | F92: 3 | H92: 0 | J92: 0 | L92: 0
A93: Telford & Wrekin | B93: Telford & Wrekin | D93: 0 | F93: 0 | H93: 0 | J93: 0 | L93: 0
A94: Walsall | B94: Walsall | D94: 3 | F94: 2 | H94: 1 | J94: 0 | L94: 0
A95: Warwickshire | B95: Warwickshire | D95: 0 | F95: 0 | H95: 0 | J95: 0 | L95: 0
A96: Wolverhampton | B96: Wolverhampton | D96: 3 | F96: 0 | H96: 1 | J96: 1 | L96: 1
A97: Worcestershire | B97: Worcestershire | D97: 3 | F97: 2 | H97: 1 | J97: 0 | L97: 0
A99: East of England | B99: East of England | D99: 13 | F99: =SUM(F100:F110) -> 1 | H99: =SUM(H100:H110) -> 6 | J99: =SUM(J100:J110) -> 6 | L99: =SUM(L100:L110) -> 0
A100: Bedford borough | B100: Bedford borough | D100: 2 | F100: =IF(ISERROR(VLOOKUP($A100&$D$9&$D$7&$B$6,Table4_data,F$13,0)),0,VLOOKUP($A100&$D$9&$D$7&$B$6,Table4_data,F$13,0)) -> 0 | H100: =IF(ISERROR(VLOOKUP($A100&$D$9&$D$7&$B$6,Table4_data,H$13,0)),0,VLOOKUP($A100&$D$9&$D$7&$B$6,Table4_data,H$13,0)) -> 2 | J100: =IF(ISERROR(VLOOKUP($A100&$D$9&$D$7&$B$6,Table4_data,J$13,0)),0,VLOOKUP($A100&$D$9&$D$7&$B$6,Table4_data,J$13,0)) -> 0 | L100: =IF(ISERROR(VLOOKUP($A100&$D$9&$D$7&$B$6,Table4_data,L$13,0)),0,VLOOKUP($A100&$D$9&$D$7&$B$6,Table4_data,L$13,0)) -> 0
A101: Cambridgeshire | B101: Cambridgeshire | D101: 2 | F101: =IF(ISERROR(VLOOKUP($A101&$D$9&$D$7&$B$6,Table4_data,F$13,0)),0,VLOOKUP($A101&$D$9&$D$7&$B$6,Table4_data,F$13,0)) -> 0 | H101: 0 | J101: 2 | L101: 0
A102: Central Bedfordshire | B102: Central Bedfordshire | D102: 1 | F102: 0 | H102: 1 | J102: 0 | L102: 0
A103: Essex | B103: Essex | D103: 1 | F103: 0 | H103: 0 | J103: 1 | L103: 0
A104: Hertfordshire | B104: Hertfordshire | D104: 2 | F104: 1 | H104: 1 | J104: 0 | L104: 0
A105: Luton | B105: Luton | D105: 1 | F105: 0 | H105: 0 | J105: 1 | L105: 0
A106: Norfolk | B106: Norfolk | D106: 2 | F106: 0 | H106: 1 | J106: 1 | L106: 0
A107: Peterborough | B107: Peterborough | D107: 0 | F107: 0 | H107: 0 | J107: 0 | L107: 0
A108: Southend | B108: Southend | D108: 0 | F108: 0 | H108: 0 | J108: 0 | L108: 0
A109: Suffolk | B109: Suffolk | D109: 2 | F109: 0 | H109: 1 | J109: 1 | L109: 0
A110: Thurrock | B110: Thurrock | D110: 0 | F110: 0 | H110: 0 | J110: 0 | L110: 0
A112: London | B112: London | D112: 14 | F112: =SUM(F113:F145) -> 1 | H112: =SUM(H113:H145) -> 9 | J112: =SUM(J113:J145) -> 3 | L112: =SUM(L113:L145) -> 1
A113: Barking & Dagenham | B113: Barking & Dagenham | D113: 0 | F113: =IF(ISERROR(VLOOKUP($A113&$D$9&$D$7&$B$6,Table4_data,F$13,0)),0,VLOOKUP($A113&$D$9&$D$7&$B$6,Table4_data,F$13,0)) -> 0 | H113: =IF(ISERROR(VLOOKUP($A113&$D$9&$D$7&$B$6,Table4_data,H$13,0)),0,VLOOKUP($A113&$D$9&$D$7&$B$6,Table4_data,H$13,0)) -> 0 | J113: =IF(ISERROR(VLOOKUP($A113&$D$9&$D$7&$B$6,Table4_data,J$13,0)),0,VLOOKUP($A113&$D$9&$D$7&$B$6,Table4_data,J$13,0)) -> 0 | L113: =IF(ISERROR(VLOOKUP($A113&$D$9&$D$7&$B$6,Table4_data,L$13,0)),0,VLOOKUP($A113&$D$9&$D$7&$B$6,Table4_data,L$13,0)) -> 0
A114: Barnet | B114: Barnet | D114: 2 | F114: 0 | H114: 2 | J114: 0 | L114: 0
A115: Bexley | B115: Bexley | D115: 0 | F115: 0 | H115: 0 | J115: 0 | L115: 0
A116: Brent | B116: Brent | D116: 0 | F116: 0 | H116: 0 | J116: 0 | L116: 0
A117: Bromley | B117: Bromley | D117: 0 | F117: 0 | H117: 0 | J117: 0 | L117: 0
A118: Camden | B118: Camden | D118: 0 | F118: 0 | H118: 0 | J118: 0 | L118: 0
A119: City of London | B119: City of London | D119: 0 | F119: 0 | H119: 0 | J119: 0 | L119: 0
A120: Croydon | B120: Croydon | D120: 0 | F120: 0 | H120: 0 | J120: 0 | L120: 0
A121: Ealing | B121: Ealing | D121: 1 | F121: 0 | H121: 1 | J121: 0 | L121: 0
A122: Enfield | B122: Enfield | D122: 0 | F122: 0 | H122: 0 | J122: 0 | L122: 0
A123: Greenwich | B123: Greenwich | D123: 1 | F123: 0 | H123: 0 | J123: 1 | L123: 0
A124: Hackney | B124: Hackney | D124: 0 | F124: 0 | H124: 0 | J124: 0 | L124: 0
A125: Hammersmith & Fulham | B125: Hammersmith & Fulham | D125: 0 | F125: 0 | H125: 0 | J125: 0 | L125: 0
A126: Haringey | B126: Haringey | D126: 1 | F126: 0 | H126: 0 | J126: 0 | L126: 1
A127: Harrow | B127: Harrow | D127: 2 | F127: 1 | H127: 1 | J127: 0 | L127: 0
A128: Havering | B128: Havering | D128: 0 | F128: 0 | H128: 0 | J128: 0 | L128: 0
A129: Hillingdon | B129: Hillingdon | D129: 1 | F129: 0 | H129: 1 | J129: 0 | L129: 0
A130: Hounslow | B130: Hounslow | D130: 2 | F130: 0 | H130: 1 | J130: 1 | L130: 0
A131: Islington | B131: Islington | D131: 0 | F131: 0 | H131: 0 | J131: 0 | L131: 0
A132: Kensington and Chelsea | B132: Kensington and Chelsea | D132: 1 | F132: 0 | H132: 1 | J132: 0 | L132: 0
A133: Kingston upon Thames | B133: Kingston upon Thames | D133: 0 | F133: 0 | H133: 0 | J133: 0 | L133: 0
A134: Lambeth | B134: Lambeth | D134: 0 | F134: 0 | H134: 0 | J134: 0 | L134: 0
A135: Lewisham | B135: Lewisham | D135: 0 | F135: 0 | H135: 0 | J135: 0 | L135: 0
A136: Merton | B136: Merton | D136: 1 | F136: 0 | H136: 1 | J136: 0 | L136: 0
A137: Newham | B137: Newham | D137: 0 | F137: 0 | H137: 0 | J137: 0 | L137: 0
A138: Redbridge | B138: Redbridge | D138: 0 | F138: 0 | H138: 0 | J138: 0 | L138: 0
A139: Richmond upon Thames | B139: Richmond upon Thames | D139: 0 | F139: 0 | H139: 0 | J139: 0 | L139: 0
A140: Southwark | B140: Southwark | D140: 0 | F140: 0 | H140: 0 | J140: 0 | L140: 0
A141: Sutton | B141: Sutton | D141: 0 | F141: 0 | H141: 0 | J141: 0 | L141: 0
A142: Tower Hamlets | B142: Tower Hamlets | D142: 1 | F142: 0 | H142: 0 | J142: 1 | L142: 0
A143: Waltham Forest | B143: Waltham Forest | D143: =F143+H143+J143+L143 -> 0 | F143: 0 | H143: 0 | J143: 0 | L143: 0
A144: Wandsworth | B144: Wandsworth | D144: 1 | F144: 0 | H144: 1 | J144: 0 | L144: 0
A145: Westminster | B145: Westminster | D145: 0 | F145: 0 | H145: 0 | J145: 0 | L145: 0
A147: South East | B147: South East | D147: 26 | F147: =SUM(F148:F166) -> 6 | H147: =SUM(H148:H166) -> 17 | J147: =SUM(J148:J166) -> 3 | L147: =SUM(L148:L166) -> 0
A148: Bracknell Forest | B148: Bracknell Forest | D148: 1 | F148: =IF(ISERROR(VLOOKUP($A148&$D$9&$D$7&$B$6,Table4_data,F$13,0)),0,VLOOKUP($A148&$D$9&$D$7&$B$6,Table4_data,F$13,0)) -> 1 | H148: =IF(ISERROR(VLOOKUP($A148&$D$9&$D$7&$B$6,Table4_data,H$13,0)),0,VLOOKUP($A148&$D$9&$D$7&$B$6,Table4_data,H$13,0)) -> 0 | J148: =IF(ISERROR(VLOOKUP($A148&$D$9&$D$7&$B$6,Table4_data,J$13,0)),0,VLOOKUP($A148&$D$9&$D$7&$B$6,Table4_data,J$13,0)) -> 0 | L148: =IF(ISERROR(VLOOKUP($A148&$D$9&$D$7&$B$6,Table4_data,L$13,0)),0,VLOOKUP($A148&$D$9&$D$7&$B$6,Table4_data,L$13,0)) -> 0
A149: Brighton & Hove | B149: Brighton & Hove | D149: 0 | F149: 0 | H149: 0 | J149: 0 | L149: 0
A150: Buckinghamshire | B150: Buckinghamshire | D150: 0 | F150: 0 | H150: 0 | J150: 0 | L150: 0
A151: East Sussex | B151: East Sussex | D151: 3 | F151: 1 | H151: 2 | J151: 0 | L151: 0
A152: Hampshire | B152: Hampshire | D152: 2 | F152: 0 | H152: 2 | J152: 0 | L152: 0
A153: Isle of Wight | B153: Isle of Wight | D153: 1 | F153: 0 | H153: 1 | J153: 0 | L153: 0
A154: Kent | B154: Kent | D154: 2 | F154: 0 | H154: 2 | J154: 0 | L154: 0
A155: Medway | B155: Medway | D155: 1 | F155: 0 | H155: 1 | J155: 0 | L155: 0
A156: Milton Keynes | B156: Milton Keynes | D156: 1 | F156: 0 | H156: 1 | J156: 0 | L156: 0
A157: Oxfordshire | B157: Oxfordshire | D157: 1 | F157: 1 | H157: 0 | J157: 0 | L157: 0
A158: Portsmouth | B158: Portsmouth | D158: 3 | F158: 0 | H158: 2 | J158: 1 | L158: 0
A159: Reading | B159: Reading | D159: 1 | F159: 0 | H159: 0 | J159: 1 | L159: 0
A160: Slough | B160: Slough | D160: 1 | F160: 0 | H160: 1 | J160: 0 | L160: 0
A161: Southampton | B161: Southampton | D161: 0 | F161: 0 | H161: 0 | J161: 0 | L161: 0
A162: Surrey | B162: Surrey | D162: 3 | F162: 1 | H162: 1 | J162: 1 | L162: 0
A163: West Berkshire | B163: West Berkshire | D163: 1 | F163: 0 | H163: 1 | J163: 0 | L163: 0
A164: West Sussex | B164: West Sussex | D164: 4 | F164: 2 | H164: 2 | J164: 0 | L164: 0
A165: Windsor and Maidenhead | B165: Windsor and Maidenhead | D165: 0 | F165: 0 | H165: 0 | J165: 0 | L165: 0
A166: Wokingham | B166: Wokingham | D166: 1 | F166: 0 | H166: 1 | J166: 0 | L166: 0
A168: South West | B168: South West | D168: 21 | F168: =SUM(F169:F184) -> 1 | H168: =SUM(H169:H184) -> 10 | J168: =SUM(J169:J184) -> 8 | L168: =SUM(L169:L184) -> 2
A169: Bath & North East Somerset | B169: Bath & North East Somerset | D169: 0 | F169: =IF(ISERROR(VLOOKUP($A169&$D$9&$D$7&$B$6,Table4_data,F$13,0)),0,VLOOKUP($A169&$D$9&$D$7&$B$6,Table4_data,F$13,0)) -> 0 | H169: =IF(ISERROR(VLOOKUP($A169&$D$9&$D$7&$B$6,Table4_data,H$13,0)),0,VLOOKUP($A169&$D$9&$D$7&$B$6,Table4_data,H$13,0)) -> 0 | J169: =IF(ISERROR(VLOOKUP($A169&$D$9&$D$7&$B$6,Table4_data,J$13,0)),0,VLOOKUP($A169&$D$9&$D$7&$B$6,Table4_data,J$13,0)) -> 0 | L169: =IF(ISERROR(VLOOKUP($A169&$D$9&$D$7&$B$6,Table4_data,L$13,0)),0,VLOOKUP($A169&$D$9&$D$7&$B$6,Table4_data,L$13,0)) -> 0
A170: Bournemouth | B170: Bournemouth | D170: 1 | F170: 0 | H170: 0 | J170: 1 | L170: 0
A171: Bristol | B171: Bristol | D171: 4 | F171: 0 | H171: 2 | J171: 2 | L171: 0
A172: Cornwall | B172: Cornwall | D172: 9 | F172: 0 | H172: 5 | J172: 3 | L172: 1
A173: Devon | B173: Devon | D173: 1 | F173: 0 | H173: 1 | J173: 0 | L173: 0
A174: Dorset | B174: Dorset | D174: 0 | F174: 0 | H174: 0 | J174: 0 | L174: 0
A175: Gloucestershire | B175: Gloucestershire | D175: 2 | F175: 1 | H175: 0 | J175: 1 | L175: 0
A176: Isles Of Scilly | B176: Isles Of Scilly | D176: 0 | F176: 0 | H176: 0 | J176: 0 | L176: 0
A177: North Somerset | B177: North Somerset | D177: 0 | F177: 0 | H177: 0 | J177: 0 | L177: 0
A178: Plymouth | B178: Plymouth | D178: 0 | F178: 0 | H178: 0 | J178: 0 | L178: 0
A179: Poole | B179: Poole | D179: 0 | F179: 0 | H179: 0 | J179: 0 | L179: 0
A180: Somerset | B180: Somerset | D180: 3 | F180: 0 | H180: 1 | J180: 1 | L180: 1
A181: South Gloucestershire | B181: South Gloucestershire | D181: 1 | F181: 0 | H181: 1 | J181: 0 | L181: 0
A182: Swindon | B182: Swindon | D182: 0 | F182: 0 | H182: 0 | J182: 0 | L182: 0
A183: Torbay | B183: Torbay | D183: 0 | F183: 0 | H183: 0 | J183: 0 | L183: 0
A184: Wiltshire | B184: Wiltshire | D184: 0 | F184: 0 | H184: 0 | J184: 0 | L184: 0
A186: nr | B186: Region not recorded | D186: 0 | F186: =SUM(F187) -> 0 | H186: =SUM(H187) -> 0 | J186: =SUM(J187) -> 0 | L186: =SUM(L187) -> 0
A187: LA not recorded | B187: Local authority not recorded | D187: 0 | F187: =IF(ISERROR(VLOOKUP($A187&$D$9&$D$7&$B$6,Table4_data,F$13,0)),0,VLOOKUP($A187&$D$9&$D$7&$B$6,Table4_data,F$13,0)) -> 0 | H187: =IF(ISERROR(VLOOKUP($A187&$D$9&$D$7&$B$6,Table4_data,H$13,0)),0,VLOOKUP($A187&$D$9&$D$7&$B$6,Table4_data,H$13,0)) -> 0 | J187: =IF(ISERROR(VLOOKUP($A187&$D$9&$D$7&$B$6,Table4_data,J$13,0)),0,VLOOKUP($A187&$D$9&$D$7&$B$6,Table4_data,J$13,0)) -> 0 | L187: =IF(ISERROR(VLOOKUP($A187&$D$9&$D$7&$B$6,Table4_data,L$13,0)),0,VLOOKUP($A187&$D$9&$D$7&$B$6,Table4_data,L$13,0)) -> 0
L189: Source: Ofsted inspections
B191: 1. The 'all' figures include all homes, of all ownership type, in the local authority area. Local authority run homes data include a small number of homes run by health authorities.
B192: 2. Residential special schools that care for pupils for more than 295 days per year must register as children's homes and are separately designated in the drop-down list as 'residential special school (ch)'.

Sheet Table4_Data (hidden)
A1: Table 4: overall care outcome of children's social care providers inspected between 01/04/2011 and 30/06/2011 by region and local authority (provisional)
A2: Lookup | B2: Local Authority | C2: Sector | D2: Corporate Inspected Provision Type Group Name | E2: Month | F2: Outstanding | G2: Good | H2: Adequate | I2: Inadequate
A3: AllAllChildren's Home1 | B3: All | C3: All | D3: Children's Home | E3: 1 | F3: 37 | G3: 153 | H3: 58 | I3: 16
A4: AllAllChildren's Home2 | B4: All | C4: All | D4: Children's Home | E4: 2 | F4: 54 | G4: 154 | H4: 57 | I4: 8
A5: AllAllChildren's Home3 | B5: All | C5: All | D5: Children's Home | E5: 3 | F5: 24 | G5: 74 | H5: 20 | I5: 6
A6: AllAllChildren's Home4 | B6: All | C6: All | D6: Children's Home | E6: 4 | F6: 115 | G6: 381 | H6: 135 | I6: 30
A7: AllAllResidential special school (>295 days/year)1 | B7: All | C7: All | D7: Residential special school (>295 days/year) | E7: 1 | F7: 2 | G7: 6 | H7: 0 | I7: 1
A8: AllAllResidential special school (>295 days/year)2 | B8: All | C8: All | D8: Residential special school (>295 days/year) | E8: 2 | F8: 1 | G8: 4 | H8: 0 | I8: 0
A9: AllAllResidential special school (>295 days/year)3 | B9: All | C9: All | D9: Residential special school (>295 days/year) | E9: 3 | F9: 0 | G9: 4 | H9: 0 | I9: 0
A10: AllAllResidential special school (>295 days/year)4 | B10: All | C10: All | D10: Residential special school (>295 days/year) | E10: 4 | F10: 3 | G10: 14 | H10: 0 | I10: 1
A11: AllAllSecure Children's Home1 | B11: All | C11: All | D11: Secure Children's Home | E11: 1 | F11: 1 | G11: 3 | H11: 0 | I11: 0
A12: AllAllSecure Children's Home2 | B12: All | C12: All | D12: Secure Children's Home | E12: 2 | F12: 0 | G12: 0 | H12: 1 | I12: 0
A13: AllAllSecure Children's Home3 | B13: All | C13: All | D13: Secure Children's Home | E13: 3 | F13: 0 | G13: 1 | H13: 0 | I13: 0
A14: AllAllSecure Children's Home4 | B14: All | C14: All | D14: Secure Children's Home | E14: 4 | F14: 1 | G14: 4 | H14: 1 | I14: 0
A15: AllLocal AuthorityChildren's Home1 | B15: All | C15: Local Authority | D15: Children's Home | E15: 1 | F15: 11 | G15: 43 | H15: 22 | I15: 4
A16: AllLocal AuthorityChildren's Home2 | B16: All | C16: Local Authority | D16: Children's Home | E16: 2 | F16: 24 | G16: 56 | H16: 18 | I16: 2
A17: AllLocal AuthorityChildren's Home3 | B17: All | C17: Local Authority | D17: Children's Home | E17: 3 | F17: 5 | G17: 27 | H17: 3 | I17: 3
A18: AllLocal AuthorityChildren's Home4 | B18: All | C18: Local Authority | D18: Children's Home | E18: 4 | F18: 40 | G18: 126 | H18: 43 | I18: 9
A19: AllLocal AuthoritySecure Children's Home1 | B19: All | C19: Local Authority | D19: Secure Children's Home | E19: 1 | F19: 1 | G19: 3 | H19: 0 | I19: 0
A20: AllLocal AuthoritySecure Children's Home2 | B20: All | C20: Local Authority | D20: Secure Children's Home | E20: 2 | F20: 0 | G20: 0 | H20: 1 | I20: 0
A21: AllLocal AuthoritySecure Children's Home3 | B21: All | C21: Local Authority | D21: Secure Children's Home | E21: 3 | F21: 0 | G21: 1 | H21: 0 | I21: 0
A22: AllLocal AuthoritySecure Children's Home4 | B22: All | C22: Local Authority | D22: Secure Children's Home | E22: 4 | F22: 1 | G22: 4 | H22: 1 | I22: 0
A23: AllPrivate/ VoluntaryChildren's Home1 | B23: All | C23: Private/ Voluntary | D23: Children's Home | E23: 1 | F23: 26 | G23: 110 | H23: 36 | I23: 12
A24: AllPrivate/ VoluntaryChildren's Home2 | B24: All | C24: Private/ Voluntary | D24: Children's Home | E24: 2 | F24: 30 | G24: 98 | H24: 39 | I24: 6
A25: AllPrivate/ VoluntaryChildren's Home3 | B25: All | C25: Private/ Voluntary | D25: Children's Home | E25: 3 | F25: 19 | G25: 47 | H25: 17 | I25: 3
A26: AllPrivate/ VoluntaryChildren's Home4 | B26: All | C26: Private/ Voluntary | D26: Children's Home | E26: 4 | F26: 75 | G26: 255 | H26: 92 | I26: 21
A27: AllPrivate/ VoluntaryResidential special school (>295 days/year)1 | B27: All | C27: Private/ Voluntary | D27: Residential special school (>295 days/year) | E27: 1 | F27: 2 | G27: 6 | H27: 0 | I27: 1
A28: AllPrivate/ VoluntaryResidential special school (>295 days/year)2 | B28: All | C28: Private/ Voluntary | D28: Residential special school (>295 days/year) | E28: 2 | F28: 1 | G28: 4 | H28: 0 | I28: 0
A29: AllPrivate/ VoluntaryResidential special school (>295 days/year)3 | B29: All | C29: Private/ Voluntary | D29: Residential special school (>295 days/year) | E29: 3 | F29: 0 | G29: 4 | H29: 0 | I29: 0
A30: AllPrivate/ VoluntaryResidential special school (>295 days/year)4 | B30: All | C30: Private/ Voluntary | D30: Residential special school (>295 days/year) | E30: 4 | F30: 3 | G30: 14 | H30: 0 | I30: 1
A31: Barking & DagenhamAllChildren's Home2 | B31: Barking & Dagenham | C31: All | D31: Children's Home | E31: 2 | F31: 0 | G31: 1 | H31: 0 | I31: 0
A32: Barking & DagenhamAllChildren's Home4 | B32: Barking & Dagenham | C32: All | D32: Children's Home | E32: 4 | F32: 0 | G32: 1 | H32: 0 | I32: 0
A33: Barking & DagenhamPrivate/ VoluntaryChildren's Home2 | B33: Barking & Dagenham | C33: Private/ Voluntary | D33: Children's Home | E33: 2 | F33: 0 | G33: 1 | H33: 0 | I33: 0
A34: Barking & DagenhamPrivate/ VoluntaryChildren's Home4 | B34: Barking & Dagenham | C34: Private/ Voluntary | D34: Children's Home | E34: 4 | F34: 0 | G34: 1 | H34: 0 | I34: 0
A35: BarnetAllChildren's Home2 | B35: Barnet | C35: All | D35: Children's Home | E35: 2 | F35: 0 | G35: 2 | H35: 0 | I35: 0
A36: BarnetAllChildren's Home4 | B36: Barnet | C36: All | D36: Children's Home | E36: 4 | F36: 0 | G36: 2 | H36: 0 | I36: 0
A37: BarnetLocal AuthorityChildren's Home2 | B37: Barnet | C37: Local Authority | D37: Children's Home | E37: 2 | F37: 0 | G37: 2 | H37: 0 | I37: 0
A38: BarnetLocal AuthorityChildren's Home4 | B38: Barnet | C38: Local Authority | D38: Children's Home | E38: 4 | F38: 0 | G38: 2 | H38: 0 | I38: 0
A39: BarnsleyAllChildren's Home1 | B39: Barnsley | C39: All | D39: Children's Home | E39: 1 | F39: 2 | G39: 2 | H39: 0 | I39: 0
A40: BarnsleyAllChildren's Home2 | B40: Barnsley | C40: All | D40: Children's Home | E40: 2 | F40: 0 | G40: 1 | H40: 0 | I40: 0
A41: BarnsleyAllChildren's Home3 | B41: Barnsley | C41: All | D41: Children's Home | E41: 3 | F41: 0 | G41: 1 | H41: 0 | I41: 0
A42: BarnsleyAllChildren's Home4 | B42: Barnsley | C42: All | D42: Children's Home | E42: 4 | F42: 2 | G42: 4 | H42: 0 | I42: 0
A43: BarnsleyLocal AuthorityChildren's Home3 | B43: Barnsley | C43: Local Authority | D43: Children's Home | E43: 3 | F43: 0 | G43: 1 | H43: 0 | I43: 0
A44: BarnsleyLocal AuthorityChildren's Home4 | B44: Barnsley | C44: Local Authority | D44: Children's Home | E44: 4 | F44: 0 | G44: 1 | H44: 0 | I44: 0
A45: BarnsleyPrivate/ VoluntaryChildren's Home1 | B45: Barnsley | C45: Private/ Voluntary | D45: Children's Home | E45: 1 | F45: 2 | G45: 2 | H45: 0 | I45: 0
A46: BarnsleyPrivate/ VoluntaryChildren's Home2 | B46: Barnsley | C46: Private/ Voluntary | D46: Children's Home | E46: 2 | F46: 0 | G46: 1 | H46: 0 | I46: 0
A47: BarnsleyPrivate/ VoluntaryChildren's Home4 | B47: Barnsley | C47: Private/ Voluntary | D47: Children's Home | E47: 4 | F47: 2 | G47: 3 | H47: 0 | I47: 0
A48: Bath & North East SomersetAllChildren's Home1 | B48: Bath & North East Somerset | C48: All | D48: Children's Home | E48: 1 | F48: 0 | G48: 0 | H48: 0 | I48: 1
A49: Bath & North East SomersetAllChildren's Home4 | B49: Bath & North East Somerset | C49: All | D49: Children's Home | E49: 4 | F49: 0 | G49: 0 | H49: 0 | I49: 1
A50: Bath & North East SomersetPrivate/ VoluntaryChildren's Home1 | B50: Bath & North East Somerset | C50: Private/ Voluntary | D50: Children's Home | E50: 1 | F50: 0 | G50: 0 | H50: 0 | I50: 1
A51: Bath & North East SomersetPrivate/ VoluntaryChildren's Home4 | B51: Bath & North East Somerset | C51: Private/ Voluntary | D51: Children's Home | E51: 4 | F51: 0 | G51: 0 | H51: 0 | I51: 1
A52: Bedford boroughAllChildren's Home1 | B52: Bedford borough | C52: All | D52: Children's Home | E52: 1 | F52: 0 | G52: 3 | H52: 2 | I52: 0
A53: Bedford boroughAllChildren's Home2 | B53: Bedford borough | C53: All | D53: Children's Home | E53: 2 | F53: 0 | G53: 1 | H53: 0 | I53: 0
A54: Bedford boroughAllChildren's Home3 | B54: Bedford borough | C54: All | D54: Children's Home | E54: 3 | F54: 1 | G54: 0 | H54: 0 | I54: 0
A55: Bedford boroughAllChildren's Home4 | B55: Bedford borough | C55: All | D55: Children's Home | E55: 4 | F55: 1 | G55: 4 | H55: 2 | I55: 0
A56: Bedford boroughLocal AuthorityChildren's Home1 | B56: Bedford borough | C56: Local Authority | D56: Children's Home | E56: 1 | F56: 0 | G56: 1 | H56: 0 | I56: 0
A57: Bedford boroughLocal AuthorityChildren's Home2 | B57: Bedford borough | C57: Local Authority | D57: Children's Home | E57: 2 | F57: 0 | G57: 1 | H57: 0 | I57: 0
A58: Bedford boroughLocal AuthorityChildren's Home4 | B58: Bedford borough | C58: Local Authority | D58: Children's Home | E58: 4 | F58: 0 | G58: 2 | H58: 0 | I58: 0
A59: Bedford boroughPrivate/ VoluntaryChildren's Home1 | B59: Bedford borough | C59: Private/ Voluntary | D59: Children's Home | E59: 1 | F59: 0 | G59: 2 | H59: 2 | I59: 0
A60: Bedford boroughPrivate/ VoluntaryChildren's Home3 | B60: Bedford borough | C60: Private/ Voluntary | D60: Children's Home | E60: 3 | F60: 1 | G60: 0 | H60: 0 | I60: 0
A61: Bedford boroughPrivate/ VoluntaryChildren's Home4 | B61: Bedford borough | C61: Private/ Voluntary | D61: Children's Home | E61: 4 | F61: 1 | G61: 2 | H61: 2 | I61: 0
A62: BirminghamAllChildren's Home1 | B62: Birmingham | C62: All | D62: Children's Home | E62: 1 | F62: 2 | G62: 3 | H62: 3 | I62: 2
A63: BirminghamAllChildren's Home2 | B63: Birmingham | C63: All | D63: Children's Home | E63: 2 | F63: 3 | G63: 2 | H63: 2 | I63: 0
A64: BirminghamAllChildren's Home3 | B64: Birmingham | C64: All | D64: Children's Home | E64: 3 | F64: 0 | G64: 3 | H64: 1 | I64: 0
A65: BirminghamAllChildren's Home4 | B65: Birmingham | C65: All | D65: Children's Home | E65: 4 | F65: 5 | G65: 8 | H65: 6 | I65: 2
A66: BirminghamLocal AuthorityChildren's Home1 | B66: Birmingham | C66: Local Authority | D66: Children's Home | E66: 1 | F66: 0 | G66: 2 | H66: 1 | I66: 1
A67: BirminghamLocal AuthorityChildren's Home2 | B67: Birmingham | C67: Local Authority | D67: Children's Home | E67: 2 | F67: 1 | G67: 1 | H67: 2 | I67: 0
A68: BirminghamLocal AuthorityChildren's Home3 | B68: Birmingham | C68: Local Authority | D68: Children's Home | E68: 3 | F68: 0 | G68: 2 | H68: 0 | I68: 0
A69: BirminghamLocal AuthorityChildren's Home4 | B69: Birmingham | C69: Local Authority | D69: Children's Home | E69: 4 | F69: 1 | G69: 5 | H69: 3 | I69: 1
A70: BirminghamPrivate/ VoluntaryChildren's Home1 | B70: Birmingham | C70: Private/ Voluntary | D70: Children's Home | E70: 1 | F70: 2 | G70: 1 | H70: 2 | I70: 1
A71: BirminghamPrivate/ VoluntaryChildren's Home2 | B71: Birmingham | C71: Private/ Voluntary | D71: Children's Home | E71: 2 | F71: 2 | G71: 1 | H71: 0 | I71: 0
A72: BirminghamPrivate/ VoluntaryChildren's Home3 | B72: Birmingham | C72: Private/ Voluntary | D72: Children's Home | E72: 3 | F72: 0 | G72: 1 | H72: 1 | I72: 0
A73: BirminghamPrivate/ VoluntaryChildren's Home4 | B73: Birmingham | C73: Private/ Voluntary | D73: Children's Home | E73: 4 | F73: 4 | G73: 3 | H73: 3 | I73: 1
A74: Blackburn with DarwenAllChildren's Home2 | B74: Blackburn with Darwen | C74: All | D74: Children's Home | E74: 2 | F74: 1 | G74: 1 | H74: 1 | I74: 0
A75: Blackburn with DarwenAllChildren's Home3 | B75: Blackburn with Darwen | C75: All | D75: Children's Home | E75: 3 | F75: 0 | G75: 1 | H75: 0 | I75: 0
A76: Blackburn with DarwenAllChildren's Home4 | B76: Blackburn with Darwen | C76: All | D76: Children's Home | E76: 4 | F76: 1 | G76: 2 | H76: 1 | I76: 0
A77: Blackburn with DarwenLocal AuthorityChildren's Home2 | B77: Blackburn with Darwen | C77: Local Authority | D77: Children's Home | E77: 2 | F77: 0 | G77: 1 | H77: 1 | I77: 0
A78: Blackburn with DarwenLocal AuthorityChildren's Home3 | B78: Blackburn with Darwen | C78: Local Authority | D78: Children's Home | E78: 3 | F78: 0 | G78: 1 | H78: 0 | I78: 0
A79: Blackburn with DarwenLocal AuthorityChildren's Home4 | B79: Blackburn with Darwen | C79: Local Authority | D79: Children's Home | E79: 4 | F79: 0 | G79: 2 | H79: 1 | I79: 0
A80: Blackburn with DarwenPrivate/ VoluntaryChildren's Home2 | B80: Blackburn with Darwen | C80: Private/ Voluntary | D80: Children's Home | E80: 2 | F80: 1 | G80: 0 | H80: 0 | I80: 0
A81: Blackburn with DarwenPrivate/ VoluntaryChildren's Home4 | B81: Blackburn with Darwen | C81: Private/ Voluntary | D81: Children's Home | E81: 4 | F81: 1 | G81: 0 | H81: 0 | I81: 0
A82: BlackpoolAllChildren's Home2 | B82: Blackpool | C82: All | D82: Children's Home | E82: 2 | F82: 0 | G82: 1 | H82: 1 | I82: 0
A83: BlackpoolAllChildren's Home4 | B83: Blackpool | C83: All | D83: Children's Home | E83: 4 | F83: 0 | G83: 1 | H83: 1 | I83: 0
A84: BlackpoolPrivate/ VoluntaryChildren's Home2 | B84: Blackpool | C84: Private/ Voluntary | D84: Children's Home | E84: 2 | F84: 0 | G84: 1 | H84: 1 | I84: 0
A85: BlackpoolPrivate/ VoluntaryChildren's Home4 | B85: Blackpool | C85: Private/ Voluntary | D85: Children's Home | E85: 4 | F85: 0 | G85: 1 | H85: 1 | I85: 0
A86: BoltonAllChildren's Home1 | B86: Bolton | C86: All | D86: Children's Home | E86: 1 | F86: 1 | G86: 0 | H86: 0 | I86: 0
A87: BoltonAllChildren's Home2 | B87: Bolton | C87: All | D87: Children's Home | E87: 2 | F87: 1 | G87: 0 | H87: 1 | I87: 0
A88: BoltonAllChildren's Home3 | B88: Bolton | C88: All | D88: Children's Home | E88: 3 | F88: 0 | G88: 1 | H88: 0 | I88: 0
A89: BoltonAllChildren's Home4 | B89: Bolton | C89: All | D89: Children's Home | E89: 4 | F89: 2 | G89: 1 | H89: 1 | I89: 0
A90: BoltonLocal AuthorityChildren's Home1 | B90: Bolton | C90: Local Authority | D90: Children's Home | E90: 1 | F90: 1 | G90: 0 | H90: 0 | I90: 0
A91: BoltonLocal AuthorityChildren's Home2 | B91: Bolton | C91: Local Authority | D91: Children's Home | E91: 2 | F91: 1 | G91: 0 | H91: 1 | I91: 0
A92: BoltonLocal AuthorityChildren's Home4 | B92: Bolton | C92: Local Authority | D92: Children's Home | E92: 4 | F92: 2 | G92: 0 | H92: 1 | I92: 0
A93: BoltonPrivate/ VoluntaryChildren's Home3 | B93: Bolton | C93: Private/ Voluntary | D93: Children's Home | E93: 3 | F93: 0 | G93: 1 | H93: 0 | I93: 0
A94: BoltonPrivate/ VoluntaryChildren's Home4 | B94: Bolton | C94: Private/ Voluntary | D94: Children's Home | E94: 4 | F94: 0 | G94: 1 | H94: 0 | I94: 0
A95: BournemouthAllChildren's Home1 | B95: Bournemouth | C95: All | D95: Children's Home | E95: 1 | F95: 0 | G95: 0 | H95: 1 | I95: 0
A96: BournemouthAllChildren's Home2 | B96: Bournemouth | C96: All | D96: Children's Home | E96: 2 | F96: 0 | G96: 1 | H96: 1 | I96: 0
A97: BournemouthAllChildren's Home3 | B97: Bournemouth | C97: All | D97: Children's Home | E97: 3 | F97: 0 | G97: 1 | H97: 1 | I97: 0
A98: BournemouthAllChildren's Home4 | B98: Bournemouth | C98: All | D98: Children's Home | E98: 4 | F98: 0 | G98: 2 | H98: 3 | I98: 0
A99: BournemouthLocal AuthorityChildren's Home1 | B99: Bournemouth | C99: Local Authority | D99: Children's Home | E99: 1 | F99: 0 | G99: 0 | H99: 1 | I99: 0
A100: BournemouthLocal AuthorityChildren's Home4 | B100: Bournemouth | C100: Local Authority | D100: Children's Home | E100: 4 | F100: 0 | G100: 0 | H100: 1 | I100: 0
A101: BournemouthPrivate/ VoluntaryChildren's Home2 | B101: Bournemouth | C101: Private/ Voluntary | D101: Children's Home | E101: 2 | F101: 0 | G101: 1 | H101: 1 | I101: 0
A102: BournemouthPrivate/ VoluntaryChildren's Home3 | B102: Bournemouth | C102: Private/ Voluntary | D102: Children's Home | E102: 3 | F102: 0 | G102: 1 | H102: 1 | I102: 0
A103: BournemouthPrivate/ VoluntaryChildren's Home4 | B103: Bournemouth | C103: Private/ Voluntary | D103: Children's Home | E103: 4 | F103: 0 | G103: 2 | H103: 2 | I103: 0
A104: Bracknell ForestAllChildren's Home1 | B104: Bracknell Forest | C104: All | D104: Children's Home | E104: 1 | F104: 0 | G104: 0 | H104: 1 | I104: 0
A105: Bracknell ForestAllChildren's Home2 | B105: Bracknell Forest | C105: All | D105: Children's Home | E105: 2 | F105: 1 | G105: 0 | H105: 2 | I105: 0
A106: Bracknell ForestAllChildren's Home4 | B106: Bracknell Forest | C106: All | D106: Children's Home | E106: 4 | F106: 1 | G106: 0 | H106: 3 | I106: 0
A107: Bracknell ForestLocal AuthorityChildren's Home2 | B107: Bracknell Forest | C107: Local Authority | D107: Children's Home | E107: 2 | F107: 1 | G107: 0 | H107: 0 | I107: 0
A108: Bracknell ForestLocal AuthorityChildren's Home4 | B108: Bracknell Forest | C108: Local Authority | D108: Children's Home | E108: 4 | F108: 1 | G108: 0 | H108: 0 | I108: 0
A109: Bracknell ForestPrivate/ VoluntaryChildren's Home1 | B109: Bracknell Forest | C109: Private/ Voluntary | D109: Children's Home | E109: 1 | F109: 0 | G109: 0 | H109: 1 | I109: 0
A110: Bracknell ForestPrivate/ VoluntaryChildren's Home2 | B110: Bracknell Forest | C110: Private/ Voluntary | D110: Children's Home | E110: 2 | F110: 0 | G110: 0 | H110: 2 | I110: 0
A111: Bracknell ForestPrivate/ VoluntaryChildren's Home4 | B111: Bracknell Forest | C111: Private/ Voluntary | D111: Children's Home | E111: 4 | F111: 0 | G111: 0 | H111: 3 | I111: 0
A112: BradfordAllChildren's Home1 | B112: Bradford | C112: All | D112: Children's Home | E112: 1 | F112: 0 | G112: 2 | H112: 0 | I112: 0
A113: BradfordAllChildren's Home2 | B113: Bradford | C113: All | D113: Children's Home | E113: 2 | F113: 0 | G113: 1 | H113: 0 | I113: 0
A114: BradfordAllChildren's Home4 | B114: Bradford | C114: All | D114: Children's Home | E114: 4 | F114: 0 | G114: 3 | H114: 0 | I114: 0
A115: BradfordLocal AuthorityChildren's Home1 | B115: Bradford | C115: Local Authority | D115: Children's Home | E115: 1 | F115: 0 | G115: 2 | H115: 0 | I115: 0
A116: BradfordLocal AuthorityChildren's Home2 | B116: Bradford | C116: Local Authority | D116: Children's Home | E116: 2 | F116: 0 | G116: 1 | H116: 0 | I116: 0
A117: BradfordLocal AuthorityChildren's Home4 | B117: Bradford | C117: Local Authority | D117: Children's Home | E117: 4 | F117: 0 | G117: 3 | H117: 0 | I117: 0
A118: Brighton & HoveAllChildren's Home2 | B118: Brighton & Hove | C118: All | D118: Children's Home | E118: 2 | F118: 2 | G118: 0 | H118: 0 | I118: 0
A119: Brighton & HoveAllChildren's Home4 | B119: Brighton & Hove | C119: All | D119: Children's Home | E119: 4 | F119: 2 | G119: 0 | H119: 0 | I119: 0
A120: Brighton & HovePrivate/ VoluntaryChildren's Home2 | B120: Brighton & Hove | C120: Private/ Voluntary | D120: Children's Home | E120: 2 | F120: 2 | G120: 0 | H120: 0 | I120: 0
A121: Brighton & HovePrivate/ VoluntaryChildren's Home4 | B121: Brighton & Hove | C121: Private/ Voluntary | D121: Children's Home | E121: 4 | F121: 2 | G121: 0 | H121: 0 | I121: 0
A122: BristolAllChildren's Home1 | B122: Bristol | C122: All | D122: Children's Home | E122: 1 | F122: 0 | G122: 1 | H122: 1 | I122: 0
A123: BristolAllChildren's Home2 | B123: Bristol | C123: All | D123: Children's Home | E123: 2 | F123: 0 | G123: 2 | H123: 1 | I123: 0
A124: BristolAllChildren's Home4 | B124: Bristol | C124: All | D124: Children's Home | E124: 4 | F124: 0 | G124: 3 | H124: 2 | I124: 0
A125: BristolLocal AuthorityChildren's Home1 | B125: Bristol | C125: Local Authority | D125: Children's Home | E125: 1 | F125: 0 | G125: 0 | H125: 1 | I125: 0
A126: BristolLocal AuthorityChildren's Home2 | B126: Bristol | C126: Local Authority | D126: Children's Home | E126: 2 | F126: 0 | G126: 2 | H126: 1 | I126: 0
A127: BristolLocal AuthorityChildren's Home4 | B127: Bristol | C127: Local Authority | D127: Children's Home | E127: 4 | F127: 0 | G127: 2 | H127: 2 | I127: 0
A128: BristolPrivate/ VoluntaryChildren's Home1 | B128: Bristol | C128: Private/ Voluntary | D128: Children's Home | E128: 1 | F128: 0 | G128: 1 | H128: 0 | I128: 0
A129: BristolPrivate/ VoluntaryChildren's Home4 | B129: Bristol | C129: Private/ Voluntary | D129: Children's Home | E129: 4 | F129: 0 | G129: 1 | H129: 0 | I129: 0
A130: BromleyAllChildren's Home2 | B130: Bromley | C130: All | D130: Children's Home | E130: 2 | F130: 0 | G130: 1 | H130: 0 | I130: 0
A131: BromleyAllChildren's Home4 | B131: Bromley | C131: All | D131: Children's Home | E131: 4 | F131: 0 | G131: 1 | H131: 0 | I131: 0
A132: BromleyPrivate/ VoluntaryChildren's Home2 | B132: Bromley | C132: Private/ Voluntary | D132: Children's Home | E132: 2 | F132: 0 | G132: 1 | H132: 0 | I132: 0
A133: BromleyPrivate/ VoluntaryChildren's Home4 | B133: Bromley | C133: Private/ Voluntary | D133: Children's Home | E133: 4 | F133: 0 | G133: 1 | H133: 0 | I133: 0
A134: BuckinghamshireAllChildren's Home1 | B134: Buckinghamshire | C134: All | D134: Children's Home | E134: 1 | F134: 0 | G134: 1 | H134: 0 | I134: 0
A135: BuckinghamshireAllChildren's Home2 | B135: Buckinghamshire | C135: All | D135: Children's Home | E135: 2 | F135: 0 | G135: 1 | H135: 0 | I135: 0
A136: BuckinghamshireAllChildren's Home4 | B136: Buckinghamshire | C136: All | D136: Children's Home | E136: 4 | F136: 0 | G136: 2 | H136: 0 | I136: 0
A137: BuckinghamshirePrivate/ VoluntaryChildren's Home1 | B137: Buckinghamshire | C137: Private/ Voluntary | D137: Children's Home | E137: 1 | F137: 0 | G137: 1 | H137: 0 | I137: 0
A138: BuckinghamshirePrivate/ VoluntaryChildren's Home2 | B138: Buckinghamshire | C138: Private/ Voluntary | D138: Children's Home | E138: 2 | F138: 0 | G138: 1 | H138: 0 | I138: 0
A139: BuckinghamshirePrivate/ VoluntaryChildren's Home4 | B139: Buckinghamshire | C139: Private/ Voluntary | D139: Children's Home | E139: 4 | F139: 0 | G139: 2 | H139: 0 | I139: 0
A140: BuryAllChildren's Home2 | B140: Bury | C140: All | D140: Children's Home | E140: 2 | F140: 0 | G140: 0 | H140: 1 | I140: 0
A141: BuryAllChildren's Home3 | B141: Bury | C141: All | D141: Children's Home | E141: 3 | F141: 0 | G141: 0 | H141: 1 | I141: 0
A142: BuryAllChildren's Home4 | B142: Bury | C142: All | D142: Children's Home | E142: 4 | F142: 0 | G142: 0 | H142: 2 | I142: 0
A143: BuryPrivate/ VoluntaryChildren's Home2 | B143: Bury | C143: Private/ Voluntary | D143: Children's Home | E143: 2 | F143: 0 | G143: 0 | H143: 1 | I143: 0
A144: BuryPrivate/ VoluntaryChildren's Home3 | B144: Bury | C144: Private/ Voluntary | D144: Children's Home | E144: 3 | F144: 0 | G144: 0 | H144: 1 | I144: 0
A145: BuryPrivate/ VoluntaryChildren's Home4 | B145: Bury | C145: Private/ Voluntary | D145: Children's Home | E145: 4 | F145: 0 | G145: 0 | H145: 2 | I145: 0
A146: CalderdaleAllChildren's Home1 | B146: Calderdale | C146: All | D146: Children's Home | E146: 1 | F146: 0 | G146: 2 | H146: 0 | I146: 0
A147: CalderdaleAllChildren's Home2 | B147: Calderdale | C147: All | D147: Children's Home | E147: 2 | F147: 1 | G147: 2 | H147: 0 | I147: 1
A148: CalderdaleAllChildren's Home4 | B148: Calderdale | C148: All | D148: Children's Home | E148: 4 | F148: 1 | G148: 4 | H148: 0 | I148: 1
A149: CalderdaleLocal AuthorityChildren's Home2 | B149: Calderdale | C149: Local Authority | D149: Children's Home | E149: 2 | F149: 0 | G149: 1 | H149: 0 | I149: 1
A150: CalderdaleLocal AuthorityChildren's Home4 | B150: Calderdale | C150: Local Authority | D150: Children's Home | E150: 4 | F150: 0 | G150: 1 | H150: 0 | I150: 1
A151: CalderdalePrivate/ VoluntaryChildren's Home1 | B151: Calderdale | C151: Private/ Voluntary | D151: Children's Home | E151: 1 | F151: 0 | G151: 2 | H151: 0 | I151: 0
A152: CalderdalePrivate/ VoluntaryChildren's Home2 | B152: Calderdale | C152: Private/ Voluntary | D152: Children's Home | E152: 2 | F152: 1 | G152: 1 | H152: 0 | I152: 0
A153: CalderdalePrivate/ VoluntaryChildren's Home4 | B153: Calderdale | C153: Private/ Voluntary | D153: Children's Home | E153: 4 | F153: 1 | G153: 3 | H153: 0 | I153: 0
A154: CambridgeshireAllChildren's Home1 | B154: Cambridgeshire | C154: All | D154: Children's Home | E154: 1 | F154: 0 | G154: 2 | H154: 1 | I154: 0
A155: CambridgeshireAllChildren's Home2 | B155: Cambridgeshire | C155: All | D155: Children's Home | E155: 2 | F155: 1 | G155: 2 | H155: 0 | I155: 0
A156: CambridgeshireAllChildren's Home3 | B156: Cambridgeshire | C156: All | D156: Children's Home | E156: 3 | F156: 0 | G156: 0 | H156: 1 | I156: 0
A157: CambridgeshireAllChildren's Home4 | B157: Cambridgeshire | C157: All | D157: Children's Home | E157: 4 | F157: 1 | G157: 4 | H157: 2 | I157: 0
A158: CambridgeshireAllResidential special school (>295 days/year)1 | B158: Cambridgeshire | C158: All | D158: Residential special school (>295 days/year) | E158: 1 | F158: 0 | G158: 1 | H158: 0 | I158: 0
A159: CambridgeshireAllResidential special school (>295 days/year)4 | B159: Cambridgeshire | C159: All | D159: Residential special school (>295 days/year) | E159: 4 | F159: 0 | G159: 1 | H159: 0 | I159: 0
A160: CambridgeshireLocal AuthorityChildren's Home1 | B160: Cambridgeshire | C160: Local Authority | D160: Children's Home | E160: 1 | F160: 0 | G160: 0 | H160: 1 | I160: 0
A161: CambridgeshireLocal AuthorityChildren's Home3 | B161: Cambridgeshire | C161: Local Authority | D161: Children's Home | E161: 3 | F161: 0 | G161: 0 | H161: 1 | I161: 0
A162: CambridgeshireLocal AuthorityChildren's Home4 | B162: Cambridgeshire | C162: Local Authority | D162: Children's Home | E162: 4 | F162: 0 | G162: 0 | H162: 2 | I162: 0
A163: CambridgeshirePrivate/ VoluntaryChildren's Home1 | B163: Cambridgeshire | C163: Private/ Voluntary | D163: Children's Home | E163: 1 | F163: 0 | G163: 2 | H163: 0 | I163: 0
A164: CambridgeshirePrivate/ VoluntaryChildren's Home2 | B164: Cambridgeshire | C164: Private/ Voluntary | D164: Children's Home | E164: 2 | F164: 1 | G164: 2 | H164: 0 | I164: 0
A165: CambridgeshirePrivate/ VoluntaryChildren's Home4 | B165: Cambridgeshire | C165: Private/ Voluntary | D165: Children's Home | E165: 4 | F165: 1 | G165: 4 | H165: 0 | I165: 0
A166: CambridgeshirePrivate/ VoluntaryResidential special school (>295 days/year)1 | B166: Cambridgeshire | C166: Private/ Voluntary | D166: Residential special school (>295 days/year) | E166: 1 | F166: 0 | G166: 1 | H166: 0 | I166: 0
A167: CambridgeshirePrivate/ VoluntaryResidential special school (>295 days/year)4 | B167: Cambridgeshire | C167: Private/ Voluntary | D167: Residential special school (>295 days/year) | E167: 4 | F167: 0 | G167: 1 | H167: 0 | I167: 0
A168: CamdenAllChildren's Home1 | B168: Camden | C168: All | D168: Children's Home | E168: 1 | F168: 0 | G168: 1 | H168: 0 | I168: 0
A169: CamdenAllChildren's Home4 | B169: Camden | C169: All | D169: Children's Home | E169: 4 | F169: 0 | G169: 1 | H169: 0 | I169: 0
A170: CamdenPrivate/ VoluntaryChildren's Home1 | B170: Camden | C170: Private/ Voluntary | D170: Children's Home | E170: 1 | F170: 0 | G170: 1 | H170: 0 | I170: 0
A171: CamdenPrivate/ VoluntaryChildren's Home4 | B171: Camden | C171: Private/ Voluntary | D171: Children's Home | E171: 4 | F171: 0 | G171: 1 | H171: 0 | I171: 0
A172: Central BedfordshireAllChildren's Home2 | B172: Central Bedfordshire | C172: All | D172: Children's Home | E172: 2 | F172: 0 | G172: 1 | H172: 0 | I172: 0
A173: Central BedfordshireAllChildren's Home3 | B173: Central Bedfordshire | C173: All | D173: Children's Home | E173: 3 | F173: 1 | G173: 0 | H173: 0 | I173: 0
A174: Central BedfordshireAllChildren's Home4 | B174: Central Bedfordshire | C174: All | D174: Children's Home | E174: 4 | F174: 1 | G174: 1 | H174: 0 | I174: 0
A175: Central BedfordshireLocal AuthorityChildren's Home2 | B175: Central Bedfordshire | C175: Local Authority | D175: Children's Home | E175: 2 | F175: 0 | G175: 1 | H175: 0 | I175: 0
A176: Central BedfordshireLocal AuthorityChildren's Home4 | B176: Central Bedfordshire | C176: Local Authority | D176: Children's Home | E176: 4 | F176: 0 | G176: 1 | H176: 0 | I176: 0
A177: Central BedfordshirePrivate/ VoluntaryChildren's Home3 | B177: Central Bedfordshire | C177: Private/ Voluntary | D177: Children's Home | E177: 3 | F177: 1 | G177: 0 | H177: 0 | I177: 0
A178: Central BedfordshirePrivate/ VoluntaryChildren's Home4 | B178: Central Bedfordshire | C178: Private/ Voluntary | D178: Children's Home | E178: 4 | F178: 1 | G178: 0 | H178: 0 | I178: 0
A179: Cheshire EastAllChildren's Home2 | B179: Cheshire East | C179: All | D179: Children's Home | E179: 2 | F179: 1 | G179: 0 | H179: 0 | I179: 0
A180: Cheshire EastAllChildren's Home3 | B180: Cheshire East | C180: All | D180: Children's Home | E180: 3 | F180: 0 | G180: 1 | H180: 0 | I180: 0
A181: Cheshire EastAllChildren's Home4 | B181: Cheshire East | C181: All | D181: Children's Home | E181: 4 | F181: 1 | G181: 1 | H181: 0 | I181: 0
A182: Cheshire EastLocal AuthorityChildren's Home2 | B182: Cheshire East | C182: Local Authority | D182: Children's Home | E182: 2 | F182: 1 | G182: 0 | H182: 0 | I182: 0
A183: Cheshire EastLocal AuthorityChildren's Home4 | B183: Cheshire East | C183: Local Authority | D183: Children's Home | E183: 4 | F183: 1 | G183: 0 | H183: 0 | I183: 0
A184: Cheshire EastPrivate/ VoluntaryChildren's Home3 | B184: Cheshire East | C184: Private/ Voluntary | D184: Children's Home | E184: 3 | F184: 0 | G184: 1 | H184: 0 | I184: 0
A185: Cheshire EastPrivate/ VoluntaryChildren's Home4 | B185: Cheshire East | C185: Private/ Voluntary | D185: Children's Home | E185: 4 | F185: 0 | G185: 1 | H185: 0 | I185: 0
A186: Cheshire West and ChesterAllChildren's Home3 | B186: Cheshire West and Chester | C186: All | D186: Children's Home | E186: 3 | F186: 0 | G186: 1 | H186: 0 | I186: 0
A187: Cheshire West and ChesterAllChildren's Home4 | B187: Cheshire West and Chester | C187: All | D187: Children's Home | E187: 4 | F187: 0 | G187: 1 | H187: 0 | I187: 0
A188: Cheshire West and ChesterPrivate/ VoluntaryChildren's Home3 | B188: Cheshire West and Chester | C188: Private/ Voluntary | D188: Children's Home | E188: 3 | F188: 0 | G188: 1 | H188: 0 | I188: 0
A189: Cheshire West and ChesterPrivate/ VoluntaryChildren's Home4 | B189: Cheshire West and Chester | C189: Private/ Voluntary | D189: Children's Home | E189: 4 | F189: 0 | G189: 1 | H189: 0 | I189: 0
A190: CornwallAllChildren's Home1 | B190: Cornwall | C190: All | D190: Children's Home | E190: 1 | F190: 0 | G190: 3 | H190: 2 | I190: 0
A191: CornwallAllChildren's Home2 | B191: Cornwall | C191: All | D191: Children's Home | E191: 2 | F191: 0 | G191: 1 | H191: 1 | I191: 0
A192: CornwallAllChildren's Home3 | B192: Cornwall | C192: All | D192: Children's Home | E192: 3 | F192: 0 | G192: 1 | H192: 0 | I192: 1
A193: CornwallAllChildren's Home4 | B193: Cornwall | C193: All | D193: Children's Home | E193: 4 | F193: 0 | G193: 5 | H193: 3 | I193: 1
A194: CornwallLocal AuthorityChildren's Home1 | B194: Cornwall | C194: Local Authority | D194: Children's Home | E194: 1 | F194: 0 | G194: 3 | H194: 2 | I194: 0
A195: CornwallLocal AuthorityChildren's Home2 | B195: Cornwall | C195: Local Authority | D195: Children's Home | E195: 2 | F195: 0 | G195: 1 | H195: 1 | I195: 0
A196: CornwallLocal AuthorityChildren's Home3 | B196: Cornwall | C196: Local Authority | D196: Children's Home | E196: 3 | F196: 0 | G196: 1 | H196: 0 | I196: 1
A197: CornwallLocal AuthorityChildren's Home4 | B197: Cornwall | C197: Local Authority | D197: Children's Home | E197: 4 | F197: 0 | G197: 5 | H197: 3 | I197: 1
A198: CoventryAllChildren's Home1 | B198: Coventry | C198: All | D198: Children's Home | E198: 1 | F198: 0 | G198: 1 | H198: 0 | I198: 0
A199: CoventryAllChildren's Home2 | B199: Coventry | C199: All | D199: Children's Home | E199: 2 | F199: 0 | G199: 3 | H199: 1 | I199: 0
A200: CoventryAllChildren's Home3 | B200: Coventry | C200: All | D200: Children's Home | E200: 3 | F200: 1 | G200: 1 | H200: 0 | I200: 0
... 873 more rows

Sheet Chart3&4Data (hidden)
B2: LA | I2: Calculations
C3: Outstanding | D3: Good | E3: Satisfactory | F3: Inadequate | G3: Total inspected | I3: 7 | J3: 57 | K3: 40 | L3: 9
B4: ="1 July 2012 - 30 September 2012" -> 1 July 2012 - 30 September 2012 | C4: 41 | D4: 130 | E4: 44 | F4: 9 | G4: =SUM(C4:F4) -> 224 | H4: =SUM(G4,G27) -> 685
B5: ="1 April 2012 - 30 June 2012" -> 1 April 2012 - 30 June 2012 | C5: 10 | D5: 74 | E5: 51 | F5: 11 | G5: 146 | I5: 1 | J5: 4 | K5: 2 | L5: 0 | M5: =SUM(I3:L5) -> 120
B6: ="1 January 2012 - 31 March 2012" -> 1 January 2012 - 31 March 2012 | C6: 7 | D6: 13 | E6: 7 | F6: 1 | G6: 28 | I6: 0 | J6: 0 | K6: 0 | L6: 0
B7: 1 October 2011 - 31 December 2011 | C7: 79 | D7: 116 | E7: 25 | F7: 1 | G7: 221
B8: 1 July 2011 - 30 September 2011 | C8: 48 | D8: 111 | E8: 31 | F8: 5 | G8: 195
B9: 1 April 2011 - 30 June 2011 | C9: 21 | D9: 55 | E9: 29 | F9: 3 | G9: 108
C12: Outstanding | D12: Good | E12: Satisfactory | F12: Inadequate | G12: Total inspected
B13: =+"1 July 2012 - 30 September 2012" & " (" &G4 &")" -> 1 July 2012 - 30 September 2012 (224) | C13: =IF(C4=0,"0",C4/$G4*100) -> 18.30357143 | D13: 58.03571429 | E13: 19.64285714 | F13: 4.017857143 | G13: 100
B14: =+"1 April 2012 - 30 June 2012" & " (" &G5 &")" -> 1 April 2012 - 30 June 2012 (146) | C14: 6.849315068 | D14: 50.68493151 | E14: 34.93150685 | F14: 7.534246575 | G14: 100
B16: =+"1 January 2012 - 31 March 2012" & " (" &G6 &")" -> 1 January 2012 - 31 March 2012 (28) | C16: =IF($G6=0,"0",C6/$G6*100) -> 25 | D16: 46.42857143 | E16: 25 | F16: 3.571428571 | G16: 100
B17: =+"1 October 2011 - 31 December 2011" & " (" &G7 &")" -> 1 October 2011 - 31 December 2011 (221) | C17: 35.74660633 | D17: 52.48868778 | E17: 11.31221719 | F17: 0.4524886878 | G17: 100
B18: =+"1 July 2011 - 30 September 2011" & " (" &G8 &")" -> 1 July 2011 - 30 September 2011 (195) | C18: 24.61538462 | D18: 56.92307692 | E18: 15.8974359 | F18: 2.564102564 | G18: 100
B19: =+"1 April 2011 - 30 June 2011" & " (" &G9 & ")" -> 1 April 2011 - 30 June 2011 (108) | C19: 19.44444444 | D19: 50.92592593 | E19: 26.85185185 | F19: 2.777777778 | G19: 100
B25: Private/voluntary
C26: Outstanding | D26: Good | E26: Satisfactory | F26: Inadequate | G26: Total inspected | I26: 0 | J26: 38 | K26: 2 | L26: 212 | M26: 3 | N26: 122 | O26: 0 | P26: 32
B27: ="1 July 2012 - 30 September 2012" -> 1 July 2012 - 30 September 2012 | C27: 78 | D27: 269 | E27: 92 | F27: 22 | G27: =SUM(C27:F27) -> 461
B28: ="1 April 2012 - 30 June 2012" -> 1 April 2012 - 30 June 2012 | C28: 44 | D28: 255 | E28: 153 | F28: 39 | G28: 491 | I28: 0 | J28: 0 | K28: 0 | L28: 0 | M28: 0 | N28: 0 | O28: 0 | P28: 0
B29: ="1 January 2012 - 31 March 2012" -> 1 January 2012 - 31 March 2012 | C29: 7 | D29: 45 | E29: 21 | F29: 8 | G29: 81 | I29: 0 | J29: 1 | K29: 0 | L29: 9 | M29: 0 | N29: 5 | O29: 0 | P29: 2
B30: 1 October 2011 - 31 December 2011 | C30: 178 | D30: 296 | E30: 76 | F30: 10 | G30: 560 | P30: =SUM(I26:P29) -> 426
B31: 1 July 2011 - 30 September 2011 | C31: 115 | D31: 247 | E31: 81 | F31: 6 | G31: 449
B32: 1 April 2011 - 30 June 2011 | C32: 63 | D32: 201 | E32: 74 | F32: 10 | G32: 348
C35: Outstanding | D35: Good | E35: Satisfactory | F35: Inadequate | G35: Total inspected
B36: =+"1 July 2012 - 30 September 2012" & " (" &G27 &")" -> 1 July 2012 - 30 September 2012 (461) | C36: =IF(C27=0,"0",C27/$G27*100) -> 16.9197397 | D36: =IF(D27=0,"0",D27/$G27*100) -> 58.35140998 | E36: =IF(E27=0,"0",E27/$G27*100) -> 19.95661605 | F36: =IF(F27=0,"0",F27/$G27*100) -> 4.772234273 | G36: =IF(G27=0,"0",G27/$G27*100) -> 100
B37: =+"1 April 2012 - 30 June 2012" & " (" &G28 &")" -> 1 April 2012 - 30 June 2012 (491) | C37: =IF($G28=0,"0",C28/$G28*100) -> 8.961303462 | D37: =IF($G28=0,"0",D28/$G28*100) -> 51.93482688 | E37: =IF($G28=0,"0",E28/$G28*100) -> 31.16089613 | F37: =IF($G28=0,"0",F28/$G28*100) -> 7.942973523 | G37: =IF($G28=0,"0",G28/$G28*100) -> 100
B39: =+"1 January 2012 - 31 March 2012" & " (" &G29 &")" -> 1 January 2012 - 31 March 2012 (81) | C39: =IF($G29=0,"0",C29/$G29*100) -> 8.641975309 | D39: 55.55555556 | E39: 25.92592593 | F39: 9.87654321 | G39: 100
B40: =+"1 October 2011 - 31 December 2011" & " (" &G30 &")" -> 1 October 2011 - 31 December 2011 (560) | C40: 31.78571429 | D40: 52.85714286 | E40: 13.57142857 | F40: 1.785714286 | G40: 100
B41: =+"1 July 2011 - 30 September 2011" & " (" &G31 &")" -> 1 July 2011 - 30 September 2011 (449) | C41: 25.61247216 | D41: 55.01113586 | E41: 18.04008909 | F41: 1.336302895 | G41: 100
B42: =+"1 April 2011 - 30 June 2011" & " (" &G32 & ")" -> 1 April 2011 - 30 June 2011 (348) | C42: 18.10344828 | D42: 57.75862069 | E42: 21.26436782 | F42: 2.873563218 | G42: 100

Sheet Chart1&2Data (hidden)
H1: Calculations
B2: Outstanding | C2: Good | D2: Satisfactory | E2: Inadequate | F2: Total | H2: 47 | I2: 284 | J2: 172 | K2: 43
A3: 1 April - 30 September 2012 | B3: =SUM(B4:B5) -> 173 | C3: =SUM(C4:C5) -> 728 | D3: =SUM(D4:D5) -> 340 | E3: =SUM(E4:E5) -> 81 | F3: =SUM(B3:E3) -> 1322
A4: 1 July - 30 September 2012 | B4: 119 | C4: 399 | D4: 136 | E4: 31 | F4: =SUM(B4:E4) -> 685
A5: 1 April 2012 - 30 June 2012 | B5: 54 | C5: 329 | D5: 204 | E5: 50 | F5: =SUM(B5:E5) -> 637
A6: 1 April 2011 - 31 March 2012 | B6: =SUM(L6,B29) -> 518 | C6: =SUM(M6,C29) -> 1084 | D6: =SUM(N6,D29) -> 344 | E6: =SUM(O6,E29) -> 44 | F6: =SUM(B6:E6) -> 1990 | H6: 82 | I6: 249 | J6: 100 | K6: 13 | L6: =SUM(B30:B32) -> 504 | M6: =SUM(C30:C32) -> 1026 | N6: =SUM(D30:D32) -> 316 | O6: =SUM(E30:E32) -> 35
L7: 237 | M7: 391 | N7: 100 | O7: 11
A8: 1 April 2010 - 31 March 2011 | B8: 697 | C8: 2329 | D8: 988 | E8: 167 | F8: =SUM(B8:E8) -> 4181 | H8: 12 | I8: 56 | J8: 26 | K8: 9
A9: 1 April 2009 - 31 March 2010 | B9: 405 | C9: 2075 | D9: 1020 | E9: 255 | F9: =SUM(B9:E9) -> 3755 | H9: 257 | I9: 412 | J9: 101 | K9: 11
A10: 1 April 2008 - 31 March 2009 | B10: 290 | C10: 1896 | D10: 1187 | E10: 333 | F10: =SUM(B10:E10) -> 3706 | H10: 163 | I10: 358 | J10: 112 | K10: 11
A11: 1 April 2007 - 31 March 2008 | B11: 289 | C11: 1997 | D11: 1098 | E11: 368 | F11: =SUM(B11:E11) -> 3752 | H11: 84 | I11: 256 | J11: 103 | K11: 13
B13: Outstanding | C13: Good | D13: Satisfactory | E13: Inadequate | F13: Total
A14: ="1 April 2012 - 30 September 2012 ("&F3 &")" -> 1 April 2012 - 30 September 2012 (1322) | B14: =IF($F3=0,"0",B3/$F3*100) -> 13.08623298 | C14: =IF($F3=0,"0",C3/$F3*100) -> 55.06807867 | D14: =IF($F3=0,"0",D3/$F3*100) -> 25.71860817 | E14: =IF($F3=0,"0",E3/$F3*100) -> 6.127080182 | F14: =IF($F3=0,"0",F3/$F3*100) -> 100
A16: ="1 April 2011 - 31 March 2012 ("&F6 &")" -> 1 April 2011 - 31 March 2012 (1990) | B16: =IF($F6=0,"0",B6/$F6*100) -> 26.03015075 | C16: =IF($F6=0,"0",C6/$F6*100) -> 54.47236181 | D16: =IF($F6=0,"0",D6/$F6*100) -> 17.28643216 | E16: =IF($F6=0,"0",E6/$F6*100) -> 2.211055276 | F16: =IF($F6=0,"0",F6/$F6*100) -> 100
A18: ="1 April 2010 - 31 March 2011 ("&F8 &")" -> 1 April 2010 - 31 March 2011 (4181) | B18: =IF($F8=0,"0",B8/$F8*100) -> 16.67065295 | C18: 55.70437694 | D18: 23.63071036 | E18: 3.994259746 | F18: 100
A19: ="1 April 2009 - 31 March 2010 ("&F9 &")" -> 1 April 2009 - 31 March 2010 (3755) | B19: 10.78561917 | C19: 55.25965379 | D19: 27.16378162 | E19: 6.790945406 | F19: 100
A20: ="1 April 2008 - 31 March 2009 ("&F10 &")" -> 1 April 2008 - 31 March 2009 (3706) | B20: 7.825148408 | C20: 51.16028063 | D20: 32.02914193 | E20: 8.985429034 | F20: 100
A21: ="1 April 2007 - 31 March 2008 ("&F11 &")" -> 1 April 2007 - 31 March 2008 (3752) | B21: 7.702558635 | C21: 53.2249467 | D21: 29.26439232 | E21: 9.808102345 | F21: 100
H22: 1 | I22: 2 | J22: 3 | K22: 0
H23: 141 | I23: 314 | J23: 98 | K23: 9
B24: Outstanding | C24: Good | D24: Satisfactory | E24: Inadequate | F24: Total | H24: 83 | I24: 251 | J24: 103 | K24: 13
A25: 1 April - 30 September 2012 | B25: =B3/$F$3*100 -> 13.08623298 | C25: =C3/$F$3*100 -> 55.06807867 | D25: =D3/$F$3*100 -> 25.71860817 | E25: =E3/$F$3*100 -> 6.127080182 | F25: =SUM(B25:E25) -> 100
A26: 1 July - 30 September 2012 | B26: =B4/$F$4*100 -> 17.37226277 | C26: =C4/$F$4*100 -> 58.24817518 | D26: =D4/$F$4*100 -> 19.8540146 | E26: =E4/$F$4*100 -> 4.525547445 | F26: =F4/$F$4*100 -> 100
A27: 1 July - 30 September 2012 | B27: =B4 -> 119 | C27: 399 | D27: 136 | E27: 31 | F27: 685
A28: 1 April 2012 - 30 June 2012 | B28: 54 | C28: 329 | D28: 204 | E28: 50 | F28: 637 | H28: 712 | I28: 228 | J28: 377 | K28: 97
A29: 1 January 2012 - 31 March 2012 | B29: =SUM(J40:J42) -> 14 | C29: =SUM(K40:K42) -> 58 | D29: =SUM(L40:L42) -> 28 | E29: =SUM(M40:M42) -> 9 | F29: =SUM(B29:E29) -> 109 | H29: ) | I29: =SUM(I24:I28) -> 479 | J29: =SUM(J24:J28) -> 480 | K29: =SUM(K24:K28) -> 110
A30: 1 October 2011 - 31 December 2011 | B30: =H9 -> 257 | C30: 412 | D30: 101 | E30: 11 | F30: =SUM(B30:E30) -> 781
A31: 1 July 2011 - 30 September 2011 | B31: 163 | C31: 358 | D31: 112 | E31: 11 | F31: =SUM(B31:E31) -> 644
A32: 1 April 2011 - 30 June 2011 | B32: 84 | C32: 256 | D32: 103 | E32: 13 | F32: =SUM(B32:E32) -> 456 | H32: =SUM(B30:B32) -> 504 | I32: =SUM(C30:C32) -> 1026 | J32: =SUM(D30:D32) -> 316 | K32: =SUM(E30:E32) -> 35
A34: 1 January 2011 - 31 March 2011 | B34: 279 | C34: 881 | D34: 394 | E34: 46 | F34: =SUM(B34:E34) -> 1600 | H34: =SUM(R18:R19) -> 0 | I34: =SUM(S18:S19) -> 0 | J34: =SUM(T18:T19) -> 0 | K34: =SUM(U18:U19) -> 0
A35: 1 October 2010 - 31 December 2010 | B35: 198 | C35: 648 | D35: 247 | E35: 38 | F35: 1131 | H35: =SUM(N34:N35) -> 0 | I35: =SUM(O34:O35) -> 0 | J35: =SUM(P34:P35) -> 0 | K35: =SUM(Q18:Q19) -> 0
A36: 1 July 2010 - 30 September 2010 | B36: 143 | C36: 454 | D36: 177 | E36: 47 | F36: 821
A37: 1 April 2010 - 30 June 2010 | B37: 77 | C37: 346 | D37: 170 | E37: 36 | F37: 629
A38: 1 January 2010 - 31 March 2010 | B38: 155 | C38: 726 | D38: 340 | E38: 73 | F38: 1294
A39: 1 October 2009 - 31 December 2009 | B39: 126 | C39: 619 | D39: 287 | E39: 76 | F39: 1108
A40: 1 July 2009 - 30 September 2009 | B40: 95 | C40: 481 | D40: 263 | E40: 52 | F40: 891 | H40: Children's homes | I40: 86 | J40: 12 | K40: 54 | L40: 26 | M40: 9
A41: 1 April 2009 - 30 June 2009 | B41: 62 | C41: 404 | D41: 208 | E41: 72 | F41: 746 | H41: Secure children's homes | I41: 2 | J41: 0 | K41: 2 | L41: 0 | M41: 0
A42: 1 January 2009 - 31 March 2009 | B42: 106 | C42: 617 | D42: 366 | E42: 97 | F42: 1186 | H42: RSS | I42: 6 | J42: 2 | K42: 2 | L42: 2 | M42: 0
A43: 1 October 2008 - 31 December 2008 | B43: 87 | C43: 582 | D43: 400 | E43: 101 | F43: 1170
A44: 1 July 2008 - 30 September 2008 | B44: 72 | C44: 456 | D44: 298 | E44: 80 | F44: 906 | H44: 82 | I44: 249 | J44: 100 | K44: 13 | L44: 140 | M44: 308 | N44: 98 | O44: 9
A45: 1 April 2008 - 30 June 2008 | B45: 46 | C45: 384 | D45: 225 | E45: 77 | F45: 732 | H45: 1 | I45: 2 | J45: 3 | K45: 0 | L45: 1 | M45: 6 | N45: 0 | O45: 0
A46: 1 January 2008 - 31 March 2008 | B46: 103 | C46: 657 | D46: 342 | E46: 97 | F46: 1199
A47: 1 October 2007 - 31 December 2007 | B47: 88 | C47: 579 | D47: 279 | E47: 93 | F47: 1039
A48: 1 July 2007 - 30 September 2007 | B48: 68 | C48: 484 | D48: 249 | E48: 103 | F48: 904 | H48: 228 | I48: 374 | J48: 96 | K48: 10 | L48: 10
A49: 1 April 2007 - 30 June 2007 | B49: 49 | C49: 399 | D49: 293 | E49: 103 | F49: 844 | H49: 0 | I49: 3 | J49: 1 | K49: 0 | L49: 0
H50: 21 | I50: 18 | J50: 1 | K50: 0
B51: Outstanding | C51: Good | D51: Satisfactory | E51: Inadequate | F51: Total | H51: =SUM(H48:H49) -> 228 | I51: =SUM(I48:I49) -> 377 | J51: =SUM(J48:J49) -> 97 | K51: =SUM(K48:K49) -> 10 | L51: =SUM(L48:L49) -> 10
A52: 1 July 2012 - 30 September 2012 (685) | B52: =IF($F27=0,"0",B27/$F27*100) -> 17.37226277 | C52: 58.24817518 | D52: 19.8540146 | E52: 4.525547445 | F52: 100
A53: =+"1 April 2012 - 30 June 2012" & " (" &F28 &")" -> 1 April 2012 - 30 June 2012 (637) | B53: 8.477237049 | C53: 51.64835165 | D53: 32.02511774 | E53: 7.849293564 | F53: 100
A55: =+"1 January 2012 - 31 March 2012" & " (" &F29 &")" -> 1 January 2012 - 31 March 2012 (109) | B55: =IF($F29=0,"0",B29/$F29*100) -> 12.8440367 | C55: 53.21100917 | D55: 25.68807339 | E55: 8.256880734 | F55: 100
A56: =+"1 October 2011 - 31 December 2011" & " (" &F30 &")" -> 1 October 2011 - 31 December 2011 (781) | B56: 32.90653009 | C56: 52.75288092 | D56: 12.93213828 | E56: 1.408450704 | F56: 100
A57: =+"1 July 2011 - 30 September 2011" & " (" &F31 &")" -> 1 July 2011 - 30 September 2011 (644) | B57: 25.31055901 | C57: 55.59006211 | D57: 17.39130435 | E57: 1.708074534 | F57: 100
A58: =+"1 April 2011 - 30 June 2011" & " (" & F32 & ")" -> 1 April 2011 - 30 June 2011 (456) | B58: =IF($F32=0,"0",B32/$F32*100) -> 18.42105263 | C58: =IF($F32=0,"0",C32/$F32*100) -> 56.14035088 | D58: =IF($F32=0,"0",D32/$F32*100) -> 22.5877193 | E58: =IF($F32=0,"0",E32/$F32*100) -> 2.850877193
A60: =+"1 January 2011 - 31 March 2011 ("&F34 &")" -> 1 January 2011 - 31 March 2011 (1600) | B60: =IF($F34=0,"0",B34/$F34*100) -> 17.4375 | C60: 55.0625 | D60: 24.625 | E60: 2.875 | F60: 100
A61: ="1 October 2010 - 31 December 2010 ("&F35 &")" -> 1 October 2010 - 31 December 2010 (1131) | B61: 17.5066313 | C61: 57.29442971 | D61: 21.83908046 | E61: 3.359858532 | F61: 100
A62: ="1 July 2010 - 30 September 2010 ("&F36 &")" -> 1 July 2010 - 30 September 2010 (821) | B62: 17.41778319 | C62: 55.29841657 | D62: 21.5590743 | E62: 5.724725944 | F62: 100
A63: ="1 April 2010 - 30 June 2010 ("&F37 &")" -> 1 April 2010 - 30 June 2010 (629) | B63: 12.24165342 | C63: 55.00794913 | D63: 27.02702703 | E63: 5.723370429 | F63: 100
A64: ="1 January 2010 - 31 March 2010 ("&F38 &")" -> 1 January 2010 - 31 March 2010 (1294) | B64: 11.97836167 | C64: 56.10510046 | D64: 26.27511592 | E64: 5.641421947 | F64: 100
A65: ="1 October 2009 - 31 December 2009 ("&F39 &")" -> 1 October 2009 - 31 December 2009 (1108) | B65: 11.37184116 | C65: 55.86642599 | D65: 25.90252708 | E65: 6.859205776 | F65: 100
A66: ="1 July 2009 - 30 September 2009 ("&F40 &")" -> 1 July 2009 - 30 September 2009 (891) | B66: 10.66217733 | C66: 53.98428732 | D66: 29.51739618 | E66: 5.836139169 | F66: 100
A67: ="1 April 2009 - 30 June 2009 ("&F41 &")" -> 1 April 2009 - 30 June 2009 (746) | B67: 8.310991957 | C67: 54.15549598 | D67: 27.88203753 | E67: 9.651474531 | F67: 100
A68: ="1 January 2009 - 31 March 2009 ("&F42 &")" -> 1 January 2009 - 31 March 2009 (1186) | B68: 8.937605396 | C68: 52.02360877 | D68: 30.86003373 | E68: 8.178752108 | F68: 100
A69: ="1 October 2008 - 31 December 2008 ("&F43 &")" -> 1 October 2008 - 31 December 2008 (1170) | B69: 7.435897436 | C69: 49.74358974 | D69: 34.18803419 | E69: 8.632478632 | F69: 100
A70: ="1 July 2008 - 30 September 2008 ("&F44 &")" -> 1 July 2008 - 30 September 2008 (906) | B70: =IF($F44=0,"0",B44/$F44*100) -> 7.947019868 | C70: 50.33112583 | D70: 32.89183223 | E70: 8.830022075 | F70: 100
A71: ="1 April 2008 - 30 June 2008 ("&F45 &")" -> 1 April 2008 - 30 June 2008 (732) | B71: 6.284153005 | C71: 52.45901639 | D71: 30.73770492 | E71: 10.51912568 | F71: 100
A72: ="1 January 2008 - 31 March 2008 ("&F46 &")" -> 1 January 2008 - 31 March 2008 (1199) | B72: 8.590492077 | C72: 54.79566305 | D72: 28.52376981 | E72: 8.090075063 | F72: 100
A73: ="1 October 2007 - 31 December 2007 ("&F47 &")" -> 1 October 2007 - 31 December 2007 (1039) | B73: 8.469682387 | C73: 55.72666025 | D73: 26.85274302 | E73: 8.950914341 | F73: 100
A74: ="1 July 2007 - 30 September 2007 ("&F48 &")" -> 1 July 2007 - 30 September 2007 (904) | B74: 7.522123894 | C74: 53.53982301 | D74: 27.54424779 | E74: 11.39380531 | F74: 100
A75: ="1 April 2007 - 30 June 2007 ("&F49 &")" -> 1 April 2007 - 30 June 2007 (844) | B75: 5.805687204 | C75: 47.27488152 | D75: 34.71563981 | E75: 12.20379147 | F75: 100

Sheet Chart 1
B2: Chart 1: Overall effectiveness of all children's homes inspected between 1 April 2007 and 30 September 2012, by financial year (provisional)1 2
B7: Number of children's homes
B8: Year | C8: Outstanding | D8: Good | E8: Satisfactory/ Adequate | F8: Inadequate | G8: Total number inspected
B11: 1 April 2012 - 30 September 2012 | C11: ='Chart1&2Data'!B3 -> 173 | D11: ='Chart1&2Data'!C3 -> 728 | E11: ='Chart1&2Data'!D3 -> 340 | F11: ='Chart1&2Data'!E3 -> 81 | G11: ='Chart1&2Data'!F3 -> 1322
B14: 1 April 2011 - 31 March 2012 | C14: ='Chart1&2Data'!B6 -> 518 | D14: ='Chart1&2Data'!C6 -> 1084 | E14: ='Chart1&2Data'!D6 -> 344 | F14: ='Chart1&2Data'!E6 -> 44 | G14: =SUM(C14:F14) -> 1990
B17: ='Chart1&2Data'!A8 -> 1 April 2010 - 31 March 2011 | C17: 697 | D17: 2329 | E17: 988 | F17: 167 | G17: =SUM(C17:F17) -> 4181
B18: ='Chart1&2Data'!A9 -> 1 April 2009 - 31 March 2010 | C18: 405 | D18: 2075 | E18: 1020 | F18: 255 | G18: =SUM(C18:F18) -> 3755
B19: ='Chart1&2Data'!A10 -> 1 April 2008 - 31 March 2009 | C19: 290 | D19: 1896 | E19: 1187 | F19: 333 | G19: =SUM(C19:F19) -> 3706
B20: ='Chart1&2Data'!A11 -> 1 April 2007 - 31 March 2008 | C20: 289 | D20: 1997 | E20: 1098 | F20: 368 | G20: =SUM(C20:F20) -> 3752
G22: Source: Ofsted inspections
B24: Percentage of children's homes
B36: 1. Percentages are rounded and may not add to 100.
B37: 2. Inspections since the inspection framework change on 1 April 2011 include only full inspections, inspections prior to 1 April 2011 include both interim and full inspection.

Sheet Chart 2
B2: Chart 2: Overall effectiveness of all children's homes inspected between 1 April 2007 and 30 September 2012, by quarter (provisional)1 2
B6: Number of children's homes
B7: Quarter | C7: Outstanding | D7: Good | E7: Satisfactory/ Adequate | F7: Inadequate | G7: Total number inspected
B9: ='Chart1&2Data'!A4 -> 1 July - 30 September 2012 | C9: ='Chart1&2Data'!B4 -> 119 | D9: ='Chart1&2Data'!C4 -> 399 | E9: ='Chart1&2Data'!D4 -> 136 | F9: ='Chart1&2Data'!E4 -> 31 | G9: ='Chart1&2Data'!F4 -> 685
B10: ='Chart1&2Data'!A28 -> 1 April 2012 - 30 June 2012 | C10: ='Chart1&2Data'!B28 -> 54 | D10: ='Chart1&2Data'!C28 -> 329 | E10: ='Chart1&2Data'!D28 -> 204 | F10: ='Chart1&2Data'!E28 -> 50 | G10: ='Chart1&2Data'!F28 -> 637
B12: ='Chart1&2Data'!A29 -> 1 January 2012 - 31 March 2012 | C12: ='Chart1&2Data'!B29 -> 14 | D12: ='Chart1&2Data'!C29 -> 58 | E12: ='Chart1&2Data'!D29 -> 28 | F12: ='Chart1&2Data'!E29 -> 9 | G12: ='Chart1&2Data'!F29 -> 109
B13: ='Chart1&2Data'!A30 -> 1 October 2011 - 31 December 2011 | C13: ='Chart1&2Data'!B30 -> 257 | D13: ='Chart1&2Data'!C30 -> 412 | E13: ='Chart1&2Data'!D30 -> 101 | F13: ='Chart1&2Data'!E30 -> 11 | G13: ='Chart1&2Data'!F30 -> 781
B14: ='Chart1&2Data'!A31 -> 1 July 2011 - 30 September 2011 | C14: ='Chart1&2Data'!B31 -> 163 | D14: ='Chart1&2Data'!C31 -> 358 | E14: ='Chart1&2Data'!D31 -> 112 | F14: ='Chart1&2Data'!E31 -> 11 | G14: ='Chart1&2Data'!F31 -> 644
B15: ='Chart1&2Data'!A32 -> 1 April 2011 - 30 June 2011 | C15: ='Chart1&2Data'!B32 -> 84 | D15: ='Chart1&2Data'!C32 -> 256 | E15: ='Chart1&2Data'!D32 -> 103 | F15: ='Chart1&2Data'!E32 -> 13 | G15: ='Chart1&2Data'!F32 -> 456
B17: ='Chart1&2Data'!A34 -> 1 January 2011 - 31 March 2011 | C17: 279 | D17: 881 | E17: 394 | F17: 46 | G17: =SUM(C17:F17) -> 1600
B18: ='Chart1&2Data'!A35 -> 1 October 2010 - 31 December 2010 | C18: 198 | D18: 648 | E18: 247 | F18: 38 | G18: 1131
B19: ='Chart1&2Data'!A36 -> 1 July 2010 - 30 September 2010 | C19: 143 | D19: 454 | E19: 177 | F19: 47 | G19: 821
B20: ='Chart1&2Data'!A37 -> 1 April 2010 - 30 June 2010 | C20: 77 | D20: 346 | E20: 170 | F20: 36 | G20: 629
B21: ='Chart1&2Data'!A38 -> 1 January 2010 - 31 March 2010 | C21: 155 | D21: 726 | E21: 340 | F21: 73 | G21: 1294
B22: ='Chart1&2Data'!A39 -> 1 October 2009 - 31 December 2009 | C22: 126 | D22: 619 | E22: 287 | F22: 76 | G22: 1108
B23: ='Chart1&2Data'!A40 -> 1 July 2009 - 30 September 2009 | C23: 95 | D23: 481 | E23: 263 | F23: 52 | G23: 891
B24: ='Chart1&2Data'!A41 -> 1 April 2009 - 30 June 2009 | C24: 62 | D24: 404 | E24: 208 | F24: 72 | G24: 746
B25: ='Chart1&2Data'!A42 -> 1 January 2009 - 31 March 2009 | C25: 106 | D25: 617 | E25: 366 | F25: 97 | G25: 1186
B26: ='Chart1&2Data'!A43 -> 1 October 2008 - 31 December 2008 | C26: 87 | D26: 582 | E26: 400 | F26: 101 | G26: 1170
B27: ='Chart1&2Data'!A44 -> 1 July 2008 - 30 September 2008 | C27: 72 | D27: 456 | E27: 298 | F27: 80 | G27: 906
B28: ='Chart1&2Data'!A45 -> 1 April 2008 - 30 June 2008 | C28: 46 | D28: 384 | E28: 225 | F28: 77 | G28: 732
B29: ='Chart1&2Data'!A46 -> 1 January 2008 - 31 March 2008 | C29: 103 | D29: 657 | E29: 342 | F29: 97 | G29: 1199
B30: ='Chart1&2Data'!A47 -> 1 October 2007 - 31 December 2007 | C30: 88 | D30: 579 | E30: 279 | F30: 93 | G30: 1039
B31: ='Chart1&2Data'!A48 -> 1 July 2007 - 30 September 2007 | C31: 68 | D31: 484 | E31: 249 | F31: 103 | G31: 904
B32: ='Chart1&2Data'!A49 -> 1 April 2007 - 30 June 2007 | C32: 49 | D32: 399 | E32: 293 | F32: 103 | G32: 844
G35: Source: Ofsted inspections
B36: Percentage of children's homes
B65: 1. Percentages are rounded and may not add to 100.
B66: 2. Inspections since the inspection framework change on 1 April 2011 include only full inspections, inspections prior to 1 April 2011 include both interim and full inspection.

Sheet Chart 3
B2: Chart 3: Overall effectiveness of local authority run children's homes inspected between 1 April 2011 and 30 September 2012, by quarter (provisional)1 2
B6: Number of children's homes
B7: Quarter | C7: Outstanding | D7: Good | E7: Satisfactory/ Adequate | F7: Inadequate | G7: Total number inspected
B9: ='Chart3&4Data'!B4 -> 1 July 2012 - 30 September 2012 | C9: ='Chart3&4Data'!C4 -> 41 | D9: ='Chart3&4Data'!D4 -> 130 | E9: ='Chart3&4Data'!E4 -> 44 | F9: ='Chart3&4Data'!F4 -> 9 | G9: ='Chart3&4Data'!G4 -> 224
B10: ='Chart3&4Data'!B5 -> 1 April 2012 - 30 June 2012 | C10: ='Chart3&4Data'!C5 -> 10 | D10: ='Chart3&4Data'!D5 -> 74 | E10: ='Chart3&4Data'!E5 -> 51 | F10: ='Chart3&4Data'!F5 -> 11 | G10: ='Chart3&4Data'!G5 -> 146
B12: ='Chart3&4Data'!B6 -> 1 January 2012 - 31 March 2012 | C12: ='Chart3&4Data'!C6 -> 7 | D12: ='Chart3&4Data'!D6 -> 13 | E12: ='Chart3&4Data'!E6 -> 7 | F12: ='Chart3&4Data'!F6 -> 1 | G12: ='Chart3&4Data'!G6 -> 28
B13: ='Chart3&4Data'!B7 -> 1 October 2011 - 31 December 2011 | C13: ='Chart3&4Data'!C7 -> 79 | D13: ='Chart3&4Data'!D7 -> 116 | E13: ='Chart3&4Data'!E7 -> 25 | F13: ='Chart3&4Data'!F7 -> 1 | G13: ='Chart3&4Data'!G7 -> 221
B14: ='Chart3&4Data'!B8 -> 1 July 2011 - 30 September 2011 | C14: ='Chart3&4Data'!C8 -> 48 | D14: ='Chart3&4Data'!D8 -> 111 | E14: ='Chart3&4Data'!E8 -> 31 | F14: ='Chart3&4Data'!F8 -> 5 | G14: ='Chart3&4Data'!G8 -> 195
B15: ='Chart3&4Data'!B9 -> 1 April 2011 - 30 June 2011 | C15: ='Chart3&4Data'!C9 -> 21 | D15: ='Chart3&4Data'!D9 -> 55 | E15: ='Chart3&4Data'!E9 -> 29 | F15: ='Chart3&4Data'!F9 -> 3 | G15: ='Chart3&4Data'!G9 -> 108
G17: Source: Ofsted inspections
B35: 1. Percentages are rounded and may not add to 100.
B36: 2. Local authority data include a small number of homes run by health authorities.

Sheet Chart 4
B2: Chart 4: Overall effectiveness of private and voluntary run children's homes inspected between 1 April 2011 and 30 June 2012, by quarter (provisional)1
B6: Number of children's homes
B7: Quarter | C7: Outstanding | D7: Good | E7: Satisfactory/ Adequate | F7: Inadequate | G7: Total number inspected
B9: ='Chart3&4Data'!B27 -> 1 July 2012 - 30 September 2012 | C9: ='Chart3&4Data'!C27 -> 78 | D9: ='Chart3&4Data'!D27 -> 269 | E9: ='Chart3&4Data'!E27 -> 92 | F9: ='Chart3&4Data'!F27 -> 22 | G9: ='Chart3&4Data'!G27 -> 461
B10: ='Chart3&4Data'!B28 -> 1 April 2012 - 30 June 2012 | C10: ='Chart3&4Data'!C28 -> 44 | D10: ='Chart3&4Data'!D28 -> 255 | E10: ='Chart3&4Data'!E28 -> 153 | F10: ='Chart3&4Data'!F28 -> 39 | G10: ='Chart3&4Data'!G28 -> 491
B12: ='Chart3&4Data'!B29 -> 1 January 2012 - 31 March 2012 | C12: ='Chart3&4Data'!C29 -> 7 | D12: ='Chart3&4Data'!D29 -> 45 | E12: ='Chart3&4Data'!E29 -> 21 | F12: ='Chart3&4Data'!F29 -> 8 | G12: ='Chart3&4Data'!G29 -> 81
